Workbook

Sheet Home
B11: Home
B13: Performance Metrics
B15: BP-OnTrac Reports
B17: Administration
F24: April Performance Metrics

Sheet CUI Manager Performance
A1: 2023-10-10
F3: Start Date:3/22/2024, End Date: 4/21/2024
F4: Office | G4: Score | H4: FTR | I4: Tool Usage | J4: tNPS
F5: Florida Panhandle | G5: =IFERROR(VLOOKUP($F5,'Florida Manager Performance'!$G$6:$AO$15,2,FALSE),"") -> 10 | H5: =VLOOKUP($F5,'Florida Manager Performance'!$G$6:$AO$15,5,FALSE) -> 0.933 | I5: =IFERROR(VLOOKUP($F5,'Florida Manager Performance'!$G$4:$AV$15,34,FALSE),"") -> 0.988 | J5: =IFERROR(VLOOKUP($F5,'Florida Manager Performance'!$G$6:$AH$15,25,FALSE),"") -> 0.9443 | M5: From | N5: To
F6: Beltway East | G6: =IFERROR(VLOOKUP($F6,'Beltway Manager Performance'!$G$6:$BA$13,2,FALSE),"") -> 10 | H6: =VLOOKUP($F6,'Beltway Manager Performance'!$G$6:$BA$13,5,FALSE) -> 0.928 | I6: =IFERROR(VLOOKUP($F6,'Beltway Manager Performance'!$G$4:$BH$13,46,FALSE),"") -> 0.988 | J6: =IFERROR(VLOOKUP($F6,'Beltway Manager Performance'!$G$6:$AR$14,38,FALSE),"") -> 0.9341 | M6: 2024-03-22 | N6: 2024-03-27
F7: Jacksonville, FL | G7: =IFERROR(VLOOKUP($F7,'Florida Manager Performance'!$G$6:$AO$15,2,FALSE),"") -> 10 | H7: =VLOOKUP($F7,'Florida Manager Performance'!$G$6:$AO$15,5,FALSE) -> 0.922 | I7: =IFERROR(VLOOKUP($F7,'Florida Manager Performance'!$G$4:$AV$15,34,FALSE),"") -> 0.991 | J7: =IFERROR(VLOOKUP($F7,'Florida Manager Performance'!$G$6:$AH$15,25,FALSE),"") -> 0.9473
F8: Lake/Orlando | G8: =IFERROR(VLOOKUP($F8,'Florida Manager Performance'!$G$6:$AO$15,2,FALSE),"") -> 7 | H8: =VLOOKUP($F8,'Florida Manager Performance'!$G$6:$AO$15,5,FALSE) -> 0.921 | I8: =IFERROR(VLOOKUP($F8,'Florida Manager Performance'!$G$4:$AV$15,34,FALSE),"") -> 0.983 | J8: =IFERROR(VLOOKUP($F8,'Florida Manager Performance'!$G$6:$AH$15,25,FALSE),"") -> 0.9333
F9: West Palm Beach County | G9: =IFERROR(VLOOKUP($F9,'Florida Manager Performance'!$G$6:$AO$15,2,FALSE),"") -> 6.5 | H9: =VLOOKUP($F9,'Florida Manager Performance'!$G$6:$AO$15,5,FALSE) -> 0.895 | I9: =IFERROR(VLOOKUP($F9,'Florida Manager Performance'!$G$4:$AV$15,34,FALSE),"") -> 0.987 | J9: =IFERROR(VLOOKUP($F9,'Florida Manager Performance'!$G$6:$AH$15,25,FALSE),"") -> 0.9308
F10: North Alabama | G10: =IFERROR(VLOOKUP($F10,'Big South Manager Performance'!$G$7:$AT$14,2,FALSE),"") -> 6.5 | H10: =VLOOKUP($F10,'Big South Manager Performance'!$G$7:$AT$14,5,FALSE) -> 0.893 | I10: =IFERROR(VLOOKUP($F10,'Big South Manager Performance'!$G$5:$AX$14,36,FALSE),"") -> 1 | J10: =IFERROR(VLOOKUP($F10,'Big South Manager Performance'!$G$7:$AO$16,28,FALSE),"") -> 0.9545
B11: Home | F11: Beltway West | G11: =IFERROR(VLOOKUP($F11,'Beltway Manager Performance'!$G$6:$BA$13,2,FALSE),"") -> 3.5 | H11: =VLOOKUP($F11,'Beltway Manager Performance'!$G$6:$BA$13,5,FALSE) -> 0.915 | I11: =IFERROR(VLOOKUP($F11,'Beltway Manager Performance'!$G$4:$BH$13,46,FALSE),"") -> 0.973 | J11: =IFERROR(VLOOKUP($F11,'Beltway Manager Performance'!$G$6:$AR$14,38,FALSE),"") -> 0.9501
F12: Nashville, TN | G12: =IFERROR(VLOOKUP($F12,'Big South Manager Performance'!$G$7:$AT$14,2,FALSE),"") -> 3.5 | H12: =VLOOKUP($F12,'Big South Manager Performance'!$G$7:$AT$14,5,FALSE) -> 0.901 | I12: =IFERROR(VLOOKUP($F12,'Big South Manager Performance'!$G$5:$AX$14,36,FALSE),"") -> 0.982 | J12: =IFERROR(VLOOKUP($F12,'Big South Manager Performance'!$G$7:$AO$16,28,FALSE),"") -> 0.9495
B13: Performance Metrics | F13: West Palm North | G13: =IFERROR(VLOOKUP($F13,'Florida Manager Performance'!$G$6:$AO$15,2,FALSE),"") -> 3 | H13: =VLOOKUP($F13,'Florida Manager Performance'!$G$6:$AO$15,5,FALSE) -> 0.912 | I13: =IFERROR(VLOOKUP($F13,'Florida Manager Performance'!$G$4:$AV$15,34,FALSE),"") -> 0.986 | J13: =IFERROR(VLOOKUP($F13,'Florida Manager Performance'!$G$6:$AH$15,25,FALSE),"") -> 0.9199
B14: Florida | F14: Keystone | G14: =IFERROR(VLOOKUP($F14,'Keystone Manager Performance'!$G$6:$AY$6,2,FALSE),"") -> 0 | H14: =IFERROR(VLOOKUP($F14,'Keystone Manager Performance'!$G$6:$AY$6,5,FALSE),"") -> 0.904 | I14: =IFERROR(VLOOKUP($F14,'Keystone Manager Performance'!$G$6:$AY$6,41,FALSE),"") -> 0.973 | J14: =IFERROR(VLOOKUP($F14,'Keystone Manager Performance'!$G$6:$AY$6,35,FALSE),"") -> 0.9149 | M14: Florida
B15: Beltway
B16: Big South | F16: ='CUI Manager Performance'!$F$3 -> Start Date:3/22/2024, End Date: 4/21/2024
B17: Keystone | F17: Manager Name | G17: Score | H17: FTR | I17: Tool Usage | J17: tNPS | W17: Start Date | Z17: =M6 -> 2024-03-22 | AC17: End Date | AF17: =N6 -> 2024-03-27
F18: Charles Olah | G18: =VLOOKUP("Florida Panhandle",$F$5:$J$14,2,FALSE) -> 10 | H18: =VLOOKUP("Florida Panhandle",$F$5:$J$14,3,FALSE) -> 0.933 | I18: =VLOOKUP("Florida Panhandle",$F$5:$J$14,4,FALSE) -> 0.988 | J18: =VLOOKUP("Florida Panhandle",$F$5:$J$14,5,FALSE) -> 0.9443 | M18: Office | N18: Score | O18: Total Jobs | P18: Jobs FTR | Q18: FTR | R18: Total Job | S18: Pass | T18: PHT | U18: Pure Pass Fails | W18: PHT Pure Pass | X18: Calls Met | Y18: Calls Missed | Z18: OTA | AC18: Contact w/in 48hrs | AD18: Total Jobs | AE18: Total invalid | AF18: % Valid RTM | AG18: Jobs | AH18: Pictures Uploaded | AI18: ML Bonding Compliance | AJ18: Total Surveys | AK18: Failures | AL18: tNPS | AM18: Total Jobs | AN18: Total Comp | AO18: Ingress Test Ran | AP18: Number of Drops | AQ18: One Drop Usage | AR18: One Drop | AS18: Tool Usage Jobs | AT18: Tool Usage | AU18: Tool Usage Rate | AV18: Total Installs | AW18: Completed | AX18: Install Completion % | AY18: Total TC's | AZ18: Completed | BA18: TC Completion % | BB18: Total Completion %
B19: BP-OnTrac Reports | F19: James Mason | G19: =VLOOKUP("Jacksonville, FL",$F$5:$J$14,2,FALSE) -> 10 | H19: =VLOOKUP("Jacksonville, FL",$F$5:$J$14,3,FALSE) -> 0.922 | I19: =VLOOKUP("Jacksonville, FL",$F$5:$J$14,4,FALSE) -> 0.991 | J19: =VLOOKUP("Jacksonville, FL",$F$5:$J$14,5,FALSE) -> 0.9473
F20: Cedric Hall | G20: =IFERROR(VLOOKUP($F20,'Beltway Manager Performance'!$G$6:$BA$23,2,FALSE),"") -> 10 | H20: =VLOOKUP($F20,'Beltway Manager Performance'!$G$6:$BA$23,5,FALSE) -> 0.923 | I20: =IFERROR(VLOOKUP($F20,'Beltway Manager Performance'!$G$4:$BH$23,49,FALSE),"") -> 0.986 | J20: =IFERROR(VLOOKUP($F20,'Beltway Manager Performance'!$G$6:$AZ$23,38,FALSE),"") -> 0.9654 | M20: West Palm Beach County | N20: =IF(AU20="","",IFERROR(IF(Q20>=92%,3.5,0)+IF(AL20>=92.5%,3.5,0)+IF(AU20>=98.5%,3,0),"")) -> 3 | O20: =SUMIFS('NSR WO Details'!$AG:$AG,'NSR WO Details'!$H:$H,$M20,'NSR WO Details'!$AI:$AI,">="&$M$6,'NSR WO Details'!$AI:$AI,"<="&$N$6) -> 1326 | P20: =COUNTIFS('FTR Detail'!$I:$I,$M20,'FTR Detail'!$AH:$AH,">="&$M$6,'FTR Detail'!$AH:$AH,"<="&$N$6) -> 132 | Q20: =IFERROR(1-(P20/O20),"") -> 0.9 | R20: =SUMIFS('NSR WO Details'!$AB:$AB,'NSR WO Details'!$H:$H,$M20,'NSR WO Details'!$AI:$AI,">="&$M$6,'NSR WO Details'!$AI:$AI,"<="&$N$6) -> 965 | S20: =SUMIFS('NSR WO Details'!$AC:$AC,'NSR WO Details'!$H:$H,$M20,'NSR WO Details'!$AI:$AI,">="&$M$6,'NSR WO Details'!$AI:$AI,"<="&$N$6) -> 959 | T20: =IFERROR(SUM(S20/R20),"") -> 0.9938 | U20: =COUNTIFS('NSR WO Details'!$H:$H,$M20,'NSR WO Details'!$AD:$AD,"PASS_WITH_WARNINGS",'NSR WO Details'!$AI:$AI,">="&$M$6,'NSR WO Details'!$AI:$AI,"<="&$N$6)+COUNTIFS('NSR WO Details'!$H:$H,$M20,'NSR WO Details'!$AD:$AD,"PASS_WITH_OVERRIDES",'NSR WO Details'!$AI:$AI,">="&$M$6,'NSR WO Details'!$AI:$AI,"<="&$N$6) -> 11 | W20: =IFERROR(SUM(1-U20/S20),"") -> 0.9885 | X20: =COUNTIFS('NSR WO Details'!$W:$W,"=MET",'NSR WO Details'!$H:$H,$M20,'NSR WO Details'!$AI:$AI,">="&$M$6,'NSR WO Details'!$AI:$AI,"<="&$N$6) -> 1344 | Y20: =COUNTIFS('NSR WO Details'!$W:$W,"=Missed",'NSR WO Details'!$H:$H,$M20,'NSR WO Details'!$AI:$AI,">="&$M$6,'NSR WO Details'!$AI:$AI,"<="&$N$6) -> 23 | Z20: =IFERROR(SUM(X20/(X20+Y20)),"") -> 0.9832 | AA20: =SUMIFS('NSR WO Details'!$AG:$AG,'NSR WO Details'!$H:$H,$M20,'NSR WO Details'!$AI:$AI,">="&$M$6,'NSR WO Details'!$AI:$AI,"<="&$N$6) -> 1326 | AB20: =SUMIFS('NSR WO Details'!$AE:$AE,'NSR WO Details'!$H:$H,$M20,'NSR WO Details'!$AI:$AI,">="&$M$6,'NSR WO Details'!$AI:$AI,"<="&$N$6) -> 160 | AC20: =IFERROR(SUM(AB20/AA20),"") -> 0.121 | AD20: =SUMIFS('RTM Results'!$DI:$DI,'RTM Results'!$R:$R,"WEST PALM CENTRAL",'RTM Results'!$I:$I,">="&$M$6,'RTM Results'!$I:$I,"<="&$N$6) -> 24 | AE20: =SUMIFS('RTM Results'!$DJ:$DJ,'RTM Results'!$R:$R,"WEST PALM CENTRAL",'RTM Results'!$I:$I,">="&$M$6,'RTM Results'!$I:$I,"<="&$N$6) -> 0 | AF20: =IFERROR(1-(SUM(AE20/AD20)),"") -> 1 | AG20: =SUM(#REF!) ->  | AH20: =SUM(#REF!) ->  | AI20: =IFERROR(SUM(AH20/AG20),"") ->  | AJ20: =SUMIFS('NSR WO Details'!$Z:$Z,'NSR WO Details'!$H:$H,$M20,'NSR WO Details'!$AI:$AI,">="&$M$6,'NSR WO Details'!$AI:$AI,"<="&$N$6) -> 222 | AK20: =SUMIFS('NSR WO Details'!$AA:$AA,'NSR WO Details'!$H:$H,$M20,'NSR WO Details'!$AI:$AI,">="&$M$6,'NSR WO Details'!$AI:$AI,"<="&$N$6) -> 204 | AL20: =IFERROR(SUM(AK20/AJ20),"") -> 0.9189 | AM20: =SUMIFS('Tool Usage Details'!$T:$T,'Tool Usage Details'!$H:$H,$M20,'Tool Usage Details'!$E:$E,">="&$M$6,'Tool Usage Details'!$E:$E,"<="&$N$6) -> 891 | AN20: =COUNTIFS('Tool Usage Details'!$H:$H,$M20,'Tool Usage Details'!$U:$U,"PASS",'Tool Usage Details'!$E:$E,">="&$M$6,'Tool Usage Details'!$E:$E,"<="&$N$6) -> 885 | AO20: =IFERROR(SUM(AN20/AM20),"") -> 0.9933 | AP20: =SUMIFS('One Drop'!$BV:$BV,'One Drop'!$BD:$BD,$M20,'One Drop'!$U:$U,">="&$M$6,'One Drop'!$U:$U,"<="&$N$6) -> 141 | AQ20: =SUMIFS('One Drop'!$BQ:$BQ,'One Drop'!$BD:$BD,$M20,'One Drop'!$U:$U,">="&$M$6,'One Drop'!$U:$U,"<="&$N$6) -> 136 | AR20: =IFERROR(SUM(AQ20/AP20),"") -> 0.9645 | AS20: =SUMIFS('NSR WO Details'!$AK:$AK,'NSR WO Details'!$H:$H,$M20,'NSR WO Details'!$AI:$AI,">="&$M$6,'NSR WO Details'!$AI:$AI,"<="&$N$6) -> 897 | AT20: =SUMIFS('NSR WO Details'!$AL:$AL,'NSR WO Details'!$H:$H,$M20,'NSR WO Details'!$AI:$AI,">="&$M$6,'NSR WO Details'!$AI:$AI,"<="&$N$6) -> 889 | AU20: =IFERROR(SUM(AT20/AS20),"") -> 0.991 | AV20: =SUMIFS(Completion!$CH:$CH,Completion!$BC:$BC,$M20,Completion!$L:$L,"INSTALL",Completion!$H:$H,">="&$M$6,Completion!$H:$H,"<="&$N$6) -> 0 | AW20: =SUMIFS(Completion!$BZ:$BZ,Completion!$BC:$BC,$M20,Completion!$L:$L,"INSTALL",Completion!$H:$H,">="&$M$6,Completion!$H:$H,"<="&$N$6) -> 0 | AX20: =IFERROR(SUM(AW20/AV20),"") ->  | AY20: =SUMIFS(Completion!$CH:$CH,Completion!$BC:$BC,$M20,Completion!$L:$L,"TC",Completion!$H:$H,">="&$M$6,Completion!$H:$H,"<="&$N$6) -> 0 | AZ20: =SUMIFS(Completion!$BZ:$BZ,Completion!$BC:$BC,$M20,Completion!$L:$L,"TC",Completion!$H:$H,">="&$M$6,Completion!$H:$H,"<="&$N$6) -> 0 | BA20: =IFERROR(SUM(AZ20/AY20),"") ->  | BB20: =IFERROR(SUM(AW20,AZ20)/SUM(AV20,AY20),"") -> 
F21: Audtin Buchanan | G21: =VLOOKUP("Lake/Orlando",$F$5:$J$14,2,FALSE) -> 7 | H21: =VLOOKUP("Lake/Orlando",$F$5:$J$14,3,FALSE) -> 0.921 | I21: =VLOOKUP("Lake/Orlando",$F$5:$J$14,4,FALSE) -> 0.983 | J21: =VLOOKUP("Lake/Orlando",$F$5:$J$14,5,FALSE) -> 0.9333 | M21: WEST PALM NORTH | N21: =IF(AU21="","",IFERROR(IF(Q21>=92%,3.5,0)+IF(AL21>=92.5%,3.5,0)+IF(AU21>=98.5%,3,0),"")) -> 7 | O21: =SUMIFS('NSR WO Details'!$AG:$AG,'NSR WO Details'!$H:$H,$M21,'NSR WO Details'!$AI:$AI,">="&$M$6,'NSR WO Details'!$AI:$AI,"<="&$N$6) -> 548 | P21: =COUNTIFS('FTR Detail'!$I:$I,$M21,'FTR Detail'!$AH:$AH,">="&$M$6,'FTR Detail'!$AH:$AH,"<="&$N$6) -> 40 | Q21: 0.927 | R21: =SUMIFS('NSR WO Details'!$AB:$AB,'NSR WO Details'!$H:$H,$M21,'NSR WO Details'!$AI:$AI,">="&$M$6,'NSR WO Details'!$AI:$AI,"<="&$N$6) -> 410 | S21: =SUMIFS('NSR WO Details'!$AC:$AC,'NSR WO Details'!$H:$H,$M21,'NSR WO Details'!$AI:$AI,">="&$M$6,'NSR WO Details'!$AI:$AI,"<="&$N$6) -> 408 | T21: 0.9951 | U21: =COUNTIFS('NSR WO Details'!$H:$H,$M21,'NSR WO Details'!$AD:$AD,"PASS_WITH_WARNINGS",'NSR WO Details'!$AI:$AI,">="&$M$6,'NSR WO Details'!$AI:$AI,"<="&$N$6)+COUNTIFS('NSR WO Details'!$H:$H,$M21,'NSR WO Details'!$AD:$AD,"PASS_WITH_OVERRIDES",'NSR WO Details'!$AI:$AI,">="&$M$6,'NSR WO Details'!$AI:$AI,"<="&$N$6) -> 4 | W21: 0.9902 | X21: =COUNTIFS('NSR WO Details'!$W:$W,"=MET",'NSR WO Details'!$H:$H,$M21,'NSR WO Details'!$AI:$AI,">="&$M$6,'NSR WO Details'!$AI:$AI,"<="&$N$6) -> 557 | Y21: =COUNTIFS('NSR WO Details'!$W:$W,"=Missed",'NSR WO Details'!$H:$H,$M21,'NSR WO Details'!$AI:$AI,">="&$M$6,'NSR WO Details'!$AI:$AI,"<="&$N$6) -> 16 | Z21: 0.9721 | AA21: =SUMIFS('NSR WO Details'!$AG:$AG,'NSR WO Details'!$H:$H,$M21,'NSR WO Details'!$AI:$AI,">="&$M$6,'NSR WO Details'!$AI:$AI,"<="&$N$6) -> 548 | AB21: =SUMIFS('NSR WO Details'!$AE:$AE,'NSR WO Details'!$H:$H,$M21,'NSR WO Details'!$AI:$AI,">="&$M$6,'NSR WO Details'!$AI:$AI,"<="&$N$6) -> 57 | AC21: 0.104 | AD21: =SUMIFS('RTM Results'!$DI:$DI,'RTM Results'!$R:$R,"WEST PALM NORTH",'RTM Results'!$I:$I,">="&$M$6,'RTM Results'!$I:$I,"<="&$N$6) -> 4 | AE21: =SUMIFS('RTM Results'!$DJ:$DJ,'RTM Results'!$R:$R,"WEST PALM NORTH",'RTM Results'!$I:$I,">="&$M$6,'RTM Results'!$I:$I,"<="&$N$6) -> 0 | AF21: 1 | AG21: =SUM(#REF!) ->  | AH21: =SUM(#REF!) ->  | AJ21: =SUMIFS('NSR WO Details'!$Z:$Z,'NSR WO Details'!$H:$H,$M21,'NSR WO Details'!$AI:$AI,">="&$M$6,'NSR WO Details'!$AI:$AI,"<="&$N$6) -> 118 | AK21: =SUMIFS('NSR WO Details'!$AA:$AA,'NSR WO Details'!$H:$H,$M21,'NSR WO Details'!$AI:$AI,">="&$M$6,'NSR WO Details'!$AI:$AI,"<="&$N$6) -> 113 | AL21: 0.9576 | AM21: =SUMIFS('Tool Usage Details'!$T:$T,'Tool Usage Details'!$H:$H,$M21,'Tool Usage Details'!$E:$E,">="&$M$6,'Tool Usage Details'!$E:$E,"<="&$N$6) -> 405 | AN21: =COUNTIFS('Tool Usage Details'!$H:$H,$M21,'Tool Usage Details'!$U:$U,"PASS",'Tool Usage Details'!$E:$E,">="&$M$6,'Tool Usage Details'!$E:$E,"<="&$N$6) -> 400 | AO21: 0.9877 | AP21: =SUMIFS('One Drop'!$BV:$BV,'One Drop'!$BD:$BD,$M21,'One Drop'!$U:$U,">="&$M$6,'One Drop'!$U:$U,"<="&$N$6) -> 83 | AQ21: =SUMIFS('One Drop'!$BQ:$BQ,'One Drop'!$BD:$BD,$M21,'One Drop'!$U:$U,">="&$M$6,'One Drop'!$U:$U,"<="&$N$6) -> 80 | AR21: 0.9639 | AS21: =SUMIFS('NSR WO Details'!$AK:$AK,'NSR WO Details'!$H:$H,$M21,'NSR WO Details'!$AI:$AI,">="&$M$6,'NSR WO Details'!$AI:$AI,"<="&$N$6) -> 405 | AT21: =SUMIFS('NSR WO Details'!$AL:$AL,'NSR WO Details'!$H:$H,$M21,'NSR WO Details'!$AI:$AI,">="&$M$6,'NSR WO Details'!$AI:$AI,"<="&$N$6) -> 398 | AU21: 0.983 | AV21: =SUMIFS(Completion!$CH:$CH,Completion!$BC:$BC,$M21,Completion!$L:$L,"INSTALL",Completion!$H:$H,">="&$M$6,Completion!$H:$H,"<="&$N$6) -> 0 | AW21: =SUMIFS(Completion!$BZ:$BZ,Completion!$BC:$BC,$M21,Completion!$L:$L,"INSTALL",Completion!$H:$H,">="&$M$6,Completion!$H:$H,"<="&$N$6) -> 0 | AX21: =IFERROR(SUM(AW21/AV21),"") ->  | AY21: =SUMIFS(Completion!$CH:$CH,Completion!$BC:$BC,$M21,Completion!$L:$L,"TC",Completion!$H:$H,">="&$M$6,Completion!$H:$H,"<="&$N$6) -> 0 | AZ21: =SUMIFS(Completion!$BZ:$BZ,Completion!$BC:$BC,$M21,Completion!$L:$L,"TC",Completion!$H:$H,">="&$M$6,Completion!$H:$H,"<="&$N$6) -> 0 | BA21: =IFERROR(SUM(AZ21/AY21),"") ->  | BB21: =IFERROR(SUM(AW21,AZ21)/SUM(AV21,AY21),"") -> 
F22: Christian Bracero - WPB | G22: =VLOOKUP("West Palm Beach County",$F$5:$J$14,2,FALSE) -> 6.5 | H22: =VLOOKUP("West Palm Beach County",$F$5:$J$14,3,FALSE) -> 0.895 | I22: =VLOOKUP("West Palm Beach County",$F$5:$J$14,4,FALSE) -> 0.987 | J22: =VLOOKUP("West Palm Beach County",$F$5:$J$14,5,FALSE) -> 0.9308 | M22: Jacksonville, FL | N22: 10 | O22: =SUMIFS('NSR WO Details'!$AG:$AG,'NSR WO Details'!$H:$H,$M22,'NSR WO Details'!$AI:$AI,">="&$M$6,'NSR WO Details'!$AI:$AI,"<="&$N$6) -> 1468 | P22: =COUNTIFS('FTR Detail'!$I:$I,$M22,'FTR Detail'!$AH:$AH,">="&$M$6,'FTR Detail'!$AH:$AH,"<="&$N$6) -> 102 | Q22: 0.931 | R22: =SUMIFS('NSR WO Details'!$AB:$AB,'NSR WO Details'!$H:$H,$M22,'NSR WO Details'!$AI:$AI,">="&$M$6,'NSR WO Details'!$AI:$AI,"<="&$N$6) -> 1128 | S22: =SUMIFS('NSR WO Details'!$AC:$AC,'NSR WO Details'!$H:$H,$M22,'NSR WO Details'!$AI:$AI,">="&$M$6,'NSR WO Details'!$AI:$AI,"<="&$N$6) -> 1119 | T22: 0.992 | U22: =COUNTIFS('NSR WO Details'!$H:$H,$M22,'NSR WO Details'!$AD:$AD,"PASS_WITH_WARNINGS",'NSR WO Details'!$AI:$AI,">="&$M$6,'NSR WO Details'!$AI:$AI,"<="&$N$6)+COUNTIFS('NSR WO Details'!$H:$H,$M22,'NSR WO Details'!$AD:$AD,"PASS_WITH_OVERRIDES",'NSR WO Details'!$AI:$AI,">="&$M$6,'NSR WO Details'!$AI:$AI,"<="&$N$6) -> 8 | W22: 0.9929 | X22: =COUNTIFS('NSR WO Details'!$W:$W,"=MET",'NSR WO Details'!$H:$H,$M22,'NSR WO Details'!$AI:$AI,">="&$M$6,'NSR WO Details'!$AI:$AI,"<="&$N$6) -> 1494 | Y22: =COUNTIFS('NSR WO Details'!$W:$W,"=Missed",'NSR WO Details'!$H:$H,$M22,'NSR WO Details'!$AI:$AI,">="&$M$6,'NSR WO Details'!$AI:$AI,"<="&$N$6) -> 39 | Z22: 0.9746 | AA22: =SUMIFS('NSR WO Details'!$AG:$AG,'NSR WO Details'!$H:$H,$M22,'NSR WO Details'!$AI:$AI,">="&$M$6,'NSR WO Details'!$AI:$AI,"<="&$N$6) -> 1468 | AB22: =SUMIFS('NSR WO Details'!$AE:$AE,'NSR WO Details'!$H:$H,$M22,'NSR WO Details'!$AI:$AI,">="&$M$6,'NSR WO Details'!$AI:$AI,"<="&$N$6) -> 158 | AC22: 0.108 | AD22: =SUMIFS('RTM Results'!$DI:$DI,'RTM Results'!$R:$R,"JACKSONVILLE, FL",'RTM Results'!$I:$I,">="&$M$6,'RTM Results'!$I:$I,"<="&$N$6) -> 27 | AE22: =SUMIFS('RTM Results'!$DJ:$DJ,'RTM Results'!$R:$R,"JACKSONVILLE, FL",'RTM Results'!$I:$I,">="&$M$6,'RTM Results'!$I:$I,"<="&$N$6) -> 2 | AF22: 0.926 | AG22: =#REF! ->  | AH22: =#REF! ->  | AJ22: =SUMIFS('NSR WO Details'!$Z:$Z,'NSR WO Details'!$H:$H,$M22,'NSR WO Details'!$AI:$AI,">="&$M$6,'NSR WO Details'!$AI:$AI,"<="&$N$6) -> 271 | AK22: =SUMIFS('NSR WO Details'!$AA:$AA,'NSR WO Details'!$H:$H,$M22,'NSR WO Details'!$AI:$AI,">="&$M$6,'NSR WO Details'!$AI:$AI,"<="&$N$6) -> 260 | AL22: 0.9594 | AM22: =SUMIFS('Tool Usage Details'!$T:$T,'Tool Usage Details'!$H:$H,$M22,'Tool Usage Details'!$E:$E,">="&$M$6,'Tool Usage Details'!$E:$E,"<="&$N$6) -> 1113 | AN22: =COUNTIFS('Tool Usage Details'!$H:$H,$M22,'Tool Usage Details'!$U:$U,"PASS",'Tool Usage Details'!$E:$E,">="&$M$6,'Tool Usage Details'!$E:$E,"<="&$N$6) -> 1109 | AO22: 0.9964 | AP22: =SUMIFS('One Drop'!$BV:$BV,'One Drop'!$BD:$BD,$M22,'One Drop'!$U:$U,">="&$M$6,'One Drop'!$U:$U,"<="&$N$6) -> 164 | AQ22: =SUMIFS('One Drop'!$BQ:$BQ,'One Drop'!$BD:$BD,$M22,'One Drop'!$U:$U,">="&$M$6,'One Drop'!$U:$U,"<="&$N$6) -> 158 | AR22: 0.9634 | AS22: =SUMIFS('NSR WO Details'!$AK:$AK,'NSR WO Details'!$H:$H,$M22,'NSR WO Details'!$AI:$AI,">="&$M$6,'NSR WO Details'!$AI:$AI,"<="&$N$6) -> 1120 | AT22: =SUMIFS('NSR WO Details'!$AL:$AL,'NSR WO Details'!$H:$H,$M22,'NSR WO Details'!$AI:$AI,">="&$M$6,'NSR WO Details'!$AI:$AI,"<="&$N$6) -> 1111 | AU22: 0.992 | AV22: =SUMIFS(Completion!$CH:$CH,Completion!$BC:$BC,$M22,Completion!$L:$L,"INSTALL",Completion!$H:$H,">="&$M$6,Completion!$H:$H,"<="&$N$6) -> 0 | AW22: =SUMIFS(Completion!$BZ:$BZ,Completion!$BC:$BC,$M22,Completion!$L:$L,"INSTALL",Completion!$H:$H,">="&$M$6,Completion!$H:$H,"<="&$N$6) -> 0 | AX22: =IFERROR(SUM(AW22/AV22),"") ->  | AY22: =SUMIFS(Completion!$CH:$CH,Completion!$BC:$BC,$M22,Completion!$L:$L,"TC",Completion!$H:$H,">="&$M$6,Completion!$H:$H,"<="&$N$6) -> 0 | AZ22: =SUMIFS(Completion!$BZ:$BZ,Completion!$BC:$BC,$M22,Completion!$L:$L,"TC",Completion!$H:$H,">="&$M$6,Completion!$H:$H,"<="&$N$6) -> 0 | BA22: =IFERROR(SUM(AZ22/AY22),"") ->  | BB22: =IFERROR(SUM(AW22,AZ22)/SUM(AV22,AY22),"") -> 
F23: Daniel Cassidy | G23: =IFERROR(VLOOKUP($F23,'Beltway Manager Performance'!$G$6:$BA$23,2,FALSE),"") -> 3.5 | H23: =VLOOKUP($F23,'Beltway Manager Performance'!$G$6:$BA$23,5,FALSE) -> 0.917 | I23: =IFERROR(VLOOKUP($F23,'Beltway Manager Performance'!$G$4:$BH$23,49,FALSE),"") -> 0.968 | J23: =IFERROR(VLOOKUP($F23,'Beltway Manager Performance'!$G$6:$AZ$23,38,FALSE),"") -> 0.9369 | M23: Florida Panhandle | N23: 10 | O23: =SUMIFS('NSR WO Details'!$AG:$AG,'NSR WO Details'!$H:$H,$M23,'NSR WO Details'!$AI:$AI,">="&$M$6,'NSR WO Details'!$AI:$AI,"<="&$N$6) -> 446 | P23: =COUNTIFS('FTR Detail'!$I:$I,$M23,'FTR Detail'!$AH:$AH,">="&$M$6,'FTR Detail'!$AH:$AH,"<="&$N$6) -> 22 | Q23: 0.951 | R23: =SUMIFS('NSR WO Details'!$AB:$AB,'NSR WO Details'!$H:$H,$M23,'NSR WO Details'!$AI:$AI,">="&$M$6,'NSR WO Details'!$AI:$AI,"<="&$N$6) -> 356 | S23: =SUMIFS('NSR WO Details'!$AC:$AC,'NSR WO Details'!$H:$H,$M23,'NSR WO Details'!$AI:$AI,">="&$M$6,'NSR WO Details'!$AI:$AI,"<="&$N$6) -> 354 | T23: 0.9944 | U23: =COUNTIFS('NSR WO Details'!$H:$H,$M23,'NSR WO Details'!$AD:$AD,"PASS_WITH_WARNINGS",'NSR WO Details'!$AI:$AI,">="&$M$6,'NSR WO Details'!$AI:$AI,"<="&$N$6)+COUNTIFS('NSR WO Details'!$H:$H,$M23,'NSR WO Details'!$AD:$AD,"PASS_WITH_OVERRIDES",'NSR WO Details'!$AI:$AI,">="&$M$6,'NSR WO Details'!$AI:$AI,"<="&$N$6) -> 6 | W23: 0.9831 | X23: =COUNTIFS('NSR WO Details'!$W:$W,"=MET",'NSR WO Details'!$H:$H,$M23,'NSR WO Details'!$AI:$AI,">="&$M$6,'NSR WO Details'!$AI:$AI,"<="&$N$6) -> 405 | Y23: =COUNTIFS('NSR WO Details'!$W:$W,"=Missed",'NSR WO Details'!$H:$H,$M23,'NSR WO Details'!$AI:$AI,">="&$M$6,'NSR WO Details'!$AI:$AI,"<="&$N$6) -> 57 | Z23: 0.8766 | AA23: =SUMIFS('NSR WO Details'!$AG:$AG,'NSR WO Details'!$H:$H,$M23,'NSR WO Details'!$AI:$AI,">="&$M$6,'NSR WO Details'!$AI:$AI,"<="&$N$6) -> 446 | AB23: =SUMIFS('NSR WO Details'!$AE:$AE,'NSR WO Details'!$H:$H,$M23,'NSR WO Details'!$AI:$AI,">="&$M$6,'NSR WO Details'!$AI:$AI,"<="&$N$6) -> 39 | AC23: 0.087 | AD23: =SUMIFS('RTM Results'!$DI:$DI,'RTM Results'!$R:$R,"TALLAHASSEE",'RTM Results'!$I:$I,">="&$M$6,'RTM Results'!$I:$I,"<="&$N$6) -> 5 | AE23: =SUMIFS('RTM Results'!$DJ:$DJ,'RTM Results'!$R:$R,"TALLAHASSEE",'RTM Results'!$I:$I,">="&$M$6,'RTM Results'!$I:$I,"<="&$N$6) -> 0 | AF23: 1 | AG23: =#REF! ->  | AH23: =#REF! ->  | AJ23: =SUMIFS('NSR WO Details'!$Z:$Z,'NSR WO Details'!$H:$H,$M23,'NSR WO Details'!$AI:$AI,">="&$M$6,'NSR WO Details'!$AI:$AI,"<="&$N$6) -> 95 | AK23: =SUMIFS('NSR WO Details'!$AA:$AA,'NSR WO Details'!$H:$H,$M23,'NSR WO Details'!$AI:$AI,">="&$M$6,'NSR WO Details'!$AI:$AI,"<="&$N$6) -> 88 | AL23: 0.9263 | AM23: =SUMIFS('Tool Usage Details'!$T:$T,'Tool Usage Details'!$H:$H,$M23,'Tool Usage Details'!$E:$E,">="&$M$6,'Tool Usage Details'!$E:$E,"<="&$N$6) -> 347 | AN23: =COUNTIFS('Tool Usage Details'!$H:$H,$M23,'Tool Usage Details'!$U:$U,"PASS",'Tool Usage Details'!$E:$E,">="&$M$6,'Tool Usage Details'!$E:$E,"<="&$N$6) -> 347 | AO23: 1 | AP23: =SUMIFS('One Drop'!$BV:$BV,'One Drop'!$BD:$BD,$M23,'One Drop'!$U:$U,">="&$M$6,'One Drop'!$U:$U,"<="&$N$6) -> 28 | AQ23: =SUMIFS('One Drop'!$BQ:$BQ,'One Drop'!$BD:$BD,$M23,'One Drop'!$U:$U,">="&$M$6,'One Drop'!$U:$U,"<="&$N$6) -> 17 | AR23: 0.6071 | AS23: =SUMIFS('NSR WO Details'!$AK:$AK,'NSR WO Details'!$H:$H,$M23,'NSR WO Details'!$AI:$AI,">="&$M$6,'NSR WO Details'!$AI:$AI,"<="&$N$6) -> 347 | AT23: =SUMIFS('NSR WO Details'!$AL:$AL,'NSR WO Details'!$H:$H,$M23,'NSR WO Details'!$AI:$AI,">="&$M$6,'NSR WO Details'!$AI:$AI,"<="&$N$6) -> 345 | AU23: 0.994 | AV23: =SUMIFS(Completion!$CH:$CH,Completion!$BC:$BC,$M23,Completion!$L:$L,"INSTALL",Completion!$H:$H,">="&$M$6,Completion!$H:$H,"<="&$N$6) -> 0 | AW23: =SUMIFS(Completion!$BZ:$BZ,Completion!$BC:$BC,$M23,Completion!$L:$L,"INSTALL",Completion!$H:$H,">="&$M$6,Completion!$H:$H,"<="&$N$6) -> 0 | AX23: =IFERROR(SUM(AW23/AV23),"") ->  | AY23: =SUMIFS(Completion!$CH:$CH,Completion!$BC:$BC,$M23,Completion!$L:$L,"TC",Completion!$H:$H,">="&$M$6,Completion!$H:$H,"<="&$N$6) -> 0 | AZ23: =SUMIFS(Completion!$BZ:$BZ,Completion!$BC:$BC,$M23,Completion!$L:$L,"TC",Completion!$H:$H,">="&$M$6,Completion!$H:$H,"<="&$N$6) -> 0 | BA23: =IFERROR(SUM(AZ23/AY23),"") ->  | BB23: =IFERROR(SUM(AW23,AZ23)/SUM(AV23,AY23),"") -> 
F24: Lawrence Smith | G24: =IFERROR(VLOOKUP($F24,'Beltway Manager Performance'!$G$6:$BA$23,2,FALSE),"") -> 3.5 | H24: =VLOOKUP($F24,'Beltway Manager Performance'!$G$6:$BA$23,5,FALSE) -> 0.916 | I24: =IFERROR(VLOOKUP($F24,'Beltway Manager Performance'!$G$4:$BH$23,49,FALSE),"") -> 0.982 | J24: =IFERROR(VLOOKUP($F24,'Beltway Manager Performance'!$G$6:$AZ$23,38,FALSE),"") -> 0.934 | M24: Lake/Orlando | N24: 7 | O24: =SUMIFS('NSR WO Details'!$AG:$AG,'NSR WO Details'!$H:$H,$M24,'NSR WO Details'!$AI:$AI,">="&$M$6,'NSR WO Details'!$AI:$AI,"<="&$N$6) -> 539 | P24: =COUNTIFS('FTR Detail'!$I:$I,$M24,'FTR Detail'!$AH:$AH,">="&$M$6,'FTR Detail'!$AH:$AH,"<="&$N$6) -> 43 | Q24: 0.92 | R24: =SUMIFS('NSR WO Details'!$AB:$AB,'NSR WO Details'!$H:$H,$M24,'NSR WO Details'!$AI:$AI,">="&$M$6,'NSR WO Details'!$AI:$AI,"<="&$N$6) -> 474 | S24: =SUMIFS('NSR WO Details'!$AC:$AC,'NSR WO Details'!$H:$H,$M24,'NSR WO Details'!$AI:$AI,">="&$M$6,'NSR WO Details'!$AI:$AI,"<="&$N$6) -> 467 | T24: 0.9852 | U24: =COUNTIFS('NSR WO Details'!$H:$H,$M24,'NSR WO Details'!$AD:$AD,"PASS_WITH_WARNINGS",'NSR WO Details'!$AI:$AI,">="&$M$6,'NSR WO Details'!$AI:$AI,"<="&$N$6)+COUNTIFS('NSR WO Details'!$H:$H,$M24,'NSR WO Details'!$AD:$AD,"PASS_WITH_OVERRIDES",'NSR WO Details'!$AI:$AI,">="&$M$6,'NSR WO Details'!$AI:$AI,"<="&$N$6) -> 2 | W24: 0.9957 | X24: =COUNTIFS('NSR WO Details'!$W:$W,"=MET",'NSR WO Details'!$H:$H,$M24,'NSR WO Details'!$AI:$AI,">="&$M$6,'NSR WO Details'!$AI:$AI,"<="&$N$6) -> 540 | Y24: =COUNTIFS('NSR WO Details'!$W:$W,"=Missed",'NSR WO Details'!$H:$H,$M24,'NSR WO Details'!$AI:$AI,">="&$M$6,'NSR WO Details'!$AI:$AI,"<="&$N$6) -> 13 | Z24: 0.9765 | AA24: =SUMIFS('NSR WO Details'!$AG:$AG,'NSR WO Details'!$H:$H,$M24,'NSR WO Details'!$AI:$AI,">="&$M$6,'NSR WO Details'!$AI:$AI,"<="&$N$6) -> 539 | AB24: =SUMIFS('NSR WO Details'!$AE:$AE,'NSR WO Details'!$H:$H,$M24,'NSR WO Details'!$AI:$AI,">="&$M$6,'NSR WO Details'!$AI:$AI,"<="&$N$6) -> 63 | AC24: 0.117 | AD24: =SUMIFS('RTM Results'!$DI:$DI,'RTM Results'!$R:$R,"LAKE COUNTY",'RTM Results'!$I:$I,">="&$M$6,'RTM Results'!$I:$I,"<="&$N$6) -> 10 | AE24: =SUMIFS('RTM Results'!$DJ:$DJ,'RTM Results'!$R:$R,"LAKE COUNTY",'RTM Results'!$I:$I,">="&$M$6,'RTM Results'!$I:$I,"<="&$N$6) -> 1 | AF24: 0.9 | AG24: =#REF! ->  | AH24: =#REF! ->  | AJ24: =SUMIFS('NSR WO Details'!$Z:$Z,'NSR WO Details'!$H:$H,$M24,'NSR WO Details'!$AI:$AI,">="&$M$6,'NSR WO Details'!$AI:$AI,"<="&$N$6) -> 137 | AK24: =SUMIFS('NSR WO Details'!$AA:$AA,'NSR WO Details'!$H:$H,$M24,'NSR WO Details'!$AI:$AI,">="&$M$6,'NSR WO Details'!$AI:$AI,"<="&$N$6) -> 129 | AL24: 0.9416 | AM24: =SUMIFS('Tool Usage Details'!$T:$T,'Tool Usage Details'!$H:$H,$M24,'Tool Usage Details'!$E:$E,">="&$M$6,'Tool Usage Details'!$E:$E,"<="&$N$6) -> 467 | AN24: =COUNTIFS('Tool Usage Details'!$H:$H,$M24,'Tool Usage Details'!$U:$U,"PASS",'Tool Usage Details'!$E:$E,">="&$M$6,'Tool Usage Details'!$E:$E,"<="&$N$6) -> 464 | AO24: 0.9936 | AP24: =SUMIFS('One Drop'!$BV:$BV,'One Drop'!$BD:$BD,$M24,'One Drop'!$U:$U,">="&$M$6,'One Drop'!$U:$U,"<="&$N$6) -> 90 | AQ24: =SUMIFS('One Drop'!$BQ:$BQ,'One Drop'!$BD:$BD,$M24,'One Drop'!$U:$U,">="&$M$6,'One Drop'!$U:$U,"<="&$N$6) -> 86 | AR24: 0.9556 | AS24: =SUMIFS('NSR WO Details'!$AK:$AK,'NSR WO Details'!$H:$H,$M24,'NSR WO Details'!$AI:$AI,">="&$M$6,'NSR WO Details'!$AI:$AI,"<="&$N$6) -> 467 | AT24: =SUMIFS('NSR WO Details'!$AL:$AL,'NSR WO Details'!$H:$H,$M24,'NSR WO Details'!$AI:$AI,">="&$M$6,'NSR WO Details'!$AI:$AI,"<="&$N$6) -> 459 | AU24: 0.983 | AV24: =SUMIFS(Completion!$CH:$CH,Completion!$BC:$BC,$M24,Completion!$L:$L,"INSTALL",Completion!$H:$H,">="&$M$6,Completion!$H:$H,"<="&$N$6) -> 0 | AW24: =SUMIFS(Completion!$BZ:$BZ,Completion!$BC:$BC,$M24,Completion!$L:$L,"INSTALL",Completion!$H:$H,">="&$M$6,Completion!$H:$H,"<="&$N$6) -> 0 | AX24: =IFERROR(SUM(AW24/AV24),"") ->  | AY24: =SUMIFS(Completion!$CH:$CH,Completion!$BC:$BC,$M24,Completion!$L:$L,"TC",Completion!$H:$H,">="&$M$6,Completion!$H:$H,"<="&$N$6) -> 0 | AZ24: =SUMIFS(Completion!$BZ:$BZ,Completion!$BC:$BC,$M24,Completion!$L:$L,"TC",Completion!$H:$H,">="&$M$6,Completion!$H:$H,"<="&$N$6) -> 0 | BA24: =IFERROR(SUM(AZ24/AY24),"") ->  | BB24: =IFERROR(SUM(AW24,AZ24)/SUM(AV24,AY24),"") -> 
F25: Mohamed Kargbo | G25: =IFERROR(VLOOKUP(F25,'Big South Manager Performance'!$G$7:$AT$26,2,FALSE),"") -> 3.5 | H25: =VLOOKUP(F25,'Big South Manager Performance'!$G$7:$AT$26,5,FALSE) -> 0.901 | I25: =IFERROR(VLOOKUP(F25,'Big South Manager Performance'!$G$5:$AX$26,36,FALSE),"") -> 0.982 | J25: =IFERROR(VLOOKUP(F25,'Big South Manager Performance'!$G$7:$AP$26,28,FALSE),"") -> 0.9498 | M25: WPB/WPBN Combined | N25: 6.5 | O25: =SUM(O20:O21) -> 1874 | P25: =SUM(P20:P21) -> 172 | Q25: 0.908 | R25: =SUM(R20:R21) -> 1375 | S25: =SUM(S20:S21) -> 1367 | T25: 0.9942 | U25: =SUM(U20:U21) -> 15 | W25: 0.989 | X25: =SUM(X20:X21) -> 1901 | Y25: =SUM(Y20:Y21) -> 39 | Z25: 0.9799 | AA25: =SUM(AA20:AA21) -> 1874 | AB25: =SUM(AB20:AB21) -> 217 | AC25: 0.116 | AD25: =AD21+AD20 -> 28 | AE25: =AE21+AE20 -> 0 | AF25: 1 | AG25: =SUM(AG20:AG21) ->  | AH25: =SUM(AH20:AH21) ->  | AJ25: =SUM(AJ20:AJ21) -> 340 | AK25: =SUM(AK20:AK21) -> 317 | AL25: 0.9324 | AM25: =SUM(AM20:AM21) -> 1296 | AN25: =SUM(AN20:AN21) -> 1285 | AO25: 0.9915 | AP25: =SUM(AP20:AP21) -> 224 | AQ25: =SUM(AQ20:AQ21) -> 216 | AR25: 0.9643 | AS25: =AS20+AS21 -> 1302 | AT25: =AT20+AT21 -> 1287 | AU25: 0.988
F26: Christian Bracero - PSL | G26: =VLOOKUP("West Palm North",$F$5:$J$14,2,FALSE) -> 3 | H26: =VLOOKUP("West Palm North",$F$5:$J$14,3,FALSE) -> 0.912 | I26: =VLOOKUP("West Palm North",$F$5:$J$14,4,FALSE) -> 0.986 | J26: =VLOOKUP("West Palm North",$F$5:$J$14,5,FALSE) -> 0.9199 | M26: NFL Combined | N26: 10 | O26: =SUM(O22:O24) -> 2453 | P26: =COUNTIFS('FTR Detail'!$I:$I,$M26,'FTR Detail'!$AH:$AH,">="&$M$6,'FTR Detail'!$AH:$AH,"<="&$N$6) -> 0 | Q26: 1 | R26: =SUM(R22:R24) -> 1958 | S26: =SUM(S22:S24) -> 1940 | T26: 0.9908 | U26: =SUM(U22:U24) -> 16 | W26: 0.9918 | X26: =SUM(X22:X24) -> 2439 | Y26: =SUM(Y22:Y24) -> 109 | Z26: 0.9572 | AA26: =SUM(AA22:AA24) -> 2453 | AB26: =SUM(AB22:AB24) -> 260 | AC26: 0.106 | AD26: =SUM(AD22:AD24) -> 42 | AE26: =SUM(AE22:AE24) -> 3 | AF26: 0.929 | AG26: =SUM(AG22:AG24) ->  | AH26: =SUM(AH22:AH24) ->  | AJ26: =SUM(AJ22:AJ24) -> 503 | AK26: =SUM(AK22:AK24) -> 477 | AL26: 0.9483 | AM26: =SUM(AM22:AM24) -> 1927 | AN26: =SUM(AN22:AN24) -> 1920 | AO26: 0.9964 | AP26: =SUM(AP22:AP24) -> 282 | AQ26: =SUM(AQ22:AQ24) -> 261 | AR26: 0.9255 | AS26: =SUM(AS22:AS24) -> 1934 | AT26: =SUM(AT22:AT24) -> 1915 | AU26: 0.99
F27: Rick Smith | G27: =IFERROR(VLOOKUP($F27,'Keystone Manager Performance'!$G$16:$BB$16,2,FALSE),"") -> 0 | H27: =IFERROR(VLOOKUP($F27,'Keystone Manager Performance'!$G$16:$BB$16,5,FALSE),"") -> 0.904 | I27: =IFERROR(VLOOKUP($F27,'Keystone Manager Performance'!$G$16:$BB$16,44,FALSE),"") -> 0.973 | J27: =IFERROR(VLOOKUP($F27,'Keystone Manager Performance'!$G$16:$BB$16,35,FALSE),"") -> 0.9149 | N27: Score | O27: Total Jobs | P27: Jobs FTR | Q27: FTR | R27: Total Job | S27: Pass | T27: PHT | U27: Pure Pass Fails | W27: PHT Pure Pass | X27: Calls Met | Y27: Calls Missed | Z27: OTA | AC27: Contact w/in 48hrs | AD27: Total Jobs | AE27: Total invalid | AF27: % Valid RTM | AG27: Jobs | AH27: Pictures Uploaded | AI27: ML Bonding Compliance | AJ27: Total Surveys | AK27: Failures | AL27: tNPS | AM27: Total Jobs | AN27: Total Comp | AO27: Ingress Test Ran | AP27: Number of Drops | AQ27: One Drop Usage | AR27: One Drop | AS27: Tool Usage Jobs | AT27: Tool Usage | AU27: Tool Usage Rate | AV27: Total Installs | AW27: Completed | AX27: Install Completion % | AY27: Total TC's | AZ27: Completed | BA27: TC Completion % | BB27: Total Completion %
F29: Supervisor Name | G29: Score | H29: FTR | I29: Tool Usage | J29: tNPS | M29: FLORIDA REGION | N29: =IF(AU29="","",IFERROR(IF(Q29>=92%,3.5,0)+IF(AL29>=92.5%,3.5,0)+IF(AU29>=98.5%,3,0),"")) -> 10 | O29: =SUMIFS('NSR WO Details'!$AG:$AG,'NSR WO Details'!$F:$F,"Florida",'NSR WO Details'!$AI:$AI,">="&$M$6,'NSR WO Details'!$AI:$AI,"<="&$N$6) -> 4327 | P29: =COUNTIFS('FTR Detail'!$H:$H,"Florida",'FTR Detail'!$AH:$AH,">="&$M$6,'FTR Detail'!$AH:$AH,"<="&$N$6) -> 339 | Q29: =IFERROR(1-(P29/O29),"") -> 0.922 | R29: =SUM(R20:R24) -> 3333 | S29: =SUM(S20:S24) -> 3307 | T29: =IFERROR(SUM(S29/R29),"") -> 0.992 | U29: =SUM(U20:U24) -> 31 | W29: =IFERROR(SUM(1-U29/S29),"") -> 0.9906 | X29: =COUNTIFS('NSR WO Details'!$W:$W,"=MET",'NSR WO Details'!$F:$F,"=FLORIDA",'NSR WO Details'!$AI:$AI,">="&$M$6,'NSR WO Details'!$AI:$AI,"<="&$N$6) -> 4340 | Y29: =COUNTIFS('NSR WO Details'!$W:$W,"=Missed",'NSR WO Details'!$F:$F,"=FLORIDA",'NSR WO Details'!$AI:$AI,">="&$M$6,'NSR WO Details'!$AI:$AI,"<="&$N$6) -> 148 | Z29: =IFERROR(SUM(X29/(X29+Y29)),"") -> 0.967 | AA29: =SUM(AA20:AA24) -> 4327 | AB29: =SUM(AB20:AB24) -> 477 | AC29: =IFERROR(SUM(AB29/AA29),"") -> 0.11 | AD29: =SUM(AD20:AD24) -> 70 | AE29: =SUM(AE20:AE24) -> 3 | AF29: =IFERROR(1-(SUM(AE29/AD29)),"") -> 0.957 | AG29: =SUM(#REF!) ->  | AH29: =SUM(#REF!) ->  | AI29: =IFERROR(SUM(AH29/AG29),"") ->  | AJ29: =SUMIFS('NSR WO Details'!$Z:$Z,'NSR WO Details'!$F:$F,"Florida",'NSR WO Details'!$AI:$AI,">="&$M$6,'NSR WO Details'!$AI:$AI,"<="&$N$6) -> 843 | AK29: =SUMIFS('NSR WO Details'!$AA:$AA,'NSR WO Details'!$F:$F,"Florida",'NSR WO Details'!$AI:$AI,">="&$M$6,'NSR WO Details'!$AI:$AI,"<="&$N$6) -> 794 | AL29: =IFERROR(SUM(AK29/AJ29),"") -> 0.9419 | AM29: =SUM(AM20:AM24) -> 3223 | AN29: =SUM(AN20:AN24) -> 3205 | AO29: =IFERROR(SUM(AN29/AM29),"") -> 0.9944 | AP29: =SUM(AP20:AP24) -> 506 | AQ29: =SUM(AQ20:AQ24) -> 477 | AR29: =IFERROR(SUM(AQ29/AP29),"") -> 0.9427 | AS29: =SUMIFS('NSR WO Details'!$AK:$AK,'NSR WO Details'!$F:$F,"Florida",'NSR WO Details'!$AI:$AI,">="&$M$6,'NSR WO Details'!$AI:$AI,"<="&$N$6) -> 3236 | AT29: =SUMIFS('NSR WO Details'!$AL:$AL,'NSR WO Details'!$F:$F,"Florida",'NSR WO Details'!$AI:$AI,">="&$M$6,'NSR WO Details'!$AI:$AI,"<="&$N$6) -> 3202 | AU29: =IFERROR(SUM(AT29/AS29),"") -> 0.989 | AV29: =SUM(AV20:AV24) -> 0 | AW29: =SUM(AW20:AW24) -> 0 | AX29: =IFERROR(SUM(AW29/AV29),"") ->  | AY29: =SUM(AY20:AY24) -> 0 | AZ29: =SUM(AZ20:AZ24) -> 0 | BA29: =IFERROR(SUM(AZ29/AY29),"") ->  | BB29: =IFERROR(SUM(AW29,AZ29)/SUM(AV29,AY29),"") -> 
F30: Shante Miller | G30: =IFERROR(VLOOKUP($F30,'Florida Manager Performance'!$G$6:$AO$43,2,FALSE),"") -> 10 | H30: =VLOOKUP($F30,'Florida Manager Performance'!$G$6:$AO$43,5,FALSE) -> 0.939 | I30: =IFERROR(VLOOKUP($F30,'Florida Manager Performance'!$G$4:$AV$43,34,FALSE),"") -> 0.992 | J30: =IFERROR(VLOOKUP($F30,'Florida Manager Performance'!$G$6:$AN$41,25,FALSE),"") -> 0.96
F31: Winston Issacs | G31: =IFERROR(VLOOKUP($F31,'Florida Manager Performance'!$G$6:$AO$43,2,FALSE),"") -> 10 | H31: =VLOOKUP($F31,'Florida Manager Performance'!$G$6:$AO$43,5,FALSE) -> 0.938 | I31: =IFERROR(VLOOKUP($F31,'Florida Manager Performance'!$G$4:$AV$43,34,FALSE),"") -> 0.995 | J31: =IFERROR(VLOOKUP($F31,'Florida Manager Performance'!$G$6:$AN$41,25,FALSE),"") -> 0.9512
F32: Rochard Jean | G32: =IFERROR(VLOOKUP($F32,'Florida Manager Performance'!$G$6:$AO$43,2,FALSE),"") -> 10 | H32: =VLOOKUP($F32,'Florida Manager Performance'!$G$6:$AO$43,5,FALSE) -> 0.932 | I32: =IFERROR(VLOOKUP($F32,'Florida Manager Performance'!$G$4:$AV$43,34,FALSE),"") -> 0.991 | J32: =IFERROR(VLOOKUP($F32,'Florida Manager Performance'!$G$6:$AN$41,25,FALSE),"") -> 0.9424 | M32: Beltway
F33: Mikalai Mikhitarau | G33: =IFERROR(VLOOKUP($F33,'Florida Manager Performance'!$G$6:$AO$43,2,FALSE),"") -> 10 | H33: =VLOOKUP($F33,'Florida Manager Performance'!$G$6:$AO$43,5,FALSE) -> 0.935 | I33: =IFERROR(VLOOKUP($F33,'Florida Manager Performance'!$G$4:$AV$43,34,FALSE),"") -> 0.989 | J33: =IFERROR(VLOOKUP($F33,'Florida Manager Performance'!$G$6:$AN$41,25,FALSE),"") -> 0.9444
F34: Kendall Edwards | G34: =IFERROR(VLOOKUP($F34,'Beltway Manager Performance'!$G$6:$BA$43,2,FALSE),"") -> 10 | H34: =VLOOKUP($F34,'Beltway Manager Performance'!$G$6:$BA$44,5,FALSE) -> 0.932 | I34: =IFERROR(VLOOKUP($F34,'Beltway Manager Performance'!$G$4:$BH$44,49,FALSE),"") -> 0.988 | J34: =IFERROR(VLOOKUP($F34,'Beltway Manager Performance'!$G$6:$AZ$44,38,FALSE),"") -> 0.9684
F35: Ivan Myhovych | G35: =IFERROR(VLOOKUP($F35,'Florida Manager Performance'!$G$6:$AO$43,2,FALSE),"") -> 10 | H35: =VLOOKUP($F35,'Florida Manager Performance'!$G$6:$AO$43,5,FALSE) -> 0.926 | I35: =IFERROR(VLOOKUP($F35,'Florida Manager Performance'!$G$4:$AV$43,34,FALSE),"") -> 0.988 | J35: =IFERROR(VLOOKUP($F35,'Florida Manager Performance'!$G$6:$AN$41,25,FALSE),"") -> 0.9746 | W35: Start Date | Z35: =M6 -> 2024-03-22 | AC35: End Date | AF35: =N6 -> 2024-03-27
F36: Arcadie Adam | G36: =IFERROR(VLOOKUP($F36,'Florida Manager Performance'!$G$6:$AO$43,2,FALSE),"") -> 10 | H36: =VLOOKUP($F36,'Florida Manager Performance'!$G$6:$AO$43,5,FALSE) -> 0.922 | I36: =IFERROR(VLOOKUP($F36,'Florida Manager Performance'!$G$4:$AV$43,34,FALSE),"") -> 0.993 | J36: =IFERROR(VLOOKUP($F36,'Florida Manager Performance'!$G$6:$AN$41,25,FALSE),"") -> 0.9602 | M36: Office | N36: Score | O36: Total Jobs | P36: Total FTR Fails | Q36: FTR | R36: Total TC's | S36: Total TC FTR | T36: TC-TC FTR | W36: PHT | X36: Total Pass | Z36: PHT Pure Pass | AA36: Total Calls | AB36: Total Missed | AC36: OTA | AD36: Total Jobs | AE36: Callback | AF36: Contact w/in 48hrs | AG36: Total Installs | AH36: Completed | AL36: Install Completion % | AM36: Total TC's | AN36: Completed | AO36: TC Completion % | AR36: Total Completion % | AS36: Tot Surv | AT36: Tot Pass | AU36: tNPS | AV36: Total Jobs | AW36: Total Comp | AX36: Ingress Test Ran | AY36: Tool Usage Jobs | AZ36: Tool Usage | BA36: Tool Usage Rate
F37: Eric Reneau | G37: =IFERROR(VLOOKUP($F37,'Beltway Manager Performance'!$G$6:$BA$43,2,FALSE),"") -> 10 | H37: =VLOOKUP($F37,'Beltway Manager Performance'!$G$6:$BA$44,5,FALSE) -> 0.921 | I37: =IFERROR(VLOOKUP($F37,'Beltway Manager Performance'!$G$4:$BH$44,49,FALSE),"") -> 0.987 | J37: =IFERROR(VLOOKUP($F37,'Beltway Manager Performance'!$G$6:$AZ$44,38,FALSE),"") -> 0.9557
F38: Richard Cornick | G38: =IFERROR(VLOOKUP($F38,'Beltway Manager Performance'!$G$6:$BA$43,2,FALSE),"") -> 7 | H38: =VLOOKUP($F38,'Beltway Manager Performance'!$G$6:$BA$44,5,FALSE) -> 0.935 | I38: =IFERROR(VLOOKUP($F38,'Beltway Manager Performance'!$G$4:$BH$44,49,FALSE),"") -> 0.952 | J38: =IFERROR(VLOOKUP($F38,'Beltway Manager Performance'!$G$6:$AZ$44,38,FALSE),"") -> 0.9617 | M38: Beltway East | N38: =IF(AU38="","",IFERROR(IF(Q38>=92%,3.5,0)+IF(AU38>=92.5%,3.5,0)+IF(BA38>=98.5%,3,0),"")) -> 7 | O38: =SUMIFS('NSR WO Details'!$AG:$AG,'NSR WO Details'!$H:$H,$M38,'NSR WO Details'!$AI:$AI,">="&$M$6,'NSR WO Details'!$AI:$AI,"<="&$N$6) -> 485 | P38: =COUNTIFS('FTR Detail'!$I:$I,$M38,'FTR Detail'!$AH:$AH,">="&$M$6,'FTR Detail'!$AH:$AH,"<="&$N$6) -> 37 | Q38: =IFERROR(1-(P38/O38),"") -> 0.924 | R38: =SUMIFS('NSR WO Details'!$AG:$AG,'NSR WO Details'!$H:$H,$M38,'NSR WO Details'!$P:$P,"=TC",'NSR WO Details'!$H:$H,$M38,'NSR WO Details'!$AI:$AI,">="&$M$6,'NSR WO Details'!$AI:$AI,"<="&$N$6) -> 164 | S38: =COUNTIFS('FTR Detail'!$I:$I,$M38,'FTR Detail'!$L:$L,"TC-TC",'FTR Detail'!$I:$I,$M38,'NSR WO Details'!$AI:$AI,">="&$M$6,'NSR WO Details'!$AI:$AI,"<="&$N$6) -> 32 | T38: =IFERROR(1-(S38/R38),"") -> 0.8049 | U38: =SUMIFS('NSR WO Details'!$AB:$AB,'NSR WO Details'!$H:$H,$M38,'NSR WO Details'!$AI:$AI,">="&$M$6,'NSR WO Details'!$AI:$AI,"<="&$N$6) -> 377 | V38: =SUMIFS('NSR WO Details'!$AC:$AC,'NSR WO Details'!$H:$H,$M38,'NSR WO Details'!$AI:$AI,">="&$M$6,'NSR WO Details'!$AI:$AI,"<="&$N$6) -> 368 | W38: =V38/U38 -> 0.9761 | X38: =COUNTIFS('NSR WO Details'!$H:$H,$M38,'NSR WO Details'!$AD:$AD,"PASS_WITH_WARNINGS",'NSR WO Details'!$AI:$AI,">="&$M$6,'NSR WO Details'!$AI:$AI,"<="&$N$6)+COUNTIFS('NSR WO Details'!$H:$H,$M38,'NSR WO Details'!$AD:$AD,"PASS_WITH_OVERRIDES",'NSR WO Details'!$AI:$AI,">="&$M$6,'NSR WO Details'!$AI:$AI,"<="&$N$6) -> 3 | Z38: =1-X38/V38 -> 0.9918 | AA38: =COUNTIFS('NSR WO Details'!$W:$W,"=MET",'NSR WO Details'!$H:$H,$M38,'NSR WO Details'!$AI:$AI,">="&$M$6,'NSR WO Details'!$AI:$AI,"<="&$N$6) -> 426 | AB38: =COUNTIFS('NSR WO Details'!$W:$W,"=Missed",'NSR WO Details'!$H:$H,$M38,'NSR WO Details'!$AI:$AI,">="&$M$6,'NSR WO Details'!$AI:$AI,"<="&$N$6) -> 43 | AC38: =1-(AB38/AA38) -> 0.8991 | AD38: =SUMIFS('NSR WO Details'!$AG:$AG,'NSR WO Details'!$H:$H,$M38,'NSR WO Details'!$AI:$AI,">="&$M$6,'NSR WO Details'!$AI:$AI,"<="&$N$6) -> 485 | AE38: =SUMIFS('NSR WO Details'!$AE:$AE,'NSR WO Details'!$H:$H,$M38,'NSR WO Details'!$AI:$AI,">="&$M$6,'NSR WO Details'!$AI:$AI,"<="&$N$6) -> 45 | AF38: =IFERROR(SUM(AE38/AD38),"") -> 0.093 | AG38: =SUMIFS(Completion!$CH:$CH,Completion!$BC:$BC,$M38,Completion!$L:$L,"INSTALL",Completion!$H:$H,">="&$M$6,Completion!$H:$H,"<="&$N$6) -> 0 | AH38: =SUMIFS(Completion!$BZ:$BZ,Completion!$BC:$BC,$M38,Completion!$L:$L,"INSTALL",Completion!$H:$H,">="&$M$6,Completion!$H:$H,"<="&$N$6) -> 0 | AL38: =IFERROR(SUM(AH38/AG38),"") ->  | AM38: =SUMIFS(Completion!$CH:$CH,Completion!$BC:$BC,$M38,Completion!$L:$L,"TC",Completion!$H:$H,">="&$M$6,Completion!$H:$H,"<="&$N$6) -> 0 | AN38: =SUMIFS(Completion!$BZ:$BZ,Completion!$BC:$BC,$M38,Completion!$L:$L,"TC",Completion!$H:$H,">="&$M$6,Completion!$H:$H,"<="&$N$6) -> 0 | AO38: =IFERROR(SUM(AN38/AM38),"") ->  | AR38: =IFERROR(SUM(AH38,AN38)/SUM(AG38,AM38),"") ->  | AS38: =SUMIFS('NSR WO Details'!$Z:$Z,'NSR WO Details'!$H:$H,$M38,'NSR WO Details'!$AI:$AI,">="&$M$6,'NSR WO Details'!$AI:$AI,"<="&$N$6) -> 121 | AT38: =SUMIFS('NSR WO Details'!$AA:$AA,'NSR WO Details'!$H:$H,$M38,'NSR WO Details'!$AI:$AI,">="&$M$6,'NSR WO Details'!$AI:$AI,"<="&$N$6) -> 115 | AU38: =IFERROR(SUM(AT38/AS38),"") -> 0.9504 | AV38: =SUMIFS('One Drop'!$BV:$BV,'One Drop'!$BD:$BD,$M38,'One Drop'!$U:$U,">="&$M$6,'One Drop'!$U:$U,"<="&$N$6) -> 32 | AW38: =SUMIFS('One Drop'!$BQ:$BQ,'One Drop'!$BD:$BD,$M38,'One Drop'!$U:$U,">="&$M$6,'One Drop'!$U:$U,"<="&$N$6) -> 6 | AX38: =AW38/AV38 -> 0.1875 | AY38: =SUMIFS('NSR WO Details'!$AK:$AK,'NSR WO Details'!$H:$H,$M38,'NSR WO Details'!$AI:$AI,">="&$M$6,'NSR WO Details'!$AI:$AI,"<="&$N$6) -> 377 | AZ38: =SUMIFS('NSR WO Details'!$AL:$AL,'NSR WO Details'!$H:$H,$M38,'NSR WO Details'!$AI:$AI,">="&$M$6,'NSR WO Details'!$AI:$AI,"<="&$N$6) -> 368 | BA38: =AZ38/AY38 -> 0.976
F39: Damiany Guiterrez | G39: =IFERROR(VLOOKUP($F39,'Florida Manager Performance'!$G$6:$AO$43,2,FALSE),"") -> 7 | H39: =VLOOKUP($F39,'Florida Manager Performance'!$G$6:$AO$43,5,FALSE) -> 0.924 | I39: =IFERROR(VLOOKUP($F39,'Florida Manager Performance'!$G$4:$AV$43,34,FALSE),"") -> 0.984 | J39: =IFERROR(VLOOKUP($F39,'Florida Manager Performance'!$G$6:$AN$41,25,FALSE),"") -> 0.9294 | M39: Beltway West | N39: =IF(AU39="","",IFERROR(IF(Q39>=92%,3.5,0)+IF(AU39>=92.5%,3.5,0)+IF(BA39>=98.5%,3,0),"")) -> 3.5 | O39: =SUMIFS('NSR WO Details'!$AG:$AG,'NSR WO Details'!$H:$H,$M39,'NSR WO Details'!$AI:$AI,">="&$M$6,'NSR WO Details'!$AI:$AI,"<="&$N$6) -> 979 | P39: =COUNTIFS('FTR Detail'!$I:$I,$M39,'FTR Detail'!$AH:$AH,">="&$M$6,'FTR Detail'!$AH:$AH,"<="&$N$6) -> 91 | Q39: =IFERROR(1-(P39/O39),"") -> 0.907 | R39: =SUMIFS('NSR WO Details'!$AG:$AG,'NSR WO Details'!$H:$H,$M39,'NSR WO Details'!$P:$P,"=TC",'NSR WO Details'!$H:$H,$M39,'NSR WO Details'!$AI:$AI,">="&$M$6,'NSR WO Details'!$AI:$AI,"<="&$N$6) -> 434 | S39: =COUNTIFS('FTR Detail'!$I:$I,$M39,'FTR Detail'!$L:$L,"TC-TC",'FTR Detail'!$I:$I,$M39,'NSR WO Details'!$AI:$AI,">="&$M$6,'NSR WO Details'!$AI:$AI,"<="&$N$6) -> 57 | T39: =IFERROR(1-(S39/R39),"") -> 0.8687 | U39: =SUMIFS('NSR WO Details'!$AB:$AB,'NSR WO Details'!$H:$H,$M39,'NSR WO Details'!$AI:$AI,">="&$M$6,'NSR WO Details'!$AI:$AI,"<="&$N$6) -> 719 | V39: =SUMIFS('NSR WO Details'!$AC:$AC,'NSR WO Details'!$H:$H,$M39,'NSR WO Details'!$AI:$AI,">="&$M$6,'NSR WO Details'!$AI:$AI,"<="&$N$6) -> 701 | W39: =V39/U39 -> 0.975 | X39: =COUNTIFS('NSR WO Details'!$H:$H,$M39,'NSR WO Details'!$AD:$AD,"PASS_WITH_WARNINGS",'NSR WO Details'!$AI:$AI,">="&$M$6,'NSR WO Details'!$AI:$AI,"<="&$N$6)+COUNTIFS('NSR WO Details'!$H:$H,$M39,'NSR WO Details'!$AD:$AD,"PASS_WITH_OVERRIDES",'NSR WO Details'!$AI:$AI,">="&$M$6,'NSR WO Details'!$AI:$AI,"<="&$N$6) -> 6 | Z39: =1-X39/V39 -> 0.9914 | AA39: =COUNTIFS('NSR WO Details'!$W:$W,"=MET",'NSR WO Details'!$H:$H,$M39,'NSR WO Details'!$AI:$AI,">="&$M$6,'NSR WO Details'!$AI:$AI,"<="&$N$6) -> 961 | AB39: =COUNTIFS('NSR WO Details'!$W:$W,"=Missed",'NSR WO Details'!$H:$H,$M39,'NSR WO Details'!$AI:$AI,">="&$M$6,'NSR WO Details'!$AI:$AI,"<="&$N$6) -> 82 | AC39: =1-(AB39/AA39) -> 0.9147 | AD39: =SUMIFS('NSR WO Details'!$AG:$AG,'NSR WO Details'!$H:$H,$M39,'NSR WO Details'!$AI:$AI,">="&$M$6,'NSR WO Details'!$AI:$AI,"<="&$N$6) -> 979 | AE39: =SUMIFS('NSR WO Details'!$AE:$AE,'NSR WO Details'!$H:$H,$M39,'NSR WO Details'!$AI:$AI,">="&$M$6,'NSR WO Details'!$AI:$AI,"<="&$N$6) -> 84 | AF39: =IFERROR(SUM(AE39/AD39),"") -> 0.086 | AG39: =SUMIFS(Completion!$CH:$CH,Completion!$BC:$BC,$M39,Completion!$L:$L,"INSTALL",Completion!$H:$H,">="&$M$6,Completion!$H:$H,"<="&$N$6) -> 0 | AH39: =SUMIFS(Completion!$BZ:$BZ,Completion!$BC:$BC,$M39,Completion!$L:$L,"INSTALL",Completion!$H:$H,">="&$M$6,Completion!$H:$H,"<="&$N$6) -> 0 | AL39: =IFERROR(SUM(AH39/AG39),"") ->  | AM39: =SUMIFS(Completion!$CH:$CH,Completion!$BC:$BC,$M39,Completion!$L:$L,"TC",Completion!$H:$H,">="&$M$6,Completion!$H:$H,"<="&$N$6) -> 0 | AN39: =SUMIFS(Completion!$BZ:$BZ,Completion!$BC:$BC,$M39,Completion!$L:$L,"TC",Completion!$H:$H,">="&$M$6,Completion!$H:$H,"<="&$N$6) -> 0 | AO39: =IFERROR(SUM(AN39/AM39),"") ->  | AR39: =IFERROR(SUM(AH39,AN39)/SUM(AG39,AM39),"") ->  | AS39: =SUMIFS('NSR WO Details'!$Z:$Z,'NSR WO Details'!$H:$H,$M39,'NSR WO Details'!$AI:$AI,">="&$M$6,'NSR WO Details'!$AI:$AI,"<="&$N$6) -> 178 | AT39: =SUMIFS('NSR WO Details'!$AA:$AA,'NSR WO Details'!$H:$H,$M39,'NSR WO Details'!$AI:$AI,">="&$M$6,'NSR WO Details'!$AI:$AI,"<="&$N$6) -> 169 | AU39: =IFERROR(SUM(AT39/AS39),"") -> 0.9494 | AV39: =SUMIFS('One Drop'!$BV:$BV,'One Drop'!$BD:$BD,$M39,'One Drop'!$U:$U,">="&$M$6,'One Drop'!$U:$U,"<="&$N$6) -> 1 | AW39: =SUMIFS('One Drop'!$BQ:$BQ,'One Drop'!$BD:$BD,$M39,'One Drop'!$U:$U,">="&$M$6,'One Drop'!$U:$U,"<="&$N$6) -> 0 | AX39: =AW39/AV39 -> 0 | AY39: =SUMIFS('NSR WO Details'!$AK:$AK,'NSR WO Details'!$H:$H,$M39,'NSR WO Details'!$AI:$AI,">="&$M$6,'NSR WO Details'!$AI:$AI,"<="&$N$6) -> 710 | AZ39: =SUMIFS('NSR WO Details'!$AL:$AL,'NSR WO Details'!$H:$H,$M39,'NSR WO Details'!$AI:$AI,">="&$M$6,'NSR WO Details'!$AI:$AI,"<="&$N$6) -> 689 | BA39: =AZ39/AY39 -> 0.97
F40: Dasha Cowan | G40: =IFERROR(VLOOKUP($F40,'Beltway Manager Performance'!$G$6:$BA$43,2,FALSE),"") -> 6.5 | H40: =VLOOKUP($F40,'Beltway Manager Performance'!$G$6:$BA$44,5,FALSE) -> 0.932 | I40: =IFERROR(VLOOKUP($F40,'Beltway Manager Performance'!$G$4:$BH$44,49,FALSE),"") -> 0.986 | J40: =IFERROR(VLOOKUP($F40,'Beltway Manager Performance'!$G$6:$AZ$44,38,FALSE),"") -> 0.9121 | N40: Score | O40: Total Jobs | P40: Total FTR Fails | Q40: FTR | R40: Total TC's | S40: Total TC FTR | T40: TC-TC FTR | W40: PHT | X40: Total Pass | Z40: PHT Pure Pass | AA40: Total Calls | AB40: Total Missed | AC40: MET | AD40: Total Jobs | AE40: Callback | AF40: 48hr Callback | AG40: Total Installs | AH40: Completed | AL40: Install Completion % | AM40: Total TC's | AN40: Completed | AO40: TC Completion % | AR40: Total Completion % | AS40: Tot Surv | AT40: Tot Pass | AU40: tNPS | AV40: Total Jobs | AW40: Total Comp | AX40: Ingress Test Ran | AY40: Tool Usage Jobs | AZ40: Tool Usage | BA40: Tool Usage Rate
F41: Lucius Deisan | G41: =IFERROR(VLOOKUP($F41,'Florida Manager Performance'!$G$6:$AO$43,2,FALSE),"") -> 6.5 | H41: =VLOOKUP($F41,'Florida Manager Performance'!$G$6:$AO$43,5,FALSE) -> 0.921 | I41: =IFERROR(VLOOKUP($F41,'Florida Manager Performance'!$G$4:$AV$43,34,FALSE),"") -> 0.988 | J41: =IFERROR(VLOOKUP($F41,'Florida Manager Performance'!$G$6:$AN$41,25,FALSE),"") -> 0.9161
F42: Chris Franklin | G42: =IFERROR(VLOOKUP($F42,'Big South Manager Performance'!$G$7:$AR$52,2,FALSE),"") -> 6.5 | H42: =VLOOKUP($F42,'Big South Manager Performance'!$G$7:$AR$53,5,FALSE) -> 0.919 | I42: =IFERROR(VLOOKUP($F42,'Big South Manager Performance'!$G$5:$AX$52,36,FALSE),"") -> 0.989 | J42: =IFERROR(VLOOKUP($F42,'Big South Manager Performance'!$G$7:$AP$54,28,FALSE),"") -> 0.972 | M42: Beltway Region | N42: =IF(AU42="","",IFERROR(IF(Q42>=92%,3.5,0)+IF(AU42>=92.5%,3.5,0)+IF(BA42>=98.5%,3,0),"")) -> 3.5 | O42: =SUMIFS('NSR WO Details'!$AG:$AG,'NSR WO Details'!$F:$F,"Beltway",'NSR WO Details'!$AI:$AI,">="&$M$6,'NSR WO Details'!$AI:$AI,"<="&$N$6) -> 1464 | P42: =COUNTIFS('FTR Detail'!$H:$H,"Beltway",'FTR Detail'!$AH:$AH,">="&$M$6,'FTR Detail'!$AH:$AH,"<="&$N$6) -> 128 | Q42: =IFERROR(1-(P42/O42),"") -> 0.913 | R42: =SUM(R38:R39) -> 598 | S42: =SUM(S38:S39) -> 89 | T42: =IFERROR(1-(S42/R42),"") -> 0.8512 | U42: =SUM(U38:U39) -> 1096 | V42: =SUM(V38:V39) -> 1069 | W42: =V42/U42 -> 0.9754 | X42: =SUM(X38:X39) -> 9 | Z42: =1-X42/V42 -> 0.9916 | AA42: =SUM(AA38:AA39) -> 1387 | AB42: =SUM(AB38:AB39) -> 125 | AC42: =1-(AB42/AA42) -> 0.9099 | AD42: =SUM(AD38:AD39) -> 1464 | AE42: =SUM(AE38:AE39) -> 129 | AF42: =IFERROR(SUM(AE42/AD42),"") -> 0.088 | AG42: =SUM(AG38:AG39) -> 0 | AH42: =SUM(AH38:AH39) -> 0 | AL42: =IFERROR(SUM(AH42/AG42),"") ->  | AM42: =SUM(AM38:AM39) -> 0 | AN42: =SUM(AN38:AN39) -> 0 | AO42: =IFERROR(SUM(AN42/AM42),"") ->  | AR42: =IFERROR(SUM(AH42,AN42)/SUM(AG42,AM42),"") ->  | AS42: =SUMIFS('NSR WO Details'!$Z:$Z,'NSR WO Details'!$F:$F,"Beltway",'NSR WO Details'!$AI:$AI,">="&$M$6,'NSR WO Details'!$AI:$AI,"<="&$N$6) -> 299 | AT42: =SUMIFS('NSR WO Details'!$AA:$AA,'NSR WO Details'!$F:$F,"Beltway",'NSR WO Details'!$AI:$AI,">="&$M$6,'NSR WO Details'!$AI:$AI,"<="&$N$6) -> 284 | AU42: =IFERROR(SUM(AT42/AS42),"") -> 0.9498 | AV42: =SUM(AV38:AV39) -> 33 | AW42: =SUM(AW38:AW39) -> 6 | AX42: =AW42/AV42 -> 0.1818 | AY42: =SUMIFS('NSR WO Details'!$AK:$AK,'NSR WO Details'!$F:$F,"Beltway",'NSR WO Details'!$AI:$AI,">="&$M$6,'NSR WO Details'!$AI:$AI,"<="&$N$6) -> 1087 | AZ42: =SUMIFS('NSR WO Details'!$AL:$AL,'NSR WO Details'!$F:$F,"Beltway",'NSR WO Details'!$AI:$AI,">="&$M$6,'NSR WO Details'!$AI:$AI,"<="&$N$6) -> 1057 | BA42: =AZ42/AY42 -> 0.972
F43: Ulises Aguilera | G43: =IFERROR(VLOOKUP($F43,'Florida Manager Performance'!$G$6:$AO$43,2,FALSE),"") -> 6.5 | H43: =VLOOKUP($F43,'Florida Manager Performance'!$G$6:$AO$43,5,FALSE) -> 0.913 | I43: =IFERROR(VLOOKUP($F43,'Florida Manager Performance'!$G$4:$AV$43,34,FALSE),"") -> 0.987 | J43: =IFERROR(VLOOKUP($F43,'Florida Manager Performance'!$G$6:$AN$41,25,FALSE),"") -> 0.9297
F44: Alexander Fontes | G44: =IFERROR(VLOOKUP($F44,'Florida Manager Performance'!$G$6:$AO$43,2,FALSE),"") -> 6.5 | H44: =VLOOKUP($F44,'Florida Manager Performance'!$G$6:$AO$43,5,FALSE) -> 0.909 | I44: =IFERROR(VLOOKUP($F44,'Florida Manager Performance'!$G$4:$AV$43,34,FALSE),"") -> 0.99 | J44: =IFERROR(VLOOKUP($F44,'Florida Manager Performance'!$G$6:$AN$41,25,FALSE),"") -> 0.9549
F45: Lucius Deisan WPB | G45: =IFERROR(VLOOKUP($F45,'Florida Manager Performance'!$G$6:$AO$43,2,FALSE),"") -> 6.5 | H45: =VLOOKUP($F45,'Florida Manager Performance'!$G$6:$AO$43,5,FALSE) -> 0.904 | I45: =IFERROR(VLOOKUP($F45,'Florida Manager Performance'!$G$4:$AV$43,34,FALSE),"") -> 0.985 | J45: =IFERROR(VLOOKUP($F45,'Florida Manager Performance'!$G$6:$AN$41,25,FALSE),"") -> 0.945 | M45: Big South
F46: Aleksandr Nikitin | G46: =IFERROR(VLOOKUP($F46,'Florida Manager Performance'!$G$4:$AO$42,2,FALSE),"") -> 3.5 | H46: =VLOOKUP($F46,'Florida Manager Performance'!$G$4:$AO$43,5,FALSE) -> 0.946 | I46: =IFERROR(VLOOKUP($F46,'Florida Manager Performance'!$G$3:$AV$42,34,FALSE),"") -> 0.974 | J46: =IFERROR(VLOOKUP($F46,'Florida Manager Performance'!$G$4:$AN$43,25,FALSE),"") -> 0.9245
F47: Phillip Tapper | G47: =IFERROR(VLOOKUP($F47,'Beltway Manager Performance'!$G$6:$BA$43,2,FALSE),"") -> 6.5 | H47: =VLOOKUP($F47,'Beltway Manager Performance'!$G$6:$BA$44,5,FALSE) -> 0.929 | I47: =IFERROR(VLOOKUP($F47,'Beltway Manager Performance'!$G$4:$BH$44,49,FALSE),"") -> 0.985 | J47: =IFERROR(VLOOKUP($F47,'Beltway Manager Performance'!$G$6:$AZ$44,34,FALSE),"") -> 0.9513
F48: Jeff Bradley | G48: =IFERROR(VLOOKUP($F48,'Beltway Manager Performance'!$G$6:$BA$43,2,FALSE),"") -> 3.5 | H48: =VLOOKUP($F48,'Beltway Manager Performance'!$G$6:$BA$44,5,FALSE) -> 0.911 | I48: =IFERROR(VLOOKUP($F48,'Beltway Manager Performance'!$G$4:$BH$44,49,FALSE),"") -> 0.977 | J48: =IFERROR(VLOOKUP($F48,'Beltway Manager Performance'!$G$6:$AZ$44,38,FALSE),"") -> 0.9394 | W48: Start Date | Z48: =M6 -> 2024-03-22 | AC48: End Date | AF48: =N6 -> 2024-03-27
F49: Craig Short | G49: =IFERROR(VLOOKUP($F49,'Beltway Manager Performance'!$G$6:$BA$43,2,FALSE),"") -> 3.5 | H49: =VLOOKUP($F49,'Beltway Manager Performance'!$G$6:$BA$44,5,FALSE) -> 0.908 | I49: =IFERROR(VLOOKUP($F49,'Beltway Manager Performance'!$G$4:$BH$44,49,FALSE),"") -> 0.979 | J49: =IFERROR(VLOOKUP($F49,'Beltway Manager Performance'!$G$6:$AZ$44,38,FALSE),"") -> 0.9448 | M49: Office | N49: Score | O49: Total Jobs | P49: Jobs FTR | Q49: FTR | R49: Total Job | S49: Pass | T49: PHT | U49: Pure Pass Fails | W49: PHT Pure Pass | X49: Calls Met | Y49: Calls Missed | Z49: OTA | AC49: Contact w/in 48hrs | AD49: Jobs | AE49: Fails | AF49: tNPS | AG49: Total Jobs | AH49: Total Comp | AL49: Ingress Test Ran | AM49: Tool Usage Jobs | AN49: Tool Usage | AO49: Tool Usage Rate | AP49: Number of Drops | AQ49: One Drop Usage | AR49: One Drop | AS49: Total Installs | AT49: Completed | AU49: Install Completion % | AV49: Total TC's | AW49: Completed | AX49: TC Completion % | BA49: Total Completion %
F50: Aaron Shafer | G50: =IFERROR(VLOOKUP($F50,'Big South Manager Performance'!$G$7:$AR$52,2,FALSE),"") -> 3.5 | H50: =VLOOKUP($F50,'Big South Manager Performance'!$G$7:$AR$53,5,FALSE) -> 0.903 | I50: =IFERROR(VLOOKUP($F50,'Big South Manager Performance'!$G$5:$AX$52,36,FALSE),"") -> 0.982 | J50: =IFERROR(VLOOKUP($F50,'Big South Manager Performance'!$G$7:$AP$54,28,FALSE),"") -> 0.9344
F51: Joseph Dagaye | G51: =IFERROR(VLOOKUP($F51,'Beltway Manager Performance'!$G$6:$BA$43,2,FALSE),"") -> 3.5 | H51: =VLOOKUP($F51,'Beltway Manager Performance'!$G$6:$BA$44,5,FALSE) -> 0.908 | I51: =IFERROR(VLOOKUP($F51,'Beltway Manager Performance'!$G$4:$BH$44,49,FALSE),"") -> 0.98 | J51: =IFERROR(VLOOKUP($F51,'Beltway Manager Performance'!$G$6:$AZ$44,38,FALSE),"") -> 0.9765 | M51: Nashville, TN | N51: =IF(AU51="","",IFERROR(IF(Q51>=92%,3.5,0)+IF(AF51>=92.5%,3.5,0)+IF(AO51>=98.5%,3,0),"")) ->  | O51: =SUMIFS('NSR WO Details'!$AG:$AG,'NSR WO Details'!$H:$H,$M51,'NSR WO Details'!$AI:$AI,">="&$M$6,'NSR WO Details'!$AI:$AI,"<="&$N$6) -> 243 | P51: =COUNTIFS('FTR Detail'!$I:$I,$M51,'FTR Detail'!$AH:$AH,">="&$M$6,'FTR Detail'!$AH:$AH,"<="&$N$6) -> 24 | Q51: =IFERROR(1-(P51/O51),"") -> 0.901 | R51: =SUMIFS('NSR WO Details'!$AB:$AB,'NSR WO Details'!$H:$H,$M51,'NSR WO Details'!$AI:$AI,">="&$M$6,'NSR WO Details'!$AI:$AI,"<="&$N$6) -> 156 | S51: =SUMIFS('NSR WO Details'!$AC:$AC,'NSR WO Details'!$H:$H,$M51,'NSR WO Details'!$AI:$AI,">="&$M$6,'NSR WO Details'!$AI:$AI,"<="&$N$6) -> 152 | T51: =IFERROR(SUM(S51/R51),"") -> 0.9744 | U51: =COUNTIFS('NSR WO Details'!$H:$H,$M51,'NSR WO Details'!$AD:$AD,"PASS_WITH_WARNINGS",'NSR WO Details'!$AI:$AI,">="&$M$6,'NSR WO Details'!$AI:$AI,"<="&$N$6)+COUNTIFS('NSR WO Details'!$H:$H,$M51,'NSR WO Details'!$AD:$AD,"PASS_WITH_OVERRIDES",'NSR WO Details'!$AI:$AI,">="&$M$6,'NSR WO Details'!$AI:$AI,"<="&$N$6) -> 2 | W51: =IFERROR(SUM(1-U51/S51),"") -> 0.9868 | X51: =COUNTIFS('NSR WO Details'!$W:$W,"=MET",'NSR WO Details'!$H:$H,$M51,'NSR WO Details'!$AI:$AI,">="&$M$6,'NSR WO Details'!$AI:$AI,"<="&$N$6) -> 230 | Y51: =COUNTIFS('NSR WO Details'!$W:$W,"=Missed",'NSR WO Details'!$H:$H,$M51,'NSR WO Details'!$AI:$AI,">="&$M$6,'NSR WO Details'!$AI:$AI,"<="&$N$6) -> 21 | Z51: =IFERROR(SUM(X51/(X51+Y51)),"") -> 0.9163 | AA51: =SUMIFS('NSR WO Details'!$AG:$AG,'NSR WO Details'!$H:$H,$M51,'NSR WO Details'!$AI:$AI,">="&$M$6,'NSR WO Details'!$AI:$AI,"<="&$N$6) -> 243 | AB51: =SUMIFS('NSR WO Details'!$AE:$AE,'NSR WO Details'!$H:$H,$M51,'NSR WO Details'!$AI:$AI,">="&$M$6,'NSR WO Details'!$AI:$AI,"<="&$N$6) -> 24 | AC51: =IFERROR(SUM(AB51/AA51),"") -> 0.099 | AD51: =SUMIFS('NSR WO Details'!$Z:$Z,'NSR WO Details'!$H:$H,$M51,'NSR WO Details'!$AI:$AI,">="&$M$6,'NSR WO Details'!$AI:$AI,"<="&$N$6) -> 43 | AE51: =SUMIFS('NSR WO Details'!$AA:$AA,'NSR WO Details'!$H:$H,$M51,'NSR WO Details'!$AI:$AI,">="&$M$6,'NSR WO Details'!$AI:$AI,"<="&$N$6) -> 36 | AF51: =IFERROR(SUM(AE51/AD51),"") -> 0.8372 | AG51: =SUMIFS('Tool Usage Details'!$T:$T,'Tool Usage Details'!$H:$H,$M51,'Tool Usage Details'!$E:$E,">="&$M$6,'Tool Usage Details'!$E:$E,"<="&$N$6) -> 149 | AH51: =COUNTIFS('Tool Usage Details'!$H:$H,$M51,'Tool Usage Details'!$U:$U,"PASS",'Tool Usage Details'!$E:$E,">="&$M$6,'Tool Usage Details'!$E:$E,"<="&$N$6) -> 149 | AL51: =IFERROR(SUM(AH51/AG51),"") -> 1 | AM51: =SUMIFS('NSR WO Details'!$AK:$AK,'NSR WO Details'!$H:$H,$M51,'NSR WO Details'!$AI:$AI,">="&$M$6,'NSR WO Details'!$AI:$AI,"<="&$N$6) -> 153 | AN51: =SUMIFS('NSR WO Details'!$AL:$AL,'NSR WO Details'!$H:$H,$M51,'NSR WO Details'!$AI:$AI,">="&$M$6,'NSR WO Details'!$AI:$AI,"<="&$N$6) -> 149 | AO51: =IFERROR(SUM(AN51/AM51),"") -> 0.974 | AP51: =SUMIFS('One Drop'!$BV:$BV,'One Drop'!$BD:$BD,$M51,'One Drop'!$U:$U,">="&$M$6,'One Drop'!$U:$U,"<="&$N$6) -> 0 | AQ51: =SUMIFS('One Drop'!$BQ:$BQ,'One Drop'!$BD:$BD,$M51,'One Drop'!$U:$U,">="&$M$6,'One Drop'!$U:$U,"<="&$N$6) -> 0 | AR51: =IFERROR(SUM(AQ51/AP51),"") ->  | AS51: =SUMIFS(Completion!$CH:$CH,Completion!$BC:$BC,$M51,Completion!$L:$L,"INSTALL",Completion!$H:$H,">="&$M$6,Completion!$H:$H,"<="&$N$6) -> 0 | AT51: =SUMIFS(Completion!$BZ:$BZ,Completion!$BC:$BC,$M51,Completion!$L:$L,"INSTALL",Completion!$H:$H,">="&$M$6,Completion!$H:$H,"<="&$N$6) -> 0 | AU51: =IFERROR(SUM(AT51/AS51),"") ->  | AV51: =SUMIFS(Completion!$CH:$CH,Completion!$BC:$BC,$M51,Completion!$L:$L,"TC",Completion!$H:$H,">="&$M$6,Completion!$H:$H,"<="&$N$6) -> 0 | AW51: =SUMIFS(Completion!$BZ:$BZ,Completion!$BC:$BC,$M51,Completion!$L:$L,"TC",Completion!$H:$H,">="&$M$6,Completion!$H:$H,"<="&$N$6) -> 0 | AX51: =IFERROR(SUM(AW51/AV51),"") ->  | BA51: =IFERROR(SUM(AT51,AW51)/SUM(AS51,AV51),"") -> 
F52: Antwan Hopkins | G52: =IFERROR(VLOOKUP($F52,'Beltway Manager Performance'!$G$6:$BA$43,2,FALSE),"") -> 3.5 | H52: =VLOOKUP($F52,'Beltway Manager Performance'!$G$6:$BA$44,5,FALSE) -> 0.896 | I52: =IFERROR(VLOOKUP($F52,'Beltway Manager Performance'!$G$4:$BH$44,49,FALSE),"") -> 0.98 | J52: =IFERROR(VLOOKUP($F52,'Beltway Manager Performance'!$G$6:$AZ$44,38,FALSE),"") -> 0.9688 | M52: North Alabama | N52: =IF(AU52="","",IFERROR(IF(Q52>=92%,3.5,0)+IF(AF52>=92.5%,3.5,0)+IF(AO52>=98.5%,3,0),"")) ->  | O52: =SUMIFS('NSR WO Details'!$AG:$AG,'NSR WO Details'!$H:$H,$M52,'NSR WO Details'!$AI:$AI,">="&$M$6,'NSR WO Details'!$AI:$AI,"<="&$N$6) -> 6 | P52: =COUNTIFS('FTR Detail'!$I:$I,$M52,'FTR Detail'!$AH:$AH,">="&$M$6,'FTR Detail'!$AH:$AH,"<="&$N$6) -> 0 | Q52: =IFERROR(1-(P52/O52),"") -> 1 | R52: =SUMIFS('NSR WO Details'!$AB:$AB,'NSR WO Details'!$H:$H,$M52,'NSR WO Details'!$AI:$AI,">="&$M$6,'NSR WO Details'!$AI:$AI,"<="&$N$6) -> 6 | S52: =SUMIFS('NSR WO Details'!$AC:$AC,'NSR WO Details'!$H:$H,$M52,'NSR WO Details'!$AI:$AI,">="&$M$6,'NSR WO Details'!$AI:$AI,"<="&$N$6) -> 6 | T52: =IFERROR(SUM(S52/R52),"") -> 1 | U52: =COUNTIFS('NSR WO Details'!$H:$H,$M52,'NSR WO Details'!$AD:$AD,"PASS_WITH_WARNINGS",'NSR WO Details'!$AI:$AI,">="&$M$6,'NSR WO Details'!$AI:$AI,"<="&$N$6)+COUNTIFS('NSR WO Details'!$H:$H,$M52,'NSR WO Details'!$AD:$AD,"PASS_WITH_OVERRIDES",'NSR WO Details'!$AI:$AI,">="&$M$6,'NSR WO Details'!$AI:$AI,"<="&$N$6) -> 0 | W52: =IFERROR(SUM(1-U52/S52),"") -> 1 | X52: =COUNTIFS('NSR WO Details'!$W:$W,"=MET",'NSR WO Details'!$H:$H,$M52,'NSR WO Details'!$AI:$AI,">="&$M$6,'NSR WO Details'!$AI:$AI,"<="&$N$6) -> 6 | Y52: =COUNTIFS('NSR WO Details'!$W:$W,"=Missed",'NSR WO Details'!$H:$H,$M52,'NSR WO Details'!$AI:$AI,">="&$M$6,'NSR WO Details'!$AI:$AI,"<="&$N$6) -> 0 | Z52: =IFERROR(SUM(X52/(X52+Y52)),"") -> 1 | AA52: =SUMIFS('NSR WO Details'!$AG:$AG,'NSR WO Details'!$H:$H,$M52,'NSR WO Details'!$AI:$AI,">="&$M$6,'NSR WO Details'!$AI:$AI,"<="&$N$6) -> 6 | AB52: =SUMIFS('NSR WO Details'!$AE:$AE,'NSR WO Details'!$H:$H,$M52,'NSR WO Details'!$AI:$AI,">="&$M$6,'NSR WO Details'!$AI:$AI,"<="&$N$6) -> 0 | AC52: =IFERROR(SUM(AB52/AA52),"") -> 0 | AD52: =SUMIFS('NSR WO Details'!$Z:$Z,'NSR WO Details'!$H:$H,$M52,'NSR WO Details'!$AI:$AI,">="&$M$6,'NSR WO Details'!$AI:$AI,"<="&$N$6) -> 2 | AE52: =SUMIFS('NSR WO Details'!$AA:$AA,'NSR WO Details'!$H:$H,$M52,'NSR WO Details'!$AI:$AI,">="&$M$6,'NSR WO Details'!$AI:$AI,"<="&$N$6) -> 2 | AF52: =IFERROR(SUM(AE52/AD52),"") -> 1 | AG52: =SUMIFS('Tool Usage Details'!$T:$T,'Tool Usage Details'!$H:$H,$M52,'Tool Usage Details'!$E:$E,">="&$M$6,'Tool Usage Details'!$E:$E,"<="&$N$6) -> 6 | AH52: =COUNTIFS('Tool Usage Details'!$H:$H,$M52,'Tool Usage Details'!$U:$U,"PASS",'Tool Usage Details'!$E:$E,">="&$M$6,'Tool Usage Details'!$E:$E,"<="&$N$6) -> 6 | AL52: =IFERROR(SUM(AH52/AG52),"") -> 1 | AM52: =SUMIFS('NSR WO Details'!$AK:$AK,'NSR WO Details'!$H:$H,$M52,'NSR WO Details'!$AI:$AI,">="&$M$6,'NSR WO Details'!$AI:$AI,"<="&$N$6) -> 6 | AN52: =SUMIFS('NSR WO Details'!$AL:$AL,'NSR WO Details'!$H:$H,$M52,'NSR WO Details'!$AI:$AI,">="&$M$6,'NSR WO Details'!$AI:$AI,"<="&$N$6) -> 6 | AO52: =IFERROR(SUM(AN52/AM52),"") -> 1 | AP52: =SUMIFS('One Drop'!$BV:$BV,'One Drop'!$BD:$BD,$M52,'One Drop'!$U:$U,">="&$M$6,'One Drop'!$U:$U,"<="&$N$6) -> 0 | AQ52: =SUMIFS('One Drop'!$BQ:$BQ,'One Drop'!$BD:$BD,$M52,'One Drop'!$U:$U,">="&$M$6,'One Drop'!$U:$U,"<="&$N$6) -> 0 | AR52: =IFERROR(SUM(AQ52/AP52),"") ->  | AS52: =SUMIFS(Completion!$CH:$CH,Completion!$BC:$BC,$M52,Completion!$L:$L,"INSTALL",Completion!$H:$H,">="&$M$6,Completion!$H:$H,"<="&$N$6) -> 0 | AT52: =SUMIFS(Completion!$BZ:$BZ,Completion!$BC:$BC,$M52,Completion!$L:$L,"INSTALL",Completion!$H:$H,">="&$M$6,Completion!$H:$H,"<="&$N$6) -> 0 | AU52: =IFERROR(SUM(AT52/AS52),"") ->  | AV52: =SUMIFS(Completion!$CH:$CH,Completion!$BC:$BC,$M52,Completion!$L:$L,"TC",Completion!$H:$H,">="&$M$6,Completion!$H:$H,"<="&$N$6) -> 0 | AW52: =SUMIFS(Completion!$BZ:$BZ,Completion!$BC:$BC,$M52,Completion!$L:$L,"TC",Completion!$H:$H,">="&$M$6,Completion!$H:$H,"<="&$N$6) -> 0 | AX52: =IFERROR(SUM(AW52/AV52),"") ->  | BA52: =IFERROR(SUM(AT52,AW52)/SUM(AS52,AV52),"") -> 
F53: Yariel Gomez | G53: =IFERROR(VLOOKUP($F53,'Florida Manager Performance'!$G$6:$AO$43,2,FALSE),"") -> 3.5 | H53: =VLOOKUP($F53,'Florida Manager Performance'!$G$6:$AO$43,5,FALSE) -> 0.896 | I53: =IFERROR(VLOOKUP($F53,'Florida Manager Performance'!$G$4:$AV$43,34,FALSE),"") -> 0.972 | J53: =IFERROR(VLOOKUP($F53,'Florida Manager Performance'!$G$6:$AN$41,25,FALSE),"") -> 0.945 | N53: Score | O53: Total Jobs | P53: Jobs FTR | Q53: FTR | R53: Total Job | S53: Pass | T53: PHT | U53: Pure Pass Fails | W53: PHT Pure Pass | X53: Calls Met | Y53: Calls Missed | Z53: OTA | AC53: Contact w/in 48hrs | AD53: Jobs | AE53: Fails | AF53: tNPS | AG53: Total Jobs | AH53: Total Comp | AL53: Ingress Test Ran | AM53: Tool Usage Jobs | AN53: Tool Usage | AO53: Tool Usage Rate | AP53: Number of Drops | AQ53: One Drop Usage | AR53: One Drop | AS53: Total Installs | AT53: Completed | AU53: Install Completion % | AV53: Total TC's | AW53: Completed | AX53: TC Completion % | BA53: Total Completion %
F54: Jevar Gayle | G54: =IFERROR(VLOOKUP($F54,'Beltway Manager Performance'!$G$6:$BA$43,2,FALSE),"") -> 3.5 | H54: =VLOOKUP($F54,'Beltway Manager Performance'!$G$6:$BA$44,5,FALSE) -> 0.833 | I54: =IFERROR(VLOOKUP($F54,'Beltway Manager Performance'!$G$4:$BH$44,49,FALSE),"") -> 0.933 | J54: =IFERROR(VLOOKUP($F54,'Beltway Manager Performance'!$G$6:$AZ$44,38,FALSE),"") -> 1
F55: Arthur Call | G55: =IFERROR(VLOOKUP($F55,'Florida Manager Performance'!$G$6:$AO$43,2,FALSE),"") -> 6.5 | H55: =VLOOKUP($F55,'Florida Manager Performance'!$G$6:$AO$43,5,FALSE) -> 0.92 | I55: =IFERROR(VLOOKUP($F55,'Florida Manager Performance'!$G$4:$AV$43,34,FALSE),"") -> 0.99 | J55: =IFERROR(VLOOKUP($F55,'Florida Manager Performance'!$G$6:$AN$41,25,FALSE),"") -> 0.8364 | M55: Big South | N55: =IF(AU55="","",IFERROR(IF(Q55>=92%,3.5,0)+IF(AF55>=92.5%,3.5,0)+IF(AO55>=98.5%,3,0),"")) ->  | O55: =SUMIFS('NSR WO Details'!$AG:$AG,'NSR WO Details'!$F:$F,"Big South",'NSR WO Details'!$AI:$AI,">="&$M$6,'NSR WO Details'!$AI:$AI,"<="&$N$6) -> 270 | P55: =COUNTIFS('FTR Detail'!$H:$H,"Big South",'FTR Detail'!$AH:$AH,">="&$M$6,'FTR Detail'!$AH:$AH,"<="&$N$6) -> 25 | Q55: =IFERROR(1-(P55/O55),"") -> 0.907 | R55: =SUM(R51:R52) -> 162 | S55: =SUM(S51:S52) -> 158 | T55: =IFERROR(SUM(S55/R55),"") -> 0.9753 | U55: =SUM(U51:U52) -> 2 | W55: =IFERROR(SUM(1-U55/S55),"") -> 0.9873 | X55: =SUM(X51:X52) -> 236 | Y55: =SUM(Y51:Y52) -> 21 | Z55: =IFERROR(SUM(X55/(X55+Y55)),"") -> 0.9183 | AA55: =SUM(AA51:AA52) -> 249 | AB55: =SUM(AB51:AB52) -> 24 | AC55: =IFERROR(SUM(AB55/AA55),"") -> 0.096 | AD55: =SUMIFS('NSR WO Details'!$Z:$Z,'NSR WO Details'!$F:$F,"Big South",'NSR WO Details'!$AI:$AI,">="&$M$6,'NSR WO Details'!$AI:$AI,"<="&$N$6) -> 50 | AE55: =SUMIFS('NSR WO Details'!$AA:$AA,'NSR WO Details'!$F:$F,"Big South",'NSR WO Details'!$AI:$AI,">="&$M$6,'NSR WO Details'!$AI:$AI,"<="&$N$6) -> 42 | AF55: =IFERROR(SUM(AE55/AD55),"") -> 0.84 | AG55: =SUM(AG51:AG52) -> 155 | AH55: =SUM(AH51:AH52) -> 155 | AL55: =IFERROR(SUM(AH55/AG55),"") -> 1 | AM55: =SUMIFS('NSR WO Details'!$AK:$AK,'NSR WO Details'!$F:$F,"Big South",'NSR WO Details'!$AI:$AI,">="&$M$6,'NSR WO Details'!$AI:$AI,"<="&$N$6) -> 176 | AN55: =SUMIFS('NSR WO Details'!$AL:$AL,'NSR WO Details'!$F:$F,"Big South",'NSR WO Details'!$AI:$AI,">="&$M$6,'NSR WO Details'!$AI:$AI,"<="&$N$6) -> 171 | AO55: =IFERROR(SUM(AN55/AM55),"") -> 0.972 | AP55: =SUM(AP51:AP52) -> 0 | AQ55: =SUM(AQ51:AQ52) -> 0 | AR55: =IFERROR(SUM(AQ55/AP55),"") ->  | AS55: =SUM(AS51:AS52) -> 0 | AT55: =SUM(AT51:AT52) -> 0 | AU55: =IFERROR(SUM(AT55/AS55),"") ->  | AV55: =SUM(AV51:AV52) -> 0 | AW55: =SUM(AW51:AW52) -> 0 | AX55: =IFERROR(SUM(AW55/AV55),"") ->  | BA55: =IFERROR(SUM(AT55,AW55)/SUM(AS55,AV55),"") -> 
F56: Nick Karcher | G56: =IFERROR(VLOOKUP($F56,'Florida Manager Performance'!$G$6:$AO$43,2,FALSE),"") -> 6.5 | H56: =VLOOKUP($F56,'Florida Manager Performance'!$G$6:$AO$43,5,FALSE) -> 0.922 | I56: =IFERROR(VLOOKUP($F56,'Florida Manager Performance'!$G$4:$AV$43,34,FALSE),"") -> 0.995 | J56: =IFERROR(VLOOKUP($F56,'Florida Manager Performance'!$G$6:$AN$41,25,FALSE),"") -> 0.9167
F57: Enrique Gabino | G57: =IFERROR(VLOOKUP($F57,'Florida Manager Performance'!$G$6:$AO$43,2,FALSE),"") -> 3 | H57: =VLOOKUP($F57,'Florida Manager Performance'!$G$6:$AO$43,5,FALSE) -> 0.91 | I57: =IFERROR(VLOOKUP($F57,'Florida Manager Performance'!$G$4:$AV$43,34,FALSE),"") -> 0.987 | J57: =IFERROR(VLOOKUP($F57,'Florida Manager Performance'!$G$6:$AN$41,25,FALSE),"") -> 0.9231
F58: Stephen Vanhoose | G58: =IFERROR(VLOOKUP($F58,'Florida Manager Performance'!$G$6:$AO$43,2,FALSE),"") -> 3 | H58: =VLOOKUP($F58,'Florida Manager Performance'!$G$6:$AO$43,5,FALSE) -> 0.914 | I58: =IFERROR(VLOOKUP($F58,'Florida Manager Performance'!$G$4:$AV$43,34,FALSE),"") -> 0.997 | J58: =IFERROR(VLOOKUP($F58,'Florida Manager Performance'!$G$6:$AN$41,25,FALSE),"") -> 0.922 | M58: Keystone
F59: Roger Jones | G59: =IFERROR(VLOOKUP($F59,'Florida Manager Performance'!$G$6:$AO$43,2,FALSE),"") -> 3 | H59: =VLOOKUP($F59,'Florida Manager Performance'!$G$6:$AO$43,5,FALSE) -> 0.903 | I59: =IFERROR(VLOOKUP($F59,'Florida Manager Performance'!$G$4:$AV$43,34,FALSE),"") -> 0.993 | J59: =IFERROR(VLOOKUP($F59,'Florida Manager Performance'!$G$6:$AN$41,25,FALSE),"") -> 0.8936
F60: Alexandr Sviridov | G60: =IFERROR(VLOOKUP($F60,'Florida Manager Performance'!$G$6:$AO$43,2,FALSE),"") -> 3 | H60: =VLOOKUP($F60,'Florida Manager Performance'!$G$6:$AO$43,5,FALSE) -> 0.876 | I60: =IFERROR(VLOOKUP($F60,'Florida Manager Performance'!$G$4:$AV$43,34,FALSE),"") -> 0.993 | J60: =IFERROR(VLOOKUP($F60,'Florida Manager Performance'!$G$6:$AN$41,25,FALSE),"") -> 0.9066
F61: Luis Segarra | G61: =IFERROR(VLOOKUP($F61,'Keystone Manager Performance'!$G$21:$BB$21,2,FALSE),"") -> 0 | H61: =IFERROR(VLOOKUP($F61,'Keystone Manager Performance'!$G$21:$BB$21,5,FALSE),"") -> 0.91 | I61: =IFERROR(VLOOKUP($F61,'Keystone Manager Performance'!$G$21:$BB$21,44,FALSE),"") -> 0.973 | J61: =IFERROR(VLOOKUP($F61,'Keystone Manager Performance'!$G$21:$BB$21,35,FALSE),"") -> 0.9149 | W61: Start Date | Z61: =M19 -> 00:00:00 | AC61: End Date | AF61: =N19 -> 00:00:00
F62: Rickie Greene | G62: =IFERROR(VLOOKUP($F62,'Florida Manager Performance'!$G$4:$AO$42,2,FALSE),"") -> 3.5 | H62: =VLOOKUP($F62,'Florida Manager Performance'!$G$4:$AO$43,5,FALSE) -> 0.904 | I62: =IFERROR(VLOOKUP($F62,'Florida Manager Performance'!$G$3:$AV$42,34,FALSE),"") -> 0.978 | J62: =IFERROR(VLOOKUP($F62,'Florida Manager Performance'!$G$4:$AN$43,25,FALSE),"") -> 0.9262 | M62: Office | N62: Score | O62: Total Jobs | P62: Jobs FTR | Q62: FTR | R62: Total Job | S62: Pass | T62: PHT | U62: Pure Pass Fails | W62: PHT Pure Pass | X62: Calls Met | Y62: Calls Missed | Z62: OTA | AC62: Contact w/in 48hrs | AD62: Jobs | AE62: Fails | AF62: tNPS | AG62: Total Jobs | AH62: Total Comp | AL62: Ingress Test Ran | AM62: Tool Usage Jobs | AN62: Tool Usage | AO62: Tool Usage Rate | AP62: Number of Drops | AQ62: One Drop Usage | AR62: One Drop | AS62: Total Installs | AT62: Completed | AU62: Install Completion % | AV62: Total TC's | AW62: Completed | AX62: TC Completion % | BA62: Total Completion %
F63: Jesse Buckler | G63: =IFERROR(VLOOKUP($F63,'Florida Manager Performance'!$G$6:$AO$43,2,FALSE),"") -> 0 | H63: =VLOOKUP($F63,'Florida Manager Performance'!$G$6:$AO$43,5,FALSE) -> 0.902 | I63: =IFERROR(VLOOKUP($F63,'Florida Manager Performance'!$G$4:$AV$43,34,FALSE),"") -> 0.981 | J63: =IFERROR(VLOOKUP($F63,'Florida Manager Performance'!$G$6:$AN$41,25,FALSE),"") -> 0.9216
F64: Ben Skyles | G64: =IFERROR(VLOOKUP($F64,'Florida Manager Performance'!$G$6:$AO$43,2,FALSE),"") -> 0 | H64: =VLOOKUP($F64,'Florida Manager Performance'!$G$6:$AO$43,5,FALSE) -> 0.903 | I64: =IFERROR(VLOOKUP($F64,'Florida Manager Performance'!$G$4:$AV$43,34,FALSE),"") -> 0.981 | J64: =IFERROR(VLOOKUP($F64,'Florida Manager Performance'!$G$6:$AN$41,25,FALSE),"") -> 0.9152 | M64: Keystone | N64: =IF(AU64="","",IFERROR(IF(Q64>=92%,3.5,0)+IF(AF64>=92.5%,3.5,0)+IF(AO64>=98.5%,3,0),"")) ->  | O64: =SUMIFS('NSR WO Details'!$AG:$AG,'NSR WO Details'!$F:$F,$M64,'NSR WO Details'!$AI:$AI,">="&$M$6,'NSR WO Details'!$AI:$AI,"<="&$N$6) -> 81 | P64: =COUNTIFS('FTR Detail'!$H:$H,$M64,'FTR Detail'!$AH:$AH,">="&$M$6,'FTR Detail'!$AH:$AH,"<="&$N$6) -> 14 | Q64: =IFERROR(1-(P64/O64),"") -> 0.827 | R64: =SUMIFS('NSR WO Details'!$AB:$AB,'NSR WO Details'!$F:$F,$M64,'NSR WO Details'!$AI:$AI,">="&$M$6,'NSR WO Details'!$AI:$AI,"<="&$N$6) -> 71 | S64: =SUMIFS('NSR WO Details'!$AC:$AC,'NSR WO Details'!$F:$F,$M64,'NSR WO Details'!$AI:$AI,">="&$M$6,'NSR WO Details'!$AI:$AI,"<="&$N$6) -> 70 | T64: =IFERROR(SUM(S64/R64),"") -> 0.9859 | U64: =COUNTIFS('NSR WO Details'!$F:$F,$M64,'NSR WO Details'!$AD:$AD,"PASS_WITH_WARNINGS",'NSR WO Details'!$AI:$AI,">="&$M$6,'NSR WO Details'!$AI:$AI,"<="&$N$6)+COUNTIFS('NSR WO Details'!$F:$F,$M64,'NSR WO Details'!$AD:$AD,"PASS_WITH_OVERRIDES",'NSR WO Details'!$AI:$AI,">="&$M$6,'NSR WO Details'!$AI:$AI,"<="&$N$6) -> 0 | W64: =IFERROR(SUM(1-U64/S64),"") -> 1 | X64: =COUNTIFS('NSR WO Details'!$W:$W,"=MET",'NSR WO Details'!$F:$F,$M64,'NSR WO Details'!$AI:$AI,">="&$M$6,'NSR WO Details'!$AI:$AI,"<="&$N$6) -> 75 | Y64: =COUNTIFS('NSR WO Details'!$W:$W,"=Missed",'NSR WO Details'!$F:$F,$M64,'NSR WO Details'!$AI:$AI,">="&$M$6,'NSR WO Details'!$AI:$AI,"<="&$N$6) -> 3 | Z64: =IFERROR(SUM(X64/(X64+Y64)),"") -> 0.9615 | AA64: =SUMIFS('NSR WO Details'!$AG:$AG,'NSR WO Details'!$F:$F,$M64,'NSR WO Details'!$AI:$AI,">="&$M$6,'NSR WO Details'!$AI:$AI,"<="&$N$6) -> 81 | AB64: =SUMIFS('NSR WO Details'!$AE:$AE,'NSR WO Details'!$F:$F,$M64,'NSR WO Details'!$AI:$AI,">="&$M$6,'NSR WO Details'!$AI:$AI,"<="&$N$6) -> 9 | AC64: =IFERROR(SUM(AB64/AA64),"") -> 0.111 | AD64: =SUMIFS('NSR WO Details'!$Z:$Z,'NSR WO Details'!$F:$F,$M64,'NSR WO Details'!$AI:$AI,">="&$M$6,'NSR WO Details'!$AI:$AI,"<="&$N$6) -> 13 | AE64: =SUMIFS('NSR WO Details'!$AA:$AA,'NSR WO Details'!$F:$F,$M64,'NSR WO Details'!$AI:$AI,">="&$M$6,'NSR WO Details'!$AI:$AI,"<="&$N$6) -> 13 | AF64: =IFERROR(SUM(AE64/AD64),"") -> 1 | AG64: =SUMIFS('Tool Usage Details'!$T:$T,'Tool Usage Details'!$G:$G,"Keystone Region",'Tool Usage Details'!$E:$E,">="&$M$6,'Tool Usage Details'!$E:$E,"<="&$N$6) -> 70 | AH64: =COUNTIFS('Tool Usage Details'!$G:$G,"Keystone Region",'Tool Usage Details'!$U:$U,"PASS",'Tool Usage Details'!$E:$E,">="&$M$6,'Tool Usage Details'!$E:$E,"<="&$N$6) -> 70 | AL64: =IFERROR(SUM(AH64/AG64),"") -> 1 | AM64: =SUMIFS('NSR WO Details'!$AK:$AK,'NSR WO Details'!$F:$F,$M64,'NSR WO Details'!$AI:$AI,">="&$M$6,'NSR WO Details'!$AI:$AI,"<="&$N$6) -> 70 | AN64: =SUMIFS('NSR WO Details'!$AL:$AL,'NSR WO Details'!$F:$F,$M64,'NSR WO Details'!$AI:$AI,">="&$M$6,'NSR WO Details'!$AI:$AI,"<="&$N$6) -> 69 | AO64: =IFERROR(SUM(AN64/AM64),"") -> 0.986 | AP64: =SUMIFS('One Drop'!$BV:$BV,'One Drop'!$BB:$BB,"Keystone Region",'One Drop'!$U:$U,">="&$M$6,'One Drop'!$U:$U,"<="&$N$6) -> 0 | AQ64: =SUMIFS('One Drop'!$BQ:$BQ,'One Drop'!$BB:$BB,"Keystone Region",'One Drop'!$U:$U,">="&$M$6,'One Drop'!$U:$U,"<="&$N$6) -> 0 | AR64: =IFERROR(SUM(AQ64/AP64),"") ->  | AS64: =SUMIFS(Completion!$CH:$CH,Completion!$E:$E,$M64,Completion!$L:$L,"INSTALL",Completion!$H:$H,">="&$M$6,Completion!$H:$H,"<="&$N$6) -> 0 | AT64: =SUMIFS(Completion!$BZ:$BZ,Completion!$E:$E,$M64,Completion!$L:$L,"INSTALL",Completion!$H:$H,">="&$M$6,Completion!$H:$H,"<="&$N$6) -> 0 | AU64: =IFERROR(SUM(AT64/AS64),"") ->  | AV64: =SUMIFS(Completion!$CH:$CH,Completion!$E:$E,$M64,Completion!$L:$L,"TC",Completion!$H:$H,">="&$M$6,Completion!$H:$H,"<="&$N$6) -> 0 | AW64: =SUMIFS(Completion!$BZ:$BZ,Completion!$E:$E,$M64,Completion!$L:$L,"TC",Completion!$H:$H,">="&$M$6,Completion!$H:$H,"<="&$N$6) -> 0 | AX64: =IFERROR(SUM(AW64/AV64),"") ->  | BA64: =IFERROR(SUM(AT64,AW64)/SUM(AS64,AV64),"") -> 
F65: Anthony Wong Total | G65: =IFERROR(VLOOKUP($F65,'Big South Manager Performance'!$G$7:$AR$52,2,FALSE),"") -> 0 | H65: =VLOOKUP($F65,'Big South Manager Performance'!$G$7:$AR$53,5,FALSE) -> 0.876 | I65: =IFERROR(VLOOKUP($F65,'Big South Manager Performance'!$G$5:$AX$52,36,FALSE),"") -> 0.961 | J65: =IFERROR(VLOOKUP($F65,'Big South Manager Performance'!$G$7:$AP$54,28,FALSE),"") -> 0.9247 | N65: Score | O65: Total Jobs | P65: Jobs FTR | Q65: FTR | R65: Total Job | S65: Pass | T65: PHT | U65: Pure Pass Fails | W65: PHT Pure Pass | X65: Calls Met | Y65: Calls Missed | Z65: OTA | AC65: Contact w/in 48hrs | AD65: Jobs | AE65: Fails | AF65: tNPS | AG65: Total Jobs | AH65: Total Comp | AL65: Ingress Test Ran | AM65: Tool Usage Jobs | AN65: Tool Usage | AO65: Tool Usage Rate | AP65: Number of Drops | AQ65: One Drop Usage | AR65: One Drop | AS65: Total Installs | AT65: Completed | AU65: Install Completion % | AV65: Total TC's | AW65: Completed | AX65: TC Completion % | BA65: Total Completion %
M67: Keystone Region | N67: =IF(AU67="","",IFERROR(IF(Q67>=92%,3.5,0)+IF(AF67>=92.5%,3.5,0)+IF(AO67>=98.5%,3,0),"")) ->  | O67: =SUMIFS('NSR WO Details'!$AG:$AG,'NSR WO Details'!$F:$F,"Keystone",'NSR WO Details'!$AI:$AI,">="&$M$6,'NSR WO Details'!$AI:$AI,"<="&$N$6) -> 81 | P67: =COUNTIFS('FTR Detail'!$H:$H,"Keystone",'FTR Detail'!$AH:$AH,">="&$M$6,'FTR Detail'!$AH:$AH,"<="&$N$6) -> 14 | Q67: =IFERROR(1-(P67/O67),"") -> 0.827 | R67: =SUM(R64:R64) -> 71 | S67: =SUM(S64:S64) -> 70 | T67: =IFERROR(SUM(S67/R67),"") -> 0.9859 | U67: =SUM(U64:U64) -> 0 | W67: =IFERROR(SUM(1-U67/S67),"") -> 1 | X67: =SUM(X64:X64) -> 75 | Y67: =SUM(Y64:Y64) -> 3 | Z67: =IFERROR(SUM(X67/(X67+Y67)),"") -> 0.9615 | AA67: =SUM(AA64:AA64) -> 81 | AB67: =SUM(AB64:AB64) -> 9 | AC67: =IFERROR(SUM(AB67/AA67),"") -> 0.111 | AD67: =SUMIFS('NSR WO Details'!$Z:$Z,'NSR WO Details'!$F:$F,"Keystone",'NSR WO Details'!$AI:$AI,">="&$M$6,'NSR WO Details'!$AI:$AI,"<="&$N$6) -> 13 | AE67: =SUMIFS('NSR WO Details'!$AA:$AA,'NSR WO Details'!$F:$F,"Keystone",'NSR WO Details'!$AI:$AI,">="&$M$6,'NSR WO Details'!$AI:$AI,"<="&$N$6) -> 13 | AF67: =IFERROR(SUM(AE67/AD67),"") -> 1 | AG67: =SUM(AG64:AG64) -> 70 | AH67: =SUM(AH64:AH64) -> 70 | AL67: =IFERROR(SUM(AH67/AG67),"") -> 1 | AM67: =SUMIFS('NSR WO Details'!$AK:$AK,'NSR WO Details'!$F:$F,"Keystone",'NSR WO Details'!$AI:$AI,">="&$M$6,'NSR WO Details'!$AI:$AI,"<="&$N$6) -> 70 | AN67: =SUMIFS('NSR WO Details'!$AL:$AL,'NSR WO Details'!$F:$F,"Keystone",'NSR WO Details'!$AI:$AI,">="&$M$6,'NSR WO Details'!$AI:$AI,"<="&$N$6) -> 69 | AO67: =IFERROR(SUM(AN67/AM67),"") -> 0.986 | AP67: =AP64 -> 0 | AQ67: =AQ64 -> 0 | AR67: =IFERROR(SUM(AQ67/AP67),"") ->  | AS67: =SUM(AS64:AS64) -> 0 | AT67: =SUM(AT64:AT64) -> 0 | AU67: =IFERROR(SUM(AT67/AS67),"") ->  | AV67: =SUM(AV64:AV64) -> 0 | AW67: =SUM(AW64:AW64) -> 0 | AX67: =IFERROR(SUM(AW67/AV67),"") ->  | BA67: =IFERROR(SUM(AT67,AW67)/SUM(AS67,AV67),"") -> 

Sheet Florida Manager Performance
G3: ='CUI Manager Performance'!F3 -> Start Date:3/22/2024, End Date: 4/21/2024
G4: Shop | H4: Score | I4: Total Jobs | J4: Jobs FTR | K4: FTR | L4: Total Job | M4: Pass | N4: PHT | O4: Pure Pass Fails | P4: PHT Pure Pass | Q4: Calls Met | R4: Calls Missed | S4: OTA | V4: Contact w/in 48hrs | W4: Total Jobs | X4: Total invalid | Y4: % Valid RTM | Z4: Jobs | AA4: Pictures Uploaded | AB4: ML Bonding Compliance | AE4: tNPS | AF4: Total Jobs | AG4: Total Comp | AH4: Ingress Test Ran | AI4: Number of Drops | AJ4: One Drop Usage | AK4: One Drop | AL4: Tool Usage Jobs | AM4: Tool Usage | AN4: Tool Usage Rate | AO4: TC W/IN 30 Days of Bury | AP4: QB Audits | AQ4: QC Audits | AR4: % Techs >=2 QC/QB | AS4: QA % | AT4: Total Installs | AU4: Completed | AV4: Install Completion % | AW4: Total TC's | AX4: Completed | AY4: TC Completion % | AZ4: Total Completion % | BA4: TC's | BB4: TC Cancels | BC4: Cancel Rate
G6: West Palm Beach County | H6: =IF(AN6="","",IFERROR(IF(K6>=92%,3.5,0)+IF(AE6>=92.5%,3.5,0)+IF(AN6>=98.5%,3,0),"")) -> 6.5 | I6: =SUMIF('NSR WO Details'!H:H,G6,'NSR WO Details'!AG:AG) -> 6647 | J6: =COUNTIF('FTR Detail'!I:I,G6) -> 695 | K6: =IFERROR(1-(J6/I6),"") -> 0.895 | L6: =SUMIF('NSR WO Details'!$H:$H,$G6,'NSR WO Details'!$AB:$AB) -> 4847 | M6: =SUMIF('NSR WO Details'!$H:$H,$G6,'NSR WO Details'!$AC:$AC) -> 4810 | N6: =IFERROR(SUM(M6/L6),"") -> 0.9924 | O6: =COUNTIFS('NSR WO Details'!$H:$H,$G6,'NSR WO Details'!$AD:$AD,"PASS_WITH_WARNINGS")+COUNTIFS('NSR WO Details'!$H:$H,$G6,'NSR WO Details'!$AD:$AD,"PASS_WITH_OVERRIDES") -> 74 | P6: =IFERROR(SUM(1-O6/M6),"") -> 0.9846 | Q6: =COUNTIFS('NSR WO Details'!$W:$W,"=MET",'NSR WO Details'!$H:$H,$G6) -> 6823 | R6: =COUNTIFS('NSR WO Details'!$W:$W,"=Missed",'NSR WO Details'!$H:$H,$G6) -> 200 | S6: =IFERROR(SUM(Q6/(Q6+R6)),"") -> 0.9715 | T6: =SUMIF('NSR WO Details'!$H:$H,$G6,'NSR WO Details'!$AG:$AG) -> 6647 | U6: =SUMIF('NSR WO Details'!$H:$H,$G6,'NSR WO Details'!$AE:$AE) -> 757 | V6: =IFERROR(SUM(U6/T6),"") -> 0.114 | W6: =SUMIFS('RTM Results'!$DI:$DI,'RTM Results'!$R:$R,"WEST PALM CENTRAL") -> 123 | X6: =SUMIFS('RTM Results'!$DE:$DE,'RTM Results'!$R:$R,"WEST PALM CENTRAL") -> 15 | Y6: =IFERROR(1-(SUM(X6/W6)),"") -> 0.878 | Z6: =SUM(Z19:Z26) -> 23 | AA6: =SUM(AA19:AA26) -> 22 | AB6: =IFERROR(SUM(AA6/Z6),"") -> 0.9565 | AC6: =SUMIF('NSR WO Details'!H:H,G6,'NSR WO Details'!Z:Z) -> 1113 | AD6: =SUMIF('NSR WO Details'!H:H,G6,'NSR WO Details'!AA:AA) -> 1036 | AE6: =IFERROR(SUM(AD6/AC6),"") -> 0.9308 | AF6: =SUM(AF19:AF26) -> 5717 | AG6: =SUM(AG19:AG26) -> 5677 | AH6: =IFERROR(SUM(AG6/AF6),"") -> 0.993 | AI6: =SUM(AI19:AI26)+'Drop Bury'!L68 -> 1175 | AJ6: =SUM(AJ19:AJ26)+'Drop Bury'!M68 -> 1093 | AK6: =IFERROR(SUM(AJ6/AI6),"") -> 0.9302 | AL6: =SUMIF('NSR WO Details'!H:H,G6,'NSR WO Details'!AK:AK) -> 4411 | AM6: =SUMIF('NSR WO Details'!H:H,G6,'NSR WO Details'!AL:AL) -> 4355 | AN6: =IFERROR(SUM(AM6/AL6),"") -> 0.987 | AO6: =IFERROR(SUMIF('TC Post Bury Rate'!N:N,G6,'TC Post Bury Rate'!CU:CU)/SUMIF('TC Post Bury Rate'!N:N,G6,'TC Post Bury Rate'!CM:CM),"") -> 0.09 | AP6: =SUM(AO19:AO26) -> 416 | AQ6: =SUM(AP19:AP26) -> 692 | AR6: =IFERROR(SUM('West Palm Beach'!BD8:BD24,'West Palm Beach'!BD34:BD68,'West Palm Beach'!BD79:BD97,'West Palm Beach'!BD107:BD146,'West Palm Beach'!BD156:BD183,'West Palm Beach'!BD193:BD222)/(COUNTIF('West Palm Beach'!I8:I24,">=10")+COUNTIF('West Palm Beach'!I34:I68,">=10")+COUNTIF('West Palm Beach'!I79:I97,">=10")+COUNTIF('West Palm Beach'!I107:I146,">=10")+COUNTIF('West Palm Beach'!I156:I183,">=10")+COUNTIF('West Palm Beach'!I193:I222,">=10")),"") -> 1 | AS6: =IFERROR(SUM(AQ6/I6),"") -> 0.1041 | AT6: =SUM(AT19:AT26) -> 3996 | AU6: =SUM(AU19:AU26) -> 3557 | AV6: =IFERROR(SUM(AU6/AT6),"") -> 0.8901 | AW6: =SUM(AW19:AW26) -> 5444 | AX6: =SUM(AX19:AX26) -> 4989 | AY6: =IFERROR(SUM(AX6/AW6),"") -> 0.9164 | AZ6: =IFERROR(SUM(AU6,AX6)/SUM(AT6,AW6),"") -> 0.9053 | BA6: =SUM(BA19:BA26) -> 5361 | BB6: =SUM(BB19:BB26) -> 392 | BC6: =BB6/BA6 -> 0.0731
G7: WEST PALM NORTH | H7: =IF(AN7="","",IFERROR(IF(K7>=92%,3.5,0)+IF(AE7>=92.5%,3.5,0)+IF(AN7>=98.5%,3,0),"")) -> 3 | I7: =SUMIF('NSR WO Details'!H:H,G7,'NSR WO Details'!AG:AG) -> 2532 | J7: =COUNTIF('FTR Detail'!I:I,G7) -> 224 | K7: 0.912 | L7: =SUMIF('NSR WO Details'!$H:$H,$G7,'NSR WO Details'!$AB:$AB) -> 1935 | M7: =SUMIF('NSR WO Details'!$H:$H,$G7,'NSR WO Details'!$AC:$AC) -> 1921 | N7: =IFERROR(SUM(M7/L7),"") -> 0.9928 | O7: =COUNTIFS('NSR WO Details'!$H:$H,$G7,'NSR WO Details'!$AD:$AD,"PASS_WITH_WARNINGS")+COUNTIFS('NSR WO Details'!$H:$H,$G7,'NSR WO Details'!$AD:$AD,"PASS_WITH_OVERRIDES") -> 19 | P7: =IFERROR(SUM(1-O7/M7),"") -> 0.9901 | Q7: =COUNTIFS('NSR WO Details'!$W:$W,"=MET",'NSR WO Details'!$H:$H,$G7) -> 2532 | R7: =COUNTIFS('NSR WO Details'!$W:$W,"=Missed",'NSR WO Details'!$H:$H,$G7) -> 121 | S7: =IFERROR(SUM(Q7/(Q7+R7)),"") -> 0.9544 | T7: =SUMIF('NSR WO Details'!$H:$H,$G7,'NSR WO Details'!$AG:$AG) -> 2532 | U7: =SUMIF('NSR WO Details'!$H:$H,$G7,'NSR WO Details'!$AE:$AE) -> 251 | V7: =IFERROR(SUM(U7/T7),"") -> 0.099 | W7: =SUMIFS('RTM Results'!$DI:$DI,'RTM Results'!$R:$R,"WEST PALM NORTH") -> 37 | X7: =SUMIFS('RTM Results'!$DE:$DE,'RTM Results'!$R:$R,"WEST PALM NORTH") -> 3 | Y7: =IFERROR(1-(SUM(X7/W7)),"") -> 0.919 | Z7: =SUM(Z27:Z28) -> 0 | AA7: =SUM(AA27:AA28) -> 0 | AC7: =SUMIF('NSR WO Details'!H:H,G7,'NSR WO Details'!Z:Z) -> 512 | AD7: =SUMIF('NSR WO Details'!H:H,G7,'NSR WO Details'!AA:AA) -> 471 | AE7: =IFERROR(SUM(AD7/AC7),"") -> 0.9199 | AF7: =SUM(AF27:AF28) -> 2005 | AG7: =SUM(AG27:AG28) -> 1990 | AH7: 0.9925 | AI7: =SUM(AI27:AI28) -> 500 | AJ7: =SUM(AJ27:AJ28) -> 488 | AK7: =IFERROR(SUM(AJ7/AI7),"") -> 0.976 | AL7: =SUMIF('NSR WO Details'!H:H,G7,'NSR WO Details'!AK:AK) -> 1823 | AM7: =SUMIF('NSR WO Details'!H:H,G7,'NSR WO Details'!AL:AL) -> 1797 | AN7: =IFERROR(SUM(AM7/AL7),"") -> 0.986 | AO7: =IFERROR(SUMIF('TC Post Bury Rate'!N:N,G7,'TC Post Bury Rate'!CU:CU)/SUMIF('TC Post Bury Rate'!N:N,G7,'TC Post Bury Rate'!CM:CM),"") -> 0.0706 | AP7: =SUM(AO27:AO28) -> 111 | AQ7: =SUM(AP27:AP28) -> 141 | AR7: =IFERROR(SUM('Treasure Coast'!BD9:BD28,'Treasure Coast'!BD38:BD59)/(COUNTIF('Treasure Coast'!I9:I28,">=10")+COUNTIF('Treasure Coast'!I38:I59,">=10")),"") -> 1 | AS7: =IFERROR(SUM(AQ7/I7),"") -> 0.0557 | AT7: =SUM(AW27:AW28) -> 1311 | AU7: =SUM(AX27:AX28) -> 1193 | AV7: 0.91 | AW7: =SUM(AW27:AW28) -> 1311 | AX7: =SUM(AX27:AX28) -> 1193 | AY7: =IFERROR(SUM(AX7/AW7),"") -> 0.91 | AZ7: =IFERROR(SUM(AU7,AX7)/SUM(AT7,AW7),"") -> 0.91 | BA7: =SUM(BA27:BA28) -> 1332 | BB7: =SUM(BB27:BB28) -> 91 | BC7: =BB7/BA7 -> 0.0683
G8: Jacksonville, FL | H8: 10 | I8: =SUMIF('NSR WO Details'!H:H,G8,'NSR WO Details'!AG:AG) -> 7961 | J8: =COUNTIF('FTR Detail'!I:I,G8) -> 621 | K8: 0.922 | L8: =SUMIF('NSR WO Details'!$H:$H,$G8,'NSR WO Details'!$AB:$AB) -> 5899 | M8: =SUMIF('NSR WO Details'!$H:$H,$G8,'NSR WO Details'!$AC:$AC) -> 5851 | N8: 0.9919 | O8: =COUNTIFS('NSR WO Details'!$H:$H,$G8,'NSR WO Details'!$AD:$AD,"PASS_WITH_WARNINGS")+COUNTIFS('NSR WO Details'!$H:$H,$G8,'NSR WO Details'!$AD:$AD,"PASS_WITH_OVERRIDES") -> 49 | P8: 0.9916 | Q8: =COUNTIFS('NSR WO Details'!$W:$W,"=MET",'NSR WO Details'!$H:$H,$G8) -> 8084 | R8: =COUNTIFS('NSR WO Details'!$W:$W,"=Missed",'NSR WO Details'!$H:$H,$G8) -> 261 | S8: 0.9687 | T8: =SUMIF('NSR WO Details'!$H:$H,$G8,'NSR WO Details'!$AG:$AG) -> 7961 | U8: =SUMIF('NSR WO Details'!$H:$H,$G8,'NSR WO Details'!$AE:$AE) -> 811 | V8: 0.102 | W8: =SUMIFS('RTM Results'!$DI:$DI,'RTM Results'!$R:$R,G8) -> 240 | X8: =SUMIFS('RTM Results'!$DE:$DE,'RTM Results'!$R:$R,G8) -> 7 | Y8: 0.971 | Z8: =SUM(Z29:Z34) -> 651 | AA8: =SUM(AA29:AA34) -> 610 | AB8: 0.937 | AC8: =SUMIF('NSR WO Details'!H:H,G8,'NSR WO Details'!Z:Z) -> 1537 | AD8: =SUMIF('NSR WO Details'!H:H,G8,'NSR WO Details'!AA:AA) -> 1456 | AE8: 0.9473 | AF8: =SUM(AF29:AF34) -> 5476 | AG8: =SUM(AG29:AG34) -> 5458 | AH8: 0.9967 | AI8: =SUM(AI29:AI34)+'Drop Bury'!L141 -> 1201 | AJ8: =SUM(AJ29:AJ34)+'Drop Bury'!M141 -> 1143 | AK8: 0.9517 | AL8: =SUMIF('NSR WO Details'!H:H,G8,'NSR WO Details'!AK:AK) -> 5537 | AM8: =SUMIF('NSR WO Details'!H:H,G8,'NSR WO Details'!AL:AL) -> 5486 | AN8: 0.991 | AO8: =IFERROR(SUMIF('TC Post Bury Rate'!N:N,G8,'TC Post Bury Rate'!CU:CU)/SUMIF('TC Post Bury Rate'!N:N,G8,'TC Post Bury Rate'!CM:CM),"") -> 0.075 | AP8: =SUM(AO29:AO34) -> 135 | AQ8: =SUM(AP29:AP34) -> 366 | AR8: =IFERROR(SUM(Jacksonville!BD8:BD26,Jacksonville!BD36:BD72,Jacksonville!BD82:BD103,Jacksonville!BD113:BD134,Jacksonville!BD144:BD165,Jacksonville!BD175:BD209)/(COUNTIF(Jacksonville!I8:I26,">=10")+COUNTIF(Jacksonville!I36:I72,">=10")+COUNTIF(Jacksonville!I82:I103,">=10")+COUNTIF(Jacksonville!I113:I134,">=10")+COUNTIF(Jacksonville!I144:I165,">=10")+COUNTIF(Jacksonville!I175:I209,">=10")),"") -> 0.6487 | AS8: =IFERROR(SUM(AQ8/I8),"") -> 0.046 | AT8: =SUM(AT29:AT34) -> 4154 | AU8: =SUM(AU29:AU34) -> 3809 | AV8: 0.9169 | AW8: =SUM(AW29:AW34) -> 4647 | AX8: =SUM(AX29:AX34) -> 4221 | AY8: 0.9083 | AZ8: 0.9124 | BA8: =SUM(BA29:BA34) -> 4726 | BB8: =SUM(BB29:BB34) -> 357 | BC8: 0.0755 | BG8: Total Appointments | BH8: Total Drop SRO's
G9: Florida Panhandle | H9: 10 | I9: =SUMIF('NSR WO Details'!H:H,G9,'NSR WO Details'!AG:AG) -> 2569 | J9: =COUNTIF('FTR Detail'!I:I,G9) -> 172 | K9: 0.933 | L9: =SUMIF('NSR WO Details'!$H:$H,$G9,'NSR WO Details'!$AB:$AB) -> 2051 | M9: =SUMIF('NSR WO Details'!$H:$H,$G9,'NSR WO Details'!$AC:$AC) -> 2033 | N9: 0.9912 | O9: =COUNTIFS('NSR WO Details'!$H:$H,$G9,'NSR WO Details'!$AD:$AD,"PASS_WITH_WARNINGS")+COUNTIFS('NSR WO Details'!$H:$H,$G9,'NSR WO Details'!$AD:$AD,"PASS_WITH_OVERRIDES") -> 17 | P9: 0.9916 | Q9: =COUNTIFS('NSR WO Details'!$W:$W,"=MET",'NSR WO Details'!$H:$H,$G9) -> 2367 | R9: =COUNTIFS('NSR WO Details'!$W:$W,"=Missed",'NSR WO Details'!$H:$H,$G9) -> 279 | S9: 0.8946 | T9: =SUMIF('NSR WO Details'!$H:$H,$G9,'NSR WO Details'!$AG:$AG) -> 2569 | U9: =SUMIF('NSR WO Details'!$H:$H,$G9,'NSR WO Details'!$AE:$AE) -> 225 | V9: 0.088 | W9: =SUMIFS('RTM Results'!$DI:$DI,'RTM Results'!$R:$R,"TALLAHASSEE") -> 48 | X9: =SUMIFS('RTM Results'!$DE:$DE,'RTM Results'!$R:$R,"TALLAHASSEE") -> 9 | Y9: 0.813 | Z9: =SUM(Z35:Z37) -> 0 | AA9: =SUM(AA35:AA37) -> 0 | AC9: =SUMIF('NSR WO Details'!H:H,G9,'NSR WO Details'!Z:Z) -> 557 | AD9: =SUMIF('NSR WO Details'!H:H,G9,'NSR WO Details'!AA:AA) -> 526 | AE9: 0.9443 | AF9: =SUM(AF35:AF37) -> 915 | AG9: =SUM(AG35:AG37) -> 913 | AH9: 0.9978 | AI9: =SUM(AI35:AI37)+'Drop Bury'!L102 -> 224 | AJ9: =SUM(AJ35:AJ37)+'Drop Bury'!M102 -> 191 | AK9: 0.8527 | AL9: =SUMIF('NSR WO Details'!H:H,G9,'NSR WO Details'!AK:AK) -> 1905 | AM9: =SUMIF('NSR WO Details'!H:H,G9,'NSR WO Details'!AL:AL) -> 1883 | AN9: 0.988 | AO9: =IFERROR(SUMIF('TC Post Bury Rate'!N:N,G9,'TC Post Bury Rate'!CU:CU)/SUMIF('TC Post Bury Rate'!N:N,G9,'TC Post Bury Rate'!CM:CM),"") -> 0.064 | AP9: =SUM(AO35:AO37) -> 54 | AQ9: =SUM(AP35:AP37) -> 92 | AR9: 1 | AS9: =IFERROR(SUM(AQ9/I9),"") -> 0.0358 | AT9: =SUM(AT35:AT37) -> 668 | AU9: =SUM(AU35:AU37) -> 605 | AV9: 0.9057 | AW9: =SUM(AW35:AW37) -> 695 | AX9: =SUM(AX35:AX37) -> 630 | AY9: =IFERROR(SUM(AX9/AW9),"") -> 0.9065 | AZ9: =IFERROR(SUM(AU9,AX9)/SUM(AT9,AW9),"") -> 0.9061 | BA9: =SUM(BA35:BA37) -> 704 | BB9: =SUM(BB35:BB37) -> 46 | BC9: 0.0653 | BG9: =SUM(I19:I40) -> 22762 | BH9: =COUNTIFS('NSR WO Details'!$P:$P,"SRO",'NSR WO Details'!$Q:$Q,"JS")+COUNTIFS('NSR WO Details'!$P:$P,"SRO",'NSR WO Details'!$Q:$Q,"YY") -> 9770
G10: Lake/Orlando | H10: 7 | I10: =SUMIF('NSR WO Details'!H:H,G10,'NSR WO Details'!AG:AG) -> 2995 | J10: =COUNTIF('FTR Detail'!I:I,G10) -> 237 | K10: 0.921 | L10: =SUMIF('NSR WO Details'!$H:$H,$G10,'NSR WO Details'!$AB:$AB) -> 2603 | M10: =SUMIF('NSR WO Details'!$H:$H,$G10,'NSR WO Details'!$AC:$AC) -> 2564 | N10: 0.985 | O10: =COUNTIFS('NSR WO Details'!$H:$H,$G10,'NSR WO Details'!$AD:$AD,"PASS_WITH_WARNINGS")+COUNTIFS('NSR WO Details'!$H:$H,$G10,'NSR WO Details'!$AD:$AD,"PASS_WITH_OVERRIDES") -> 26 | P10: 0.9899 | Q10: =COUNTIFS('NSR WO Details'!$W:$W,"=MET",'NSR WO Details'!$H:$H,$G10) -> 3017 | R10: =COUNTIFS('NSR WO Details'!$W:$W,"=Missed",'NSR WO Details'!$H:$H,$G10) -> 82 | S10: 0.9735 | T10: =SUMIF('NSR WO Details'!$H:$H,$G10,'NSR WO Details'!$AG:$AG) -> 2995 | U10: =SUMIF('NSR WO Details'!$H:$H,$G10,'NSR WO Details'!$AE:$AE) -> 333 | V10: 0.111 | W10: =SUMIFS('RTM Results'!$DI:$DI,'RTM Results'!$R:$R,"LAKE COUNTY") -> 77 | X10: =SUMIFS('RTM Results'!$DE:$DE,'RTM Results'!$R:$R,"LAKE COUNTY") -> 12 | Y10: 0.844 | Z10: =SUM(Z38:Z40) -> 0 | AA10: =SUM(AA38:AA40) -> 0 | AC10: =SUMIF('NSR WO Details'!H:H,G10,'NSR WO Details'!Z:Z) -> 705 | AD10: =SUMIF('NSR WO Details'!H:H,G10,'NSR WO Details'!AA:AA) -> 658 | AE10: 0.9333 | AF10: =SUM(AF38:AF40) -> 1556 | AG10: =SUM(AG38:AG40) -> 1546 | AH10: 0.9936 | AI10: =SUM(AI38:AI40)+'Drop Bury'!L141 -> 506 | AJ10: =SUM(AJ38:AJ40)+'Drop Bury'!M141 -> 466 | AK10: 0.9209 | AL10: =SUMIF('NSR WO Details'!H:H,G10,'NSR WO Details'!AK:AK) -> 2480 | AM10: =SUMIF('NSR WO Details'!H:H,G10,'NSR WO Details'!AL:AL) -> 2439 | AN10: 0.983 | AO10: =IFERROR(SUMIF('TC Post Bury Rate'!N:N,G10,'TC Post Bury Rate'!CU:CU)/SUMIF('TC Post Bury Rate'!N:N,G10,'TC Post Bury Rate'!CM:CM),"") -> 0.0651 | AP10: =SUM(AO38:AO40) -> 34 | AQ10: =SUM(AP38:AP40) -> 74 | AR10: =IFERROR(SUM('Lake-Orlando'!BD8:BD32,'Lake-Orlando'!BD42:BD66)/(COUNTIF('Lake-Orlando'!I8:I32,">=10")+COUNTIF('Lake-Orlando'!I42:I66,">=10")),"") -> 0.9 | AS10: =IFERROR(SUM(AQ10/I10),"") -> 0.0247 | AT10: =SUM(AT38:AT40) -> 891 | AU10: =SUM(AU38:AU40) -> 797 | AV10: 0.8945 | AW10: =SUM(AW38:AW40) -> 676 | AX10: =SUM(AX38:AX40) -> 634 | AY10: =IFERROR(SUM(AX10/AW10),"") -> 0.9379 | AZ10: =IFERROR(SUM(AU10,AX10)/SUM(AT10,AW10),"") -> 0.9132 | BA10: =SUM(BA38:BA40) -> 954 | BB10: =SUM(BB38:BB40) -> 44 | BC10: 0.0461
B11: Home | G11: WPB/WPBN Combined | H11: 6.5 | I11: =SUM(I6:I7) -> 9179 | J11: =SUM(J6:J7) -> 919 | K11: 0.9 | L11: =SUM(L6:L7) -> 6782 | M11: =SUM(M6:M7) -> 6731 | N11: 0.9925 | O11: =SUM(O6:O7) -> 93 | P11: 0.9862 | Q11: =SUM(Q6:Q7) -> 9355 | R11: =SUM(R6:R7) -> 321 | S11: 0.9668 | T11: =SUM(T6:T7) -> 9179 | U11: =SUM(U6:U7) -> 1008 | V11: 0.11 | W11: =SUM(W6:W7) -> 160 | X11: =SUM(X6:X7) -> 18 | Y11: 0.888 | Z11: =SUM(Z6:Z7) -> 23 | AA11: =SUM(AA6:AA7) -> 22 | AB11: 0.9565 | AC11: =SUM(AC6:AC7) -> 1625 | AD11: =SUM(AD6:AD7) -> 1507 | AE11: 0.9274 | AF11: =SUM(AF6:AF7) -> 7722 | AG11: =SUM(AG6:AG7) -> 7667 | AH11: 0.9929 | AI11: =SUM(AI6:AI7) -> 1675 | AJ11: =SUM(AJ6:AJ7) -> 1581 | AK11: 0.9439 | AL11: =AL6+AL7 -> 6234 | AM11: =AM6+AM7 -> 6152 | AN11: 0.987
G12: NFL Combined | H12: 10 | I12: =SUM(I8:I10) -> 13525 | J12: =SUM(J8:J10) -> 1030 | K12: 0.924 | L12: =SUM(L8:L10) -> 10553 | M12: =SUM(M8:M10) -> 10448 | N12: 0.9901 | O12: =SUM(O8:O10) -> 92 | P12: 0.9912 | Q12: =SUM(Q8:Q10) -> 13468 | R12: =SUM(R8:R10) -> 622 | S12: 0.9559 | T12: =SUM(T8:T10) -> 13525 | U12: =SUM(U8:U10) -> 1369 | V12: 0.101 | W12: =SUM(W8:W10) -> 365 | X12: =SUM(X8:X10) -> 28 | Y12: 0.923 | Z12: =SUM(Z8:Z10) -> 651 | AA12: =SUM(AA8:AA10) -> 610 | AB12: 0.937 | AC12: =SUM(AC8:AC10) -> 2799 | AD12: =SUM(AD8:AD10) -> 2640 | AE12: 0.9432 | AF12: =SUM(AF8:AF10) -> 7947 | AG12: =SUM(AG8:AG10) -> 7917 | AH12: 0.9962 | AI12: =SUM(AI8:AI10) -> 1931 | AJ12: =SUM(AJ8:AJ10) -> 1800 | AK12: 0.9322 | AL12: =SUM(AL8:AL10) -> 9922 | AM12: =SUM(AM8:AM10) -> 9808 | AN12: 0.989
B13: Performance Metrics | H13: Score | I13: Total Jobs | J13: Jobs FTR | K13: FTR | L13: Total Job | M13: Pass | N13: PHT | O13: Pure Pass Fails | P13: PHT Pure Pass | Q13: Calls Met | R13: Calls Missed | S13: OTA | V13: Contact w/in 48hrs | W13: Total Jobs | X13: Total invalid | Y13: % Valid RTM | Z13: Jobs | AA13: Pictures Uploaded | AB13: ML Bonding Compliance | AE13: tNPS | AF13: Total Jobs | AG13: Total Comp | AH13: Ingress Test Ran | AI13: Number of Drops | AJ13: One Drop Usage | AK13: One Drop | AL13: Tool Usage Jobs | AM13: Tool Usage | AN13: Tool Usage Rate | AO13: TC W/IN 30 Days of Bury | AP13: Fulfillment QC | AQ13: Drop Bury QC | AR13: % Techs >=2 QC's | AS13: Total QC | AT13: Total Installs | AU13: Completed | AV13: Install Completion % | AW13: Total TC's | AX13: Completed | AY13: TC Completion % | AZ13: Total Completion % | BA13: TC's | BB13: TC Cancels | BC13: Cancel Rate
B14: Florida
B15: West Palm Beach | G15: FLORIDA REGION | H15: =IF(AN15="","",IFERROR(IF(K15>=92%,3.5,0)+IF(AE15>=92.5%,3.5,0)+IF(AN15>=98.5%,3,0),"")) -> 6.5 | I15: =SUMIF('NSR WO Details'!F:F,"Florida",'NSR WO Details'!AG:AG) -> 22704 | J15: =COUNTIF('FTR Detail'!H:H,"Florida") -> 1949 | K15: =IFERROR(1-(J15/I15),"") -> 0.914 | L15: =SUM(L6:L10) -> 17335 | M15: =SUM(M6:M10) -> 17179 | N15: =IFERROR(SUM(M15/L15),"") -> 0.991 | O15: =SUM(O6:O10) -> 185 | P15: =IFERROR(SUM(1-O15/M15),"") -> 0.9892 | Q15: =COUNTIFS('NSR WO Details'!$W:$W,"=MET",'NSR WO Details'!$F:$F,"=FLORIDA") -> 22823 | R15: =COUNTIFS('NSR WO Details'!$W:$W,"=Missed",'NSR WO Details'!$F:$F,"=FLORIDA") -> 943 | S15: =IFERROR(SUM(Q15/(Q15+R15)),"") -> 0.9603 | T15: =SUM(T6:T10) -> 22704 | U15: =SUM(U6:U10) -> 2377 | V15: =IFERROR(SUM(U15/T15),"") -> 0.105 | W15: =SUM(W6:W10) -> 525 | X15: =SUM(X6:X10) -> 46 | Y15: =IFERROR(1-(SUM(X15/W15)),"") -> 0.912 | Z15: =SUM(Z6:Z10) -> 674 | AA15: =SUM(AA6:AA10) -> 632 | AB15: =IFERROR(SUM(AA15/Z15),"") -> 0.9377 | AC15: =SUMIF('NSR WO Details'!F:F,"Florida",'NSR WO Details'!Z:Z) -> 4424 | AD15: =SUMIF('NSR WO Details'!F:F,"Florida",'NSR WO Details'!AA:AA) -> 4147 | AE15: =IFERROR(SUM(AD15/AC15),"") -> 0.9374 | AF15: =SUM(AF6:AF10) -> 15669 | AG15: =SUM(AG6:AG10) -> 15584 | AH15: =IFERROR(SUM(AG15/AF15),"") -> 0.9946 | AI15: =SUM(AI6:AI10) -> 3606 | AJ15: =SUM(AJ6:AJ10) -> 3381 | AK15: =IFERROR(SUM(AJ15/AI15),"") -> 0.9376 | AL15: =SUMIF('NSR WO Details'!F:F,"Florida",'NSR WO Details'!AK:AK) -> 16156 | AM15: =SUMIF('NSR WO Details'!F:F,"Florida",'NSR WO Details'!AL:AL) -> 15960 | AN15: =IFERROR(SUM(AM15/AL15),"") -> 0.988 | AO15: =IFERROR(SUMIF('TC Post Bury Rate'!AG:AG,G15,'TC Post Bury Rate'!CU:CU)/SUMIF('TC Post Bury Rate'!AG:AG,G15,'TC Post Bury Rate'!CM:CM),"") -> 0.0761 | AP15: =IFERROR(SUM(AQ6:AQ10/BG9),"") -> 0.06 | AQ15: =IFERROR(SUM('Drop Bury'!U3:U8/BG9),"") -> 0.0148 | AR15: =IFERROR(SUMIF('TQI BP Tech Compliance'!$F:$F,"FLORIDA REGION",'TQI BP Tech Compliance'!$AD:$AD)/SUMIF('TQI BP Tech Compliance'!$F:$F,"FLORIDA REGION",'TQI BP Tech Compliance'!$AE:$AE),"") -> 0.8552 | AS15: =IFERROR(SUM(AP19:AP40)/SUM(BG9:BH9),"") -> 0.042 | AT15: =SUM(AT6:AT10) -> 11020 | AU15: =SUM(AU6:AU10) -> 9961 | AV15: =IFERROR(SUM(AU15/AT15),"") -> 0.9039 | AW15: =SUM(AW6:AW10) -> 12773 | AX15: =SUM(AX6:AX10) -> 11667 | AY15: =IFERROR(SUM(AX15/AW15),"") -> 0.9134 | AZ15: =IFERROR(SUM(AU15,AX15)/SUM(AT15,AW15),"") -> 0.909 | BA15: =SUM(BA6:BA10) -> 13077 | BB15: =SUM(BB6:BB10) -> 930 | BC15: =BB15/BA15 -> 0.0711
B16: Treasure Coast
B17: Jacksonville | G17: Supervisor Name | H17: Score | I17: Total Jobs | J17: Jobs FTR | K17: FTR | L17: Total Job | M17: Pass | N17: PHT | O17: Pure Pass Fails | P17: PHT Pure Pass | Q17: Calls Met | R17: Calls Missed | S17: OTA | V17: Contact w/in 48hrs | W17: Total Jobs | X17: Total invalid | Y17: % Valid RTM | Z17: Jobs | AA17: Pictures Uploaded | AB17: ML Bonding Compliance | AC17: Jobs | AD17: Passes | AE17: tNPS | AF17: Total Jobs | AG17: Total Comp | AH17: Ingress Test Ran | AI17: Number of Drops | AJ17: One Drop Usage | AK17: One Drop | AL17: Tool Usage Jobs | AM17: Tool Usage | AN17: Tool Usage Rate | AO17: QB Audits | AP17: QC Audits | AQ17: % Techs >=2 QC/QB | AR17: QA % | AT17: Total Installs | AU17: Completed | AV17: Install Completion % | AW17: Total TC's | AX17: Completed | AY17: TC Completion % | AZ17: Total Completion % | BA17: TC's | BB17: TC Cancels | BC17: Cancel Rate
B18: Florida Panhandle
B19: Lake Orlando | F19: West Palm Beach | G19: Enrique Gabino | H19: =IF(AN19="","",IFERROR(IF(K19>=92%,3.5,0)+IF(AE19>=92.5%,3.5,0)+IF(AN19>=98.5%,3,0),"")) -> 3 | I19: ='West Palm Beach'!I27 -> 400 | J19: ='West Palm Beach'!J27 -> 36 | K19: =IFERROR(1-(J19/I19),"") -> 0.91 | L19: ='West Palm Beach'!U27 -> 227 | M19: ='West Palm Beach'!V27 -> 226 | N19: =IFERROR(SUM(M19/L19),"") -> 0.9956 | O19: ='West Palm Beach'!X27 -> 3 | P19: =IFERROR(SUM(1-O19/M19),"") -> 0.9867 | Q19: ='West Palm Beach'!AC27 -> 402 | R19: ='West Palm Beach'!AD27 -> 13 | S19: =IFERROR(SUM(Q19/(Q19+R19)),"") -> 0.9687 | T19: ='West Palm Beach'!AF27 -> 429 | U19: ='West Palm Beach'!AG27 -> 43 | V19: =IFERROR(SUM(U19/T19),"") -> 0.1 | W19: ='West Palm Beach'!AI27 -> 5 | X19: ='West Palm Beach'!AJ27 -> 0 | Y19: =IFERROR(1-(SUM(X19/W19)),"") -> 1 | Z19: ='West Palm Beach'!AL27 -> 0 | AA19: ='West Palm Beach'!AM27 -> 0 | AB19: =IFERROR(AA19/Z19,"") ->  | AC19: ='West Palm Beach'!Z27 -> 65 | AD19: ='West Palm Beach'!AA27 -> 60 | AE19: =IFERROR(SUM(AD19/AC19),"") -> 0.9231 | AF19: ='West Palm Beach'!AO27 -> 227 | AG19: ='West Palm Beach'!AP27 -> 225 | AH19: =IFERROR(SUM(AG19/AF19),"") -> 0.9912 | AI19: ='West Palm Beach'!AR27 -> 39 | AJ19: ='West Palm Beach'!AS27 -> 37 | AK19: =IFERROR(SUM(AJ19/AI19),"") -> 0.9487 | AL19: ='West Palm Beach'!AU27 -> 234 | AM19: ='West Palm Beach'!AV27 -> 231 | AN19: =IFERROR(SUM(AM19/AL19),"") -> 0.987 | AO19: ='West Palm Beach'!BB27 -> 9 | AP19: ='West Palm Beach'!AZ27 -> 23 | AQ19: ='West Palm Beach'!BD27 -> 1 | AR19: =IFERROR(AP19/(I19),"") -> 0.0575 | AT19: ='West Palm Beach'!BF27 -> 201 | AU19: ='West Palm Beach'!BG27 -> 176 | AV19: =IFERROR(SUM(AU19/AT19),"") -> 0.8756 | AW19: ='West Palm Beach'!BI27 -> 222 | AX19: ='West Palm Beach'!BJ27 -> 204 | AY19: =IFERROR(SUM(AX19/AW19),"") -> 0.9189 | AZ19: =IFERROR(SUM(AU19,AX19)/SUM(AT19,AW19),"") -> 0.8983 | BA19: ='West Palm Beach'!BM27 -> 227 | BB19: ='West Palm Beach'!BN27 -> 18 | BC19: =BB19/BA19 -> 0.0793
B20: Drop Bury | G20: Arthur Call | H20: 6.5 | I20: ='West Palm Beach'!I100 -> 386 | J20: ='West Palm Beach'!J100 -> 31 | K20: 0.92 | L20: ='West Palm Beach'!U100 -> 269 | M20: ='West Palm Beach'!V100 -> 269 | N20: 1 | O20: ='West Palm Beach'!X100 -> 2 | P20: 0.9926 | Q20: ='West Palm Beach'!AC100 -> 467 | R20: ='West Palm Beach'!AD100 -> 19 | S20: 0.9609 | T20: ='West Palm Beach'!AF100 -> 498 | U20: ='West Palm Beach'!AG100 -> 30 | V20: 0.06 | W20: ='West Palm Beach'!AI100 -> 8 | X20: ='West Palm Beach'!AJ100 -> 1 | Y20: 0.875 | Z20: ='West Palm Beach'!AL100 -> 0 | AA20: ='West Palm Beach'!AM100 -> 0 | AB20: =IFERROR(AA20/Z20,"") ->  | AC20: ='West Palm Beach'!Z100 -> 55 | AD20: ='West Palm Beach'!AA100 -> 46 | AE20: =IFERROR(SUM(AD20/AC20),"") -> 0.8364 | AF20: ='West Palm Beach'!AO100 -> 252 | AG20: ='West Palm Beach'!AP100 -> 249 | AH20: 0.9881 | AI20: ='West Palm Beach'!AR100 -> 49 | AJ20: ='West Palm Beach'!AS100 -> 47 | AK20: 0.9592 | AL20: ='West Palm Beach'!AU100 -> 297 | AM20: ='West Palm Beach'!AV100 -> 294 | AN20: =IFERROR(SUM(AM20/AL20),"") -> 0.99 | AO20: ='West Palm Beach'!BB100 -> 19 | AP20: ='West Palm Beach'!AZ100 -> 29 | AQ20: ='West Palm Beach'!BD100 -> 1 | AR20: 0.0751 | AT20: ='West Palm Beach'!BF100 -> 170 | AU20: ='West Palm Beach'!BG100 -> 154 | AV20: 0.9059 | AW20: ='West Palm Beach'!BI100 -> 231 | AX20: ='West Palm Beach'!BJ100 -> 218 | AY20: =IFERROR(SUM(AX20/AW20),"") -> 0.9437 | AZ20: =IFERROR(SUM(AU20,AX20)/SUM(AT20,AW20),"") -> 0.9277 | BA20: ='West Palm Beach'!BM100 -> 236 | BB20: ='West Palm Beach'!BN100 -> 13 | BC20: =BB20/BA20 -> 0.0551
B21: Low Performers | G21: Lucius Deisan WPB | H21: 6.5 | I21: ='West Palm Beach'!I149 -> 2366 | J21: ='West Palm Beach'!J149 -> 227 | K21: 0.904 | L21: ='West Palm Beach'!U149 -> 1469 | M21: ='West Palm Beach'!V149 -> 1455 | N21: 0.9905 | O21: ='West Palm Beach'!X149 -> 31 | P21: 0.9787 | Q21: ='West Palm Beach'!AC149 -> 2324 | R21: ='West Palm Beach'!AD149 -> 85 | S21: 0.9647 | T21: ='West Palm Beach'!AF149 -> 2448 | U21: ='West Palm Beach'!AG149 -> 217 | V21: 0.089 | W21: ='West Palm Beach'!AI149 -> 39 | X21: ='West Palm Beach'!AJ149 -> 2 | Y21: 0.949 | Z21: ='West Palm Beach'!AL149 -> 23 | AA21: ='West Palm Beach'!AM149 -> 22 | AB21: =IFERROR(AA21/Z21,"") -> 0.9565 | AC21: ='West Palm Beach'!Z149 -> 382 | AD21: ='West Palm Beach'!AA149 -> 361 | AE21: 0.945 | AF21: ='West Palm Beach'!AO149 -> 1469 | AG21: ='West Palm Beach'!AP149 -> 1461 | AH21: 0.9946 | AI21: ='West Palm Beach'!AR149 -> 293 | AJ21: ='West Palm Beach'!AS149 -> 284 | AK21: =IFERROR(SUM(AJ21/AI21),"") -> 0.9693 | AL21: ='West Palm Beach'!AU149 -> 1565 | AM21: ='West Palm Beach'!AV149 -> 1542 | AN21: 0.985 | AO21: ='West Palm Beach'!BB149 -> 115 | AP21: ='West Palm Beach'!AZ149 -> 170 | AQ21: ='West Palm Beach'!BD149 -> 1 | AR21: 0.0719 | AT21: ='West Palm Beach'!BF149 -> 1040 | AU21: ='West Palm Beach'!BG149 -> 941 | AV21: 0.9048 | AW21: ='West Palm Beach'!BI149 -> 1450 | AX21: ='West Palm Beach'!BJ149 -> 1314 | AY21: =IFERROR(SUM(AX21/AW21),"") -> 0.9062 | AZ21: =IFERROR(SUM(AU21,AX21)/SUM(AT21,AW21),"") -> 0.9056 | BA21: ='West Palm Beach'!BM149 -> 1480 | BB21: ='West Palm Beach'!BN149 -> 111 | BC21: 0.075
B22: Tech Rankings | G22: Alexander Fontes | H22: 6.5 | I22: ='West Palm Beach'!I186 -> 1359 | J22: ='West Palm Beach'!J186 -> 123 | K22: 0.909 | L22: ='West Palm Beach'!U186 -> 891 | M22: ='West Palm Beach'!V186 -> 888 | N22: 0.9966 | O22: ='West Palm Beach'!X186 -> 5 | P22: 0.9944 | Q22: ='West Palm Beach'!AC186 -> 1434 | R22: ='West Palm Beach'!AD186 -> 63 | S22: 0.9579 | T22: ='West Palm Beach'!AF186 -> 1554 | U22: ='West Palm Beach'!AG186 -> 160 | V22: 0.103 | W22: ='West Palm Beach'!AI186 -> 19 | X22: ='West Palm Beach'!AJ186 -> 2 | Y22: 0.895 | Z22: ='West Palm Beach'!AL186 -> 0 | AA22: ='West Palm Beach'!AM186 -> 0 | AC22: ='West Palm Beach'!Z186 -> 288 | AD22: ='West Palm Beach'!AA186 -> 275 | AE22: 0.9549 | AF22: ='West Palm Beach'!AO186 -> 891 | AG22: ='West Palm Beach'!AP186 -> 885 | AH22: 0.9933 | AI22: ='West Palm Beach'!AR186 -> 184 | AJ22: ='West Palm Beach'!AS186 -> 178 | AK22: 0.9674 | AL22: ='West Palm Beach'!AU186 -> 926 | AM22: ='West Palm Beach'!AV186 -> 917 | AN22: 0.99 | AO22: ='West Palm Beach'!BB186 -> 74 | AP22: ='West Palm Beach'!AZ186 -> 153 | AQ22: ='West Palm Beach'!BD186 -> 1 | AR22: 0.1126 | AT22: ='West Palm Beach'!BF186 -> 649 | AU22: ='West Palm Beach'!BG186 -> 543 | AV22: 0.8367 | AW22: ='West Palm Beach'!BI186 -> 880 | AX22: ='West Palm Beach'!BJ186 -> 793 | AY22: =IFERROR(SUM(AX22/AW22),"") -> 0.9011 | AZ22: =IFERROR(SUM(AU22,AX22)/SUM(AT22,AW22),"") -> 0.8738 | BA22: ='West Palm Beach'!BM186 -> 929 | BB22: ='West Palm Beach'!BN186 -> 84 | BC22: 0.0904
B23: Tech Coaching Form | G23: Ivan Myhovych | H23: =IF(AN23="","",IFERROR(IF(K23>=92%,3.5,0)+IF(AE23>=92.5%,3.5,0)+IF(AN23>=98.5%,3,0),"")) -> 10 | I23: ='West Palm Beach'!I345 -> 1446 | J23: ='West Palm Beach'!J345 -> 107 | K23: =IFERROR(1-(J23/I23),"") -> 0.926 | L23: ='West Palm Beach'!U345 -> 1106 | M23: ='West Palm Beach'!V345 -> 1101 | N23: =IFERROR(SUM(M23/L23),"") -> 0.9955 | O23: ='West Palm Beach'!X345 -> 15 | P23: =IFERROR(SUM(1-O23/M23),"") -> 0.9864 | Q23: ='West Palm Beach'!AC345 -> 1433 | R23: ='West Palm Beach'!AD345 -> 53 | S23: =IFERROR(SUM(Q23/(Q23+R23)),"") -> 0.9643 | T23: ='West Palm Beach'!AF345 -> 1525 | U23: ='West Palm Beach'!AG345 -> 136 | V23: =IFERROR(SUM(U23/T23),"") -> 0.089 | W23: ='West Palm Beach'!AI345 -> 28 | X23: ='West Palm Beach'!AJ345 -> 3 | Y23: =IFERROR(1-(SUM(X23/W23)),"") -> 0.893 | Z23: ='West Palm Beach'!AL267 -> 0 | AA23: ='West Palm Beach'!AM267 -> 0 | AB23: =IFERROR(AA23/Z23,"") ->  | AC23: ='West Palm Beach'!Z345 -> 315 | AD23: ='West Palm Beach'!AA345 -> 307 | AE23: =IFERROR(SUM(AD23/AC23),"") -> 0.9746 | AF23: ='West Palm Beach'!AO345 -> 1106 | AG23: ='West Palm Beach'!AP345 -> 1096 | AH23: =IFERROR(SUM(AG23/AF23),"") -> 0.991 | AI23: ='West Palm Beach'!AR345 -> 194 | AJ23: ='West Palm Beach'!AS345 -> 190 | AK23: =IFERROR(SUM(AJ23/AI23),"") -> 0.9794 | AL23: ='West Palm Beach'!AU345 -> 1205 | AM23: ='West Palm Beach'!AV345 -> 1190 | AN23: =IFERROR(SUM(AM23/AL23),"") -> 0.988 | AO23: ='West Palm Beach'!BB345 -> 66 | AP23: ='West Palm Beach'!AZ345 -> 99 | AQ23: ='West Palm Beach'!BD345 -> 1 | AR23: =IFERROR(AP23/(I23),"") -> 0.0685 | AT23: ='West Palm Beach'!BF345 -> 656 | AU23: ='West Palm Beach'!BG345 -> 596 | AV23: =IFERROR(SUM(AU23/AT23),"") -> 0.9085 | AW23: ='West Palm Beach'!BI345 -> 876 | AX23: ='West Palm Beach'!BJ345 -> 816 | AY23: =IFERROR(SUM(AX23/AW23),"") -> 0.9315 | AZ23: =IFERROR(SUM(AU23,AX23)/SUM(AT23,AW23),"") -> 0.9217 | BA23: ='West Palm Beach'!BM345 -> 889 | BB23: ='West Palm Beach'!BN345 -> 49 | BC23: 0.0551
B24: Rework Summary | G24: Mikalai Mikhitarau | H24: 10 | I24: ='West Palm Beach'!I306 -> 616 | J24: ='West Palm Beach'!J306 -> 40 | K24: 0.935 | L24: ='West Palm Beach'!U306 -> 433 | M24: ='West Palm Beach'!V306 -> 432 | N24: 0.9977 | O24: ='West Palm Beach'!X306 -> 2 | P24: 0.9954 | Q24: ='West Palm Beach'!AC306 -> 611 | R24: ='West Palm Beach'!AD306 -> 17 | S24: 0.9729 | T24: ='West Palm Beach'!AF306 -> 641 | U24: ='West Palm Beach'!AG306 -> 69 | V24: 0.108 | W24: ='West Palm Beach'!AI306 -> 13 | X24: ='West Palm Beach'!AJ306 -> 1 | Y24: 0.923 | Z24: ='West Palm Beach'!AL268 -> 0 | AA24: ='West Palm Beach'!AM268 -> 0 | AC24: ='West Palm Beach'!Z306 -> 108 | AD24: ='West Palm Beach'!AA306 -> 102 | AE24: 0.9444 | AF24: ='West Palm Beach'!AO306 -> 433 | AG24: ='West Palm Beach'!AP306 -> 429 | AH24: 0.9908 | AI24: ='West Palm Beach'!AR306 -> 43 | AJ24: ='West Palm Beach'!AS306 -> 43 | AK24: 1 | AL24: ='West Palm Beach'!AU306 -> 469 | AM24: ='West Palm Beach'!AV306 -> 464 | AN24: 0.989 | AO24: ='West Palm Beach'!BB306 -> 22 | AP24: ='West Palm Beach'!AZ306 -> 54 | AQ24: ='West Palm Beach'!BD306 -> 1 | AR24: 0.0877 | AT24: ='West Palm Beach'!BF306 -> 332 | AU24: ='West Palm Beach'!BG306 -> 290 | AV24: 0.8735 | AW24: ='West Palm Beach'!BI306 -> 319 | AX24: ='West Palm Beach'!BJ306 -> 297 | AY24: 0.931 | AZ24: 0.9017 | BA24: ='West Palm Beach'!BM306 -> 328 | BB24: ='West Palm Beach'!BN306 -> 18 | BC24: 0.0549
B25: tNPS Rankings | G25: Yariel Gomez | H25: 3.5 | I25: ='West Palm Beach'!I225 -> 559 | J25: ='West Palm Beach'!J225 -> 58 | K25: =IFERROR(1-(J25/I25),"") -> 0.896 | L25: ='West Palm Beach'!U225 -> 383 | M25: ='West Palm Beach'!V225 -> 378 | N25: =IFERROR(SUM(M25/L25),"") -> 0.9869 | O25: ='West Palm Beach'!X225 -> 5 | P25: =IFERROR(SUM(1-O25/M25),"") -> 0.9868 | Q25: ='West Palm Beach'!AC225 -> 574 | R25: ='West Palm Beach'!AD225 -> 11 | S25: =IFERROR(SUM(Q25/(Q25+R25)),"") -> 0.9812 | T25: ='West Palm Beach'!AF225 -> 602 | U25: ='West Palm Beach'!AG225 -> 84 | V25: =IFERROR(SUM(U25/T25),"") -> 0.14 | W25: ='West Palm Beach'!AI225 -> 10 | X25: ='West Palm Beach'!AJ225 -> 2 | Y25: =IFERROR(1-(SUM(X25/W25)),"") -> 0.8 | Z25: ='West Palm Beach'!AL225 -> 0 | AA25: ='West Palm Beach'!AM225 -> 0 | AB25: =IFERROR(AA25/Z25,"") ->  | AC25: ='West Palm Beach'!Z225 -> 109 | AD25: ='West Palm Beach'!AA225 -> 103 | AE25: =IFERROR(SUM(AD25/AC25),"") -> 0.945 | AF25: ='West Palm Beach'!AO225 -> 383 | AG25: ='West Palm Beach'!AP225 -> 377 | AH25: =IFERROR(SUM(AG25/AF25),"") -> 0.9843 | AI25: ='West Palm Beach'!AR225 -> 53 | AJ25: ='West Palm Beach'!AS225 -> 52 | AK25: =IFERROR(SUM(AJ25/AI25),"") -> 0.9811 | AL25: ='West Palm Beach'!AU225 -> 427 | AM25: ='West Palm Beach'!AV225 -> 415 | AN25: =IFERROR(SUM(AM25/AL25),"") -> 0.972 | AO25: ='West Palm Beach'!BB225 -> 26 | AP25: ='West Palm Beach'!AZ225 -> 32 | AQ25: ='West Palm Beach'!BD225 -> 1 | AR25: 0.0572 | AT25: ='West Palm Beach'!BF225 -> 262 | AU25: ='West Palm Beach'!BG225 -> 236 | AV25: =IFERROR(SUM(AU25/AT25),"") -> 0.9008 | AW25: ='West Palm Beach'!BI225 -> 337 | AX25: ='West Palm Beach'!BJ225 -> 318 | AY25: =IFERROR(SUM(AX25/AW25),"") -> 0.9436 | AZ25: =IFERROR(SUM(AU25,AX25)/SUM(AT25,AW25),"") -> 0.9249 | BA25: ='West Palm Beach'!BM225 -> 343 | BB25: ='West Palm Beach'!BN225 -> 15 | BC25: 0.0437
B26: Tool Usage Rankings | G26: Alexandr Sviridov | H26: 3 | I26: ='West Palm Beach'!I71 -> 1696 | J26: ='West Palm Beach'!J71 -> 210 | K26: 0.876 | L26: ='West Palm Beach'!U71 -> 956 | M26: ='West Palm Beach'!V71 -> 951 | N26: 0.9948 | O26: ='West Palm Beach'!X71 -> 15 | P26: 0.9842 | Q26: ='West Palm Beach'!AC71 -> 1732 | R26: ='West Palm Beach'!AD71 -> 41 | S26: 0.9769 | T26: ='West Palm Beach'!AF71 -> 1821 | U26: ='West Palm Beach'!AG71 -> 218 | V26: 0.12 | W26: ='West Palm Beach'!AI71 -> 31 | X26: ='West Palm Beach'!AJ71 -> 6 | Y26: 0.806 | Z26: ='West Palm Beach'!AL71 -> 0 | AA26: ='West Palm Beach'!AM71 -> 0 | AC26: ='West Palm Beach'!Z71 -> 289 | AD26: ='West Palm Beach'!AA71 -> 262 | AE26: 0.9066 | AF26: ='West Palm Beach'!AO71 -> 956 | AG26: ='West Palm Beach'!AP71 -> 955 | AH26: 0.999 | AI26: ='West Palm Beach'!AR71 -> 248 | AJ26: ='West Palm Beach'!AS71 -> 245 | AK26: 0.9879 | AL26: ='West Palm Beach'!AU71 -> 1046 | AM26: ='West Palm Beach'!AV71 -> 1039 | AN26: 0.993 | AO26: ='West Palm Beach'!BB71 -> 85 | AP26: ='West Palm Beach'!AZ71 -> 132 | AQ26: ='West Palm Beach'!BD71 -> 1 | AR26: 0.0778 | AT26: ='West Palm Beach'!BF71 -> 686 | AU26: ='West Palm Beach'!BG71 -> 621 | AV26: 0.9052 | AW26: ='West Palm Beach'!BI71 -> 1129 | AX26: ='West Palm Beach'!BJ71 -> 1029 | AY26: 0.9114 | AZ26: 0.9091 | BA26: ='West Palm Beach'!BM186 -> 929 | BB26: ='West Palm Beach'!BN186 -> 84 | BC26: 0.0904
B27: 48hr Callback Rankings | F27: West Palm North | G27: Ben Skyles | H27: 0 | I27: ='Treasure Coast'!I31 -> 785 | J27: ='Treasure Coast'!J31 -> 76 | K27: 0.903 | L27: ='Treasure Coast'!U31 -> 485 | M27: ='Treasure Coast'!V31 -> 480 | N27: 0.9897 | O27: ='Treasure Coast'!X31 -> 4 | P27: 0.9917 | Q27: ='Treasure Coast'!AC31 -> 765 | R27: ='Treasure Coast'!AD31 -> 41 | S27: 0.9491 | T27: ='Treasure Coast'!AF31 -> 837 | U27: ='Treasure Coast'!AG31 -> 95 | V27: 0.114 | W27: ='Treasure Coast'!AI31 -> 10 | X27: ='Treasure Coast'!AJ31 -> 0 | Y27: 1 | Z27: ='Treasure Coast'!AL31 -> 0 | AA27: ='Treasure Coast'!AM31 -> 0 | AC27: ='Treasure Coast'!Z31 -> 165 | AD27: ='Treasure Coast'!AA31 -> 151 | AE27: 0.9152 | AF27: ='Treasure Coast'!AO31 -> 485 | AG27: ='Treasure Coast'!AP31 -> 481 | AH27: 0.9918 | AI27: ='Treasure Coast'!AR31 -> 126 | AJ27: ='Treasure Coast'!AS31 -> 124 | AK27: 0.9841 | AL27: ='Treasure Coast'!AU31 -> 525 | AM27: ='Treasure Coast'!AV31 -> 515 | AN27: 0.981 | AO27: ='Treasure Coast'!BB31 -> 43 | AP27: ='Treasure Coast'!AZ31 -> 43 | AQ27: ='Treasure Coast'!BD31 -> 1 | AR27: 0.0548 | AT27: ='Treasure Coast'!BF31 -> 356 | AU27: ='Treasure Coast'!BG31 -> 318 | AV27: 0.8933 | AW27: ='Treasure Coast'!BI31 -> 455 | AX27: ='Treasure Coast'!BJ31 -> 431 | AY27: =IFERROR(SUM(AX27/AW27),"") -> 0.9473 | AZ27: =IFERROR(SUM(AU27,AX27)/SUM(AT27,AW27),"") -> 0.9236 | BA27: ='Treasure Coast'!BM31 -> 459 | BB27: ='Treasure Coast'!BN31 -> 20 | BC27: 0.0436
B28: Cancel Rate | G28: Lucius Deisan | H28: 6.5 | I28: ='Treasure Coast'!I62 -> 1507 | J28: ='Treasure Coast'!J62 -> 119 | K28: 0.921 | L28: ='Treasure Coast'!U62 -> 1520 | M28: ='Treasure Coast'!V62 -> 1510 | N28: 0.9934 | O28: ='Treasure Coast'!X62 -> 11 | P28: 0.9927 | Q28: ='Treasure Coast'!AC62 -> 1472 | R28: ='Treasure Coast'!AD62 -> 70 | S28: 0.9546 | T28: ='Treasure Coast'!AF62 -> 1578 | U28: ='Treasure Coast'!AG62 -> 135 | V28: 0.086 | W28: ='Treasure Coast'!AI62 -> 27 | X28: ='Treasure Coast'!AJ62 -> 4 | Y28: 0.852 | Z28: ='Treasure Coast'!AL62 -> 0 | AA28: ='Treasure Coast'!AM62 -> 0 | AC28: ='Treasure Coast'!Z62 -> 298 | AD28: ='Treasure Coast'!AA62 -> 273 | AE28: 0.9161 | AF28: ='Treasure Coast'!AO62 -> 1520 | AG28: ='Treasure Coast'!AP62 -> 1509 | AH28: 0.9928 | AI28: ='Treasure Coast'!AR62 -> 374 | AJ28: ='Treasure Coast'!AS62 -> 364 | AK28: 0.9733 | AL28: ='Treasure Coast'!AU62 -> 1088 | AM28: ='Treasure Coast'!AV62 -> 1075 | AN28: 0.988 | AO28: ='Treasure Coast'!BB62 -> 68 | AP28: ='Treasure Coast'!AZ62 -> 98 | AQ28: ='Treasure Coast'!BD62 -> 1 | AR28: 0.065 | AT28: ='Treasure Coast'!BF62 -> 741 | AU28: ='Treasure Coast'!BG62 -> 679 | AV28: 0.9163 | AW28: ='Treasure Coast'!BI62 -> 856 | AX28: ='Treasure Coast'!BJ62 -> 762 | AY28: 0.8902 | AZ28: 0.9023 | BA28: ='Treasure Coast'!BM62 -> 873 | BB28: ='Treasure Coast'!BN62 -> 71 | BC28: 0.0813
B29: Partner Performance | F29: Jacksonville | G29: Shante Miller | H29: 10 | I29: =Jacksonville!I29 -> 787 | J29: =Jacksonville!J29 -> 48 | K29: 0.939 | L29: =Jacksonville!U29 -> 579 | M29: =Jacksonville!V29 -> 574 | N29: 0.9914 | O29: =Jacksonville!X29 -> 4 | P29: 0.993 | Q29: =Jacksonville!AC29 -> 785 | R29: =Jacksonville!AD29 -> 31 | S29: 0.962 | T29: =Jacksonville!AF29 -> 841 | U29: =Jacksonville!AG29 -> 66 | V29: 0.078 | W29: =Jacksonville!AI29 -> 23 | X29: =Jacksonville!AJ29 -> 2 | Y29: 0.913 | Z29: =Jacksonville!AL29 -> 38 | AA29: =Jacksonville!AM29 -> 36 | AB29: 0.9474 | AC29: =Jacksonville!Z29 -> 175 | AD29: =Jacksonville!AA29 -> 168 | AE29: 0.96 | AF29: =Jacksonville!AO29 -> 579 | AG29: =Jacksonville!AP29 -> 578 | AH29: 0.9983 | AI29: =Jacksonville!AR29 -> 124 | AJ29: =Jacksonville!AS29 -> 123 | AK29: 0.9919 | AL29: =Jacksonville!AU29 -> 606 | AM29: =Jacksonville!AV29 -> 601 | AN29: 0.992 | AO29: =Jacksonville!BB29 -> 14 | AP29: =Jacksonville!AZ29 -> 31 | AQ29: =Jacksonville!BD29 -> 0.9375 | AR29: 0.0394 | AT29: =Jacksonville!BF29 -> 415 | AU29: =Jacksonville!BG29 -> 390 | AV29: 0.9398 | AW29: =Jacksonville!BI29 -> 407 | AX29: =Jacksonville!BJ29 -> 375 | AY29: 0.9214 | AZ29: 0.9307 | BA29: =Jacksonville!BM29 -> 413 | BB29: =Jacksonville!BN29 -> 28 | BC29: 0.0678
G30: Winston Issacs | H30: 10 | I30: =Jacksonville!I106 -> 776 | J30: =Jacksonville!J106 -> 48 | K30: 0.938 | L30: =Jacksonville!U106 -> 603 | M30: =Jacksonville!V106 -> 603 | N30: 1 | O30: =Jacksonville!X106 -> 4 | P30: 0.9934 | Q30: =Jacksonville!AC106 -> 790 | R30: =Jacksonville!AD106 -> 10 | S30: 0.9875 | T30: =Jacksonville!AF106 -> 821 | U30: =Jacksonville!AG106 -> 64 | V30: 0.078 | W30: =Jacksonville!AI106 -> 17 | X30: =Jacksonville!AJ106 -> 0 | Y30: 1 | Z30: =Jacksonville!AL106 -> 101 | AA30: =Jacksonville!AM106 -> 98 | AB30: 0.9703 | AC30: =Jacksonville!Z106 -> 164 | AD30: =Jacksonville!AA106 -> 156 | AE30: 0.9512 | AF30: =Jacksonville!AO106 -> 603 | AG30: =Jacksonville!AP106 -> 600 | AH30: 0.995 | AI30: =Jacksonville!AR75 -> 297 | AJ30: =Jacksonville!AS75 -> 293 | AK30: 0.9865 | AL30: =Jacksonville!AU106 -> 644 | AM30: =Jacksonville!AV106 -> 641 | AN30: 0.995 | AO30: =Jacksonville!BB106 -> 8 | AP30: =Jacksonville!AZ106 -> 51 | AQ30: =Jacksonville!BD106 -> 0.6786 | AR30: 0.0657 | AT30: =Jacksonville!BF106 -> 361 | AU30: =Jacksonville!BG106 -> 333 | AV30: 0.9224 | AW30: =Jacksonville!BI106 -> 458 | AX30: =Jacksonville!BJ106 -> 422 | AY30: 0.9214 | AZ30: 0.9219 | BA30: =Jacksonville!BM106 -> 466 | BB30: =Jacksonville!BN106 -> 30 | BC30: 0.0644
B31: BP-OnTrac Reports | G31: Stephen Vanhoose | H31: 3 | I31: =Jacksonville!I137 -> 614 | J31: =Jacksonville!J137 -> 53 | K31: 0.914 | L31: =Jacksonville!U137 -> 344 | M31: =Jacksonville!V137 -> 343 | N31: 0.9971 | O31: =Jacksonville!X137 -> 2 | P31: 0.9942 | Q31: =Jacksonville!AC137 -> 605 | R31: =Jacksonville!AD137 -> 60 | S31: 0.9098 | T31: =Jacksonville!AF137 -> 705 | U31: =Jacksonville!AG137 -> 78 | V31: 0.111 | W31: =Jacksonville!AI137 -> 36 | X31: =Jacksonville!AJ137 -> 1 | Y31: 0.972 | Z31: =Jacksonville!AL137 -> 16 | AA31: =Jacksonville!AM137 -> 15 | AB31: 0.9375 | AC31: =Jacksonville!Z137 -> 141 | AD31: =Jacksonville!AA137 -> 130 | AE31: 0.922 | AF31: =Jacksonville!AO137 -> 344 | AG31: =Jacksonville!AP137 -> 344 | AH31: 1 | AI31: =Jacksonville!AR137 -> 78 | AJ31: =Jacksonville!AS137 -> 78 | AK31: 1 | AL31: =Jacksonville!AU137 -> 365 | AM31: =Jacksonville!AV137 -> 364 | AN31: 0.997 | AO31: =Jacksonville!BB137 -> 10 | AP31: =Jacksonville!AZ137 -> 41 | AQ31: =Jacksonville!BD137 -> 0.6429 | AR31: 0.0668 | AT31: =Jacksonville!BF137 -> 239 | AU31: =Jacksonville!BG137 -> 213 | AV31: 0.8912 | AW31: =Jacksonville!BI137 -> 468 | AX31: =Jacksonville!BJ137 -> 412 | AY31: 0.8803 | AZ31: 0.884 | BA31: =Jacksonville!BM137 -> 479 | BB31: =Jacksonville!BN137 -> 47 | BC31: 0.0981
G32: Damiany Guiterrez | H32: 7 | I32: =Jacksonville!I168 -> 1031 | J32: =Jacksonville!J168 -> 78 | K32: =IFERROR(1-(J32/I32),"") -> 0.924 | L32: =Jacksonville!U168 -> 657 | M32: =Jacksonville!V168 -> 651 | N32: =IFERROR(SUM(M32/L32),"") -> 0.9909 | O32: =Jacksonville!X168 -> 3 | P32: =IFERROR(SUM(1-O32/M32),"") -> 0.9954 | Q32: =Jacksonville!AC168 -> 1059 | R32: =Jacksonville!AD168 -> 26 | S32: =IFERROR(SUM(Q32/(Q32+R32)),"") -> 0.976 | T32: =Jacksonville!AF168 -> 1125 | U32: =Jacksonville!AG168 -> 124 | V32: =IFERROR(SUM(U32/T32),"") -> 0.11 | W32: =Jacksonville!AI168 -> 16 | X32: =Jacksonville!AJ168 -> 0 | Y32: 1 | Z32: =Jacksonville!AL168 -> 11 | AA32: =Jacksonville!AM168 -> 11 | AB32: =IFERROR(AA32/Z32,"") -> 1 | AC32: =Jacksonville!Z168 -> 170 | AD32: =Jacksonville!AA168 -> 158 | AE32: 0.9294 | AF32: =Jacksonville!AO168 -> 636 | AG32: =Jacksonville!AP168 -> 630 | AH32: =IFERROR(SUM(AG32/AF32),"") -> 0.9906 | AI32: =Jacksonville!AR168 -> 147 | AJ32: =Jacksonville!AS168 -> 144 | AK32: =IFERROR(SUM(AJ32/AI32),"") -> 0.9796 | AL32: =Jacksonville!AU168 -> 690 | AM32: =Jacksonville!AV168 -> 679 | AN32: =IFERROR(SUM(AM32/AL32),"") -> 0.984 | AO32: =Jacksonville!BB168 -> 26 | AP32: =Jacksonville!AZ168 -> 26 | AQ32: =Jacksonville!BD168 -> 0.5 | AR32: 0.0252 | AT32: =Jacksonville!BF168 -> 583 | AU32: =Jacksonville!BG168 -> 532 | AV32: 0.9125 | AW32: =Jacksonville!BI168 -> 531 | AX32: =Jacksonville!BJ168 -> 485 | AY32: 0.9134 | AZ32: 0.9129 | BA32: =Jacksonville!BM168 -> 541 | BB32: =Jacksonville!BN168 -> 33 | BC32: 0.061
G33: Arcadie Adam | H33: 10 | I33: =Jacksonville!I212 -> 3202 | J33: =Jacksonville!J212 -> 251 | K33: 0.922 | L33: =Jacksonville!U212 -> 2084 | M33: =Jacksonville!V212 -> 2075 | N33: 0.9957 | O33: =Jacksonville!X212 -> 18 | P33: 0.9913 | Q33: =Jacksonville!AC212 -> 3216 | R33: =Jacksonville!AD212 -> 70 | S33: 0.9787 | T33: =Jacksonville!AF212 -> 3370 | U33: =Jacksonville!AG212 -> 291 | V33: 0.086 | W33: =Jacksonville!AI212 -> 103 | X33: =Jacksonville!AJ212 -> 3 | Y33: 0.971 | Z33: =Jacksonville!AL212 -> 229 | AA33: =Jacksonville!AM212 -> 197 | AB33: 0.8603 | AC33: =Jacksonville!Z212 -> 628 | AD33: =Jacksonville!AA212 -> 603 | AE33: 0.9602 | AF33: =Jacksonville!AO212 -> 2084 | AG33: =Jacksonville!AP212 -> 2079 | AH33: 0.9976 | AI33: =Jacksonville!AR212 -> 467 | AJ33: =Jacksonville!AS212 -> 455 | AK33: 0.9743 | AL33: =Jacksonville!AU212 -> 2187 | AM33: =Jacksonville!AV212 -> 2172 | AN33: 0.993 | AO33: =Jacksonville!BB212 -> 43 | AP33: =Jacksonville!AZ212 -> 125 | AQ33: =Jacksonville!BD212 -> 0.6034 | AR33: 0.039 | AT33: =Jacksonville!BF212 -> 1536 | AU33: =Jacksonville!BG212 -> 1407 | AV33: 0.916 | AW33: =Jacksonville!BI212 -> 1785 | AX33: =Jacksonville!BJ212 -> 1633 | AY33: 0.9148 | AZ33: 0.9154 | BA33: =Jacksonville!BM212 -> 1803 | BB33: =Jacksonville!BN212 -> 133 | BC33: 0.0738
G34: Ulises Aguilera | H34: 6.5 | I34: =Jacksonville!I75 -> 1871 | J34: =Jacksonville!J75 -> 162 | K34: =IFERROR(1-(J34/I34),"") -> 0.913 | L34: =Jacksonville!U75 -> 1230 | M34: =Jacksonville!V75 -> 1218 | N34: =IFERROR(SUM(M34/L34),"") -> 0.9902 | O34: =Jacksonville!X75 -> 12 | P34: =IFERROR(SUM(1-O34/M34),"") -> 0.9901 | Q34: =Jacksonville!AC75 -> 1888 | R34: =Jacksonville!AD75 -> 62 | S34: =IFERROR(SUM(Q34/(Q34+R34)),"") -> 0.9682 | T34: =Jacksonville!AF75 -> 2010 | U34: =Jacksonville!AG75 -> 220 | V34: =IFERROR(SUM(U34/T34),"") -> 0.109 | W34: =Jacksonville!AI75 -> 53 | X34: =Jacksonville!AJ75 -> 2 | Y34: 0.962 | Z34: =Jacksonville!AL75 -> 256 | AA34: =Jacksonville!AM75 -> 253 | AB34: =IFERROR(AA34/Z34,"") -> 0.9883 | AC34: =Jacksonville!Z75 -> 327 | AD34: =Jacksonville!AA75 -> 304 | AE34: 0.9297 | AF34: =Jacksonville!AO75 -> 1230 | AG34: =Jacksonville!AP75 -> 1227 | AH34: =IFERROR(SUM(AG34/AF34),"") -> 0.9976 | AI34: ='Florida Panhandle'!AR35 -> 20 | AJ34: ='Florida Panhandle'!AS35 -> 20 | AK34: =IFERROR(SUM(AJ34/AI34),"") -> 1 | AL34: =Jacksonville!AU75 -> 1293 | AM34: =Jacksonville!AV75 -> 1276 | AN34: =IFERROR(SUM(AM34/AL34),"") -> 0.987 | AO34: =Jacksonville!BB75 -> 34 | AP34: =Jacksonville!AZ75 -> 92 | AQ34: =Jacksonville!BD75 -> 0.6667 | AR34: 0.0492 | AT34: =Jacksonville!BF75 -> 1020 | AU34: =Jacksonville!BG75 -> 934 | AV34: 0.9157 | AW34: =Jacksonville!BI75 -> 998 | AX34: =Jacksonville!BJ75 -> 894 | AY34: =IFERROR(SUM(AX34/AW34),"") -> 0.8958 | AZ34: =IFERROR(SUM(AU34,AX34)/SUM(AT34,AW34),"") -> 0.9058 | BA34: =Jacksonville!BM75 -> 1024 | BB34: =Jacksonville!BN75 -> 86 | BC34: 0.084
F35: Florida Panhandle | G35: Nick Karcher | H35: 6.5 | I35: ='Florida Panhandle'!I35 -> 243 | J35: ='Florida Panhandle'!J35 -> 19 | K35: 0.922 | L35: ='Florida Panhandle'!U35 -> 181 | M35: ='Florida Panhandle'!V35 -> 181 | N35: 1 | O35: ='Florida Panhandle'!X35 -> 3 | P35: 0.9834 | Q35: ='Florida Panhandle'!AC35 -> 229 | R35: ='Florida Panhandle'!AD35 -> 18 | S35: 0.9271 | T35: ='Florida Panhandle'!AF35 -> 266 | U35: ='Florida Panhandle'!AG35 -> 27 | V35: 0.102 | W35: ='Florida Panhandle'!AI35 -> 7 | X35: ='Florida Panhandle'!AJ35 -> 0 | Y35: 1 | Z35: ='Florida Panhandle'!AL35 -> 0 | AA35: ='Florida Panhandle'!AM35 -> 0 | AB35: =IFERROR(AA35/Z35,"") ->  | AC35: ='Florida Panhandle'!Z35 -> 60 | AD35: ='Florida Panhandle'!AA35 -> 55 | AE35: 0.9167 | AF35: ='Florida Panhandle'!AO35 -> 181 | AG35: ='Florida Panhandle'!AP35 -> 180 | AH35: 0.9945 | AI35: ='Florida Panhandle'!AR69 -> 33 | AJ35: ='Florida Panhandle'!AS69 -> 32 | AK35: 0.9697 | AL35: ='Florida Panhandle'!AU35 -> 202 | AM35: ='Florida Panhandle'!AV35 -> 201 | AN35: 0.995 | AO35: ='Florida Panhandle'!BB35 -> 4 | AP35: ='Florida Panhandle'!AZ35 -> 14 | AQ35: ='Florida Panhandle'!BD35 -> 1 | AR35: 0.0576 | AT35: ='Florida Panhandle'!BF35 -> 145 | AU35: ='Florida Panhandle'!BG35 -> 127 | AV35: 0.8759 | AW35: ='Florida Panhandle'!BI35 -> 109 | AX35: ='Florida Panhandle'!BJ35 -> 104 | AY35: =IFERROR(SUM(AX35/AW35),"") -> 0.9541 | AZ35: =IFERROR(SUM(AU35,AX35)/SUM(AT35,AW35),"") -> 0.9094 | BA35: ='Florida Panhandle'!BM35 -> 109 | BB35: ='Florida Panhandle'!BN35 -> 5 | BC35: 0.0459
G36: Roger Jones | H36: 3 | I36: ='Florida Panhandle'!I69 -> 185 | J36: ='Florida Panhandle'!J69 -> 18 | K36: 0.903 | L36: ='Florida Panhandle'!U69 -> 146 | M36: ='Florida Panhandle'!V69 -> 145 | N36: 0.9932 | O36: ='Florida Panhandle'!X69 -> 1 | P36: 0.9931 | Q36: ='Florida Panhandle'!AC69 -> 155 | R36: ='Florida Panhandle'!AD69 -> 39 | S36: 0.799 | T36: ='Florida Panhandle'!AF69 -> 209 | U36: ='Florida Panhandle'!AG69 -> 19 | V36: 0.091 | W36: ='Florida Panhandle'!AI69 -> 6 | X36: ='Florida Panhandle'!AJ69 -> 1 | Y36: 0.833 | Z36: ='Florida Panhandle'!AL69 -> 0 | AA36: ='Florida Panhandle'!AM69 -> 0 | AB36: =IFERROR(AA36/Z36,"") ->  | AC36: ='Florida Panhandle'!Z69 -> 47 | AD36: ='Florida Panhandle'!AA69 -> 42 | AE36: 0.8936 | AF36: ='Florida Panhandle'!AO69 -> 146 | AG36: ='Florida Panhandle'!AP69 -> 146 | AH36: 1 | AI36: ='Florida Panhandle'!AR69 -> 33 | AJ36: ='Florida Panhandle'!AS69 -> 32 | AK36: 0.9697 | AL36: ='Florida Panhandle'!AU69 -> 149 | AM36: ='Florida Panhandle'!AV69 -> 148 | AN36: 0.993 | AO36: ='Florida Panhandle'!BB69 -> 6 | AP36: ='Florida Panhandle'!AZ69 -> 16 | AQ36: ='Florida Panhandle'!BD69 -> 1.3333 | AR36: 0.0865 | AT36: ='Florida Panhandle'!BF69 -> 85 | AU36: ='Florida Panhandle'!BG69 -> 74 | AV36: 0.8706 | AW36: ='Florida Panhandle'!BI69 -> 113 | AX36: ='Florida Panhandle'!BJ69 -> 103 | AY36: =IFERROR(SUM(AX36/AW36),"") -> 0.9115 | AZ36: =IFERROR(SUM(AU36,AX36)/SUM(AT36,AW36),"") -> 0.8939 | BA36: ='Florida Panhandle'!BM69 -> 115 | BB36: ='Florida Panhandle'!BN69 -> 8 | BC36: 0.0696
G37: Rochard Jean | H37: 10 | I37: ='Florida Panhandle'!I103 -> 887 | J37: ='Florida Panhandle'!J103 -> 60 | K37: 0.932 | L37: ='Florida Panhandle'!U103 -> 589 | M37: ='Florida Panhandle'!V103 -> 585 | N37: 0.9932 | O37: ='Florida Panhandle'!X103 -> 5 | P37: 0.9915 | Q37: ='Florida Panhandle'!AC103 -> 793 | R37: ='Florida Panhandle'!AD103 -> 114 | S37: 0.8743 | T37: ='Florida Panhandle'!AF103 -> 935 | U37: ='Florida Panhandle'!AG103 -> 68 | V37: 0.073 | W37: ='Florida Panhandle'!AI103 -> 13 | X37: ='Florida Panhandle'!AJ103 -> 6 | Y37: 0.538 | Z37: ='Florida Panhandle'!AL103 -> 0 | AA37: ='Florida Panhandle'!AM103 -> 0 | AB37: =IFERROR(AA37/Z37,"") ->  | AC37: ='Florida Panhandle'!Z103 -> 191 | AD37: ='Florida Panhandle'!AA103 -> 180 | AE37: 0.9424 | AF37: ='Florida Panhandle'!AO103 -> 588 | AG37: ='Florida Panhandle'!AP103 -> 587 | AH37: 0.9983 | AI37: ='Florida Panhandle'!AR103 -> 124 | AJ37: ='Florida Panhandle'!AS103 -> 123 | AK37: 0.9919 | AL37: ='Florida Panhandle'!AU103 -> 650 | AM37: ='Florida Panhandle'!AV103 -> 644 | AN37: 0.991 | AO37: ='Florida Panhandle'!BB103 -> 44 | AP37: ='Florida Panhandle'!AZ103 -> 62 | AQ37: ='Florida Panhandle'!BD103 -> 1 | AR37: 0.0699 | AT37: ='Florida Panhandle'!BF103 -> 438 | AU37: ='Florida Panhandle'!BG103 -> 404 | AV37: 0.9224 | AW37: ='Florida Panhandle'!BI103 -> 473 | AX37: ='Florida Panhandle'!BJ103 -> 423 | AY37: =IFERROR(SUM(AX37/AW37),"") -> 0.8943 | AZ37: =IFERROR(SUM(AU37,AX37)/SUM(AT37,AW37),"") -> 0.9078 | BA37: ='Florida Panhandle'!BM103 -> 480 | BB37: ='Florida Panhandle'!BN103 -> 33 | BC37: 0.0688
F38: Lake/Orlando | G38: Rickie Greene | H38: =IF(AN38="","",IFERROR(IF(K38>=92%,3.5,0)+IF(AE38>=92.5%,3.5,0)+IF(AN38>=98.5%,3,0),"")) -> 3.5 | I38: ='Lake-Orlando'!I35 -> 687 | J38: ='Lake-Orlando'!J35 -> 66 | K38: =IFERROR(1-(J38/I38),"") -> 0.904 | L38: ='Lake-Orlando'!U35 -> 524 | M38: ='Lake-Orlando'!V35 -> 515 | N38: =IFERROR(SUM(M38/L38),"") -> 0.9828 | O38: ='Lake-Orlando'!X35 -> 5 | P38: =IFERROR(SUM(1-O38/M38),"") -> 0.9903 | Q38: ='Lake-Orlando'!AC35 -> 681 | R38: ='Lake-Orlando'!AD35 -> 23 | S38: =IFERROR(SUM(Q38/(Q38+R38)),"") -> 0.9673 | T38: ='Lake-Orlando'!AF35 -> 737 | U38: ='Lake-Orlando'!AG35 -> 87 | V38: =IFERROR(SUM(U38/T38),"") -> 0.118 | W38: ='Lake-Orlando'!AI35 -> 20 | X38: ='Lake-Orlando'!AJ35 -> 4 | Y38: =IFERROR(1-(SUM(X38/W38)),"") -> 0.8 | Z38: ='Lake-Orlando'!AL35 -> 0 | AA38: ='Lake-Orlando'!AM35 -> 0 | AB38: =IFERROR(AA38/Z38,"") ->  | AC38: ='Lake-Orlando'!Z35 -> 149 | AD38: ='Lake-Orlando'!AA35 -> 138 | AE38: =IFERROR(SUM(AD38/AC38),"") -> 0.9262 | AF38: ='Lake-Orlando'!AO35 -> 518 | AG38: ='Lake-Orlando'!AP35 -> 514 | AH38: =IFERROR(SUM(AG38/AF38),"") -> 0.9923 | AI38: ='Lake-Orlando'!AR35 -> 165 | AJ38: ='Lake-Orlando'!AS35 -> 164 | AK38: =IFERROR(SUM(AJ38/AI38),"") -> 0.9939 | AL38: ='Lake-Orlando'!AU35 -> 554 | AM38: ='Lake-Orlando'!AV35 -> 542 | AN38: =IFERROR(SUM(AM38/AL38),"") -> 0.978 | AO38: ='Lake-Orlando'!BB35 -> 8 | AP38: ='Lake-Orlando'!AZ35 -> 22 | AQ38: ='Lake-Orlando'!BD35 -> 0.7857 | AR38: =IFERROR(AP38/(I38),"") -> 0.032 | AT38: ='Lake-Orlando'!BF35 -> 404 | AU38: ='Lake-Orlando'!BG35 -> 369 | AV38: =IFERROR(SUM(AU38/AT38),"") -> 0.9134 | AW38: ='Lake-Orlando'!BI35 -> 44 | AX38: ='Lake-Orlando'!BJ35 -> 42 | AY38: =IFERROR(SUM(AX38/AW38),"") -> 0.9545 | AZ38: =IFERROR(SUM(AU38,AX38)/SUM(AT38,AW38),"") -> 0.9174 | BA38: ='Lake-Orlando'!BM35 -> 316 | BB38: ='Lake-Orlando'!BN35 -> 11 | BC38: =BB38/BA38 -> 0.0348
G39: Aleksandr Nikitin | H39: =IF(AN39="","",IFERROR(IF(K39>=92%,3.5,0)+IF(AE39>=92.5%,3.5,0)+IF(AN39>=98.5%,3,0),"")) -> 3.5 | I39: ='Lake-Orlando'!I103 -> 534 | J39: ='Lake-Orlando'!J103 -> 29 | K39: =IFERROR(1-(J39/I39),"") -> 0.946 | L39: ='Lake-Orlando'!U103 -> 390 | M39: ='Lake-Orlando'!V103 -> 380 | N39: =IFERROR(SUM(M39/L39),"") -> 0.9744 | O39: ='Lake-Orlando'!X103 -> 0 | P39: =IFERROR(SUM(1-O39/M39),"") -> 1 | Q39: ='Lake-Orlando'!AC103 -> 524 | R39: ='Lake-Orlando'!AD103 -> 17 | S39: =IFERROR(SUM(Q39/(Q39+R39)),"") -> 0.9686 | T39: ='Lake-Orlando'!AF103 -> 558 | U39: ='Lake-Orlando'!AG103 -> 53 | V39: =IFERROR(SUM(U39/T39),"") -> 0.095 | W39: ='Lake-Orlando'!AI103 -> 26 | X39: ='Lake-Orlando'!AJ103 -> 3 | Y39: =IFERROR(1-(SUM(X39/W39)),"") -> 0.885 | Z39: ='Lake-Orlando'!AL103 -> 0 | AA39: ='Lake-Orlando'!AM103 -> 0 | AC39: ='Lake-Orlando'!Z103 -> 106 | AD39: ='Lake-Orlando'!AA103 -> 98 | AE39: =IFERROR(SUM(AD39/AC39),"") -> 0.9245 | AF39: ='Lake-Orlando'!AO103 -> 390 | AG39: ='Lake-Orlando'!AP103 -> 389 | AH39: =IFERROR(SUM(AG39/AF39),"") -> 0.9974 | AI39: ='Lake-Orlando'!AR103 -> 126 | AJ39: ='Lake-Orlando'!AS103 -> 126 | AK39: =IFERROR(SUM(AJ39/AI39),"") -> 1 | AL39: ='Lake-Orlando'!AU103 -> 417 | AM39: ='Lake-Orlando'!AV103 -> 406 | AN39: =IFERROR(SUM(AM39/AL39),"") -> 0.974 | AO39: ='Lake-Orlando'!BB103 -> 10 | AP39: ='Lake-Orlando'!AZ103 -> 20 | AQ39: ='Lake-Orlando'!BD103 -> 1 | AR39: =IFERROR(AP39/(I39),"") -> 0.0375 | AV39: ='Lake-Orlando'!BH103 -> 0.8836 | AW39: ='Lake-Orlando'!BI103 -> 237 | AX39: ='Lake-Orlando'!BJ103 -> 224 | AY39: ='Lake-Orlando'!BK103 -> 0.9451 | AZ39: ='Lake-Orlando'!BL103 -> 0.9099 | BA39: ='Lake-Orlando'!BM103 -> 238 | BB39: ='Lake-Orlando'!BN103 -> 10 | BC39: =BB39/BA39 -> 0.042
G40: Jesse Buckler | H40: =IF(AN40="","",IFERROR(IF(K40>=92%,3.5,0)+IF(AE40>=92.5%,3.5,0)+IF(AN40>=98.5%,3,0),"")) -> 0 | I40: ='Lake-Orlando'!I69 -> 825 | J40: ='Lake-Orlando'!J69 -> 81 | K40: =IFERROR(1-(J40/I40),"") -> 0.902 | L40: ='Lake-Orlando'!U69 -> 648 | M40: ='Lake-Orlando'!V69 -> 641 | N40: =IFERROR(SUM(M40/L40),"") -> 0.9892 | O40: ='Lake-Orlando'!X69 -> 10 | P40: =IFERROR(SUM(1-O40/M40),"") -> 0.9844 | Q40: ='Lake-Orlando'!AC69 -> 835 | R40: ='Lake-Orlando'!AD69 -> 11 | S40: =IFERROR(SUM(Q40/(Q40+R40)),"") -> 0.987 | T40: ='Lake-Orlando'!AF69 -> 891 | U40: ='Lake-Orlando'!AG69 -> 96 | V40: =IFERROR(SUM(U40/T40),"") -> 0.108 | W40: ='Lake-Orlando'!AI69 -> 14 | X40: ='Lake-Orlando'!AJ69 -> 3 | Y40: =IFERROR(1-(SUM(X40/W40)),"") -> 0.786 | Z40: ='Lake-Orlando'!AL69 -> 0 | AA40: ='Lake-Orlando'!AM69 -> 0 | AB40: =IFERROR(AA40/Z40,"") ->  | AC40: ='Lake-Orlando'!Z69 -> 204 | AD40: ='Lake-Orlando'!AA69 -> 188 | AE40: =IFERROR(SUM(AD40/AC40),"") -> 0.9216 | AF40: ='Lake-Orlando'!AO69 -> 648 | AG40: ='Lake-Orlando'!AP69 -> 643 | AH40: =IFERROR(SUM(AG40/AF40),"") -> 0.9923 | AI40: ='Lake-Orlando'!AR69 -> 147 | AJ40: ='Lake-Orlando'!AS69 -> 146 | AK40: =IFERROR(SUM(AJ40/AI40),"") -> 0.9932 | AL40: ='Lake-Orlando'!AU69 -> 677 | AM40: ='Lake-Orlando'!AV69 -> 664 | AN40: =IFERROR(SUM(AM40/AL40),"") -> 0.981 | AO40: ='Lake-Orlando'!BB69 -> 16 | AP40: ='Lake-Orlando'!AZ69 -> 32 | AQ40: ='Lake-Orlando'!BD69 -> 1 | AR40: =IFERROR(AP40/(I40),"") -> 0.0388 | AT40: ='Lake-Orlando'!BF69 -> 487 | AU40: ='Lake-Orlando'!BG69 -> 428 | AV40: =IFERROR(SUM(AU40/AT40),"") -> 0.8789 | AW40: ='Lake-Orlando'!BI69 -> 395 | AX40: ='Lake-Orlando'!BJ69 -> 368 | AY40: =IFERROR(SUM(AX40/AW40),"") -> 0.9316 | AZ40: =IFERROR(SUM(AU40,AX40)/SUM(AT40,AW40),"") -> 0.9025 | BA40: ='Lake-Orlando'!BM69 -> 400 | BB40: ='Lake-Orlando'!BN69 -> 23 | BC40: =BB40/BA40 -> 0.0575
G43: Florida Team
G44: Supervisor | H44: Score | K44: FTR
G45: Shante Miller | H45: =IFERROR(VLOOKUP(G45,$G$19:$H$40,2,FALSE),"") -> 10 | K45: =IFERROR(VLOOKUP(G45,$G$19:$S$40,5,FALSE),"") -> 0.939
G46: Winston Issacs | H46: =IFERROR(VLOOKUP(G46,$G$19:$H$40,2,FALSE),"") -> 10 | K46: =IFERROR(VLOOKUP(G46,$G$19:$S$40,5,FALSE),"") -> 0.938
G47: Mikalai Mikhitarau | H47: =IFERROR(VLOOKUP(G47,$G$19:$H$40,2,FALSE),"") -> 10 | K47: =IFERROR(VLOOKUP(G47,$G$19:$S$40,5,FALSE),"") -> 0.935
G48: Rochard Jean | H48: =IFERROR(VLOOKUP(G48,$G$19:$H$40,2,FALSE),"") -> 10 | K48: =IFERROR(VLOOKUP(G48,$G$19:$S$40,5,FALSE),"") -> 0.932
G49: Ivan Myhovych | H49: =IFERROR(VLOOKUP(G49,$G$19:$H$40,2,FALSE),"") -> 10 | K49: =IFERROR(VLOOKUP(G49,$G$19:$S$40,5,FALSE),"") -> 0.926
G50: Arcadie Adam | H50: =IFERROR(VLOOKUP(G50,$G$19:$H$40,2,FALSE),"") -> 10 | K50: =IFERROR(VLOOKUP(G50,$G$19:$S$40,5,FALSE),"") -> 0.922
G51: Damiany Guiterrez | H51: =IFERROR(VLOOKUP(G51,$G$19:$H$40,2,FALSE),"") -> 7 | K51: =IFERROR(VLOOKUP(G51,$G$19:$S$40,5,FALSE),"") -> 0.924
G52: Nick Karcher | H52: =IFERROR(VLOOKUP(G52,$G$19:$H$40,2,FALSE),"") -> 6.5 | K52: =IFERROR(VLOOKUP(G52,$G$19:$S$40,5,FALSE),"") -> 0.922
G53: Lucius Deisan | H53: =IFERROR(VLOOKUP(G53,$G$19:$H$40,2,FALSE),"") -> 6.5 | K53: =IFERROR(VLOOKUP(G53,$G$19:$S$40,5,FALSE),"") -> 0.921
G54: Arthur Call | H54: =IFERROR(VLOOKUP(G54,$G$19:$H$40,2,FALSE),"") -> 6.5 | K54: =IFERROR(VLOOKUP(G54,$G$19:$S$40,5,FALSE),"") -> 0.92
G55: Ulises Aguilera | H55: =IFERROR(VLOOKUP(G55,$G$19:$H$40,2,FALSE),"") -> 6.5 | K55: =IFERROR(VLOOKUP(G55,$G$19:$S$40,5,FALSE),"") -> 0.913
G56: Alexander Fontes | H56: =IFERROR(VLOOKUP(G56,$G$19:$H$40,2,FALSE),"") -> 6.5 | K56: =IFERROR(VLOOKUP(G56,$G$19:$S$40,5,FALSE),"") -> 0.909
G57: Lucius Deisan WPB | H57: =IFERROR(VLOOKUP(G57,$G$19:$H$40,2,FALSE),"") -> 6.5 | K57: =IFERROR(VLOOKUP(G57,$G$19:$S$40,5,FALSE),"") -> 0.904
G58: Aleksandr Nikitin | H58: =IFERROR(VLOOKUP(G58,$G$19:$H$40,2,FALSE),"") -> 3.5 | K58: =IFERROR(VLOOKUP(G58,$G$19:$S$40,5,FALSE),"") -> 0.946
G59: Rickie Greene | H59: =IFERROR(VLOOKUP(G59,$G$19:$H$40,2,FALSE),"") -> 3.5 | K59: =IFERROR(VLOOKUP(G59,$G$19:$S$40,5,FALSE),"") -> 0.904
G60: Yariel Gomez | H60: =IFERROR(VLOOKUP(G60,$G$19:$H$40,2,FALSE),"") -> 3.5 | K60: =IFERROR(VLOOKUP(G60,$G$19:$S$40,5,FALSE),"") -> 0.896
G61: Stephen Vanhoose | H61: =IFERROR(VLOOKUP(G61,$G$19:$H$40,2,FALSE),"") -> 3 | K61: =IFERROR(VLOOKUP(G61,$G$19:$S$40,5,FALSE),"") -> 0.914
G62: Enrique Gabino | H62: =IFERROR(VLOOKUP(G62,$G$19:$H$40,2,FALSE),"") -> 3 | K62: =IFERROR(VLOOKUP(G62,$G$19:$S$40,5,FALSE),"") -> 0.91
G63: Roger Jones | H63: =IFERROR(VLOOKUP(G63,$G$19:$H$40,2,FALSE),"") -> 3 | K63: =IFERROR(VLOOKUP(G63,$G$19:$S$40,5,FALSE),"") -> 0.903
G64: Alexandr Sviridov | H64: =IFERROR(VLOOKUP(G64,$G$19:$H$40,2,FALSE),"") -> 3 | K64: =IFERROR(VLOOKUP(G64,$G$19:$S$40,5,FALSE),"") -> 0.876
G65: Ben Skyles | H65: =IFERROR(VLOOKUP(G65,$G$19:$H$40,2,FALSE),"") -> 0 | K65: =IFERROR(VLOOKUP(G65,$G$19:$S$40,5,FALSE),"") -> 0.903
G66: Jesse Buckler | H66: =IFERROR(VLOOKUP(G66,$G$19:$H$40,2,FALSE),"") -> 0 | K66: =IFERROR(VLOOKUP(G66,$G$19:$S$40,5,FALSE),"") -> 0.902

Sheet West Palm Beach
A1: 45373
F3: Enrique Gabino | BV3: Enrique Gabino
F5: ='Florida Manager Performance'!$G$3 -> Start Date:3/22/2024, End Date: 4/21/2024 | CI5: From | CL5: =$BR$17 -> 2024-03-22 | CO5: To | CR5: =$BS$17 -> 2024-03-29
F6: Tech Name | G6: Tech ID | H6: Score | I6: Total Jobs | J6: Jobs FTR | K6: FTR | L6: Total Jobs | M6: Total Installs | N6: Total SOI | O6: SOI | P6: Total TC's | Q6: Total Repeats | R6: Repeats | S6: Total Rework | T6: Rework | U6: Jobs | V6: Pass | W6: PHT | X6: Pure Pass Fails | Y6: PHT Pure Pass | Z6: Tot Surv | AA6: Tot Fail | AB6: tNPS | AC6: Calls Met | AD6: Calls Missed | AE6: OTA | AF6: Total Jobs | AG6: Callback | AH6: Contact w/in 48hrs | AI6: Total Jobs | AJ6: Total Invalid | AK6: % Valid RTM | AL6: Jobs | AM6: Pictures Uploaded | AN6: ML Bonding Compliance | AO6: Total Jobs | AP6: Total Comp | AQ6: Ingress Test Ran | AR6: Number of Drops | AS6: One Drop Usage | AT6: One Drop | AU6: Tool Usage Jobs | AV6: Tool Usage | AW6: Tool Usage Rate | AX6: Average Time in Home - Installs | AY6: Average Time in Home - TC's | AZ6: QC Audits Completed | BA6: Average Score | BB6: QB Audits Completed | BC6: Average Score | BD6: >=2 QA/QB Compliance | BF6: Total Installs | BG6: Completed | BH6: Install Completion % | BI6: Total TC's | BJ6: Completed | BK6: TC Completion % | BL6: Total Completion % | BM6: TC's | BN6: TC Cancels | BO6: Cancel Rate | BV6: Tech Name | BW6: Tech ID | BX6: Score | BY6: Total Jobs | BZ6: Jobs FTR | CA6: FTR | CB6: Jobs | CC6: Pass | CD6: PHT | CE6: Pure Pass Fails | CF6: PHT Pure Pass | CG6: Tot Surv | CH6: Tot Fail | CI6: tNPS | CJ6: Calls Met | CK6: Calls Missed | CL6: OTA | CM6: Total Jobs | CN6: Callback | CO6: Contact w/in 48hrs | CP6: Total Jobs | CQ6: Total Invalid | CR6: % Valid RTM | CS6: Total Jobs | CT6: Total Comp | CU6: Ingress Test Ran | CV6: Number of Drops | CW6: One Drop Usage | CX6: One Drop | CY6: Tool Usage Jobs | CZ6: Tool Usage | DA6: Tool Usage Rate | DB6: Total Installs | DC6: Completed | DD6: Install Completion % | DE6: Total TC's | DF6: Completed | DG6: TC Completion % | DH6: Total Completion %
F8: Enrique Gabino (Off Wed) | G8: 7564 | H8: =IF(AW8="","",IFERROR(IF(K8>=92%,3.5,0)+IF(AB8>=92.5%,3.5,0)+IF(AW8>=98.5%,3,0),"")) ->  | I8: =IF(G8="","",SUMIFS('NSR WO Details'!$AG:$AG,'NSR WO Details'!$N:$N,G8,'NSR WO Details'!$F:$F,"FLORIDA")) -> 0 | J8: =IF(G8="","",COUNTIFS('FTR Detail'!$P:$P,G8,'FTR Detail'!$H:$H,"=FLORIDA")) -> 0 | K8: =IFERROR(1-(J8/I8),"") ->  | L8: =IF(G8="","",SUMIF('Florida Rework'!$E:$E,$G8,'Florida Rework'!$H:$H)) -> 0 | M8: =IF(G8="","",SUMIF('Florida Rework'!$E:$E,$G8,'Florida Rework'!$I:$I)) -> 0 | N8: =IF(G8="","",SUMIF('Florida Rework'!$E:$E,$G8,'Florida Rework'!$M:$M)) -> 0 | O8: =IFERROR(SUM(N8/M8),"") ->  | P8: =IF(G8="","",SUMIF('Florida Rework'!$E:$E,$G8,'Florida Rework'!$J:$J)) -> 0 | Q8: =IF(G8="","",SUMIF('Florida Rework'!$E:$E,$G8,'Florida Rework'!$O:$O)) -> 0 | R8: =IFERROR(SUM(Q8/P8),"") ->  | S8: =IFERROR(SUM(N8+Q8),"") -> 0 | T8: =IFERROR(SUM(S8/L8),"") ->  | U8: =IF(G8="","",SUMIFS('Tool Usage Details'!$Q:$Q,'Tool Usage Details'!$I:$I,G8,'Tool Usage Details'!$G:$G,"FLORIDA REGION")) -> 0 | V8: =IF(G8="","",COUNTIFS('Tool Usage Details'!$I:$I,G8,'Tool Usage Details'!$S:$S,"PASS",'Tool Usage Details'!$G:$G,"FLORIDA REGION")) -> 0 | W8: =IFERROR(SUM(V8/U8),"") ->  | X8: =IF(G8="","",COUNTIFS('Tool Usage Details'!$I:$I,G8,'Tool Usage Details'!$R:$R,"PWW",'Tool Usage Details'!G:G,"FLORIDA REGION")+COUNTIFS('Tool Usage Details'!$I:$I,G8,'Tool Usage Details'!$R:$R,"PWO",'Tool Usage Details'!$G:$G,"FLORIDA REGION")) -> 0 | Y8: =IFERROR(1-(X8/V8),"") ->  | Z8: =IF(G8="","",SUMIFS('NSR WO Details'!$Z:$Z,'NSR WO Details'!$N:$N,G8,'NSR WO Details'!$F:$F,"FLORIDA")) -> 0 | AA8: =IF(G8="","",SUMIFS('NSR WO Details'!$AA:$AA,'NSR WO Details'!$N:$N,G8,'NSR WO Details'!$F:$F,"FLORIDA")) -> 0 | AB8: =IF(G8="","",IFERROR((AA8/Z8),"")) ->  | AC8: =IF(G8="","",COUNTIFS('NSR WO Details'!$N:$N,G8,'NSR WO Details'!$W:$W,"Met",'NSR WO Details'!$F:$F,"FLORIDA")) -> 0 | AD8: =IF(G8="","",COUNTIFS('NSR WO Details'!$N:$N,G8,'NSR WO Details'!$W:$W,"Missed",'NSR WO Details'!$F:$F,"FLORIDA")) -> 0 | AE8: =IFERROR(SUM(AC8/(AC8+AD8)),"") ->  | AF8: =IF(G8="","",COUNTIFS('NSR WO Details'!$N:$N,G8,'NSR WO Details'!$F:$F,"FLORIDA")) -> 0 | AG8: =IF(G8="","",SUMIFS('NSR WO Details'!$AE:$AE,'NSR WO Details'!$N:$N,G8,'NSR WO Details'!$F:$F,"FLORIDA")) -> 0 | AH8: =IFERROR(SUM(AG8/AF8),"") ->  | AI8: =IF(G8="","",SUMIFS('RTM Results'!$DI:$DI,'RTM Results'!$BF:$BF,G8,'RTM Results'!$P:$P,"Florida")) -> 0 | AJ8: =IF(G8="","",SUMIFS('RTM Results'!$DE:$DE,'RTM Results'!$BF:$BF,G8,'RTM Results'!$P:$P,"Florida")) -> 0 | AK8: =IFERROR(1-(SUM(AJ8/AI8)),"") ->  | AL8: =SUMIFS('ML Bonding Compliance'!$AR:$AR,'ML Bonding Compliance'!$R:$R,$G8,'ML Bonding Compliance'!$F:$F,"FLORIDA") -> 0 | AM8: =SUMIFS('ML Bonding Compliance'!$AU:$AU,'ML Bonding Compliance'!$R:$R,$G8,'ML Bonding Compliance'!$F:$F,"FLORIDA") -> 0 | AN8: =IFERROR(SUM(AM8/AL8),"") ->  | AO8: =IF(G8="","",SUMIFS('Tool Usage Details'!$T:$T,'Tool Usage Details'!$I:$I,G8,'Tool Usage Details'!$G:$G,"FLORIDA REGION")) -> 0 | AP8: =IF(G8="","",COUNTIFS('Tool Usage Details'!$I:$I,G8,'Tool Usage Details'!$U:$U,"PASS",'Tool Usage Details'!$G:$G,"FLORIDA REGION")) -> 0 | AQ8: =IFERROR(SUM(AP8/AO8),"") ->  | AR8: =IF(G8="","",SUMIFS('One Drop'!$BV:$BV,'One Drop'!$P:$P,G8,'One Drop'!$L:$L,"FLORIDA REGION")) -> 0 | AS8: =IF(G8="","",SUMIFS('One Drop'!$BQ:$BQ,'One Drop'!$P:$P,G8,'One Drop'!$L:$L,"FLORIDA REGION")) -> 0 | AT8: =IFERROR(SUM(AS8/AR8),"") ->  | AU8: =IF(G8="","",SUMIFS('NSR WO Details'!$AK:$AK,'NSR WO Details'!$N:$N,G8,'NSR WO Details'!$F:$F,"FLORIDA")) -> 0 | AV8: =IF(G8="","",SUMIFS('NSR WO Details'!$AL:$AL,'NSR WO Details'!$N:$N,G8,'NSR WO Details'!$F:$F,"FLORIDA")) -> 0 | AW8: =IFERROR(SUM(AV8/AU8),"") ->  | AX8: =IF(OR($I8=0,$I8=""),"",SUMIFS('Time in Home'!$L:$L,'Time in Home'!$I:$I,$G8,'Time in Home'!$E:$E,"FLORIDA REGION")) ->  | AY8: =IF(OR($I8=0,$I8=""),"",SUMIFS('Time in Home'!$P:$P,'Time in Home'!$I:$I,$G8,'Time in Home'!$E:$E,"FLORIDA REGION")) ->  | AZ8: =SUMIFS('TQI BP Tech Compliance'!$Q:$Q,'TQI BP Tech Compliance'!$N:$N,$G8,'TQI BP Tech Compliance'!$F:$F,"FLORIDA REGION") -> 0 | BA8: =SUMIFS('TQI BP Tech Compliance'!$AI:$AI,'TQI BP Tech Compliance'!$N:$N,$G8,'TQI BP Tech Compliance'!$F:$F,"FLORIDA REGION") -> 0 | BB8: =SUMIFS('TQI BP Tech Compliance'!$Z:$Z,'TQI BP Tech Compliance'!$N:$N,$G8,'TQI BP Tech Compliance'!$F:$F,"FLORIDA REGION") -> 0 | BC8: =IFERROR(SUMIFS('TQI BP Tech Compliance'!$AC:$AC,'TQI BP Tech Compliance'!$N:$N,$G8,'TQI BP Tech Compliance'!$F:$F,"FLORIDA REGION")/BB8,"") ->  | BD8: =IFERROR(SUMIFS('TQI BP Tech Compliance'!$AD:$AD,'TQI BP Tech Compliance'!$N:$N,$G8,'TQI BP Tech Compliance'!$F:$F,"FLORIDA REGION"),"") -> 0 | BE8: Enrique Gabino | BF8: =IF(G8="","",SUMIFS(Completion!$CJ:$CJ,Completion!$G:$G,G8,Completion!$N:$N,"Install",Completion!$E:$E,"Florida")) -> 0 | BG8: =IF(G8="","",SUMIFS(Completion!$CB:$CB,Completion!$G:$G,G8,Completion!$N:$N,"Install",Completion!$E:$E,"Florida")) -> 0 | BH8: =IFERROR(SUM(BG8/BF8),"") ->  | BI8: =IF(G8="","",SUMIFS(Completion!$CJ:$CJ,Completion!$G:$G,G8,Completion!$N:$N,"TC",Completion!$E:$E,"Florida")) -> 0 | BJ8: =IF(G8="","",SUMIFS(Completion!$CB:$CB,Completion!$G:$G,G8,Completion!$N:$N,"TC",Completion!$E:$E,"Florida")) -> 0 | BK8: =IFERROR(SUM(BJ8/BI8),"") ->  | BL8: =IFERROR(SUM(BG8,BJ8)/SUM(BF8,BI8),"") ->  | BM8: =COUNTIFS(Completion!$G:$G,$G8,Completion!$E:$E,"FLORIDA",Completion!$N:$N,"TC") -> 0 | BN8: =COUNTIFS(Completion!$G:$G,$G8,Completion!$E:$E,"FLORIDA",Completion!$N:$N,"TC",Completion!$X:$X,"Customer") -> 0 | BO8: =IFERROR(SUM(BN8/BM8),"") ->  | BV8: Enrique Gabino (Off Wed) | BW8: 7564 | BX8: =IF(DA8="","",IFERROR(IF(CA8>=92%,3.5,0)+IF(CI8>=92.5%,3.5,0)+IF(DA8>=98.5%,3,0),"")) ->  | BY8: =IF(BW8="","",SUMIFS('NSR WO Details'!$AG:$AG,'NSR WO Details'!$N:$N,BW8,'NSR WO Details'!$F:$F,"FLORIDA",'NSR WO Details'!AI:AI,">="&$BR$17,'NSR WO Details'!AI:AI,"<="&$BS$17)) -> 0 | BZ8: =IF(BW8="","",COUNTIFS('FTR Detail'!$P:$P,BW8,'FTR Detail'!$H:$H,"=FLORIDA",'NSR WO Details'!AI:AI,">="&$BR$17,'NSR WO Details'!AI:AI,"<="&$BS$17)) -> 0 | CA8: =IFERROR(1-(BZ8/BY8),"") ->  | CB8: =IF(BW8="","",SUMIFS('Tool Usage Details'!$Q:$Q,'Tool Usage Details'!$I:$I,BW8,'Tool Usage Details'!$G:$G,"FLORIDA REGION",'NSR WO Details'!AI:AI,">="&$BR$17,'NSR WO Details'!AJ:AJ,"<="&$BS$17)) -> 0 | CC8: =IF(BW8="","",COUNTIFS('Tool Usage Details'!$I:$I,BW8,'Tool Usage Details'!$S:$S,"PASS",'Tool Usage Details'!$G:$G,"FLORIDA REGION",'NSR WO Details'!AI:AI,">="&$BR$17,'NSR WO Details'!AI:AI,"<="&$BS$17)) -> 0 | CD8: =IFERROR(SUM(CC8/CB8),"") ->  | CE8: =IF(BW8="","",COUNTIFS('Tool Usage Details'!$I:$I,BW8,'Tool Usage Details'!$R:$R,"PWW",'Tool Usage Details'!$G:$G,"FLORIDA REGION")+COUNTIFS('Tool Usage Details'!$I:$I,BW8,'Tool Usage Details'!$R:$R,"PWO",'Tool Usage Details'!$G:$G,"FLORIDA REGION",'Tool Usage Details'!E:E,">="&$BR$17,'Tool Usage Details'!E:E,"<="&$BS$17)) -> 0 | CF8: =IFERROR(1-(CE8/CC8),"") ->  | CG8: =IF(BW8="","",SUMIFS('NSR WO Details'!$Z:$Z,'NSR WO Details'!$N:$N,BW8,'NSR WO Details'!$F:$F,"FLORIDA",'NSR WO Details'!AI:AI,">="&$BR$17,'NSR WO Details'!AI:AI,"<="&$BS$17)) -> 0 | CH8: =IF(BW8="","",SUMIFS('NSR WO Details'!$AA:$AA,'NSR WO Details'!$N:$N,BW8,'NSR WO Details'!$F:$F,"FLORIDA",'NSR WO Details'!AI:AI,">="&$BR$17,'NSR WO Details'!AI:AI,"<="&$BS$17)) -> 0 | CI8: =IF(BW8="","",IFERROR((CH8/CG8),"")) ->  | CJ8: =IF(BW8="","",COUNTIFS('NSR WO Details'!$N:$N,BW8,'NSR WO Details'!$W:$W,"Met",'NSR WO Details'!$F:$F,"FLORIDA",'NSR WO Details'!AI:AI,">="&$BR$17,'NSR WO Details'!AI:AI,"<="&$BS$17)) -> 0 | CK8: =IF(BW8="","",COUNTIFS('NSR WO Details'!$N:$N,BW8,'NSR WO Details'!$W:$W,"Missed",'NSR WO Details'!$F:$F,"FLORIDA",'NSR WO Details'!AI:AI,">="&$BR$17,'NSR WO Details'!AI:AI,"<="&$BS$17)) -> 0 | CL8: =IFERROR(SUM(CJ8/(CJ8+CK8)),"") ->  | CM8: =IF(BW8="","",COUNTIFS('NSR WO Details'!$N:$N,BW8,'NSR WO Details'!$F:$F,"FLORIDA",'NSR WO Details'!AI:AI,">="&$BR$17,'NSR WO Details'!AI:AI,"<="&$BS$17)) -> 0 | CN8: =IF(BW8="","",SUMIFS('NSR WO Details'!$AE:$AE,'NSR WO Details'!$N:$N,BW8,'NSR WO Details'!$F:$F,"FLORIDA",'NSR WO Details'!AI:AI,">="&$BR$17,'NSR WO Details'!AI:AI,"<="&$BS$17)) -> 0 | CO8: =IFERROR(SUM(CN8/CM8),"") ->  | CP8: =IF(BW8="","",SUMIFS('RTM Results'!$DG:$DG,'RTM Results'!$BD:$BD,BW8,'RTM Results'!$O:$O,"Florida",'RTM Results'!H:H,">="&$BR$17,'RTM Results'!H:H,"<="&$BS$17)) -> 0 | CQ8: =IF(BW8="","",SUMIFS('RTM Results'!$DC:$DC,'RTM Results'!$BD:$BD,BW8,'RTM Results'!$O:$O,"Florida",'RTM Results'!H:H,">="&$BR$17,'RTM Results'!H:H,"<="&$BS$17)) -> 0 | CR8: =IFERROR(1-(SUM(CQ8/CP8)),"") ->  | CS8: =IF(BW8="","",SUMIFS('Tool Usage Details'!$T:$T,'Tool Usage Details'!$I:$I,BW8,'Tool Usage Details'!$G:$G,"FLORIDA REGION",'Tool Usage Details'!E:E,">="&$BR$17,'Tool Usage Details'!E:E,"<="&$BS$17)) -> 0 | CT8: =IF(BW8="","",COUNTIFS('Tool Usage Details'!$I:$I,BW8,'Tool Usage Details'!$U:$U,"PASS",'Tool Usage Details'!$G:$G,"FLORIDA REGION",'Tool Usage Details'!E:E,">="&$BR$17,'Tool Usage Details'!E:E,"<="&$BS$17)) -> 0 | CU8: =IFERROR(SUM(CT8/CS8),"") ->  | CV8: =IF(BW8="","",SUMIFS('One Drop'!$BV:$BV,'One Drop'!$P:$P,BW8,'One Drop'!$L:$L,"FLORIDA REGION",'One Drop'!AQ:AQ,">="&$BR$17,'One Drop'!AQ:AQ,"<="&$BS$17)) -> 0 | CW8: =IF(BW8="","",SUMIFS('One Drop'!$BQ:$BQ,'One Drop'!$P:$P,BW8,'One Drop'!$L:$L,"FLORIDA REGION",'One Drop'!AQ:AQ,">="&$BR$17,'One Drop'!AQ:AQ,"<="&$BS$17)) -> 0 | CX8: =IFERROR(SUM(CW8/CV8),"") ->  | CY8: =IF(BW8="","",SUMIFS('NSR WO Details'!$AK:$AK,'NSR WO Details'!$N:$N,BW8,'NSR WO Details'!$F:$F,"FLORIDA",'NSR WO Details'!AI:AI,">="&$BR$17,'NSR WO Details'!AI:AI,"<="&$BS$17)) -> 0 | CZ8: =IF(BW8="","",SUMIFS('NSR WO Details'!$AL:$AL,'NSR WO Details'!$N:$N,BW8,'NSR WO Details'!$F:$F,"FLORIDA",'NSR WO Details'!AI:AI,">="&$BR$17,'NSR WO Details'!AI:AI,"<="&$BS$17)) -> 0 | DA8: =IFERROR(SUM(CZ8/CY8),"") ->  | DB8: =IF(BW8="","",SUMIFS(Completion!$CJ:$CJ,Completion!$G:$G,BW8,Completion!$N:$N,"Install",Completion!$E:$E,"Florida",Completion!AA:AA,">="&$BR$17,Completion!AA:AA,"<="&$BS$17)) -> 0 | DC8: =IF(BW8="","",SUMIFS(Completion!$CB:$CB,Completion!$G:$G,BW8,Completion!$N:$N,"Install",Completion!$E:$E,"Florida",Completion!AA:AA,">="&$BR$17,Completion!AA:AA,"<="&$BS$17)) -> 0 | DD8: =IFERROR(SUM(DC8/DB8),"") ->  | DE8: =IF(BW8="","",SUMIFS(Completion!$CJ:$CJ,Completion!$G:$G,BW8,Completion!$N:$N,"TC",Completion!$E:$E,"Florida",Completion!AA:AA,">="&BR$17,Completion!AA:AA,"<="&$BS$17)) -> 0 | DF8: =IF(BW8="","",SUMIFS(Completion!$CB:$CB,Completion!$G:$G,BW8,Completion!$N:$N,"TC",Completion!$E:$E,"Florida",Completion!AA:AA,">="&$BR$17,Completion!AA:AA,"<="&$BS$17)) -> 0 | DG8: =IFERROR(SUM(DF8/DE8),"") ->  | DH8: =IFERROR(SUM(DC8,DF8)/SUM(DB8,DE8),"") -> 
F9: Steve Goff (Off Sun) | G9: 9117 | H9: =IF(AW9="","",IFERROR(IF(K9>=92%,3.5,0)+IF(AB9>=92.5%,3.5,0)+IF(AW9>=98.5%,3,0),"")) ->  | I9: =IF(G9="","",SUMIFS('NSR WO Details'!$AG:$AG,'NSR WO Details'!$N:$N,G9,'NSR WO Details'!$F:$F,"FLORIDA")) -> 0 | J9: =IF(G9="","",COUNTIFS('FTR Detail'!$P:$P,G9,'FTR Detail'!$H:$H,"=FLORIDA")) -> 0 | L9: =IF(G9="","",SUMIF('Florida Rework'!$E:$E,$G9,'Florida Rework'!$H:$H)) -> 0 | M9: =IF(G9="","",SUMIF('Florida Rework'!$E:$E,$G9,'Florida Rework'!$I:$I)) -> 0 | N9: =IF(G9="","",SUMIF('Florida Rework'!$E:$E,$G9,'Florida Rework'!$M:$M)) -> 0 | O9: =IFERROR(SUM(N9/M9),"") ->  | P9: =IF(G9="","",SUMIF('Florida Rework'!$E:$E,$G9,'Florida Rework'!$J:$J)) -> 0 | Q9: =IF(G9="","",SUMIF('Florida Rework'!$E:$E,$G9,'Florida Rework'!$O:$O)) -> 0 | R9: =IFERROR(SUM(Q9/P9),"") ->  | S9: =IFERROR(SUM(N9+Q9),"") -> 0 | T9: =IFERROR(SUM(S9/L9),"") ->  | U9: =IF(G9="","",SUMIFS('Tool Usage Details'!$Q:$Q,'Tool Usage Details'!$I:$I,G9,'Tool Usage Details'!$G:$G,"FLORIDA REGION")) -> 0 | V9: =IF(G9="","",COUNTIFS('Tool Usage Details'!$I:$I,G9,'Tool Usage Details'!$S:$S,"PASS",'Tool Usage Details'!$G:$G,"FLORIDA REGION")) -> 0 | W9: =IFERROR(SUM(V9/U9),"") ->  | X9: =IF(G9="","",COUNTIFS('Tool Usage Details'!$I:$I,G9,'Tool Usage Details'!$R:$R,"PWW",'Tool Usage Details'!G:G,"FLORIDA REGION")+COUNTIFS('Tool Usage Details'!$I:$I,G9,'Tool Usage Details'!$R:$R,"PWO",'Tool Usage Details'!$G:$G,"FLORIDA REGION")) -> 0 | Y9: =IFERROR(1-(X9/V9),"") ->  | Z9: =IF(G9="","",SUMIFS('NSR WO Details'!$Z:$Z,'NSR WO Details'!$N:$N,G9,'NSR WO Details'!$F:$F,"FLORIDA")) -> 0 | AA9: =IF(G9="","",SUMIFS('NSR WO Details'!$AA:$AA,'NSR WO Details'!$N:$N,G9,'NSR WO Details'!$F:$F,"FLORIDA")) -> 0 | AC9: =IF(G9="","",COUNTIFS('NSR WO Details'!$N:$N,G9,'NSR WO Details'!$W:$W,"Met",'NSR WO Details'!$F:$F,"FLORIDA")) -> 0 | AD9: =IF(G9="","",COUNTIFS('NSR WO Details'!$N:$N,G9,'NSR WO Details'!$W:$W,"Missed",'NSR WO Details'!$F:$F,"FLORIDA")) -> 0 | AE9: =IFERROR(SUM(AC9/(AC9+AD9)),"") ->  | AF9: =IF(G9="","",COUNTIFS('NSR WO Details'!$N:$N,G9,'NSR WO Details'!$F:$F,"FLORIDA")) -> 0 | AG9: =IF(G9="","",SUMIFS('NSR WO Details'!$AE:$AE,'NSR WO Details'!$N:$N,G9,'NSR WO Details'!$F:$F,"FLORIDA")) -> 0 | AH9: =IFERROR(SUM(AG9/AF9),"") ->  | AI9: =IF(G9="","",SUMIFS('RTM Results'!$DI:$DI,'RTM Results'!$BF:$BF,G9,'RTM Results'!$P:$P,"Florida")) -> 0 | AJ9: =IF(G9="","",SUMIFS('RTM Results'!$DE:$DE,'RTM Results'!$BF:$BF,G9,'RTM Results'!$P:$P,"Florida")) -> 0 | AK9: =IFERROR(1-(SUM(AJ9/AI9)),"") ->  | AL9: =SUMIFS('ML Bonding Compliance'!$AR:$AR,'ML Bonding Compliance'!$R:$R,$G9,'ML Bonding Compliance'!$F:$F,"FLORIDA") -> 0 | AM9: =SUMIFS('ML Bonding Compliance'!$AU:$AU,'ML Bonding Compliance'!$R:$R,$G9,'ML Bonding Compliance'!$F:$F,"FLORIDA") -> 0 | AN9: =IFERROR(SUM(AM9/AL9),"") ->  | AO9: =IF(G9="","",SUMIFS('Tool Usage Details'!$T:$T,'Tool Usage Details'!$I:$I,G9,'Tool Usage Details'!$G:$G,"FLORIDA REGION")) -> 0 | AP9: =IF(G9="","",COUNTIFS('Tool Usage Details'!$I:$I,G9,'Tool Usage Details'!$U:$U,"PASS",'Tool Usage Details'!$G:$G,"FLORIDA REGION")) -> 0 | AQ9: =IFERROR(SUM(AP9/AO9),"") ->  | AR9: =IF(G9="","",SUMIFS('One Drop'!$BV:$BV,'One Drop'!$P:$P,G9,'One Drop'!$L:$L,"FLORIDA REGION")) -> 0 | AS9: =IF(G9="","",SUMIFS('One Drop'!$BQ:$BQ,'One Drop'!$P:$P,G9,'One Drop'!$L:$L,"FLORIDA REGION")) -> 0 | AT9: =IFERROR(SUM(AS9/AR9),"") ->  | AU9: =IF(G9="","",SUMIFS('NSR WO Details'!$AK:$AK,'NSR WO Details'!$N:$N,G9,'NSR WO Details'!$F:$F,"FLORIDA")) -> 0 | AV9: =IF(G9="","",SUMIFS('NSR WO Details'!$AL:$AL,'NSR WO Details'!$N:$N,G9,'NSR WO Details'!$F:$F,"FLORIDA")) -> 0 | AX9: =IF(OR(I9=0,I9=""),"",SUMIFS('Time in Home'!$L:$L,'Time in Home'!$I:$I,$G9,'Time in Home'!E:E,"FLORIDA REGION")) ->  | AY9: =IF(OR(I9=0,I9=""),"",SUMIFS('Time in Home'!$P:$P,'Time in Home'!$I:$I,$G9,'Time in Home'!E:E,"FLORIDA REGION")) ->  | AZ9: =SUMIFS('TQI BP Tech Compliance'!$Q:$Q,'TQI BP Tech Compliance'!$N:$N,$G9,'TQI BP Tech Compliance'!$F:$F,"FLORIDA REGION") -> 0 | BA9: =SUMIFS('TQI BP Tech Compliance'!$AI:$AI,'TQI BP Tech Compliance'!$N:$N,$G9,'TQI BP Tech Compliance'!$F:$F,"FLORIDA REGION") -> 0 | BB9: =SUMIFS('TQI BP Tech Compliance'!$Z:$Z,'TQI BP Tech Compliance'!$N:$N,$G9,'TQI BP Tech Compliance'!$F:$F,"FLORIDA REGION") -> 0 | BC9: =IFERROR(SUMIFS('TQI BP Tech Compliance'!$AC:$AC,'TQI BP Tech Compliance'!$N:$N,$G9,'TQI BP Tech Compliance'!$F:$F,"FLORIDA REGION")/BB9,"") ->  | BD9: =IFERROR(SUMIFS('TQI BP Tech Compliance'!$AD:$AD,'TQI BP Tech Compliance'!$N:$N,$G9,'TQI BP Tech Compliance'!$F:$F,"FLORIDA REGION"),"") -> 0 | BE9: Enrique Gabino | BF9: =IF(G9="","",SUMIFS(Completion!$CJ:$CJ,Completion!$G:$G,G9,Completion!$N:$N,"Install",Completion!$E:$E,"Florida")) -> 0 | BG9: =IF(G9="","",SUMIFS(Completion!$CB:$CB,Completion!$G:$G,G9,Completion!$N:$N,"Install",Completion!$E:$E,"Florida")) -> 0 | BH9: =IFERROR(SUM(BG9/BF9),"") ->  | BI9: =IF(G9="","",SUMIFS(Completion!$CJ:$CJ,Completion!$G:$G,G9,Completion!$N:$N,"TC",Completion!$E:$E,"Florida")) -> 0 | BJ9: =IF(G9="","",SUMIFS(Completion!$CB:$CB,Completion!$G:$G,G9,Completion!$N:$N,"TC",Completion!$E:$E,"Florida")) -> 0 | BK9: =IFERROR(SUM(BJ9/BI9),"") ->  | BL9: =IFERROR(SUM(BG9,BJ9)/SUM(BF9,BI9),"") ->  | BM9: =COUNTIFS(Completion!$G:$G,$G9,Completion!$E:$E,"FLORIDA",Completion!$N:$N,"TC") -> 0 | BN9: =COUNTIFS(Completion!$G:$G,$G9,Completion!$E:$E,"FLORIDA",Completion!$N:$N,"TC",Completion!$X:$X,"Customer") -> 0 | BO9: =IFERROR(SUM(BN9/BM9),"") ->  | BV9: Steve Goff (Off Sun) | BW9: 9117 | BX9: =IF(DA9="","",IFERROR(IF(CA9>=92%,3.5,0)+IF(CI9>=92.5%,3.5,0)+IF(DA9>=98.5%,3,0),"")) ->  | BY9: =IF(BW9="","",SUMIFS('NSR WO Details'!$AG:$AG,'NSR WO Details'!$N:$N,BW9,'NSR WO Details'!$F:$F,"FLORIDA",'NSR WO Details'!AI:AI,">="&$BR$17,'NSR WO Details'!AI:AI,"<="&$BS$17)) -> 0 | BZ9: =IF(BW9="","",COUNTIFS('FTR Detail'!$P:$P,BW9,'FTR Detail'!$H:$H,"=FLORIDA",'NSR WO Details'!AI:AI,">="&$BR$17,'NSR WO Details'!AI:AI,"<="&$BS$17)) -> 0 | CB9: =IF(BW9="","",SUMIFS('Tool Usage Details'!$Q:$Q,'Tool Usage Details'!$I:$I,BW9,'Tool Usage Details'!$G:$G,"FLORIDA REGION",'NSR WO Details'!AI:AI,">="&$BR$17,'NSR WO Details'!AJ:AJ,"<="&$BS$17)) -> 0 | CC9: =IF(BW9="","",COUNTIFS('Tool Usage Details'!$I:$I,BW9,'Tool Usage Details'!$S:$S,"PASS",'Tool Usage Details'!$G:$G,"FLORIDA REGION",'NSR WO Details'!AI:AI,">="&$BR$17,'NSR WO Details'!AI:AI,"<="&$BS$17)) -> 0 | CD9: =IFERROR(SUM(CC9/CB9),"") ->  | CE9: =IF(BW9="","",COUNTIFS('Tool Usage Details'!$I:$I,BW9,'Tool Usage Details'!$R:$R,"PWW",'Tool Usage Details'!$G:$G,"FLORIDA REGION")+COUNTIFS('Tool Usage Details'!$I:$I,BW9,'Tool Usage Details'!$R:$R,"PWO",'Tool Usage Details'!$G:$G,"FLORIDA REGION",'Tool Usage Details'!E:E,">="&$BR$17,'Tool Usage Details'!E:E,"<="&$BS$17)) -> 0 | CF9: =IFERROR(1-(CE9/CC9),"") ->  | CG9: =IF(BW9="","",SUMIFS('NSR WO Details'!$Z:$Z,'NSR WO Details'!$N:$N,BW9,'NSR WO Details'!$F:$F,"FLORIDA",'NSR WO Details'!AI:AI,">="&$BR$17,'NSR WO Details'!AI:AI,"<="&$BS$17)) -> 0 | CH9: =IF(BW9="","",SUMIFS('NSR WO Details'!$AA:$AA,'NSR WO Details'!$N:$N,BW9,'NSR WO Details'!$F:$F,"FLORIDA",'NSR WO Details'!AI:AI,">="&$BR$17,'NSR WO Details'!AI:AI,"<="&$BS$17)) -> 0 | CJ9: =IF(BW9="","",COUNTIFS('NSR WO Details'!$N:$N,BW9,'NSR WO Details'!$W:$W,"Met",'NSR WO Details'!$F:$F,"FLORIDA",'NSR WO Details'!AI:AI,">="&$BR$17,'NSR WO Details'!AI:AI,"<="&$BS$17)) -> 0 | CK9: =IF(BW9="","",COUNTIFS('NSR WO Details'!$N:$N,BW9,'NSR WO Details'!$W:$W,"Missed",'NSR WO Details'!$F:$F,"FLORIDA",'NSR WO Details'!AI:AI,">="&$BR$17,'NSR WO Details'!AI:AI,"<="&$BS$17)) -> 0 | CL9: =IFERROR(SUM(CJ9/(CJ9+CK9)),"") ->  | CM9: =IF(BW9="","",COUNTIFS('NSR WO Details'!$N:$N,BW9,'NSR WO Details'!$F:$F,"FLORIDA",'NSR WO Details'!AI:AI,">="&$BR$17,'NSR WO Details'!AI:AI,"<="&$BS$17)) -> 0 | CN9: =IF(BW9="","",SUMIFS('NSR WO Details'!$AE:$AE,'NSR WO Details'!$N:$N,BW9,'NSR WO Details'!$F:$F,"FLORIDA",'NSR WO Details'!AI:AI,">="&$BR$17,'NSR WO Details'!AI:AI,"<="&$BS$17)) -> 0 | CO9: =IFERROR(SUM(CN9/CM9),"") ->  | CP9: =IF(BW9="","",SUMIFS('RTM Results'!$DG:$DG,'RTM Results'!$BD:$BD,BW9,'RTM Results'!$O:$O,"Florida",'RTM Results'!H:H,">="&$BR$17,'RTM Results'!H:H,"<="&$BS$17)) -> 0 | CQ9: =IF(BW9="","",SUMIFS('RTM Results'!$DC:$DC,'RTM Results'!$BD:$BD,BW9,'RTM Results'!$O:$O,"Florida",'RTM Results'!H:H,">="&$BR$17,'RTM Results'!H:H,"<="&$BS$17)) -> 0 | CR9: =IFERROR(1-(SUM(CQ9/CP9)),"") ->  | CS9: =IF(BW9="","",SUMIFS('Tool Usage Details'!$T:$T,'Tool Usage Details'!$I:$I,BW9,'Tool Usage Details'!$G:$G,"FLORIDA REGION",'Tool Usage Details'!E:E,">="&$BR$17,'Tool Usage Details'!E:E,"<="&$BS$17)) -> 0 | CT9: =IF(BW9="","",COUNTIFS('Tool Usage Details'!$I:$I,BW9,'Tool Usage Details'!$U:$U,"PASS",'Tool Usage Details'!$G:$G,"FLORIDA REGION",'Tool Usage Details'!E:E,">="&$BR$17,'Tool Usage Details'!E:E,"<="&$BS$17)) -> 0 | CV9: =IF(BW9="","",SUMIFS('One Drop'!$BV:$BV,'One Drop'!$P:$P,BW9,'One Drop'!$L:$L,"FLORIDA REGION",'One Drop'!AQ:AQ,">="&$BR$17,'One Drop'!AQ:AQ,"<="&$BS$17)) -> 0 | CW9: =IF(BW9="","",SUMIFS('One Drop'!$BQ:$BQ,'One Drop'!$P:$P,BW9,'One Drop'!$L:$L,"FLORIDA REGION",'One Drop'!AQ:AQ,">="&$BR$17,'One Drop'!AQ:AQ,"<="&$BS$17)) -> 0 | CY9: =IF(BW9="","",SUMIFS('NSR WO Details'!$AK:$AK,'NSR WO Details'!$N:$N,BW9,'NSR WO Details'!$F:$F,"FLORIDA",'NSR WO Details'!AI:AI,">="&$BR$17,'NSR WO Details'!AI:AI,"<="&$BS$17)) -> 0 | CZ9: =IF(BW9="","",SUMIFS('NSR WO Details'!$AL:$AL,'NSR WO Details'!$N:$N,BW9,'NSR WO Details'!$F:$F,"FLORIDA",'NSR WO Details'!AI:AI,">="&$BR$17,'NSR WO Details'!AI:AI,"<="&$BS$17)) -> 0 | DB9: =IF(BW9="","",SUMIFS(Completion!$CJ:$CJ,Completion!$G:$G,BW9,Completion!$N:$N,"Install",Completion!$E:$E,"Florida",Completion!AA:AA,">="&$BR$17,Completion!AA:AA,"<="&$BS$17)) -> 0 | DC9: =IF(BW9="","",SUMIFS(Completion!$CB:$CB,Completion!$G:$G,BW9,Completion!$N:$N,"Install",Completion!$E:$E,"Florida",Completion!AA:AA,">="&$BR$17,Completion!AA:AA,"<="&$BS$17)) -> 0 | DD9: =IFERROR(SUM(DC9/DB9),"") ->  | DE9: =IF(BW9="","",SUMIFS(Completion!$CJ:$CJ,Completion!$G:$G,BW9,Completion!$N:$N,"TC",Completion!$E:$E,"Florida",Completion!AA:AA,">="&BR$17,Completion!AA:AA,"<="&$BS$17)) -> 0 | DF9: =IF(BW9="","",SUMIFS(Completion!$CB:$CB,Completion!$G:$G,BW9,Completion!$N:$N,"TC",Completion!$E:$E,"Florida",Completion!AA:AA,">="&$BR$17,Completion!AA:AA,"<="&$BS$17)) -> 0 | DG9: =IFERROR(SUM(DF9/DE9),"") ->  | DH9: =IFERROR(SUM(DC9,DF9)/SUM(DB9,DE9),"") -> 
F10: Jean Blanc | G10: 6584 | H10: 10 | I10: =IF(G10="","",SUMIFS('NSR WO Details'!$AG:$AG,'NSR WO Details'!$N:$N,G10,'NSR WO Details'!$F:$F,"FLORIDA")) -> 108 | J10: =IF(G10="","",COUNTIFS('FTR Detail'!$P:$P,G10,'FTR Detail'!$H:$H,"=FLORIDA")) -> 7 | K10: 0.935 | L10: =IF(G10="","",SUMIF('Florida Rework'!$E:$E,$G10,'Florida Rework'!$H:$H)) -> 112 | M10: =IF(G10="","",SUMIF('Florida Rework'!$E:$E,$G10,'Florida Rework'!$I:$I)) -> 43 | N10: =IF(G10="","",SUMIF('Florida Rework'!$E:$E,$G10,'Florida Rework'!$M:$M)) -> 2 | O10: 0.0465 | P10: =IF(G10="","",SUMIF('Florida Rework'!$E:$E,$G10,'Florida Rework'!$J:$J)) -> 56 | Q10: =IF(G10="","",SUMIF('Florida Rework'!$E:$E,$G10,'Florida Rework'!$O:$O)) -> 5 | R10: 0.0893 | S10: 7 | T10: 0.0625 | U10: =IF(G10="","",SUMIFS('Tool Usage Details'!$Q:$Q,'Tool Usage Details'!$I:$I,G10,'Tool Usage Details'!$G:$G,"FLORIDA REGION")) -> 75 | V10: =IF(G10="","",COUNTIFS('Tool Usage Details'!$I:$I,G10,'Tool Usage Details'!$S:$S,"PASS",'Tool Usage Details'!$G:$G,"FLORIDA REGION")) -> 75 | W10: 1 | X10: =IF(G10="","",COUNTIFS('Tool Usage Details'!$I:$I,G10,'Tool Usage Details'!$R:$R,"PWW",'Tool Usage Details'!G:G,"FLORIDA REGION")+COUNTIFS('Tool Usage Details'!$I:$I,G10,'Tool Usage Details'!$R:$R,"PWO",'Tool Usage Details'!$G:$G,"FLORIDA REGION")) -> 0 | Y10: 1 | Z10: =IF(G10="","",SUMIFS('NSR WO Details'!$Z:$Z,'NSR WO Details'!$N:$N,G10,'NSR WO Details'!$F:$F,"FLORIDA")) -> 23 | AA10: =IF(G10="","",SUMIFS('NSR WO Details'!$AA:$AA,'NSR WO Details'!$N:$N,G10,'NSR WO Details'!$F:$F,"FLORIDA")) -> 22 | AB10: 0.9565 | AC10: =IF(G10="","",COUNTIFS('NSR WO Details'!$N:$N,G10,'NSR WO Details'!$W:$W,"Met",'NSR WO Details'!$F:$F,"FLORIDA")) -> 107 | AD10: =IF(G10="","",COUNTIFS('NSR WO Details'!$N:$N,G10,'NSR WO Details'!$W:$W,"Missed",'NSR WO Details'!$F:$F,"FLORIDA")) -> 2 | AE10: 0.9817 | AF10: =IF(G10="","",COUNTIFS('NSR WO Details'!$N:$N,G10,'NSR WO Details'!$F:$F,"FLORIDA")) -> 112 | AG10: =IF(G10="","",SUMIFS('NSR WO Details'!$AE:$AE,'NSR WO Details'!$N:$N,G10,'NSR WO Details'!$F:$F,"FLORIDA")) -> 11 | AH10: 0.098 | AI10: =IF(G10="","",SUMIFS('RTM Results'!$DI:$DI,'RTM Results'!$BF:$BF,G10,'RTM Results'!$P:$P,"Florida")) -> 0 | AJ10: =IF(G10="","",SUMIFS('RTM Results'!$DE:$DE,'RTM Results'!$BF:$BF,G10,'RTM Results'!$P:$P,"Florida")) -> 0 | AL10: =SUMIFS('ML Bonding Compliance'!$AR:$AR,'ML Bonding Compliance'!$R:$R,$G10,'ML Bonding Compliance'!$F:$F,"FLORIDA") -> 0 | AM10: =SUMIFS('ML Bonding Compliance'!$AU:$AU,'ML Bonding Compliance'!$R:$R,$G10,'ML Bonding Compliance'!$F:$F,"FLORIDA") -> 0 | AO10: =IF(G10="","",SUMIFS('Tool Usage Details'!$T:$T,'Tool Usage Details'!$I:$I,G10,'Tool Usage Details'!$G:$G,"FLORIDA REGION")) -> 75 | AP10: =IF(G10="","",COUNTIFS('Tool Usage Details'!$I:$I,G10,'Tool Usage Details'!$U:$U,"PASS",'Tool Usage Details'!$G:$G,"FLORIDA REGION")) -> 75 | AQ10: 1 | AR10: =IF(G10="","",SUMIFS('One Drop'!$BV:$BV,'One Drop'!$P:$P,G10,'One Drop'!$L:$L,"FLORIDA REGION")) -> 11 | AS10: =IF(G10="","",SUMIFS('One Drop'!$BQ:$BQ,'One Drop'!$P:$P,G10,'One Drop'!$L:$L,"FLORIDA REGION")) -> 10 | AT10: 0.9091 | AU10: =IF(G10="","",SUMIFS('NSR WO Details'!$AK:$AK,'NSR WO Details'!$N:$N,G10,'NSR WO Details'!$F:$F,"FLORIDA")) -> 75 | AV10: =IF(G10="","",SUMIFS('NSR WO Details'!$AL:$AL,'NSR WO Details'!$N:$N,G10,'NSR WO Details'!$F:$F,"FLORIDA")) -> 75 | AW10: 1 | AX10: =IF(OR(I10=0,I10=""),"",SUMIFS('Time in Home'!$L:$L,'Time in Home'!$I:$I,$G10,'Time in Home'!E:E,"FLORIDA REGION")) -> 127.02 | AY10: =IF(OR(I10=0,I10=""),"",SUMIFS('Time in Home'!$P:$P,'Time in Home'!$I:$I,$G10,'Time in Home'!E:E,"FLORIDA REGION")) -> 78.04 | AZ10: =SUMIFS('TQI BP Tech Compliance'!$Q:$Q,'TQI BP Tech Compliance'!$N:$N,$G10,'TQI BP Tech Compliance'!$F:$F,"FLORIDA REGION") -> 6 | BA10: =SUMIFS('TQI BP Tech Compliance'!$AI:$AI,'TQI BP Tech Compliance'!$N:$N,$G10,'TQI BP Tech Compliance'!$F:$F,"FLORIDA REGION") -> 84 | BB10: =SUMIFS('TQI BP Tech Compliance'!$Z:$Z,'TQI BP Tech Compliance'!$N:$N,$G10,'TQI BP Tech Compliance'!$F:$F,"FLORIDA REGION") -> 3 | BC10: =IFERROR(SUMIFS('TQI BP Tech Compliance'!$AC:$AC,'TQI BP Tech Compliance'!$N:$N,$G10,'TQI BP Tech Compliance'!$F:$F,"FLORIDA REGION")/BB10,"") -> 69 | BD10: =IFERROR(SUMIFS('TQI BP Tech Compliance'!$AD:$AD,'TQI BP Tech Compliance'!$N:$N,$G10,'TQI BP Tech Compliance'!$F:$F,"FLORIDA REGION"),"") -> 1 | BE10: Enrique Gabino | BF10: =IF(G10="","",SUMIFS(Completion!$CJ:$CJ,Completion!$G:$G,G10,Completion!$N:$N,"Install",Completion!$E:$E,"Florida")) -> 49 | BG10: =IF(G10="","",SUMIFS(Completion!$CB:$CB,Completion!$G:$G,G10,Completion!$N:$N,"Install",Completion!$E:$E,"Florida")) -> 43 | BH10: 0.8776 | BI10: =IF(G10="","",SUMIFS(Completion!$CJ:$CJ,Completion!$G:$G,G10,Completion!$N:$N,"TC",Completion!$E:$E,"Florida")) -> 58 | BJ10: =IF(G10="","",SUMIFS(Completion!$CB:$CB,Completion!$G:$G,G10,Completion!$N:$N,"TC",Completion!$E:$E,"Florida")) -> 54 | BK10: 0.931 | BL10: 0.9065 | BM10: =COUNTIFS(Completion!$G:$G,$G10,Completion!$E:$E,"FLORIDA",Completion!$N:$N,"TC") -> 59 | BN10: =COUNTIFS(Completion!$G:$G,$G10,Completion!$E:$E,"FLORIDA",Completion!$N:$N,"TC",Completion!$X:$X,"Customer") -> 4 | BO10: 0.0678 | BV10: Jean Blanc | BW10: 6584 | BX10: 6.5 | BY10: =IF(BW10="","",SUMIFS('NSR WO Details'!$AG:$AG,'NSR WO Details'!$N:$N,BW10,'NSR WO Details'!$F:$F,"FLORIDA",'NSR WO Details'!AI:AI,">="&$BR$17,'NSR WO Details'!AI:AI,"<="&$BS$17)) -> 28 | BZ10: =IF(BW10="","",COUNTIFS('FTR Detail'!$P:$P,BW10,'FTR Detail'!$H:$H,"=FLORIDA",'NSR WO Details'!AI:AI,">="&$BR$17,'NSR WO Details'!AI:AI,"<="&$BS$17)) -> 1 | CA10: 0.964 | CB10: =IF(BW10="","",SUMIFS('Tool Usage Details'!$Q:$Q,'Tool Usage Details'!$I:$I,BW10,'Tool Usage Details'!$G:$G,"FLORIDA REGION",'NSR WO Details'!AI:AI,">="&$BR$17,'NSR WO Details'!AJ:AJ,"<="&$BS$17)) -> 0 | CC10: =IF(BW10="","",COUNTIFS('Tool Usage Details'!$I:$I,BW10,'Tool Usage Details'!$S:$S,"PASS",'Tool Usage Details'!$G:$G,"FLORIDA REGION",'NSR WO Details'!AI:AI,">="&$BR$17,'NSR WO Details'!AI:AI,"<="&$BS$17)) -> 16 | CE10: =IF(BW10="","",COUNTIFS('Tool Usage Details'!$I:$I,BW10,'Tool Usage Details'!$R:$R,"PWW",'Tool Usage Details'!$G:$G,"FLORIDA REGION")+COUNTIFS('Tool Usage Details'!$I:$I,BW10,'Tool Usage Details'!$R:$R,"PWO",'Tool Usage Details'!$G:$G,"FLORIDA REGION",'Tool Usage Details'!E:E,">="&$BR$17,'Tool Usage Details'!E:E,"<="&$BS$17)) -> 0 | CF10: 1 | CG10: =IF(BW10="","",SUMIFS('NSR WO Details'!$Z:$Z,'NSR WO Details'!$N:$N,BW10,'NSR WO Details'!$F:$F,"FLORIDA",'NSR WO Details'!AI:AI,">="&$BR$17,'NSR WO Details'!AI:AI,"<="&$BS$17)) -> 5 | CH10: =IF(BW10="","",SUMIFS('NSR WO Details'!$AA:$AA,'NSR WO Details'!$N:$N,BW10,'NSR WO Details'!$F:$F,"FLORIDA",'NSR WO Details'!AI:AI,">="&$BR$17,'NSR WO Details'!AI:AI,"<="&$BS$17)) -> 4 | CI10: 0.8 | CJ10: =IF(BW10="","",COUNTIFS('NSR WO Details'!$N:$N,BW10,'NSR WO Details'!$W:$W,"Met",'NSR WO Details'!$F:$F,"FLORIDA",'NSR WO Details'!AI:AI,">="&$BR$17,'NSR WO Details'!AI:AI,"<="&$BS$17)) -> 27 | CK10: =IF(BW10="","",COUNTIFS('NSR WO Details'!$N:$N,BW10,'NSR WO Details'!$W:$W,"Missed",'NSR WO Details'!$F:$F,"FLORIDA",'NSR WO Details'!AI:AI,">="&$BR$17,'NSR WO Details'!AI:AI,"<="&$BS$17)) -> 0 | CL10: 1 | CM10: =IF(BW10="","",COUNTIFS('NSR WO Details'!$N:$N,BW10,'NSR WO Details'!$F:$F,"FLORIDA",'NSR WO Details'!AI:AI,">="&$BR$17,'NSR WO Details'!AI:AI,"<="&$BS$17)) -> 28 | CN10: =IF(BW10="","",SUMIFS('NSR WO Details'!$AE:$AE,'NSR WO Details'!$N:$N,BW10,'NSR WO Details'!$F:$F,"FLORIDA",'NSR WO Details'!AI:AI,">="&$BR$17,'NSR WO Details'!AI:AI,"<="&$BS$17)) -> 1 | CO10: 0.036 | CP10: =IF(BW10="","",SUMIFS('RTM Results'!$DG:$DG,'RTM Results'!$BD:$BD,BW10,'RTM Results'!$O:$O,"Florida",'RTM Results'!H:H,">="&$BR$17,'RTM Results'!H:H,"<="&$BS$17)) -> 0 | CQ10: =IF(BW10="","",SUMIFS('RTM Results'!$DC:$DC,'RTM Results'!$BD:$BD,BW10,'RTM Results'!$O:$O,"Florida",'RTM Results'!H:H,">="&$BR$17,'RTM Results'!H:H,"<="&$BS$17)) -> 0 | CS10: =IF(BW10="","",SUMIFS('Tool Usage Details'!$T:$T,'Tool Usage Details'!$I:$I,BW10,'Tool Usage Details'!$G:$G,"FLORIDA REGION",'Tool Usage Details'!E:E,">="&$BR$17,'Tool Usage Details'!E:E,"<="&$BS$17)) -> 21 | CT10: =IF(BW10="","",COUNTIFS('Tool Usage Details'!$I:$I,BW10,'Tool Usage Details'!$U:$U,"PASS",'Tool Usage Details'!$G:$G,"FLORIDA REGION",'Tool Usage Details'!E:E,">="&$BR$17,'Tool Usage Details'!E:E,"<="&$BS$17)) -> 21 | CU10: 1 | CV10: =IF(BW10="","",SUMIFS('One Drop'!$BV:$BV,'One Drop'!$P:$P,BW10,'One Drop'!$L:$L,"FLORIDA REGION",'One Drop'!AQ:AQ,">="&$BR$17,'One Drop'!AQ:AQ,"<="&$BS$17)) -> 1 | CW10: =IF(BW10="","",SUMIFS('One Drop'!$BQ:$BQ,'One Drop'!$P:$P,BW10,'One Drop'!$L:$L,"FLORIDA REGION",'One Drop'!AQ:AQ,">="&$BR$17,'One Drop'!AQ:AQ,"<="&$BS$17)) -> 1 | CX10: 1 | CY10: =IF(BW10="","",SUMIFS('NSR WO Details'!$AK:$AK,'NSR WO Details'!$N:$N,BW10,'NSR WO Details'!$F:$F,"FLORIDA",'NSR WO Details'!AI:AI,">="&$BR$17,'NSR WO Details'!AI:AI,"<="&$BS$17)) -> 21 | CZ10: =IF(BW10="","",SUMIFS('NSR WO Details'!$AL:$AL,'NSR WO Details'!$N:$N,BW10,'NSR WO Details'!$F:$F,"FLORIDA",'NSR WO Details'!AI:AI,">="&$BR$17,'NSR WO Details'!AI:AI,"<="&$BS$17)) -> 21 | DA10: 1 | DB10: =IF(BW10="","",SUMIFS(Completion!$CJ:$CJ,Completion!$G:$G,BW10,Completion!$N:$N,"Install",Completion!$E:$E,"Florida",Completion!AA:AA,">="&$BR$17,Completion!AA:AA,"<="&$BS$17)) -> 15 | DC10: =IF(BW10="","",SUMIFS(Completion!$CB:$CB,Completion!$G:$G,BW10,Completion!$N:$N,"Install",Completion!$E:$E,"Florida",Completion!AA:AA,">="&$BR$17,Completion!AA:AA,"<="&$BS$17)) -> 13 | DD10: 0.8667 | DE10: =IF(BW10="","",SUMIFS(Completion!$CJ:$CJ,Completion!$G:$G,BW10,Completion!$N:$N,"TC",Completion!$E:$E,"Florida",Completion!AA:AA,">="&BR$17,Completion!AA:AA,"<="&$BS$17)) -> 13 | DF10: =IF(BW10="","",SUMIFS(Completion!$CB:$CB,Completion!$G:$G,BW10,Completion!$N:$N,"TC",Completion!$E:$E,"Florida",Completion!AA:AA,">="&$BR$17,Completion!AA:AA,"<="&$BS$17)) -> 12 | DG10: 0.9231 | DH10: 0.8929
B11: Home | F11: Kenwood Dhati | G11: 7362 | H11: 6.5 | I11: =IF(G11="","",SUMIFS('NSR WO Details'!$AG:$AG,'NSR WO Details'!$N:$N,G11,'NSR WO Details'!$F:$F,"FLORIDA")) -> 103 | J11: =IF(G11="","",COUNTIFS('FTR Detail'!$P:$P,G11,'FTR Detail'!$H:$H,"=FLORIDA")) -> 5 | K11: 0.951 | L11: =IF(G11="","",SUMIF('Florida Rework'!$E:$E,$G11,'Florida Rework'!$H:$H)) -> 109 | M11: =IF(G11="","",SUMIF('Florida Rework'!$E:$E,$G11,'Florida Rework'!$I:$I)) -> 39 | N11: =IF(G11="","",SUMIF('Florida Rework'!$E:$E,$G11,'Florida Rework'!$M:$M)) -> 0 | O11: 0 | P11: =IF(G11="","",SUMIF('Florida Rework'!$E:$E,$G11,'Florida Rework'!$J:$J)) -> 63 | Q11: =IF(G11="","",SUMIF('Florida Rework'!$E:$E,$G11,'Florida Rework'!$O:$O)) -> 3 | R11: 0.0476 | S11: 3 | T11: 0.0275 | U11: =IF(G11="","",SUMIFS('Tool Usage Details'!$Q:$Q,'Tool Usage Details'!$I:$I,G11,'Tool Usage Details'!$G:$G,"FLORIDA REGION")) -> 68 | V11: =IF(G11="","",COUNTIFS('Tool Usage Details'!$I:$I,G11,'Tool Usage Details'!$S:$S,"PASS",'Tool Usage Details'!$G:$G,"FLORIDA REGION")) -> 67 | W11: 0.9853 | X11: =IF(G11="","",COUNTIFS('Tool Usage Details'!$I:$I,G11,'Tool Usage Details'!$R:$R,"PWW",'Tool Usage Details'!G:G,"FLORIDA REGION")+COUNTIFS('Tool Usage Details'!$I:$I,G11,'Tool Usage Details'!$R:$R,"PWO",'Tool Usage Details'!$G:$G,"FLORIDA REGION")) -> 1 | Y11: 0.985 | Z11: =IF(G11="","",SUMIFS('NSR WO Details'!$Z:$Z,'NSR WO Details'!$N:$N,G11,'NSR WO Details'!$F:$F,"FLORIDA")) -> 12 | AA11: =IF(G11="","",SUMIFS('NSR WO Details'!$AA:$AA,'NSR WO Details'!$N:$N,G11,'NSR WO Details'!$F:$F,"FLORIDA")) -> 10 | AB11: 0.8333 | AC11: =IF(G11="","",COUNTIFS('NSR WO Details'!$N:$N,G11,'NSR WO Details'!$W:$W,"Met",'NSR WO Details'!$F:$F,"FLORIDA")) -> 103 | AD11: =IF(G11="","",COUNTIFS('NSR WO Details'!$N:$N,G11,'NSR WO Details'!$W:$W,"Missed",'NSR WO Details'!$F:$F,"FLORIDA")) -> 4 | AE11: 0.9626 | AF11: =IF(G11="","",COUNTIFS('NSR WO Details'!$N:$N,G11,'NSR WO Details'!$F:$F,"FLORIDA")) -> 109 | AG11: =IF(G11="","",SUMIFS('NSR WO Details'!$AE:$AE,'NSR WO Details'!$N:$N,G11,'NSR WO Details'!$F:$F,"FLORIDA")) -> 9 | AH11: 0.083 | AI11: =IF(G11="","",SUMIFS('RTM Results'!$DI:$DI,'RTM Results'!$BF:$BF,G11,'RTM Results'!$P:$P,"Florida")) -> 0 | AJ11: =IF(G11="","",SUMIFS('RTM Results'!$DE:$DE,'RTM Results'!$BF:$BF,G11,'RTM Results'!$P:$P,"Florida")) -> 0 | AL11: =SUMIFS('ML Bonding Compliance'!$AR:$AR,'ML Bonding Compliance'!$R:$R,$G11,'ML Bonding Compliance'!$F:$F,"FLORIDA") -> 0 | AM11: =SUMIFS('ML Bonding Compliance'!$AU:$AU,'ML Bonding Compliance'!$R:$R,$G11,'ML Bonding Compliance'!$F:$F,"FLORIDA") -> 0 | AO11: =IF(G11="","",SUMIFS('Tool Usage Details'!$T:$T,'Tool Usage Details'!$I:$I,G11,'Tool Usage Details'!$G:$G,"FLORIDA REGION")) -> 68 | AP11: =IF(G11="","",COUNTIFS('Tool Usage Details'!$I:$I,G11,'Tool Usage Details'!$U:$U,"PASS",'Tool Usage Details'!$G:$G,"FLORIDA REGION")) -> 68 | AQ11: 1 | AR11: =IF(G11="","",SUMIFS('One Drop'!$BV:$BV,'One Drop'!$P:$P,G11,'One Drop'!$L:$L,"FLORIDA REGION")) -> 6 | AS11: =IF(G11="","",SUMIFS('One Drop'!$BQ:$BQ,'One Drop'!$P:$P,G11,'One Drop'!$L:$L,"FLORIDA REGION")) -> 5 | AT11: 0.8333 | AU11: =IF(G11="","",SUMIFS('NSR WO Details'!$AK:$AK,'NSR WO Details'!$N:$N,G11,'NSR WO Details'!$F:$F,"FLORIDA")) -> 71 | AV11: =IF(G11="","",SUMIFS('NSR WO Details'!$AL:$AL,'NSR WO Details'!$N:$N,G11,'NSR WO Details'!$F:$F,"FLORIDA")) -> 70 | AW11: 0.986 | AX11: =IF(OR(I11=0,I11=""),"",SUMIFS('Time in Home'!$L:$L,'Time in Home'!$I:$I,$G11,'Time in Home'!E:E,"FLORIDA REGION")) -> 108.32 | AY11: =IF(OR(I11=0,I11=""),"",SUMIFS('Time in Home'!$P:$P,'Time in Home'!$I:$I,$G11,'Time in Home'!E:E,"FLORIDA REGION")) -> 76.58 | AZ11: =SUMIFS('TQI BP Tech Compliance'!$Q:$Q,'TQI BP Tech Compliance'!$N:$N,$G11,'TQI BP Tech Compliance'!$F:$F,"FLORIDA REGION") -> 5 | BA11: =SUMIFS('TQI BP Tech Compliance'!$AI:$AI,'TQI BP Tech Compliance'!$N:$N,$G11,'TQI BP Tech Compliance'!$F:$F,"FLORIDA REGION") -> 83 | BB11: =SUMIFS('TQI BP Tech Compliance'!$Z:$Z,'TQI BP Tech Compliance'!$N:$N,$G11,'TQI BP Tech Compliance'!$F:$F,"FLORIDA REGION") -> 2 | BC11: =IFERROR(SUMIFS('TQI BP Tech Compliance'!$AC:$AC,'TQI BP Tech Compliance'!$N:$N,$G11,'TQI BP Tech Compliance'!$F:$F,"FLORIDA REGION")/BB11,"") -> 86 | BD11: =IFERROR(SUMIFS('TQI BP Tech Compliance'!$AD:$AD,'TQI BP Tech Compliance'!$N:$N,$G11,'TQI BP Tech Compliance'!$F:$F,"FLORIDA REGION"),"") -> 1 | BE11: Enrique Gabino | BF11: =IF(G11="","",SUMIFS(Completion!$CJ:$CJ,Completion!$G:$G,G11,Completion!$N:$N,"Install",Completion!$E:$E,"Florida")) -> 42 | BG11: =IF(G11="","",SUMIFS(Completion!$CB:$CB,Completion!$G:$G,G11,Completion!$N:$N,"Install",Completion!$E:$E,"Florida")) -> 38 | BH11: 0.9048 | BI11: =IF(G11="","",SUMIFS(Completion!$CJ:$CJ,Completion!$G:$G,G11,Completion!$N:$N,"TC",Completion!$E:$E,"Florida")) -> 70 | BJ11: =IF(G11="","",SUMIFS(Completion!$CB:$CB,Completion!$G:$G,G11,Completion!$N:$N,"TC",Completion!$E:$E,"Florida")) -> 63 | BK11: 0.9 | BL11: 0.9018 | BM11: =COUNTIFS(Completion!$G:$G,$G11,Completion!$E:$E,"FLORIDA",Completion!$N:$N,"TC") -> 73 | BN11: =COUNTIFS(Completion!$G:$G,$G11,Completion!$E:$E,"FLORIDA",Completion!$N:$N,"TC",Completion!$X:$X,"Customer") -> 7 | BO11: 0.0959 | BV11: Kenwood Dhati | BW11: 7362 | BX11: 7 | BY11: =IF(BW11="","",SUMIFS('NSR WO Details'!$AG:$AG,'NSR WO Details'!$N:$N,BW11,'NSR WO Details'!$F:$F,"FLORIDA",'NSR WO Details'!AI:AI,">="&$BR$17,'NSR WO Details'!AI:AI,"<="&$BS$17)) -> 26 | BZ11: =IF(BW11="","",COUNTIFS('FTR Detail'!$P:$P,BW11,'FTR Detail'!$H:$H,"=FLORIDA",'NSR WO Details'!AI:AI,">="&$BR$17,'NSR WO Details'!AI:AI,"<="&$BS$17)) -> 2 | CA11: 0.923 | CB11: =IF(BW11="","",SUMIFS('Tool Usage Details'!$Q:$Q,'Tool Usage Details'!$I:$I,BW11,'Tool Usage Details'!$G:$G,"FLORIDA REGION",'NSR WO Details'!AI:AI,">="&$BR$17,'NSR WO Details'!AJ:AJ,"<="&$BS$17)) -> 0 | CC11: =IF(BW11="","",COUNTIFS('Tool Usage Details'!$I:$I,BW11,'Tool Usage Details'!$S:$S,"PASS",'Tool Usage Details'!$G:$G,"FLORIDA REGION",'NSR WO Details'!AI:AI,">="&$BR$17,'NSR WO Details'!AI:AI,"<="&$BS$17)) -> 13 | CE11: =IF(BW11="","",COUNTIFS('Tool Usage Details'!$I:$I,BW11,'Tool Usage Details'!$R:$R,"PWW",'Tool Usage Details'!$G:$G,"FLORIDA REGION")+COUNTIFS('Tool Usage Details'!$I:$I,BW11,'Tool Usage Details'!$R:$R,"PWO",'Tool Usage Details'!$G:$G,"FLORIDA REGION",'Tool Usage Details'!E:E,">="&$BR$17,'Tool Usage Details'!E:E,"<="&$BS$17)) -> 0 | CF11: 1 | CG11: =IF(BW11="","",SUMIFS('NSR WO Details'!$Z:$Z,'NSR WO Details'!$N:$N,BW11,'NSR WO Details'!$F:$F,"FLORIDA",'NSR WO Details'!AI:AI,">="&$BR$17,'NSR WO Details'!AI:AI,"<="&$BS$17)) -> 2 | CH11: =IF(BW11="","",SUMIFS('NSR WO Details'!$AA:$AA,'NSR WO Details'!$N:$N,BW11,'NSR WO Details'!$F:$F,"FLORIDA",'NSR WO Details'!AI:AI,">="&$BR$17,'NSR WO Details'!AI:AI,"<="&$BS$17)) -> 2 | CI11: 1 | CJ11: =IF(BW11="","",COUNTIFS('NSR WO Details'!$N:$N,BW11,'NSR WO Details'!$W:$W,"Met",'NSR WO Details'!$F:$F,"FLORIDA",'NSR WO Details'!AI:AI,">="&$BR$17,'NSR WO Details'!AI:AI,"<="&$BS$17)) -> 26 | CK11: =IF(BW11="","",COUNTIFS('NSR WO Details'!$N:$N,BW11,'NSR WO Details'!$W:$W,"Missed",'NSR WO Details'!$F:$F,"FLORIDA",'NSR WO Details'!AI:AI,">="&$BR$17,'NSR WO Details'!AI:AI,"<="&$BS$17)) -> 0 | CL11: 1 | CM11: =IF(BW11="","",COUNTIFS('NSR WO Details'!$N:$N,BW11,'NSR WO Details'!$F:$F,"FLORIDA",'NSR WO Details'!AI:AI,">="&$BR$17,'NSR WO Details'!AI:AI,"<="&$BS$17)) -> 26 | CN11: =IF(BW11="","",SUMIFS('NSR WO Details'!$AE:$AE,'NSR WO Details'!$N:$N,BW11,'NSR WO Details'!$F:$F,"FLORIDA",'NSR WO Details'!AI:AI,">="&$BR$17,'NSR WO Details'!AI:AI,"<="&$BS$17)) -> 2 | CO11: 0.077 | CP11: =IF(BW11="","",SUMIFS('RTM Results'!$DG:$DG,'RTM Results'!$BD:$BD,BW11,'RTM Results'!$O:$O,"Florida",'RTM Results'!H:H,">="&$BR$17,'RTM Results'!H:H,"<="&$BS$17)) -> 0 | CQ11: =IF(BW11="","",SUMIFS('RTM Results'!$DC:$DC,'RTM Results'!$BD:$BD,BW11,'RTM Results'!$O:$O,"Florida",'RTM Results'!H:H,">="&$BR$17,'RTM Results'!H:H,"<="&$BS$17)) -> 0 | CS11: =IF(BW11="","",SUMIFS('Tool Usage Details'!$T:$T,'Tool Usage Details'!$I:$I,BW11,'Tool Usage Details'!$G:$G,"FLORIDA REGION",'Tool Usage Details'!E:E,">="&$BR$17,'Tool Usage Details'!E:E,"<="&$BS$17)) -> 20 | CT11: =IF(BW11="","",COUNTIFS('Tool Usage Details'!$I:$I,BW11,'Tool Usage Details'!$U:$U,"PASS",'Tool Usage Details'!$G:$G,"FLORIDA REGION",'Tool Usage Details'!E:E,">="&$BR$17,'Tool Usage Details'!E:E,"<="&$BS$17)) -> 20 | CU11: 1 | CV11: =IF(BW11="","",SUMIFS('One Drop'!$BV:$BV,'One Drop'!$P:$P,BW11,'One Drop'!$L:$L,"FLORIDA REGION",'One Drop'!AQ:AQ,">="&$BR$17,'One Drop'!AQ:AQ,"<="&$BS$17)) -> 1 | CW11: =IF(BW11="","",SUMIFS('One Drop'!$BQ:$BQ,'One Drop'!$P:$P,BW11,'One Drop'!$L:$L,"FLORIDA REGION",'One Drop'!AQ:AQ,">="&$BR$17,'One Drop'!AQ:AQ,"<="&$BS$17)) -> 1 | CX11: 1 | CY11: =IF(BW11="","",SUMIFS('NSR WO Details'!$AK:$AK,'NSR WO Details'!$N:$N,BW11,'NSR WO Details'!$F:$F,"FLORIDA",'NSR WO Details'!AI:AI,">="&$BR$17,'NSR WO Details'!AI:AI,"<="&$BS$17)) -> 20 | CZ11: =IF(BW11="","",SUMIFS('NSR WO Details'!$AL:$AL,'NSR WO Details'!$N:$N,BW11,'NSR WO Details'!$F:$F,"FLORIDA",'NSR WO Details'!AI:AI,">="&$BR$17,'NSR WO Details'!AI:AI,"<="&$BS$17)) -> 19 | DA11: 0.95 | DB11: =IF(BW11="","",SUMIFS(Completion!$CJ:$CJ,Completion!$G:$G,BW11,Completion!$N:$N,"Install",Completion!$E:$E,"Florida",Completion!AA:AA,">="&$BR$17,Completion!AA:AA,"<="&$BS$17)) -> 8 | DC11: =IF(BW11="","",SUMIFS(Completion!$CB:$CB,Completion!$G:$G,BW11,Completion!$N:$N,"Install",Completion!$E:$E,"Florida",Completion!AA:AA,">="&$BR$17,Completion!AA:AA,"<="&$BS$17)) -> 8 | DD11: 1 | DE11: =IF(BW11="","",SUMIFS(Completion!$CJ:$CJ,Completion!$G:$G,BW11,Completion!$N:$N,"TC",Completion!$E:$E,"Florida",Completion!AA:AA,">="&BR$17,Completion!AA:AA,"<="&$BS$17)) -> 17 | DF11: =IF(BW11="","",SUMIFS(Completion!$CB:$CB,Completion!$G:$G,BW11,Completion!$N:$N,"TC",Completion!$E:$E,"Florida",Completion!AA:AA,">="&$BR$17,Completion!AA:AA,"<="&$BS$17)) -> 16 | DG11: 0.9412 | DH11: 0.96
F12: Chris Anderson | G12: 8452 | H12: 0 | I12: =IF(G12="","",SUMIFS('NSR WO Details'!$AG:$AG,'NSR WO Details'!$N:$N,G12,'NSR WO Details'!$F:$F,"FLORIDA")) -> 77 | J12: =IF(G12="","",COUNTIFS('FTR Detail'!$P:$P,G12,'FTR Detail'!$H:$H,"=FLORIDA")) -> 12 | K12: 0.844 | L12: =IF(G12="","",SUMIF('Florida Rework'!$E:$E,$G12,'Florida Rework'!$H:$H)) -> 84 | M12: =IF(G12="","",SUMIF('Florida Rework'!$E:$E,$G12,'Florida Rework'!$I:$I)) -> 38 | N12: =IF(G12="","",SUMIF('Florida Rework'!$E:$E,$G12,'Florida Rework'!$M:$M)) -> 4 | O12: 0.1053 | P12: =IF(G12="","",SUMIF('Florida Rework'!$E:$E,$G12,'Florida Rework'!$J:$J)) -> 34 | Q12: =IF(G12="","",SUMIF('Florida Rework'!$E:$E,$G12,'Florida Rework'!$O:$O)) -> 6 | R12: 0.1765 | S12: 10 | T12: 0.119 | U12: =IF(G12="","",SUMIFS('Tool Usage Details'!$Q:$Q,'Tool Usage Details'!$I:$I,G12,'Tool Usage Details'!$G:$G,"FLORIDA REGION")) -> 54 | V12: =IF(G12="","",COUNTIFS('Tool Usage Details'!$I:$I,G12,'Tool Usage Details'!$S:$S,"PASS",'Tool Usage Details'!$G:$G,"FLORIDA REGION")) -> 54 | W12: 1 | X12: =IF(G12="","",COUNTIFS('Tool Usage Details'!$I:$I,G12,'Tool Usage Details'!$R:$R,"PWW",'Tool Usage Details'!G:G,"FLORIDA REGION")+COUNTIFS('Tool Usage Details'!$I:$I,G12,'Tool Usage Details'!$R:$R,"PWO",'Tool Usage Details'!$G:$G,"FLORIDA REGION")) -> 2 | Y12: 0.963 | Z12: =IF(G12="","",SUMIFS('NSR WO Details'!$Z:$Z,'NSR WO Details'!$N:$N,G12,'NSR WO Details'!$F:$F,"FLORIDA")) -> 14 | AA12: =IF(G12="","",SUMIFS('NSR WO Details'!$AA:$AA,'NSR WO Details'!$N:$N,G12,'NSR WO Details'!$F:$F,"FLORIDA")) -> 12 | AB12: 0.8571 | AC12: =IF(G12="","",COUNTIFS('NSR WO Details'!$N:$N,G12,'NSR WO Details'!$W:$W,"Met",'NSR WO Details'!$F:$F,"FLORIDA")) -> 74 | AD12: =IF(G12="","",COUNTIFS('NSR WO Details'!$N:$N,G12,'NSR WO Details'!$W:$W,"Missed",'NSR WO Details'!$F:$F,"FLORIDA")) -> 7 | AE12: 0.9136 | AF12: =IF(G12="","",COUNTIFS('NSR WO Details'!$N:$N,G12,'NSR WO Details'!$F:$F,"FLORIDA")) -> 84 | AG12: =IF(G12="","",SUMIFS('NSR WO Details'!$AE:$AE,'NSR WO Details'!$N:$N,G12,'NSR WO Details'!$F:$F,"FLORIDA")) -> 8 | AH12: 0.095 | AI12: =IF(G12="","",SUMIFS('RTM Results'!$DI:$DI,'RTM Results'!$BF:$BF,G12,'RTM Results'!$P:$P,"Florida")) -> 0 | AJ12: =IF(G12="","",SUMIFS('RTM Results'!$DE:$DE,'RTM Results'!$BF:$BF,G12,'RTM Results'!$P:$P,"Florida")) -> 0 | AL12: =SUMIFS('ML Bonding Compliance'!$AR:$AR,'ML Bonding Compliance'!$R:$R,$G12,'ML Bonding Compliance'!$F:$F,"FLORIDA") -> 0 | AM12: =SUMIFS('ML Bonding Compliance'!$AU:$AU,'ML Bonding Compliance'!$R:$R,$G12,'ML Bonding Compliance'!$F:$F,"FLORIDA") -> 0 | AO12: =IF(G12="","",SUMIFS('Tool Usage Details'!$T:$T,'Tool Usage Details'!$I:$I,G12,'Tool Usage Details'!$G:$G,"FLORIDA REGION")) -> 54 | AP12: =IF(G12="","",COUNTIFS('Tool Usage Details'!$I:$I,G12,'Tool Usage Details'!$U:$U,"PASS",'Tool Usage Details'!$G:$G,"FLORIDA REGION")) -> 53 | AQ12: 0.9815 | AR12: =IF(G12="","",SUMIFS('One Drop'!$BV:$BV,'One Drop'!$P:$P,G12,'One Drop'!$L:$L,"FLORIDA REGION")) -> 8 | AS12: =IF(G12="","",SUMIFS('One Drop'!$BQ:$BQ,'One Drop'!$P:$P,G12,'One Drop'!$L:$L,"FLORIDA REGION")) -> 8 | AT12: 1 | AU12: =IF(G12="","",SUMIFS('NSR WO Details'!$AK:$AK,'NSR WO Details'!$N:$N,G12,'NSR WO Details'!$F:$F,"FLORIDA")) -> 58 | AV12: =IF(G12="","",SUMIFS('NSR WO Details'!$AL:$AL,'NSR WO Details'!$N:$N,G12,'NSR WO Details'!$F:$F,"FLORIDA")) -> 57 | AW12: 0.983 | AX12: =IF(OR(I12=0,I12=""),"",SUMIFS('Time in Home'!$L:$L,'Time in Home'!$I:$I,$G12,'Time in Home'!E:E,"FLORIDA REGION")) -> 113.32 | AY12: =IF(OR(I12=0,I12=""),"",SUMIFS('Time in Home'!$P:$P,'Time in Home'!$I:$I,$G12,'Time in Home'!E:E,"FLORIDA REGION")) -> 61.82 | AZ12: =SUMIFS('TQI BP Tech Compliance'!$Q:$Q,'TQI BP Tech Compliance'!$N:$N,$G12,'TQI BP Tech Compliance'!$F:$F,"FLORIDA REGION") -> 5 | BA12: =SUMIFS('TQI BP Tech Compliance'!$AI:$AI,'TQI BP Tech Compliance'!$N:$N,$G12,'TQI BP Tech Compliance'!$F:$F,"FLORIDA REGION") -> 83 | BB12: =SUMIFS('TQI BP Tech Compliance'!$Z:$Z,'TQI BP Tech Compliance'!$N:$N,$G12,'TQI BP Tech Compliance'!$F:$F,"FLORIDA REGION") -> 2 | BC12: =IFERROR(SUMIFS('TQI BP Tech Compliance'!$AC:$AC,'TQI BP Tech Compliance'!$N:$N,$G12,'TQI BP Tech Compliance'!$F:$F,"FLORIDA REGION")/BB12,"") -> 71 | BD12: =IFERROR(SUMIFS('TQI BP Tech Compliance'!$AD:$AD,'TQI BP Tech Compliance'!$N:$N,$G12,'TQI BP Tech Compliance'!$F:$F,"FLORIDA REGION"),"") -> 1 | BE12: Enrique Gabino | BF12: =IF(G12="","",SUMIFS(Completion!$CJ:$CJ,Completion!$G:$G,G12,Completion!$N:$N,"Install",Completion!$E:$E,"Florida")) -> 42 | BG12: =IF(G12="","",SUMIFS(Completion!$CB:$CB,Completion!$G:$G,G12,Completion!$N:$N,"Install",Completion!$E:$E,"Florida")) -> 38 | BH12: 0.9048 | BI12: =IF(G12="","",SUMIFS(Completion!$CJ:$CJ,Completion!$G:$G,G12,Completion!$N:$N,"TC",Completion!$E:$E,"Florida")) -> 36 | BJ12: =IF(G12="","",SUMIFS(Completion!$CB:$CB,Completion!$G:$G,G12,Completion!$N:$N,"TC",Completion!$E:$E,"Florida")) -> 31 | BK12: 0.8611 | BL12: 0.8846 | BM12: =COUNTIFS(Completion!$G:$G,$G12,Completion!$E:$E,"FLORIDA",Completion!$N:$N,"TC") -> 37 | BN12: =COUNTIFS(Completion!$G:$G,$G12,Completion!$E:$E,"FLORIDA",Completion!$N:$N,"TC",Completion!$X:$X,"Customer") -> 5 | BO12: 0.1351 | BV12: Kedny Desarme | BW12: 7105 | BY12: =IF(BW12="","",SUMIFS('NSR WO Details'!$AG:$AG,'NSR WO Details'!$N:$N,BW12,'NSR WO Details'!$F:$F,"FLORIDA",'NSR WO Details'!AI:AI,">="&$BR$17,'NSR WO Details'!AI:AI,"<="&$BS$17)) -> 0 | BZ12: =IF(BW12="","",COUNTIFS('FTR Detail'!$P:$P,BW12,'FTR Detail'!$H:$H,"=FLORIDA",'NSR WO Details'!AI:AI,">="&$BR$17,'NSR WO Details'!AI:AI,"<="&$BS$17)) -> 0 | CB12: =IF(BW12="","",SUMIFS('Tool Usage Details'!$Q:$Q,'Tool Usage Details'!$I:$I,BW12,'Tool Usage Details'!$G:$G,"FLORIDA REGION",'NSR WO Details'!AI:AI,">="&$BR$17,'NSR WO Details'!AJ:AJ,"<="&$BS$17)) -> 0 | CC12: =IF(BW12="","",COUNTIFS('Tool Usage Details'!$I:$I,BW12,'Tool Usage Details'!$S:$S,"PASS",'Tool Usage Details'!$G:$G,"FLORIDA REGION",'NSR WO Details'!AI:AI,">="&$BR$17,'NSR WO Details'!AI:AI,"<="&$BS$17)) -> 0 | CE12: =IF(BW12="","",COUNTIFS('Tool Usage Details'!$I:$I,BW12,'Tool Usage Details'!$R:$R,"PWW",'Tool Usage Details'!$G:$G,"FLORIDA REGION")+COUNTIFS('Tool Usage Details'!$I:$I,BW12,'Tool Usage Details'!$R:$R,"PWO",'Tool Usage Details'!$G:$G,"FLORIDA REGION",'Tool Usage Details'!E:E,">="&$BR$17,'Tool Usage Details'!E:E,"<="&$BS$17)) -> 0 | CG12: =IF(BW12="","",SUMIFS('NSR WO Details'!$Z:$Z,'NSR WO Details'!$N:$N,BW12,'NSR WO Details'!$F:$F,"FLORIDA",'NSR WO Details'!AI:AI,">="&$BR$17,'NSR WO Details'!AI:AI,"<="&$BS$17)) -> 0 | CH12: =IF(BW12="","",SUMIFS('NSR WO Details'!$AA:$AA,'NSR WO Details'!$N:$N,BW12,'NSR WO Details'!$F:$F,"FLORIDA",'NSR WO Details'!AI:AI,">="&$BR$17,'NSR WO Details'!AI:AI,"<="&$BS$17)) -> 0 | CJ12: =IF(BW12="","",COUNTIFS('NSR WO Details'!$N:$N,BW12,'NSR WO Details'!$W:$W,"Met",'NSR WO Details'!$F:$F,"FLORIDA",'NSR WO Details'!AI:AI,">="&$BR$17,'NSR WO Details'!AI:AI,"<="&$BS$17)) -> 0 | CK12: =IF(BW12="","",COUNTIFS('NSR WO Details'!$N:$N,BW12,'NSR WO Details'!$W:$W,"Missed",'NSR WO Details'!$F:$F,"FLORIDA",'NSR WO Details'!AI:AI,">="&$BR$17,'NSR WO Details'!AI:AI,"<="&$BS$17)) -> 0 | CM12: =IF(BW12="","",COUNTIFS('NSR WO Details'!$N:$N,BW12,'NSR WO Details'!$F:$F,"FLORIDA",'NSR WO Details'!AI:AI,">="&$BR$17,'NSR WO Details'!AI:AI,"<="&$BS$17)) -> 0 | CN12: =IF(BW12="","",SUMIFS('NSR WO Details'!$AE:$AE,'NSR WO Details'!$N:$N,BW12,'NSR WO Details'!$F:$F,"FLORIDA",'NSR WO Details'!AI:AI,">="&$BR$17,'NSR WO Details'!AI:AI,"<="&$BS$17)) -> 0 | CP12: =IF(BW12="","",SUMIFS('RTM Results'!$DG:$DG,'RTM Results'!$BD:$BD,BW12,'RTM Results'!$O:$O,"Florida",'RTM Results'!H:H,">="&$BR$17,'RTM Results'!H:H,"<="&$BS$17)) -> 0 | CQ12: =IF(BW12="","",SUMIFS('RTM Results'!$DC:$DC,'RTM Results'!$BD:$BD,BW12,'RTM Results'!$O:$O,"Florida",'RTM Results'!H:H,">="&$BR$17,'RTM Results'!H:H,"<="&$BS$17)) -> 0 | CS12: =IF(BW12="","",SUMIFS('Tool Usage Details'!$T:$T,'Tool Usage Details'!$I:$I,BW12,'Tool Usage Details'!$G:$G,"FLORIDA REGION",'Tool Usage Details'!E:E,">="&$BR$17,'Tool Usage Details'!E:E,"<="&$BS$17)) -> 0 | CT12: =IF(BW12="","",COUNTIFS('Tool Usage Details'!$I:$I,BW12,'Tool Usage Details'!$U:$U,"PASS",'Tool Usage Details'!$G:$G,"FLORIDA REGION",'Tool Usage Details'!E:E,">="&$BR$17,'Tool Usage Details'!E:E,"<="&$BS$17)) -> 0 | CV12: =IF(BW12="","",SUMIFS('One Drop'!$BV:$BV,'One Drop'!$P:$P,BW12,'One Drop'!$L:$L,"FLORIDA REGION",'One Drop'!AQ:AQ,">="&$BR$17,'One Drop'!AQ:AQ,"<="&$BS$17)) -> 0 | CW12: =IF(BW12="","",SUMIFS('One Drop'!$BQ:$BQ,'One Drop'!$P:$P,BW12,'One Drop'!$L:$L,"FLORIDA REGION",'One Drop'!AQ:AQ,">="&$BR$17,'One Drop'!AQ:AQ,"<="&$BS$17)) -> 0 | CY12: =IF(BW12="","",SUMIFS('NSR WO Details'!$AK:$AK,'NSR WO Details'!$N:$N,BW12,'NSR WO Details'!$F:$F,"FLORIDA",'NSR WO Details'!AI:AI,">="&$BR$17,'NSR WO Details'!AI:AI,"<="&$BS$17)) -> 0 | CZ12: =IF(BW12="","",SUMIFS('NSR WO Details'!$AL:$AL,'NSR WO Details'!$N:$N,BW12,'NSR WO Details'!$F:$F,"FLORIDA",'NSR WO Details'!AI:AI,">="&$BR$17,'NSR WO Details'!AI:AI,"<="&$BS$17)) -> 0 | DB12: =IF(BW12="","",SUMIFS(Completion!$CJ:$CJ,Completion!$G:$G,BW12,Completion!$N:$N,"Install",Completion!$E:$E,"Florida",Completion!AA:AA,">="&$BR$17,Completion!AA:AA,"<="&$BS$17)) -> 0 | DC12: =IF(BW12="","",SUMIFS(Completion!$CB:$CB,Completion!$G:$G,BW12,Completion!$N:$N,"Install",Completion!$E:$E,"Florida",Completion!AA:AA,">="&$BR$17,Completion!AA:AA,"<="&$BS$17)) -> 0 | DE12: =IF(BW12="","",SUMIFS(Completion!$CJ:$CJ,Completion!$G:$G,BW12,Completion!$N:$N,"TC",Completion!$E:$E,"Florida",Completion!AA:AA,">="&BR$17,Completion!AA:AA,"<="&$BS$17)) -> 0 | DF12: =IF(BW12="","",SUMIFS(Completion!$CB:$CB,Completion!$G:$G,BW12,Completion!$N:$N,"TC",Completion!$E:$E,"Florida",Completion!AA:AA,">="&$BR$17,Completion!AA:AA,"<="&$BS$17)) -> 0
B13: Performance Metrics | F13: Marcel Baptiste | G13: 7728 | H13: 3.5 | I13: =IF(G13="","",SUMIFS('NSR WO Details'!$AG:$AG,'NSR WO Details'!$N:$N,G13,'NSR WO Details'!$F:$F,"FLORIDA")) -> 112 | J13: =IF(G13="","",COUNTIFS('FTR Detail'!$P:$P,G13,'FTR Detail'!$H:$H,"=FLORIDA")) -> 12 | K13: 0.893 | L13: =IF(G13="","",SUMIF('Florida Rework'!$E:$E,$G13,'Florida Rework'!$H:$H)) -> 124 | M13: =IF(G13="","",SUMIF('Florida Rework'!$E:$E,$G13,'Florida Rework'!$I:$I)) -> 57 | N13: =IF(G13="","",SUMIF('Florida Rework'!$E:$E,$G13,'Florida Rework'!$M:$M)) -> 5 | O13: 0.0877 | P13: =IF(G13="","",SUMIF('Florida Rework'!$E:$E,$G13,'Florida Rework'!$J:$J)) -> 57 | Q13: =IF(G13="","",SUMIF('Florida Rework'!$E:$E,$G13,'Florida Rework'!$O:$O)) -> 4 | R13: 0.0702 | S13: 9 | T13: 0.0726 | U13: =IF(G13="","",SUMIFS('Tool Usage Details'!$Q:$Q,'Tool Usage Details'!$I:$I,G13,'Tool Usage Details'!$G:$G,"FLORIDA REGION")) -> 30 | V13: =IF(G13="","",COUNTIFS('Tool Usage Details'!$I:$I,G13,'Tool Usage Details'!$S:$S,"PASS",'Tool Usage Details'!$G:$G,"FLORIDA REGION")) -> 30 | W13: 1 | X13: =IF(G13="","",COUNTIFS('Tool Usage Details'!$I:$I,G13,'Tool Usage Details'!$R:$R,"PWW",'Tool Usage Details'!G:G,"FLORIDA REGION")+COUNTIFS('Tool Usage Details'!$I:$I,G13,'Tool Usage Details'!$R:$R,"PWO",'Tool Usage Details'!$G:$G,"FLORIDA REGION")) -> 0 | Y13: 1 | Z13: =IF(G13="","",SUMIFS('NSR WO Details'!$Z:$Z,'NSR WO Details'!$N:$N,G13,'NSR WO Details'!$F:$F,"FLORIDA")) -> 16 | AA13: =IF(G13="","",SUMIFS('NSR WO Details'!$AA:$AA,'NSR WO Details'!$N:$N,G13,'NSR WO Details'!$F:$F,"FLORIDA")) -> 16 | AB13: 1 | AC13: =IF(G13="","",COUNTIFS('NSR WO Details'!$N:$N,G13,'NSR WO Details'!$W:$W,"Met",'NSR WO Details'!$F:$F,"FLORIDA")) -> 118 | AD13: =IF(G13="","",COUNTIFS('NSR WO Details'!$N:$N,G13,'NSR WO Details'!$W:$W,"Missed",'NSR WO Details'!$F:$F,"FLORIDA")) -> 0 | AE13: 1 | AF13: =IF(G13="","",COUNTIFS('NSR WO Details'!$N:$N,G13,'NSR WO Details'!$F:$F,"FLORIDA")) -> 124 | AG13: =IF(G13="","",SUMIFS('NSR WO Details'!$AE:$AE,'NSR WO Details'!$N:$N,G13,'NSR WO Details'!$F:$F,"FLORIDA")) -> 15 | AH13: 0.121 | AI13: =IF(G13="","",SUMIFS('RTM Results'!$DI:$DI,'RTM Results'!$BF:$BF,G13,'RTM Results'!$P:$P,"Florida")) -> 5 | AJ13: =IF(G13="","",SUMIFS('RTM Results'!$DE:$DE,'RTM Results'!$BF:$BF,G13,'RTM Results'!$P:$P,"Florida")) -> 0 | AK13: 1 | AL13: =SUMIFS('ML Bonding Compliance'!$AR:$AR,'ML Bonding Compliance'!$R:$R,$G13,'ML Bonding Compliance'!$F:$F,"FLORIDA") -> 0 | AM13: =SUMIFS('ML Bonding Compliance'!$AU:$AU,'ML Bonding Compliance'!$R:$R,$G13,'ML Bonding Compliance'!$F:$F,"FLORIDA") -> 0 | AO13: =IF(G13="","",SUMIFS('Tool Usage Details'!$T:$T,'Tool Usage Details'!$I:$I,G13,'Tool Usage Details'!$G:$G,"FLORIDA REGION")) -> 30 | AP13: =IF(G13="","",COUNTIFS('Tool Usage Details'!$I:$I,G13,'Tool Usage Details'!$U:$U,"PASS",'Tool Usage Details'!$G:$G,"FLORIDA REGION")) -> 29 | AQ13: 0.9667 | AR13: =IF(G13="","",SUMIFS('One Drop'!$BV:$BV,'One Drop'!$P:$P,G13,'One Drop'!$L:$L,"FLORIDA REGION")) -> 14 | AS13: =IF(G13="","",SUMIFS('One Drop'!$BQ:$BQ,'One Drop'!$P:$P,G13,'One Drop'!$L:$L,"FLORIDA REGION")) -> 14 | AT13: 1 | AU13: =IF(G13="","",SUMIFS('NSR WO Details'!$AK:$AK,'NSR WO Details'!$N:$N,G13,'NSR WO Details'!$F:$F,"FLORIDA")) -> 30 | AV13: =IF(G13="","",SUMIFS('NSR WO Details'!$AL:$AL,'NSR WO Details'!$N:$N,G13,'NSR WO Details'!$F:$F,"FLORIDA")) -> 29 | AW13: 0.967 | AX13: =IF(OR(I13=0,I13=""),"",SUMIFS('Time in Home'!$L:$L,'Time in Home'!$I:$I,$G13,'Time in Home'!E:E,"FLORIDA REGION")) -> 80.82 | AY13: =IF(OR(I13=0,I13=""),"",SUMIFS('Time in Home'!$P:$P,'Time in Home'!$I:$I,$G13,'Time in Home'!E:E,"FLORIDA REGION")) -> 50.19 | AZ13: =SUMIFS('TQI BP Tech Compliance'!$Q:$Q,'TQI BP Tech Compliance'!$N:$N,$G13,'TQI BP Tech Compliance'!$F:$F,"FLORIDA REGION") -> 7 | BA13: =SUMIFS('TQI BP Tech Compliance'!$AI:$AI,'TQI BP Tech Compliance'!$N:$N,$G13,'TQI BP Tech Compliance'!$F:$F,"FLORIDA REGION") -> 85 | BB13: =SUMIFS('TQI BP Tech Compliance'!$Z:$Z,'TQI BP Tech Compliance'!$N:$N,$G13,'TQI BP Tech Compliance'!$F:$F,"FLORIDA REGION") -> 2 | BC13: =IFERROR(SUMIFS('TQI BP Tech Compliance'!$AC:$AC,'TQI BP Tech Compliance'!$N:$N,$G13,'TQI BP Tech Compliance'!$F:$F,"FLORIDA REGION")/BB13,"") -> 76 | BD13: =IFERROR(SUMIFS('TQI BP Tech Compliance'!$AD:$AD,'TQI BP Tech Compliance'!$N:$N,$G13,'TQI BP Tech Compliance'!$F:$F,"FLORIDA REGION"),"") -> 1 | BE13: Enrique Gabino | BF13: =IF(G13="","",SUMIFS(Completion!$CJ:$CJ,Completion!$G:$G,G13,Completion!$N:$N,"Install",Completion!$E:$E,"Florida")) -> 68 | BG13: =IF(G13="","",SUMIFS(Completion!$CB:$CB,Completion!$G:$G,G13,Completion!$N:$N,"Install",Completion!$E:$E,"Florida")) -> 57 | BH13: 0.8382 | BI13: =IF(G13="","",SUMIFS(Completion!$CJ:$CJ,Completion!$G:$G,G13,Completion!$N:$N,"TC",Completion!$E:$E,"Florida")) -> 58 | BJ13: =IF(G13="","",SUMIFS(Completion!$CB:$CB,Completion!$G:$G,G13,Completion!$N:$N,"TC",Completion!$E:$E,"Florida")) -> 56 | BK13: 0.9655 | BL13: 0.8968 | BM13: =COUNTIFS(Completion!$G:$G,$G13,Completion!$E:$E,"FLORIDA",Completion!$N:$N,"TC") -> 58 | BN13: =COUNTIFS(Completion!$G:$G,$G13,Completion!$E:$E,"FLORIDA",Completion!$N:$N,"TC",Completion!$X:$X,"Customer") -> 2 | BO13: 0.0345 | BV13: Dravis Williams | BW13: 6560 | BY13: =IF(BW13="","",SUMIFS('NSR WO Details'!$AG:$AG,'NSR WO Details'!$N:$N,BW13,'NSR WO Details'!$F:$F,"FLORIDA",'NSR WO Details'!AI:AI,">="&$BR$17,'NSR WO Details'!AI:AI,"<="&$BS$17)) -> 0 | BZ13: =IF(BW13="","",COUNTIFS('FTR Detail'!$P:$P,BW13,'FTR Detail'!$H:$H,"=FLORIDA",'NSR WO Details'!AI:AI,">="&$BR$17,'NSR WO Details'!AI:AI,"<="&$BS$17)) -> 0 | CB13: =IF(BW13="","",SUMIFS('Tool Usage Details'!$Q:$Q,'Tool Usage Details'!$I:$I,BW13,'Tool Usage Details'!$G:$G,"FLORIDA REGION",'NSR WO Details'!AI:AI,">="&$BR$17,'NSR WO Details'!AJ:AJ,"<="&$BS$17)) -> 0 | CC13: =IF(BW13="","",COUNTIFS('Tool Usage Details'!$I:$I,BW13,'Tool Usage Details'!$S:$S,"PASS",'Tool Usage Details'!$G:$G,"FLORIDA REGION",'NSR WO Details'!AI:AI,">="&$BR$17,'NSR WO Details'!AI:AI,"<="&$BS$17)) -> 0 | CE13: =IF(BW13="","",COUNTIFS('Tool Usage Details'!$I:$I,BW13,'Tool Usage Details'!$R:$R,"PWW",'Tool Usage Details'!$G:$G,"FLORIDA REGION")+COUNTIFS('Tool Usage Details'!$I:$I,BW13,'Tool Usage Details'!$R:$R,"PWO",'Tool Usage Details'!$G:$G,"FLORIDA REGION",'Tool Usage Details'!E:E,">="&$BR$17,'Tool Usage Details'!E:E,"<="&$BS$17)) -> 0 | CG13: =IF(BW13="","",SUMIFS('NSR WO Details'!$Z:$Z,'NSR WO Details'!$N:$N,BW13,'NSR WO Details'!$F:$F,"FLORIDA",'NSR WO Details'!AI:AI,">="&$BR$17,'NSR WO Details'!AI:AI,"<="&$BS$17)) -> 0 | CH13: =IF(BW13="","",SUMIFS('NSR WO Details'!$AA:$AA,'NSR WO Details'!$N:$N,BW13,'NSR WO Details'!$F:$F,"FLORIDA",'NSR WO Details'!AI:AI,">="&$BR$17,'NSR WO Details'!AI:AI,"<="&$BS$17)) -> 0 | CJ13: =IF(BW13="","",COUNTIFS('NSR WO Details'!$N:$N,BW13,'NSR WO Details'!$W:$W,"Met",'NSR WO Details'!$F:$F,"FLORIDA",'NSR WO Details'!AI:AI,">="&$BR$17,'NSR WO Details'!AI:AI,"<="&$BS$17)) -> 0 | CK13: =IF(BW13="","",COUNTIFS('NSR WO Details'!$N:$N,BW13,'NSR WO Details'!$W:$W,"Missed",'NSR WO Details'!$F:$F,"FLORIDA",'NSR WO Details'!AI:AI,">="&$BR$17,'NSR WO Details'!AI:AI,"<="&$BS$17)) -> 0 | CM13: =IF(BW13="","",COUNTIFS('NSR WO Details'!$N:$N,BW13,'NSR WO Details'!$F:$F,"FLORIDA",'NSR WO Details'!AI:AI,">="&$BR$17,'NSR WO Details'!AI:AI,"<="&$BS$17)) -> 0 | CN13: =IF(BW13="","",SUMIFS('NSR WO Details'!$AE:$AE,'NSR WO Details'!$N:$N,BW13,'NSR WO Details'!$F:$F,"FLORIDA",'NSR WO Details'!AI:AI,">="&$BR$17,'NSR WO Details'!AI:AI,"<="&$BS$17)) -> 0 | CP13: =IF(BW13="","",SUMIFS('RTM Results'!$DG:$DG,'RTM Results'!$BD:$BD,BW13,'RTM Results'!$O:$O,"Florida",'RTM Results'!H:H,">="&$BR$17,'RTM Results'!H:H,"<="&$BS$17)) -> 0 | CQ13: =IF(BW13="","",SUMIFS('RTM Results'!$DC:$DC,'RTM Results'!$BD:$BD,BW13,'RTM Results'!$O:$O,"Florida",'RTM Results'!H:H,">="&$BR$17,'RTM Results'!H:H,"<="&$BS$17)) -> 0 | CS13: =IF(BW13="","",SUMIFS('Tool Usage Details'!$T:$T,'Tool Usage Details'!$I:$I,BW13,'Tool Usage Details'!$G:$G,"FLORIDA REGION",'Tool Usage Details'!E:E,">="&$BR$17,'Tool Usage Details'!E:E,"<="&$BS$17)) -> 0 | CT13: =IF(BW13="","",COUNTIFS('Tool Usage Details'!$I:$I,BW13,'Tool Usage Details'!$U:$U,"PASS",'Tool Usage Details'!$G:$G,"FLORIDA REGION",'Tool Usage Details'!E:E,">="&$BR$17,'Tool Usage Details'!E:E,"<="&$BS$17)) -> 0 | CV13: =IF(BW13="","",SUMIFS('One Drop'!$BV:$BV,'One Drop'!$P:$P,BW13,'One Drop'!$L:$L,"FLORIDA REGION",'One Drop'!AQ:AQ,">="&$BR$17,'One Drop'!AQ:AQ,"<="&$BS$17)) -> 0 | CW13: =IF(BW13="","",SUMIFS('One Drop'!$BQ:$BQ,'One Drop'!$P:$P,BW13,'One Drop'!$L:$L,"FLORIDA REGION",'One Drop'!AQ:AQ,">="&$BR$17,'One Drop'!AQ:AQ,"<="&$BS$17)) -> 0 | CY13: =IF(BW13="","",SUMIFS('NSR WO Details'!$AK:$AK,'NSR WO Details'!$N:$N,BW13,'NSR WO Details'!$F:$F,"FLORIDA",'NSR WO Details'!AI:AI,">="&$BR$17,'NSR WO Details'!AI:AI,"<="&$BS$17)) -> 0 | CZ13: =IF(BW13="","",SUMIFS('NSR WO Details'!$AL:$AL,'NSR WO Details'!$N:$N,BW13,'NSR WO Details'!$F:$F,"FLORIDA",'NSR WO Details'!AI:AI,">="&$BR$17,'NSR WO Details'!AI:AI,"<="&$BS$17)) -> 0 | DB13: =IF(BW13="","",SUMIFS(Completion!$CJ:$CJ,Completion!$G:$G,BW13,Completion!$N:$N,"Install",Completion!$E:$E,"Florida",Completion!AA:AA,">="&$BR$17,Completion!AA:AA,"<="&$BS$17)) -> 0 | DC13: =IF(BW13="","",SUMIFS(Completion!$CB:$CB,Completion!$G:$G,BW13,Completion!$N:$N,"Install",Completion!$E:$E,"Florida",Completion!AA:AA,">="&$BR$17,Completion!AA:AA,"<="&$BS$17)) -> 0 | DE13: =IF(BW13="","",SUMIFS(Completion!$CJ:$CJ,Completion!$G:$G,BW13,Completion!$N:$N,"TC",Completion!$E:$E,"Florida",Completion!AA:AA,">="&BR$17,Completion!AA:AA,"<="&$BS$17)) -> 0 | DF13: =IF(BW13="","",SUMIFS(Completion!$CB:$CB,Completion!$G:$G,BW13,Completion!$N:$N,"TC",Completion!$E:$E,"Florida",Completion!AA:AA,">="&$BR$17,Completion!AA:AA,"<="&$BS$17)) -> 0
B14: Florida | I14: =IF(G14="","",SUMIFS('NSR WO Details'!$AG:$AG,'NSR WO Details'!$N:$N,G14,'NSR WO Details'!$F:$F,"FLORIDA")) ->  | J14: =IF(G14="","",COUNTIFS('FTR Detail'!$P:$P,G14,'FTR Detail'!$H:$H,"=FLORIDA")) ->  | L14: =IF(G14="","",SUMIF('Florida Rework'!$E:$E,$G14,'Florida Rework'!$H:$H)) ->  | M14: =IF(G14="","",SUMIF('Florida Rework'!$E:$E,$G14,'Florida Rework'!$I:$I)) ->  | N14: =IF(G14="","",SUMIF('Florida Rework'!$E:$E,$G14,'Florida Rework'!$M:$M)) ->  | P14: =IF(G14="","",SUMIF('Florida Rework'!$E:$E,$G14,'Florida Rework'!$J:$J)) ->  | Q14: =IF(G14="","",SUMIF('Florida Rework'!$E:$E,$G14,'Florida Rework'!$O:$O)) ->  | U14: =IF(G14="","",SUMIFS('Tool Usage Details'!$Q:$Q,'Tool Usage Details'!$I:$I,G14,'Tool Usage Details'!$G:$G,"FLORIDA REGION")) ->  | V14: =IF(G14="","",COUNTIFS('Tool Usage Details'!$I:$I,G14,'Tool Usage Details'!$S:$S,"PASS",'Tool Usage Details'!$G:$G,"FLORIDA REGION")) ->  | X14: =IF(G14="","",COUNTIFS('Tool Usage Details'!$I:$I,G14,'Tool Usage Details'!$R:$R,"PWW",'Tool Usage Details'!G:G,"FLORIDA REGION")+COUNTIFS('Tool Usage Details'!$I:$I,G14,'Tool Usage Details'!$R:$R,"PWO",'Tool Usage Details'!$G:$G,"FLORIDA REGION")) ->  | Z14: =IF(G14="","",SUMIFS('NSR WO Details'!$Z:$Z,'NSR WO Details'!$N:$N,G14,'NSR WO Details'!$F:$F,"FLORIDA")) ->  | AA14: =IF(G14="","",SUMIFS('NSR WO Details'!$AA:$AA,'NSR WO Details'!$N:$N,G14,'NSR WO Details'!$F:$F,"FLORIDA")) ->  | AC14: =IF(G14="","",COUNTIFS('NSR WO Details'!$N:$N,G14,'NSR WO Details'!$W:$W,"Met",'NSR WO Details'!$F:$F,"FLORIDA")) ->  | AD14: =IF(G14="","",COUNTIFS('NSR WO Details'!$N:$N,G14,'NSR WO Details'!$W:$W,"Missed",'NSR WO Details'!$F:$F,"FLORIDA")) ->  | AF14: =IF(G14="","",COUNTIFS('NSR WO Details'!$N:$N,G14,'NSR WO Details'!$F:$F,"FLORIDA")) ->  | AG14: =IF(G14="","",SUMIFS('NSR WO Details'!$AE:$AE,'NSR WO Details'!$N:$N,G14,'NSR WO Details'!$F:$F,"FLORIDA")) ->  | AI14: =IF(G14="","",SUMIFS('RTM Results'!$DI:$DI,'RTM Results'!$BF:$BF,G14,'RTM Results'!$P:$P,"Florida")) ->  | AJ14: =IF(G14="","",SUMIFS('RTM Results'!$DE:$DE,'RTM Results'!$BF:$BF,G14,'RTM Results'!$P:$P,"Florida")) ->  | AL14: =SUMIFS('ML Bonding Compliance'!$AR:$AR,'ML Bonding Compliance'!$R:$R,$G14,'ML Bonding Compliance'!$F:$F,"FLORIDA") -> 0 | AM14: =SUMIFS('ML Bonding Compliance'!$AU:$AU,'ML Bonding Compliance'!$R:$R,$G14,'ML Bonding Compliance'!$F:$F,"FLORIDA") -> 0 | AO14: =IF(G14="","",SUMIFS('Tool Usage Details'!$T:$T,'Tool Usage Details'!$I:$I,G14,'Tool Usage Details'!$G:$G,"FLORIDA REGION")) ->  | AP14: =IF(G14="","",COUNTIFS('Tool Usage Details'!$I:$I,G14,'Tool Usage Details'!$U:$U,"PASS",'Tool Usage Details'!$G:$G,"FLORIDA REGION")) ->  | AR14: =IF(G14="","",SUMIFS('One Drop'!$BV:$BV,'One Drop'!$P:$P,G14,'One Drop'!$L:$L,"FLORIDA REGION")) ->  | AS14: =IF(G14="","",SUMIFS('One Drop'!$BQ:$BQ,'One Drop'!$P:$P,G14,'One Drop'!$L:$L,"FLORIDA REGION")) ->  | AU14: =IF(G14="","",SUMIFS('NSR WO Details'!$AK:$AK,'NSR WO Details'!$N:$N,G14,'NSR WO Details'!$F:$F,"FLORIDA")) ->  | AV14: =IF(G14="","",SUMIFS('NSR WO Details'!$AL:$AL,'NSR WO Details'!$N:$N,G14,'NSR WO Details'!$F:$F,"FLORIDA")) ->  | AX14: =IF(OR(I14=0,I14=""),"",SUMIFS('Time in Home'!$L:$L,'Time in Home'!$I:$I,$G14,'Time in Home'!E:E,"FLORIDA REGION")) ->  | AY14: =IF(OR(I14=0,I14=""),"",SUMIFS('Time in Home'!$P:$P,'Time in Home'!$I:$I,$G14,'Time in Home'!E:E,"FLORIDA REGION")) ->  | AZ14: =SUMIFS('TQI BP Tech Compliance'!$Q:$Q,'TQI BP Tech Compliance'!$N:$N,$G14,'TQI BP Tech Compliance'!$F:$F,"FLORIDA REGION") -> 0 | BA14: =SUMIFS('TQI BP Tech Compliance'!$AI:$AI,'TQI BP Tech Compliance'!$N:$N,$G14,'TQI BP Tech Compliance'!$F:$F,"FLORIDA REGION") -> 0 | BB14: =SUMIFS('TQI BP Tech Compliance'!$Z:$Z,'TQI BP Tech Compliance'!$N:$N,$G14,'TQI BP Tech Compliance'!$F:$F,"FLORIDA REGION") -> 0 | BC14: =IFERROR(SUMIFS('TQI BP Tech Compliance'!$AC:$AC,'TQI BP Tech Compliance'!$N:$N,$G14,'TQI BP Tech Compliance'!$F:$F,"FLORIDA REGION")/BB14,"") ->  | BD14: =IFERROR(SUMIFS('TQI BP Tech Compliance'!$AD:$AD,'TQI BP Tech Compliance'!$N:$N,$G14,'TQI BP Tech Compliance'!$F:$F,"FLORIDA REGION"),"") -> 0 | BE14: Enrique Gabino | BF14: =IF(G14="","",SUMIFS(Completion!$CJ:$CJ,Completion!$G:$G,G14,Completion!$N:$N,"Install",Completion!$E:$E,"Florida")) ->  | BG14: =IF(G14="","",SUMIFS(Completion!$CB:$CB,Completion!$G:$G,G14,Completion!$N:$N,"Install",Completion!$E:$E,"Florida")) ->  | BI14: =IF(G14="","",SUMIFS(Completion!$CJ:$CJ,Completion!$G:$G,G14,Completion!$N:$N,"TC",Completion!$E:$E,"Florida")) ->  | BJ14: =IF(G14="","",SUMIFS(Completion!$CB:$CB,Completion!$G:$G,G14,Completion!$N:$N,"TC",Completion!$E:$E,"Florida")) ->  | BM14: =COUNTIFS(Completion!$G:$G,$G14,Completion!$E:$E,"FLORIDA",Completion!$N:$N,"TC") -> 0 | BN14: =COUNTIFS(Completion!$G:$G,$G14,Completion!$E:$E,"FLORIDA",Completion!$N:$N,"TC",Completion!$X:$X,"Customer") -> 0 | BV14: Chris Anderson | BW14: 8452 | BX14: 3.5 | BY14: =IF(BW14="","",SUMIFS('NSR WO Details'!$AG:$AG,'NSR WO Details'!$N:$N,BW14,'NSR WO Details'!$F:$F,"FLORIDA",'NSR WO Details'!AI:AI,">="&$BR$17,'NSR WO Details'!AI:AI,"<="&$BS$17)) -> 24 | BZ14: =IF(BW14="","",COUNTIFS('FTR Detail'!$P:$P,BW14,'FTR Detail'!$H:$H,"=FLORIDA",'NSR WO Details'!AI:AI,">="&$BR$17,'NSR WO Details'!AI:AI,"<="&$BS$17)) -> 4 | CA14: 0.833 | CB14: =IF(BW14="","",SUMIFS('Tool Usage Details'!$Q:$Q,'Tool Usage Details'!$I:$I,BW14,'Tool Usage Details'!$G:$G,"FLORIDA REGION",'NSR WO Details'!AI:AI,">="&$BR$17,'NSR WO Details'!AJ:AJ,"<="&$BS$17)) -> 0 | CC14: =IF(BW14="","",COUNTIFS('Tool Usage Details'!$I:$I,BW14,'Tool Usage Details'!$S:$S,"PASS",'Tool Usage Details'!$G:$G,"FLORIDA REGION",'NSR WO Details'!AI:AI,">="&$BR$17,'NSR WO Details'!AI:AI,"<="&$BS$17)) -> 15 | CE14: =IF(BW14="","",COUNTIFS('Tool Usage Details'!$I:$I,BW14,'Tool Usage Details'!$R:$R,"PWW",'Tool Usage Details'!$G:$G,"FLORIDA REGION")+COUNTIFS('Tool Usage Details'!$I:$I,BW14,'Tool Usage Details'!$R:$R,"PWO",'Tool Usage Details'!$G:$G,"FLORIDA REGION",'Tool Usage Details'!E:E,">="&$BR$17,'Tool Usage Details'!E:E,"<="&$BS$17)) -> 1 | CF14: 0.933 | CG14: =IF(BW14="","",SUMIFS('NSR WO Details'!$Z:$Z,'NSR WO Details'!$N:$N,BW14,'NSR WO Details'!$F:$F,"FLORIDA",'NSR WO Details'!AI:AI,">="&$BR$17,'NSR WO Details'!AI:AI,"<="&$BS$17)) -> 4 | CH14: =IF(BW14="","",SUMIFS('NSR WO Details'!$AA:$AA,'NSR WO Details'!$N:$N,BW14,'NSR WO Details'!$F:$F,"FLORIDA",'NSR WO Details'!AI:AI,">="&$BR$17,'NSR WO Details'!AI:AI,"<="&$BS$17)) -> 4 | CI14: 1 | CJ14: =IF(BW14="","",COUNTIFS('NSR WO Details'!$N:$N,BW14,'NSR WO Details'!$W:$W,"Met",'NSR WO Details'!$F:$F,"FLORIDA",'NSR WO Details'!AI:AI,">="&$BR$17,'NSR WO Details'!AI:AI,"<="&$BS$17)) -> 24 | CK14: =IF(BW14="","",COUNTIFS('NSR WO Details'!$N:$N,BW14,'NSR WO Details'!$W:$W,"Missed",'NSR WO Details'!$F:$F,"FLORIDA",'NSR WO Details'!AI:AI,">="&$BR$17,'NSR WO Details'!AI:AI,"<="&$BS$17)) -> 3 | CL14: 0.8889 | CM14: =IF(BW14="","",COUNTIFS('NSR WO Details'!$N:$N,BW14,'NSR WO Details'!$F:$F,"FLORIDA",'NSR WO Details'!AI:AI,">="&$BR$17,'NSR WO Details'!AI:AI,"<="&$BS$17)) -> 30 | CN14: =IF(BW14="","",SUMIFS('NSR WO Details'!$AE:$AE,'NSR WO Details'!$N:$N,BW14,'NSR WO Details'!$F:$F,"FLORIDA",'NSR WO Details'!AI:AI,">="&$BR$17,'NSR WO Details'!AI:AI,"<="&$BS$17)) -> 3 | CO14: 0.1 | CP14: =IF(BW14="","",SUMIFS('RTM Results'!$DG:$DG,'RTM Results'!$BD:$BD,BW14,'RTM Results'!$O:$O,"Florida",'RTM Results'!H:H,">="&$BR$17,'RTM Results'!H:H,"<="&$BS$17)) -> 0 | CQ14: =IF(BW14="","",SUMIFS('RTM Results'!$DC:$DC,'RTM Results'!$BD:$BD,BW14,'RTM Results'!$O:$O,"Florida",'RTM Results'!H:H,">="&$BR$17,'RTM Results'!H:H,"<="&$BS$17)) -> 0 | CS14: =IF(BW14="","",SUMIFS('Tool Usage Details'!$T:$T,'Tool Usage Details'!$I:$I,BW14,'Tool Usage Details'!$G:$G,"FLORIDA REGION",'Tool Usage Details'!E:E,">="&$BR$17,'Tool Usage Details'!E:E,"<="&$BS$17)) -> 18 | CT14: =IF(BW14="","",COUNTIFS('Tool Usage Details'!$I:$I,BW14,'Tool Usage Details'!$U:$U,"PASS",'Tool Usage Details'!$G:$G,"FLORIDA REGION",'Tool Usage Details'!E:E,">="&$BR$17,'Tool Usage Details'!E:E,"<="&$BS$17)) -> 17 | CU14: 0.9444 | CV14: =IF(BW14="","",SUMIFS('One Drop'!$BV:$BV,'One Drop'!$P:$P,BW14,'One Drop'!$L:$L,"FLORIDA REGION",'One Drop'!AQ:AQ,">="&$BR$17,'One Drop'!AQ:AQ,"<="&$BS$17)) -> 3 | CW14: =IF(BW14="","",SUMIFS('One Drop'!$BQ:$BQ,'One Drop'!$P:$P,BW14,'One Drop'!$L:$L,"FLORIDA REGION",'One Drop'!AQ:AQ,">="&$BR$17,'One Drop'!AQ:AQ,"<="&$BS$17)) -> 3 | CX14: 1 | CY14: =IF(BW14="","",SUMIFS('NSR WO Details'!$AK:$AK,'NSR WO Details'!$N:$N,BW14,'NSR WO Details'!$F:$F,"FLORIDA",'NSR WO Details'!AI:AI,">="&$BR$17,'NSR WO Details'!AI:AI,"<="&$BS$17)) -> 18 | CZ14: =IF(BW14="","",SUMIFS('NSR WO Details'!$AL:$AL,'NSR WO Details'!$N:$N,BW14,'NSR WO Details'!$F:$F,"FLORIDA",'NSR WO Details'!AI:AI,">="&$BR$17,'NSR WO Details'!AI:AI,"<="&$BS$17)) -> 17 | DA14: 0.944 | DB14: =IF(BW14="","",SUMIFS(Completion!$CJ:$CJ,Completion!$G:$G,BW14,Completion!$N:$N,"Install",Completion!$E:$E,"Florida",Completion!AA:AA,">="&$BR$17,Completion!AA:AA,"<="&$BS$17)) -> 13 | DC14: =IF(BW14="","",SUMIFS(Completion!$CB:$CB,Completion!$G:$G,BW14,Completion!$N:$N,"Install",Completion!$E:$E,"Florida",Completion!AA:AA,">="&$BR$17,Completion!AA:AA,"<="&$BS$17)) -> 10 | DD14: 0.7692 | DE14: =IF(BW14="","",SUMIFS(Completion!$CJ:$CJ,Completion!$G:$G,BW14,Completion!$N:$N,"TC",Completion!$E:$E,"Florida",Completion!AA:AA,">="&BR$17,Completion!AA:AA,"<="&$BS$17)) -> 13 | DF14: =IF(BW14="","",SUMIFS(Completion!$CB:$CB,Completion!$G:$G,BW14,Completion!$N:$N,"TC",Completion!$E:$E,"Florida",Completion!AA:AA,">="&$BR$17,Completion!AA:AA,"<="&$BS$17)) -> 12 | DG14: 0.9231 | DH14: 0.8462
B15: West Palm Beach | I15: =IF(G15="","",SUMIFS('NSR WO Details'!$AG:$AG,'NSR WO Details'!$N:$N,G15,'NSR WO Details'!$F:$F,"FLORIDA")) ->  | J15: =IF(G15="","",COUNTIFS('FTR Detail'!$P:$P,G15,'FTR Detail'!$H:$H,"=FLORIDA")) ->  | L15: =IF(G15="","",SUMIF('Florida Rework'!$E:$E,$G15,'Florida Rework'!$H:$H)) ->  | M15: =IF(G15="","",SUMIF('Florida Rework'!$E:$E,$G15,'Florida Rework'!$I:$I)) ->  | N15: =IF(G15="","",SUMIF('Florida Rework'!$E:$E,$G15,'Florida Rework'!$M:$M)) ->  | P15: =IF(G15="","",SUMIF('Florida Rework'!$E:$E,$G15,'Florida Rework'!$J:$J)) ->  | Q15: =IF(G15="","",SUMIF('Florida Rework'!$E:$E,$G15,'Florida Rework'!$O:$O)) ->  | U15: =IF(G15="","",SUMIFS('Tool Usage Details'!$Q:$Q,'Tool Usage Details'!$I:$I,G15,'Tool Usage Details'!$G:$G,"FLORIDA REGION")) ->  | V15: =IF(G15="","",COUNTIFS('Tool Usage Details'!$I:$I,G15,'Tool Usage Details'!$S:$S,"PASS",'Tool Usage Details'!$G:$G,"FLORIDA REGION")) ->  | X15: =IF(G15="","",COUNTIFS('Tool Usage Details'!$I:$I,G15,'Tool Usage Details'!$R:$R,"PWW",'Tool Usage Details'!G:G,"FLORIDA REGION")+COUNTIFS('Tool Usage Details'!$I:$I,G15,'Tool Usage Details'!$R:$R,"PWO",'Tool Usage Details'!$G:$G,"FLORIDA REGION")) ->  | Z15: =IF(G15="","",SUMIFS('NSR WO Details'!$Z:$Z,'NSR WO Details'!$N:$N,G15,'NSR WO Details'!$F:$F,"FLORIDA")) ->  | AA15: =IF(G15="","",SUMIFS('NSR WO Details'!$AA:$AA,'NSR WO Details'!$N:$N,G15,'NSR WO Details'!$F:$F,"FLORIDA")) ->  | AC15: =IF(G15="","",COUNTIFS('NSR WO Details'!$N:$N,G15,'NSR WO Details'!$W:$W,"Met",'NSR WO Details'!$F:$F,"FLORIDA")) ->  | AD15: =IF(G15="","",COUNTIFS('NSR WO Details'!$N:$N,G15,'NSR WO Details'!$W:$W,"Missed",'NSR WO Details'!$F:$F,"FLORIDA")) ->  | AF15: =IF(G15="","",COUNTIFS('NSR WO Details'!$N:$N,G15,'NSR WO Details'!$F:$F,"FLORIDA")) ->  | AG15: =IF(G15="","",SUMIFS('NSR WO Details'!$AE:$AE,'NSR WO Details'!$N:$N,G15,'NSR WO Details'!$F:$F,"FLORIDA")) ->  | AI15: =IF(G15="","",SUMIFS('RTM Results'!$DI:$DI,'RTM Results'!$BF:$BF,G15,'RTM Results'!$P:$P,"Florida")) ->  | AJ15: =IF(G15="","",SUMIFS('RTM Results'!$DE:$DE,'RTM Results'!$BF:$BF,G15,'RTM Results'!$P:$P,"Florida")) ->  | AL15: =SUMIFS('ML Bonding Compliance'!$AR:$AR,'ML Bonding Compliance'!$R:$R,$G15,'ML Bonding Compliance'!$F:$F,"FLORIDA") -> 0 | AM15: =SUMIFS('ML Bonding Compliance'!$AU:$AU,'ML Bonding Compliance'!$R:$R,$G15,'ML Bonding Compliance'!$F:$F,"FLORIDA") -> 0 | AO15: =IF(G15="","",SUMIFS('Tool Usage Details'!$T:$T,'Tool Usage Details'!$I:$I,G15,'Tool Usage Details'!$G:$G,"FLORIDA REGION")) ->  | AP15: =IF(G15="","",COUNTIFS('Tool Usage Details'!$I:$I,G15,'Tool Usage Details'!$U:$U,"PASS",'Tool Usage Details'!$G:$G,"FLORIDA REGION")) ->  | AR15: =IF(G15="","",SUMIFS('One Drop'!$BV:$BV,'One Drop'!$P:$P,G15,'One Drop'!$L:$L,"FLORIDA REGION")) ->  | AS15: =IF(G15="","",SUMIFS('One Drop'!$BQ:$BQ,'One Drop'!$P:$P,G15,'One Drop'!$L:$L,"FLORIDA REGION")) ->  | AU15: =IF(G15="","",SUMIFS('NSR WO Details'!$AK:$AK,'NSR WO Details'!$N:$N,G15,'NSR WO Details'!$F:$F,"FLORIDA")) ->  | AV15: =IF(G15="","",SUMIFS('NSR WO Details'!$AL:$AL,'NSR WO Details'!$N:$N,G15,'NSR WO Details'!$F:$F,"FLORIDA")) ->  | AX15: =IF(OR(I15=0,I15=""),"",SUMIFS('Time in Home'!$L:$L,'Time in Home'!$I:$I,$G15,'Time in Home'!E:E,"FLORIDA REGION")) ->  | AY15: =IF(OR(I15=0,I15=""),"",SUMIFS('Time in Home'!$P:$P,'Time in Home'!$I:$I,$G15,'Time in Home'!E:E,"FLORIDA REGION")) ->  | AZ15: =SUMIFS('TQI BP Tech Compliance'!$Q:$Q,'TQI BP Tech Compliance'!$N:$N,$G15,'TQI BP Tech Compliance'!$F:$F,"FLORIDA REGION") -> 0 | BA15: =SUMIFS('TQI BP Tech Compliance'!$AI:$AI,'TQI BP Tech Compliance'!$N:$N,$G15,'TQI BP Tech Compliance'!$F:$F,"FLORIDA REGION") -> 0 | BB15: =SUMIFS('TQI BP Tech Compliance'!$Z:$Z,'TQI BP Tech Compliance'!$N:$N,$G15,'TQI BP Tech Compliance'!$F:$F,"FLORIDA REGION") -> 0 | BC15: =IFERROR(SUMIFS('TQI BP Tech Compliance'!$AC:$AC,'TQI BP Tech Compliance'!$N:$N,$G15,'TQI BP Tech Compliance'!$F:$F,"FLORIDA REGION")/BB15,"") ->  | BD15: =IFERROR(SUMIFS('TQI BP Tech Compliance'!$AD:$AD,'TQI BP Tech Compliance'!$N:$N,$G15,'TQI BP Tech Compliance'!$F:$F,"FLORIDA REGION"),"") -> 0 | BE15: Enrique Gabino | BF15: =IF(G15="","",SUMIFS(Completion!$CJ:$CJ,Completion!$G:$G,G15,Completion!$N:$N,"Install",Completion!$E:$E,"Florida")) ->  | BG15: =IF(G15="","",SUMIFS(Completion!$CB:$CB,Completion!$G:$G,G15,Completion!$N:$N,"Install",Completion!$E:$E,"Florida")) ->  | BI15: =IF(G15="","",SUMIFS(Completion!$CJ:$CJ,Completion!$G:$G,G15,Completion!$N:$N,"TC",Completion!$E:$E,"Florida")) ->  | BJ15: =IF(G15="","",SUMIFS(Completion!$CB:$CB,Completion!$G:$G,G15,Completion!$N:$N,"TC",Completion!$E:$E,"Florida")) ->  | BM15: =COUNTIFS(Completion!$G:$G,$G15,Completion!$E:$E,"FLORIDA",Completion!$N:$N,"TC") -> 0 | BN15: =COUNTIFS(Completion!$G:$G,$G15,Completion!$E:$E,"FLORIDA",Completion!$N:$N,"TC",Completion!$X:$X,"Customer") -> 0 | BV15: Marcel Baptiste | BW15: 7728 | BX15: 6.5 | BY15: =IF(BW15="","",SUMIFS('NSR WO Details'!$AG:$AG,'NSR WO Details'!$N:$N,BW15,'NSR WO Details'!$F:$F,"FLORIDA",'NSR WO Details'!AI:AI,">="&$BR$17,'NSR WO Details'!AI:AI,"<="&$BS$17)) -> 34 | BZ15: =IF(BW15="","",COUNTIFS('FTR Detail'!$P:$P,BW15,'FTR Detail'!$H:$H,"=FLORIDA",'NSR WO Details'!AI:AI,">="&$BR$17,'NSR WO Details'!AI:AI,"<="&$BS$17)) -> 5 | CA15: 0.853 | CB15: =IF(BW15="","",SUMIFS('Tool Usage Details'!$Q:$Q,'Tool Usage Details'!$I:$I,BW15,'Tool Usage Details'!$G:$G,"FLORIDA REGION",'NSR WO Details'!AI:AI,">="&$BR$17,'NSR WO Details'!AJ:AJ,"<="&$BS$17)) -> 0 | CC15: =IF(BW15="","",COUNTIFS('Tool Usage Details'!$I:$I,BW15,'Tool Usage Details'!$S:$S,"PASS",'Tool Usage Details'!$G:$G,"FLORIDA REGION",'NSR WO Details'!AI:AI,">="&$BR$17,'NSR WO Details'!AI:AI,"<="&$BS$17)) -> 13 | CE15: =IF(BW15="","",COUNTIFS('Tool Usage Details'!$I:$I,BW15,'Tool Usage Details'!$R:$R,"PWW",'Tool Usage Details'!$G:$G,"FLORIDA REGION")+COUNTIFS('Tool Usage Details'!$I:$I,BW15,'Tool Usage Details'!$R:$R,"PWO",'Tool Usage Details'!$G:$G,"FLORIDA REGION",'Tool Usage Details'!E:E,">="&$BR$17,'Tool Usage Details'!E:E,"<="&$BS$17)) -> 0 | CF15: 1 | CG15: =IF(BW15="","",SUMIFS('NSR WO Details'!$Z:$Z,'NSR WO Details'!$N:$N,BW15,'NSR WO Details'!$F:$F,"FLORIDA",'NSR WO Details'!AI:AI,">="&$BR$17,'NSR WO Details'!AI:AI,"<="&$BS$17)) -> 7 | CH15: =IF(BW15="","",SUMIFS('NSR WO Details'!$AA:$AA,'NSR WO Details'!$N:$N,BW15,'NSR WO Details'!$F:$F,"FLORIDA",'NSR WO Details'!AI:AI,">="&$BR$17,'NSR WO Details'!AI:AI,"<="&$BS$17)) -> 7 | CI15: 1 | CJ15: =IF(BW15="","",COUNTIFS('NSR WO Details'!$N:$N,BW15,'NSR WO Details'!$W:$W,"Met",'NSR WO Details'!$F:$F,"FLORIDA",'NSR WO Details'!AI:AI,">="&$BR$17,'NSR WO Details'!AI:AI,"<="&$BS$17)) -> 37 | CK15: =IF(BW15="","",COUNTIFS('NSR WO Details'!$N:$N,BW15,'NSR WO Details'!$W:$W,"Missed",'NSR WO Details'!$F:$F,"FLORIDA",'NSR WO Details'!AI:AI,">="&$BR$17,'NSR WO Details'!AI:AI,"<="&$BS$17)) -> 0 | CL15: 1 | CM15: =IF(BW15="","",COUNTIFS('NSR WO Details'!$N:$N,BW15,'NSR WO Details'!$F:$F,"FLORIDA",'NSR WO Details'!AI:AI,">="&$BR$17,'NSR WO Details'!AI:AI,"<="&$BS$17)) -> 40 | CN15: =IF(BW15="","",SUMIFS('NSR WO Details'!$AE:$AE,'NSR WO Details'!$N:$N,BW15,'NSR WO Details'!$F:$F,"FLORIDA",'NSR WO Details'!AI:AI,">="&$BR$17,'NSR WO Details'!AI:AI,"<="&$BS$17)) -> 4 | CO15: 0.1 | CP15: =IF(BW15="","",SUMIFS('RTM Results'!$DG:$DG,'RTM Results'!$BD:$BD,BW15,'RTM Results'!$O:$O,"Florida",'RTM Results'!H:H,">="&$BR$17,'RTM Results'!H:H,"<="&$BS$17)) -> 0 | CQ15: =IF(BW15="","",SUMIFS('RTM Results'!$DC:$DC,'RTM Results'!$BD:$BD,BW15,'RTM Results'!$O:$O,"Florida",'RTM Results'!H:H,">="&$BR$17,'RTM Results'!H:H,"<="&$BS$17)) -> 0 | CS15: =IF(BW15="","",SUMIFS('Tool Usage Details'!$T:$T,'Tool Usage Details'!$I:$I,BW15,'Tool Usage Details'!$G:$G,"FLORIDA REGION",'Tool Usage Details'!E:E,">="&$BR$17,'Tool Usage Details'!E:E,"<="&$BS$17)) -> 12 | CT15: =IF(BW15="","",COUNTIFS('Tool Usage Details'!$I:$I,BW15,'Tool Usage Details'!$U:$U,"PASS",'Tool Usage Details'!$G:$G,"FLORIDA REGION",'Tool Usage Details'!E:E,">="&$BR$17,'Tool Usage Details'!E:E,"<="&$BS$17)) -> 12 | CU15: 1 | CV15: =IF(BW15="","",SUMIFS('One Drop'!$BV:$BV,'One Drop'!$P:$P,BW15,'One Drop'!$L:$L,"FLORIDA REGION",'One Drop'!AQ:AQ,">="&$BR$17,'One Drop'!AQ:AQ,"<="&$BS$17)) -> 3 | CW15: =IF(BW15="","",SUMIFS('One Drop'!$BQ:$BQ,'One Drop'!$P:$P,BW15,'One Drop'!$L:$L,"FLORIDA REGION",'One Drop'!AQ:AQ,">="&$BR$17,'One Drop'!AQ:AQ,"<="&$BS$17)) -> 3 | CX15: 1 | CY15: =IF(BW15="","",SUMIFS('NSR WO Details'!$AK:$AK,'NSR WO Details'!$N:$N,BW15,'NSR WO Details'!$F:$F,"FLORIDA",'NSR WO Details'!AI:AI,">="&$BR$17,'NSR WO Details'!AI:AI,"<="&$BS$17)) -> 12 | CZ15: =IF(BW15="","",SUMIFS('NSR WO Details'!$AL:$AL,'NSR WO Details'!$N:$N,BW15,'NSR WO Details'!$F:$F,"FLORIDA",'NSR WO Details'!AI:AI,">="&$BR$17,'NSR WO Details'!AI:AI,"<="&$BS$17)) -> 12 | DA15: 1 | DB15: =IF(BW15="","",SUMIFS(Completion!$CJ:$CJ,Completion!$G:$G,BW15,Completion!$N:$N,"Install",Completion!$E:$E,"Florida",Completion!AA:AA,">="&$BR$17,Completion!AA:AA,"<="&$BS$17)) -> 15 | DC15: =IF(BW15="","",SUMIFS(Completion!$CB:$CB,Completion!$G:$G,BW15,Completion!$N:$N,"Install",Completion!$E:$E,"Florida",Completion!AA:AA,">="&$BR$17,Completion!AA:AA,"<="&$BS$17)) -> 12 | DD15: 0.8 | DE15: =IF(BW15="","",SUMIFS(Completion!$CJ:$CJ,Completion!$G:$G,BW15,Completion!$N:$N,"TC",Completion!$E:$E,"Florida",Completion!AA:AA,">="&BR$17,Completion!AA:AA,"<="&$BS$17)) -> 25 | DF15: =IF(BW15="","",SUMIFS(Completion!$CB:$CB,Completion!$G:$G,BW15,Completion!$N:$N,"TC",Completion!$E:$E,"Florida",Completion!AA:AA,">="&$BR$17,Completion!AA:AA,"<="&$BS$17)) -> 24 | DG15: 0.96 | DH15: 0.9
B16: Treasure Coast | I16: =IF(G16="","",SUMIFS('NSR WO Details'!$AG:$AG,'NSR WO Details'!$N:$N,G16,'NSR WO Details'!$F:$F,"FLORIDA")) ->  | J16: =IF(G16="","",COUNTIFS('FTR Detail'!$P:$P,G16,'FTR Detail'!$H:$H,"=FLORIDA")) ->  | L16: =IF(G16="","",SUMIF('Florida Rework'!$E:$E,$G16,'Florida Rework'!$H:$H)) ->  | M16: =IF(G16="","",SUMIF('Florida Rework'!$E:$E,$G16,'Florida Rework'!$I:$I)) ->  | N16: =IF(G16="","",SUMIF('Florida Rework'!$E:$E,$G16,'Florida Rework'!$M:$M)) ->  | P16: =IF(G16="","",SUMIF('Florida Rework'!$E:$E,$G16,'Florida Rework'!$J:$J)) ->  | Q16: =IF(G16="","",SUMIF('Florida Rework'!$E:$E,$G16,'Florida Rework'!$O:$O)) ->  | U16: =IF(G16="","",SUMIFS('Tool Usage Details'!$Q:$Q,'Tool Usage Details'!$I:$I,G16,'Tool Usage Details'!$G:$G,"FLORIDA REGION")) ->  | V16: =IF(G16="","",COUNTIFS('Tool Usage Details'!$I:$I,G16,'Tool Usage Details'!$S:$S,"PASS",'Tool Usage Details'!$G:$G,"FLORIDA REGION")) ->  | X16: =IF(G16="","",COUNTIFS('Tool Usage Details'!$I:$I,G16,'Tool Usage Details'!$R:$R,"PWW",'Tool Usage Details'!G:G,"FLORIDA REGION")+COUNTIFS('Tool Usage Details'!$I:$I,G16,'Tool Usage Details'!$R:$R,"PWO",'Tool Usage Details'!$G:$G,"FLORIDA REGION")) ->  | Z16: =IF(G16="","",SUMIFS('NSR WO Details'!$Z:$Z,'NSR WO Details'!$N:$N,G16,'NSR WO Details'!$F:$F,"FLORIDA")) ->  | AA16: =IF(G16="","",SUMIFS('NSR WO Details'!$AA:$AA,'NSR WO Details'!$N:$N,G16,'NSR WO Details'!$F:$F,"FLORIDA")) ->  | AC16: =IF(G16="","",COUNTIFS('NSR WO Details'!$N:$N,G16,'NSR WO Details'!$W:$W,"Met",'NSR WO Details'!$F:$F,"FLORIDA")) ->  | AD16: =IF(G16="","",COUNTIFS('NSR WO Details'!$N:$N,G16,'NSR WO Details'!$W:$W,"Missed",'NSR WO Details'!$F:$F,"FLORIDA")) ->  | AF16: =IF(G16="","",COUNTIFS('NSR WO Details'!$N:$N,G16,'NSR WO Details'!$F:$F,"FLORIDA")) ->  | AG16: =IF(G16="","",SUMIFS('NSR WO Details'!$AE:$AE,'NSR WO Details'!$N:$N,G16,'NSR WO Details'!$F:$F,"FLORIDA")) ->  | AI16: =IF(G16="","",SUMIFS('RTM Results'!$DI:$DI,'RTM Results'!$BF:$BF,G16,'RTM Results'!$P:$P,"Florida")) ->  | AJ16: =IF(G16="","",SUMIFS('RTM Results'!$DE:$DE,'RTM Results'!$BF:$BF,G16,'RTM Results'!$P:$P,"Florida")) ->  | AL16: =SUMIFS('ML Bonding Compliance'!$AR:$AR,'ML Bonding Compliance'!$R:$R,$G16,'ML Bonding Compliance'!$F:$F,"FLORIDA") -> 0 | AM16: =SUMIFS('ML Bonding Compliance'!$AU:$AU,'ML Bonding Compliance'!$R:$R,$G16,'ML Bonding Compliance'!$F:$F,"FLORIDA") -> 0 | AO16: =IF(G16="","",SUMIFS('Tool Usage Details'!$T:$T,'Tool Usage Details'!$I:$I,G16,'Tool Usage Details'!$G:$G,"FLORIDA REGION")) ->  | AP16: =IF(G16="","",COUNTIFS('Tool Usage Details'!$I:$I,G16,'Tool Usage Details'!$U:$U,"PASS",'Tool Usage Details'!$G:$G,"FLORIDA REGION")) ->  | AR16: =IF(G16="","",SUMIFS('One Drop'!$BV:$BV,'One Drop'!$P:$P,G16,'One Drop'!$L:$L,"FLORIDA REGION")) ->  | AS16: =IF(G16="","",SUMIFS('One Drop'!$BQ:$BQ,'One Drop'!$P:$P,G16,'One Drop'!$L:$L,"FLORIDA REGION")) ->  | AU16: =IF(G16="","",SUMIFS('NSR WO Details'!$AK:$AK,'NSR WO Details'!$N:$N,G16,'NSR WO Details'!$F:$F,"FLORIDA")) ->  | AV16: =IF(G16="","",SUMIFS('NSR WO Details'!$AL:$AL,'NSR WO Details'!$N:$N,G16,'NSR WO Details'!$F:$F,"FLORIDA")) ->  | AX16: =IF(OR(I16=0,I16=""),"",SUMIFS('Time in Home'!$L:$L,'Time in Home'!$I:$I,$G16,'Time in Home'!E:E,"FLORIDA REGION")) ->  | AY16: =IF(OR(I16=0,I16=""),"",SUMIFS('Time in Home'!$P:$P,'Time in Home'!$I:$I,$G16,'Time in Home'!E:E,"FLORIDA REGION")) ->  | AZ16: =SUMIFS('TQI BP Tech Compliance'!$Q:$Q,'TQI BP Tech Compliance'!$N:$N,$G16,'TQI BP Tech Compliance'!$F:$F,"FLORIDA REGION") -> 0 | BA16: =SUMIFS('TQI BP Tech Compliance'!$AI:$AI,'TQI BP Tech Compliance'!$N:$N,$G16,'TQI BP Tech Compliance'!$F:$F,"FLORIDA REGION") -> 0 | BB16: =SUMIFS('TQI BP Tech Compliance'!$Z:$Z,'TQI BP Tech Compliance'!$N:$N,$G16,'TQI BP Tech Compliance'!$F:$F,"FLORIDA REGION") -> 0 | BC16: =IFERROR(SUMIFS('TQI BP Tech Compliance'!$AC:$AC,'TQI BP Tech Compliance'!$N:$N,$G16,'TQI BP Tech Compliance'!$F:$F,"FLORIDA REGION")/BB16,"") ->  | BD16: =IFERROR(SUMIFS('TQI BP Tech Compliance'!$AD:$AD,'TQI BP Tech Compliance'!$N:$N,$G16,'TQI BP Tech Compliance'!$F:$F,"FLORIDA REGION"),"") -> 0 | BE16: Enrique Gabino | BF16: =IF(G16="","",SUMIFS(Completion!$CJ:$CJ,Completion!$G:$G,G16,Completion!$N:$N,"Install",Completion!$E:$E,"Florida")) ->  | BG16: =IF(G16="","",SUMIFS(Completion!$CB:$CB,Completion!$G:$G,G16,Completion!$N:$N,"Install",Completion!$E:$E,"Florida")) ->  | BI16: =IF(G16="","",SUMIFS(Completion!$CJ:$CJ,Completion!$G:$G,G16,Completion!$N:$N,"TC",Completion!$E:$E,"Florida")) ->  | BJ16: =IF(G16="","",SUMIFS(Completion!$CB:$CB,Completion!$G:$G,G16,Completion!$N:$N,"TC",Completion!$E:$E,"Florida")) ->  | BM16: =COUNTIFS(Completion!$G:$G,$G16,Completion!$E:$E,"FLORIDA",Completion!$N:$N,"TC") -> 0 | BN16: =COUNTIFS(Completion!$G:$G,$G16,Completion!$E:$E,"FLORIDA",Completion!$N:$N,"TC",Completion!$X:$X,"Customer") -> 0 | BR16: From | BS16: To | BY16: =IF(BW16="","",SUMIFS('NSR WO Details'!$AG:$AG,'NSR WO Details'!$N:$N,BW16,'NSR WO Details'!$F:$F,"FLORIDA",'NSR WO Details'!AI:AI,">="&$BR$17,'NSR WO Details'!AI:AI,"<="&$BS$17)) ->  | BZ16: =IF(BW16="","",COUNTIFS('FTR Detail'!$P:$P,BW16,'FTR Detail'!$H:$H,"=FLORIDA",'NSR WO Details'!AI:AI,">="&$BR$17,'NSR WO Details'!AI:AI,"<="&$BS$17)) ->  | CB16: =IF(BW16="","",SUMIFS('Tool Usage Details'!$Q:$Q,'Tool Usage Details'!$I:$I,BW16,'Tool Usage Details'!$G:$G,"FLORIDA REGION",'NSR WO Details'!AI:AI,">="&$BR$17,'NSR WO Details'!AJ:AJ,"<="&$BS$17)) ->  | CC16: =IF(BW16="","",COUNTIFS('Tool Usage Details'!$I:$I,BW16,'Tool Usage Details'!$S:$S,"PASS",'Tool Usage Details'!$G:$G,"FLORIDA REGION",'NSR WO Details'!AI:AI,">="&$BR$17,'NSR WO Details'!AI:AI,"<="&$BS$17)) ->  | CE16: =IF(BW16="","",COUNTIFS('Tool Usage Details'!$I:$I,BW16,'Tool Usage Details'!$R:$R,"PWW",'Tool Usage Details'!$G:$G,"FLORIDA REGION")+COUNTIFS('Tool Usage Details'!$I:$I,BW16,'Tool Usage Details'!$R:$R,"PWO",'Tool Usage Details'!$G:$G,"FLORIDA REGION",'Tool Usage Details'!E:E,">="&$BR$17,'Tool Usage Details'!E:E,"<="&$BS$17)) ->  | CG16: =IF(BW16="","",SUMIFS('NSR WO Details'!$Z:$Z,'NSR WO Details'!$N:$N,BW16,'NSR WO Details'!$F:$F,"FLORIDA",'NSR WO Details'!AI:AI,">="&$BR$17,'NSR WO Details'!AI:AI,"<="&$BS$17)) ->  | CH16: =IF(BW16="","",SUMIFS('NSR WO Details'!$AA:$AA,'NSR WO Details'!$N:$N,BW16,'NSR WO Details'!$F:$F,"FLORIDA",'NSR WO Details'!AI:AI,">="&$BR$17,'NSR WO Details'!AI:AI,"<="&$BS$17)) ->  | CJ16: =IF(BW16="","",COUNTIFS('NSR WO Details'!$N:$N,BW16,'NSR WO Details'!$W:$W,"Met",'NSR WO Details'!$F:$F,"FLORIDA",'NSR WO Details'!AI:AI,">="&$BR$17,'NSR WO Details'!AI:AI,"<="&$BS$17)) ->  | CK16: =IF(BW16="","",COUNTIFS('NSR WO Details'!$N:$N,BW16,'NSR WO Details'!$W:$W,"Missed",'NSR WO Details'!$F:$F,"FLORIDA",'NSR WO Details'!AI:AI,">="&$BR$17,'NSR WO Details'!AI:AI,"<="&$BS$17)) ->  | CM16: =IF(BW16="","",COUNTIFS('NSR WO Details'!$N:$N,BW16,'NSR WO Details'!$F:$F,"FLORIDA",'NSR WO Details'!AI:AI,">="&$BR$17,'NSR WO Details'!AI:AI,"<="&$BS$17)) ->  | CN16: =IF(BW16="","",SUMIFS('NSR WO Details'!$AE:$AE,'NSR WO Details'!$N:$N,BW16,'NSR WO Details'!$F:$F,"FLORIDA",'NSR WO Details'!AI:AI,">="&$BR$17,'NSR WO Details'!AI:AI,"<="&$BS$17)) ->  | CP16: =IF(BW16="","",SUMIFS('RTM Results'!$DG:$DG,'RTM Results'!$BD:$BD,BW16,'RTM Results'!$O:$O,"Florida",'RTM Results'!H:H,">="&$BR$17,'RTM Results'!H:H,"<="&$BS$17)) ->  | CQ16: =IF(BW16="","",SUMIFS('RTM Results'!$DC:$DC,'RTM Results'!$BD:$BD,BW16,'RTM Results'!$O:$O,"Florida",'RTM Results'!H:H,">="&$BR$17,'RTM Results'!H:H,"<="&$BS$17)) ->  | CS16: =IF(BW16="","",SUMIFS('Tool Usage Details'!$T:$T,'Tool Usage Details'!$I:$I,BW16,'Tool Usage Details'!$G:$G,"FLORIDA REGION",'Tool Usage Details'!E:E,">="&$BR$17,'Tool Usage Details'!E:E,"<="&$BS$17)) ->  | CT16: =IF(BW16="","",COUNTIFS('Tool Usage Details'!$I:$I,BW16,'Tool Usage Details'!$U:$U,"PASS",'Tool Usage Details'!$G:$G,"FLORIDA REGION",'Tool Usage Details'!E:E,">="&$BR$17,'Tool Usage Details'!E:E,"<="&$BS$17)) ->  | CV16: =IF(BW16="","",SUMIFS('One Drop'!$BV:$BV,'One Drop'!$P:$P,BW16,'One Drop'!$L:$L,"FLORIDA REGION",'One Drop'!AQ:AQ,">="&$BR$17,'One Drop'!AQ:AQ,"<="&$BS$17)) ->  | CW16: =IF(BW16="","",SUMIFS('One Drop'!$BQ:$BQ,'One Drop'!$P:$P,BW16,'One Drop'!$L:$L,"FLORIDA REGION",'One Drop'!AQ:AQ,">="&$BR$17,'One Drop'!AQ:AQ,"<="&$BS$17)) ->  | CY16: =IF(BW16="","",SUMIFS('NSR WO Details'!$AK:$AK,'NSR WO Details'!$N:$N,BW16,'NSR WO Details'!$F:$F,"FLORIDA",'NSR WO Details'!AI:AI,">="&$BR$17,'NSR WO Details'!AI:AI,"<="&$BS$17)) ->  | CZ16: =IF(BW16="","",SUMIFS('NSR WO Details'!$AL:$AL,'NSR WO Details'!$N:$N,BW16,'NSR WO Details'!$F:$F,"FLORIDA",'NSR WO Details'!AI:AI,">="&$BR$17,'NSR WO Details'!AI:AI,"<="&$BS$17)) ->  | DB16: =IF(BW16="","",SUMIFS(Completion!$CJ:$CJ,Completion!$G:$G,BW16,Completion!$N:$N,"Install",Completion!$E:$E,"Florida",Completion!AA:AA,">="&$BR$17,Completion!AA:AA,"<="&$BS$17)) ->  | DC16: =IF(BW16="","",SUMIFS(Completion!$CB:$CB,Completion!$G:$G,BW16,Completion!$N:$N,"Install",Completion!$E:$E,"Florida",Completion!AA:AA,">="&$BR$17,Completion!AA:AA,"<="&$BS$17)) ->  | DE16: =IF(BW16="","",SUMIFS(Completion!$CJ:$CJ,Completion!$G:$G,BW16,Completion!$N:$N,"TC",Completion!$E:$E,"Florida",Completion!AA:AA,">="&BR$17,Completion!AA:AA,"<="&$BS$17)) ->  | DF16: =IF(BW16="","",SUMIFS(Completion!$CB:$CB,Completion!$G:$G,BW16,Completion!$N:$N,"TC",Completion!$E:$E,"Florida",Completion!AA:AA,">="&$BR$17,Completion!AA:AA,"<="&$BS$17)) -> 
B17: Jacksonville | I17: =IF(G17="","",SUMIFS('NSR WO Details'!$AG:$AG,'NSR WO Details'!$N:$N,G17,'NSR WO Details'!$F:$F,"FLORIDA")) ->  | J17: =IF(G17="","",COUNTIFS('FTR Detail'!$P:$P,G17,'FTR Detail'!$H:$H,"=FLORIDA")) ->  | L17: =IF(G17="","",SUMIF('Florida Rework'!$E:$E,$G17,'Florida Rework'!$H:$H)) ->  | M17: =IF(G17="","",SUMIF('Florida Rework'!$E:$E,$G17,'Florida Rework'!$I:$I)) ->  | N17: =IF(G17="","",SUMIF('Florida Rework'!$E:$E,$G17,'Florida Rework'!$M:$M)) ->  | P17: =IF(G17="","",SUMIF('Florida Rework'!$E:$E,$G17,'Florida Rework'!$J:$J)) ->  | Q17: =IF(G17="","",SUMIF('Florida Rework'!$E:$E,$G17,'Florida Rework'!$O:$O)) ->  | U17: =IF(G17="","",SUMIFS('Tool Usage Details'!$Q:$Q,'Tool Usage Details'!$I:$I,G17,'Tool Usage Details'!$G:$G,"FLORIDA REGION")) ->  | V17: =IF(G17="","",COUNTIFS('Tool Usage Details'!$I:$I,G17,'Tool Usage Details'!$S:$S,"PASS",'Tool Usage Details'!$G:$G,"FLORIDA REGION")) ->  | X17: =IF(G17="","",COUNTIFS('Tool Usage Details'!$I:$I,G17,'Tool Usage Details'!$R:$R,"PWW",'Tool Usage Details'!G:G,"FLORIDA REGION")+COUNTIFS('Tool Usage Details'!$I:$I,G17,'Tool Usage Details'!$R:$R,"PWO",'Tool Usage Details'!$G:$G,"FLORIDA REGION")) ->  | Z17: =IF(G17="","",SUMIFS('NSR WO Details'!$Z:$Z,'NSR WO Details'!$N:$N,G17,'NSR WO Details'!$F:$F,"FLORIDA")) ->  | AA17: =IF(G17="","",SUMIFS('NSR WO Details'!$AA:$AA,'NSR WO Details'!$N:$N,G17,'NSR WO Details'!$F:$F,"FLORIDA")) ->  | AC17: =IF(G17="","",COUNTIFS('NSR WO Details'!$N:$N,G17,'NSR WO Details'!$W:$W,"Met",'NSR WO Details'!$F:$F,"FLORIDA")) ->  | AD17: =IF(G17="","",COUNTIFS('NSR WO Details'!$N:$N,G17,'NSR WO Details'!$W:$W,"Missed",'NSR WO Details'!$F:$F,"FLORIDA")) ->  | AF17: =IF(G17="","",COUNTIFS('NSR WO Details'!$N:$N,G17,'NSR WO Details'!$F:$F,"FLORIDA")) ->  | AG17: =IF(G17="","",SUMIFS('NSR WO Details'!$AE:$AE,'NSR WO Details'!$N:$N,G17,'NSR WO Details'!$F:$F,"FLORIDA")) ->  | AI17: =IF(G17="","",SUMIFS('RTM Results'!$DI:$DI,'RTM Results'!$BF:$BF,G17,'RTM Results'!$P:$P,"Florida")) ->  | AJ17: =IF(G17="","",SUMIFS('RTM Results'!$DE:$DE,'RTM Results'!$BF:$BF,G17,'RTM Results'!$P:$P,"Florida")) ->  | AL17: =SUMIFS('ML Bonding Compliance'!$AR:$AR,'ML Bonding Compliance'!$R:$R,$G17,'ML Bonding Compliance'!$F:$F,"FLORIDA") -> 0 | AM17: =SUMIFS('ML Bonding Compliance'!$AU:$AU,'ML Bonding Compliance'!$R:$R,$G17,'ML Bonding Compliance'!$F:$F,"FLORIDA") -> 0 | AO17: =IF(G17="","",SUMIFS('Tool Usage Details'!$T:$T,'Tool Usage Details'!$I:$I,G17,'Tool Usage Details'!$G:$G,"FLORIDA REGION")) ->  | AP17: =IF(G17="","",COUNTIFS('Tool Usage Details'!$I:$I,G17,'Tool Usage Details'!$U:$U,"PASS",'Tool Usage Details'!$G:$G,"FLORIDA REGION")) ->  | AR17: =IF(G17="","",SUMIFS('One Drop'!$BV:$BV,'One Drop'!$P:$P,G17,'One Drop'!$L:$L,"FLORIDA REGION")) ->  | AS17: =IF(G17="","",SUMIFS('One Drop'!$BQ:$BQ,'One Drop'!$P:$P,G17,'One Drop'!$L:$L,"FLORIDA REGION")) ->  | AU17: =IF(G17="","",SUMIFS('NSR WO Details'!$AK:$AK,'NSR WO Details'!$N:$N,G17,'NSR WO Details'!$F:$F,"FLORIDA")) ->  | AV17: =IF(G17="","",SUMIFS('NSR WO Details'!$AL:$AL,'NSR WO Details'!$N:$N,G17,'NSR WO Details'!$F:$F,"FLORIDA")) ->  | AX17: =IF(OR(I17=0,I17=""),"",SUMIFS('Time in Home'!$L:$L,'Time in Home'!$I:$I,$G17,'Time in Home'!E:E,"FLORIDA REGION")) ->  | AY17: =IF(OR(I17=0,I17=""),"",SUMIFS('Time in Home'!$P:$P,'Time in Home'!$I:$I,$G17,'Time in Home'!E:E,"FLORIDA REGION")) ->  | AZ17: =SUMIFS('TQI BP Tech Compliance'!$Q:$Q,'TQI BP Tech Compliance'!$N:$N,$G17,'TQI BP Tech Compliance'!$F:$F,"FLORIDA REGION") -> 0 | BA17: =SUMIFS('TQI BP Tech Compliance'!$AI:$AI,'TQI BP Tech Compliance'!$N:$N,$G17,'TQI BP Tech Compliance'!$F:$F,"FLORIDA REGION") -> 0 | BB17: =SUMIFS('TQI BP Tech Compliance'!$Z:$Z,'TQI BP Tech Compliance'!$N:$N,$G17,'TQI BP Tech Compliance'!$F:$F,"FLORIDA REGION") -> 0 | BC17: =IFERROR(SUMIFS('TQI BP Tech Compliance'!$AC:$AC,'TQI BP Tech Compliance'!$N:$N,$G17,'TQI BP Tech Compliance'!$F:$F,"FLORIDA REGION")/BB17,"") ->  | BD17: =IFERROR(SUMIFS('TQI BP Tech Compliance'!$AD:$AD,'TQI BP Tech Compliance'!$N:$N,$G17,'TQI BP Tech Compliance'!$F:$F,"FLORIDA REGION"),"") -> 0 | BE17: Enrique Gabino | BF17: =IF(G17="","",SUMIFS(Completion!$CJ:$CJ,Completion!$G:$G,G17,Completion!$N:$N,"Install",Completion!$E:$E,"Florida")) ->  | BG17: =IF(G17="","",SUMIFS(Completion!$CB:$CB,Completion!$G:$G,G17,Completion!$N:$N,"Install",Completion!$E:$E,"Florida")) ->  | BI17: =IF(G17="","",SUMIFS(Completion!$CJ:$CJ,Completion!$G:$G,G17,Completion!$N:$N,"TC",Completion!$E:$E,"Florida")) ->  | BJ17: =IF(G17="","",SUMIFS(Completion!$CB:$CB,Completion!$G:$G,G17,Completion!$N:$N,"TC",Completion!$E:$E,"Florida")) ->  | BM17: =COUNTIFS(Completion!$G:$G,$G17,Completion!$E:$E,"FLORIDA",Completion!$N:$N,"TC") -> 0 | BN17: =COUNTIFS(Completion!$G:$G,$G17,Completion!$E:$E,"FLORIDA",Completion!$N:$N,"TC",Completion!$X:$X,"Customer") -> 0 | BR17: 2024-03-22 | BS17: 2024-03-29 | BY17: =IF(BW17="","",SUMIFS('NSR WO Details'!$AG:$AG,'NSR WO Details'!$N:$N,BW17,'NSR WO Details'!$F:$F,"FLORIDA",'NSR WO Details'!AI:AI,">="&$BR$17,'NSR WO Details'!AI:AI,"<="&$BS$17)) ->  | BZ17: =IF(BW17="","",COUNTIFS('FTR Detail'!$P:$P,BW17,'FTR Detail'!$H:$H,"=FLORIDA",'NSR WO Details'!AI:AI,">="&$BR$17,'NSR WO Details'!AI:AI,"<="&$BS$17)) ->  | CB17: =IF(BW17="","",SUMIFS('Tool Usage Details'!$Q:$Q,'Tool Usage Details'!$I:$I,BW17,'Tool Usage Details'!$G:$G,"FLORIDA REGION",'NSR WO Details'!AI:AI,">="&$BR$17,'NSR WO Details'!AJ:AJ,"<="&$BS$17)) ->  | CC17: =IF(BW17="","",COUNTIFS('Tool Usage Details'!$I:$I,BW17,'Tool Usage Details'!$S:$S,"PASS",'Tool Usage Details'!$G:$G,"FLORIDA REGION",'NSR WO Details'!AI:AI,">="&$BR$17,'NSR WO Details'!AI:AI,"<="&$BS$17)) ->  | CE17: =IF(BW17="","",COUNTIFS('Tool Usage Details'!$I:$I,BW17,'Tool Usage Details'!$R:$R,"PWW",'Tool Usage Details'!$G:$G,"FLORIDA REGION")+COUNTIFS('Tool Usage Details'!$I:$I,BW17,'Tool Usage Details'!$R:$R,"PWO",'Tool Usage Details'!$G:$G,"FLORIDA REGION",'Tool Usage Details'!E:E,">="&$BR$17,'Tool Usage Details'!E:E,"<="&$BS$17)) ->  | CG17: =IF(BW17="","",SUMIFS('NSR WO Details'!$Z:$Z,'NSR WO Details'!$N:$N,BW17,'NSR WO Details'!$F:$F,"FLORIDA",'NSR WO Details'!AI:AI,">="&$BR$17,'NSR WO Details'!AI:AI,"<="&$BS$17)) ->  | CH17: =IF(BW17="","",SUMIFS('NSR WO Details'!$AA:$AA,'NSR WO Details'!$N:$N,BW17,'NSR WO Details'!$F:$F,"FLORIDA",'NSR WO Details'!AI:AI,">="&$BR$17,'NSR WO Details'!AI:AI,"<="&$BS$17)) ->  | CJ17: =IF(BW17="","",COUNTIFS('NSR WO Details'!$N:$N,BW17,'NSR WO Details'!$W:$W,"Met",'NSR WO Details'!$F:$F,"FLORIDA",'NSR WO Details'!AI:AI,">="&$BR$17,'NSR WO Details'!AI:AI,"<="&$BS$17)) ->  | CK17: =IF(BW17="","",COUNTIFS('NSR WO Details'!$N:$N,BW17,'NSR WO Details'!$W:$W,"Missed",'NSR WO Details'!$F:$F,"FLORIDA",'NSR WO Details'!AI:AI,">="&$BR$17,'NSR WO Details'!AI:AI,"<="&$BS$17)) ->  | CM17: =IF(BW17="","",COUNTIFS('NSR WO Details'!$N:$N,BW17,'NSR WO Details'!$F:$F,"FLORIDA",'NSR WO Details'!AI:AI,">="&$BR$17,'NSR WO Details'!AI:AI,"<="&$BS$17)) ->  | CN17: =IF(BW17="","",SUMIFS('NSR WO Details'!$AE:$AE,'NSR WO Details'!$N:$N,BW17,'NSR WO Details'!$F:$F,"FLORIDA",'NSR WO Details'!AI:AI,">="&$BR$17,'NSR WO Details'!AI:AI,"<="&$BS$17)) ->  | CP17: =IF(BW17="","",SUMIFS('RTM Results'!$DG:$DG,'RTM Results'!$BD:$BD,BW17,'RTM Results'!$O:$O,"Florida",'RTM Results'!H:H,">="&$BR$17,'RTM Results'!H:H,"<="&$BS$17)) ->  | CQ17: =IF(BW17="","",SUMIFS('RTM Results'!$DC:$DC,'RTM Results'!$BD:$BD,BW17,'RTM Results'!$O:$O,"Florida",'RTM Results'!H:H,">="&$BR$17,'RTM Results'!H:H,"<="&$BS$17)) ->  | CS17: =IF(BW17="","",SUMIFS('Tool Usage Details'!$T:$T,'Tool Usage Details'!$I:$I,BW17,'Tool Usage Details'!$G:$G,"FLORIDA REGION",'Tool Usage Details'!E:E,">="&$BR$17,'Tool Usage Details'!E:E,"<="&$BS$17)) ->  | CT17: =IF(BW17="","",COUNTIFS('Tool Usage Details'!$I:$I,BW17,'Tool Usage Details'!$U:$U,"PASS",'Tool Usage Details'!$G:$G,"FLORIDA REGION",'Tool Usage Details'!E:E,">="&$BR$17,'Tool Usage Details'!E:E,"<="&$BS$17)) ->  | CV17: =IF(BW17="","",SUMIFS('One Drop'!$BV:$BV,'One Drop'!$P:$P,BW17,'One Drop'!$L:$L,"FLORIDA REGION",'One Drop'!AQ:AQ,">="&$BR$17,'One Drop'!AQ:AQ,"<="&$BS$17)) ->  | CW17: =IF(BW17="","",SUMIFS('One Drop'!$BQ:$BQ,'One Drop'!$P:$P,BW17,'One Drop'!$L:$L,"FLORIDA REGION",'One Drop'!AQ:AQ,">="&$BR$17,'One Drop'!AQ:AQ,"<="&$BS$17)) ->  | CY17: =IF(BW17="","",SUMIFS('NSR WO Details'!$AK:$AK,'NSR WO Details'!$N:$N,BW17,'NSR WO Details'!$F:$F,"FLORIDA",'NSR WO Details'!AI:AI,">="&$BR$17,'NSR WO Details'!AI:AI,"<="&$BS$17)) ->  | CZ17: =IF(BW17="","",SUMIFS('NSR WO Details'!$AL:$AL,'NSR WO Details'!$N:$N,BW17,'NSR WO Details'!$F:$F,"FLORIDA",'NSR WO Details'!AI:AI,">="&$BR$17,'NSR WO Details'!AI:AI,"<="&$BS$17)) ->  | DB17: =IF(BW17="","",SUMIFS(Completion!$CJ:$CJ,Completion!$G:$G,BW17,Completion!$N:$N,"Install",Completion!$E:$E,"Florida",Completion!AA:AA,">="&$BR$17,Completion!AA:AA,"<="&$BS$17)) ->  | DC17: =IF(BW17="","",SUMIFS(Completion!$CB:$CB,Completion!$G:$G,BW17,Completion!$N:$N,"Install",Completion!$E:$E,"Florida",Completion!AA:AA,">="&$BR$17,Completion!AA:AA,"<="&$BS$17)) ->  | DE17: =IF(BW17="","",SUMIFS(Completion!$CJ:$CJ,Completion!$G:$G,BW17,Completion!$N:$N,"TC",Completion!$E:$E,"Florida",Completion!AA:AA,">="&BR$17,Completion!AA:AA,"<="&$BS$17)) ->  | DF17: =IF(BW17="","",SUMIFS(Completion!$CB:$CB,Completion!$G:$G,BW17,Completion!$N:$N,"TC",Completion!$E:$E,"Florida",Completion!AA:AA,">="&$BR$17,Completion!AA:AA,"<="&$BS$17)) -> 
B18: Florida Panhandle | I18: =IF(G18="","",SUMIFS('NSR WO Details'!$AG:$AG,'NSR WO Details'!$N:$N,G18,'NSR WO Details'!$F:$F,"FLORIDA")) ->  | J18: =IF(G18="","",COUNTIFS('FTR Detail'!$P:$P,G18,'FTR Detail'!$H:$H,"=FLORIDA")) ->  | L18: =IF(G18="","",SUMIF('Florida Rework'!$E:$E,$G18,'Florida Rework'!$H:$H)) ->  | M18: =IF(G18="","",SUMIF('Florida Rework'!$E:$E,$G18,'Florida Rework'!$I:$I)) ->  | N18: =IF(G18="","",SUMIF('Florida Rework'!$E:$E,$G18,'Florida Rework'!$M:$M)) ->  | P18: =IF(G18="","",SUMIF('Florida Rework'!$E:$E,$G18,'Florida Rework'!$J:$J)) ->  | Q18: =IF(G18="","",SUMIF('Florida Rework'!$E:$E,$G18,'Florida Rework'!$O:$O)) ->  | U18: =IF(G18="","",SUMIFS('Tool Usage Details'!$Q:$Q,'Tool Usage Details'!$I:$I,G18,'Tool Usage Details'!$G:$G,"FLORIDA REGION")) ->  | V18: =IF(G18="","",COUNTIFS('Tool Usage Details'!$I:$I,G18,'Tool Usage Details'!$S:$S,"PASS",'Tool Usage Details'!$G:$G,"FLORIDA REGION")) ->  | X18: =IF(G18="","",COUNTIFS('Tool Usage Details'!$I:$I,G18,'Tool Usage Details'!$R:$R,"PWW",'Tool Usage Details'!G:G,"FLORIDA REGION")+COUNTIFS('Tool Usage Details'!$I:$I,G18,'Tool Usage Details'!$R:$R,"PWO",'Tool Usage Details'!$G:$G,"FLORIDA REGION")) ->  | Z18: =IF(G18="","",SUMIFS('NSR WO Details'!$Z:$Z,'NSR WO Details'!$N:$N,G18,'NSR WO Details'!$F:$F,"FLORIDA")) ->  | AA18: =IF(G18="","",SUMIFS('NSR WO Details'!$AA:$AA,'NSR WO Details'!$N:$N,G18,'NSR WO Details'!$F:$F,"FLORIDA")) ->  | AC18: =IF(G18="","",COUNTIFS('NSR WO Details'!$N:$N,G18,'NSR WO Details'!$W:$W,"Met",'NSR WO Details'!$F:$F,"FLORIDA")) ->  | AD18: =IF(G18="","",COUNTIFS('NSR WO Details'!$N:$N,G18,'NSR WO Details'!$W:$W,"Missed",'NSR WO Details'!$F:$F,"FLORIDA")) ->  | AF18: =IF(G18="","",COUNTIFS('NSR WO Details'!$N:$N,G18,'NSR WO Details'!$F:$F,"FLORIDA")) ->  | AG18: =IF(G18="","",SUMIFS('NSR WO Details'!$AE:$AE,'NSR WO Details'!$N:$N,G18,'NSR WO Details'!$F:$F,"FLORIDA")) ->  | AI18: =IF(G18="","",SUMIFS('RTM Results'!$DI:$DI,'RTM Results'!$BF:$BF,G18,'RTM Results'!$P:$P,"Florida")) ->  | AJ18: =IF(G18="","",SUMIFS('RTM Results'!$DE:$DE,'RTM Results'!$BF:$BF,G18,'RTM Results'!$P:$P,"Florida")) ->  | AL18: =SUMIFS('ML Bonding Compliance'!$AR:$AR,'ML Bonding Compliance'!$R:$R,$G18,'ML Bonding Compliance'!$F:$F,"FLORIDA") -> 0 | AM18: =SUMIFS('ML Bonding Compliance'!$AU:$AU,'ML Bonding Compliance'!$R:$R,$G18,'ML Bonding Compliance'!$F:$F,"FLORIDA") -> 0 | AO18: =IF(G18="","",SUMIFS('Tool Usage Details'!$T:$T,'Tool Usage Details'!$I:$I,G18,'Tool Usage Details'!$G:$G,"FLORIDA REGION")) ->  | AP18: =IF(G18="","",COUNTIFS('Tool Usage Details'!$I:$I,G18,'Tool Usage Details'!$U:$U,"PASS",'Tool Usage Details'!$G:$G,"FLORIDA REGION")) ->  | AR18: =IF(G18="","",SUMIFS('One Drop'!$BV:$BV,'One Drop'!$P:$P,G18,'One Drop'!$L:$L,"FLORIDA REGION")) ->  | AS18: =IF(G18="","",SUMIFS('One Drop'!$BQ:$BQ,'One Drop'!$P:$P,G18,'One Drop'!$L:$L,"FLORIDA REGION")) ->  | AU18: =IF(G18="","",SUMIFS('NSR WO Details'!$AK:$AK,'NSR WO Details'!$N:$N,G18,'NSR WO Details'!$F:$F,"FLORIDA")) ->  | AV18: =IF(G18="","",SUMIFS('NSR WO Details'!$AL:$AL,'NSR WO Details'!$N:$N,G18,'NSR WO Details'!$F:$F,"FLORIDA")) ->  | AX18: =IF(OR(I18=0,I18=""),"",SUMIFS('Time in Home'!$L:$L,'Time in Home'!$I:$I,$G18,'Time in Home'!E:E,"FLORIDA REGION")) ->  | AY18: =IF(OR(I18=0,I18=""),"",SUMIFS('Time in Home'!$P:$P,'Time in Home'!$I:$I,$G18,'Time in Home'!E:E,"FLORIDA REGION")) ->  | AZ18: =SUMIFS('TQI BP Tech Compliance'!$Q:$Q,'TQI BP Tech Compliance'!$N:$N,$G18,'TQI BP Tech Compliance'!$F:$F,"FLORIDA REGION") -> 0 | BA18: =SUMIFS('TQI BP Tech Compliance'!$AI:$AI,'TQI BP Tech Compliance'!$N:$N,$G18,'TQI BP Tech Compliance'!$F:$F,"FLORIDA REGION") -> 0 | BB18: =SUMIFS('TQI BP Tech Compliance'!$Z:$Z,'TQI BP Tech Compliance'!$N:$N,$G18,'TQI BP Tech Compliance'!$F:$F,"FLORIDA REGION") -> 0 | BC18: =IFERROR(SUMIFS('TQI BP Tech Compliance'!$AC:$AC,'TQI BP Tech Compliance'!$N:$N,$G18,'TQI BP Tech Compliance'!$F:$F,"FLORIDA REGION")/BB18,"") ->  | BD18: =IFERROR(SUMIFS('TQI BP Tech Compliance'!$AD:$AD,'TQI BP Tech Compliance'!$N:$N,$G18,'TQI BP Tech Compliance'!$F:$F,"FLORIDA REGION"),"") -> 0 | BE18: Enrique Gabino | BF18: =IF(G18="","",SUMIFS(Completion!$CJ:$CJ,Completion!$G:$G,G18,Completion!$N:$N,"Install",Completion!$E:$E,"Florida")) ->  | BG18: =IF(G18="","",SUMIFS(Completion!$CB:$CB,Completion!$G:$G,G18,Completion!$N:$N,"Install",Completion!$E:$E,"Florida")) ->  | BI18: =IF(G18="","",SUMIFS(Completion!$CJ:$CJ,Completion!$G:$G,G18,Completion!$N:$N,"TC",Completion!$E:$E,"Florida")) ->  | BJ18: =IF(G18="","",SUMIFS(Completion!$CB:$CB,Completion!$G:$G,G18,Completion!$N:$N,"TC",Completion!$E:$E,"Florida")) ->  | BM18: =COUNTIFS(Completion!$G:$G,$G18,Completion!$E:$E,"FLORIDA",Completion!$N:$N,"TC") -> 0 | BN18: =COUNTIFS(Completion!$G:$G,$G18,Completion!$E:$E,"FLORIDA",Completion!$N:$N,"TC",Completion!$X:$X,"Customer") -> 0 | BY18: =IF(BW18="","",SUMIFS('NSR WO Details'!$AG:$AG,'NSR WO Details'!$N:$N,BW18,'NSR WO Details'!$F:$F,"FLORIDA",'NSR WO Details'!AI:AI,">="&$BR$17,'NSR WO Details'!AI:AI,"<="&$BS$17)) ->  | BZ18: =IF(BW18="","",COUNTIFS('FTR Detail'!$P:$P,BW18,'FTR Detail'!$H:$H,"=FLORIDA",'NSR WO Details'!AI:AI,">="&$BR$17,'NSR WO Details'!AI:AI,"<="&$BS$17)) ->  | CB18: =IF(BW18="","",SUMIFS('Tool Usage Details'!$Q:$Q,'Tool Usage Details'!$I:$I,BW18,'Tool Usage Details'!$G:$G,"FLORIDA REGION",'NSR WO Details'!AI:AI,">="&$BR$17,'NSR WO Details'!AJ:AJ,"<="&$BS$17)) ->  | CC18: =IF(BW18="","",COUNTIFS('Tool Usage Details'!$I:$I,BW18,'Tool Usage Details'!$S:$S,"PASS",'Tool Usage Details'!$G:$G,"FLORIDA REGION",'NSR WO Details'!AI:AI,">="&$BR$17,'NSR WO Details'!AI:AI,"<="&$BS$17)) ->  | CE18: =IF(BW18="","",COUNTIFS('Tool Usage Details'!$I:$I,BW18,'Tool Usage Details'!$R:$R,"PWW",'Tool Usage Details'!$G:$G,"FLORIDA REGION")+COUNTIFS('Tool Usage Details'!$I:$I,BW18,'Tool Usage Details'!$R:$R,"PWO",'Tool Usage Details'!$G:$G,"FLORIDA REGION",'Tool Usage Details'!E:E,">="&$BR$17,'Tool Usage Details'!E:E,"<="&$BS$17)) ->  | CG18: =IF(BW18="","",SUMIFS('NSR WO Details'!$Z:$Z,'NSR WO Details'!$N:$N,BW18,'NSR WO Details'!$F:$F,"FLORIDA",'NSR WO Details'!AI:AI,">="&$BR$17,'NSR WO Details'!AI:AI,"<="&$BS$17)) ->  | CH18: =IF(BW18="","",SUMIFS('NSR WO Details'!$AA:$AA,'NSR WO Details'!$N:$N,BW18,'NSR WO Details'!$F:$F,"FLORIDA",'NSR WO Details'!AI:AI,">="&$BR$17,'NSR WO Details'!AI:AI,"<="&$BS$17)) ->  | CJ18: =IF(BW18="","",COUNTIFS('NSR WO Details'!$N:$N,BW18,'NSR WO Details'!$W:$W,"Met",'NSR WO Details'!$F:$F,"FLORIDA",'NSR WO Details'!AI:AI,">="&$BR$17,'NSR WO Details'!AI:AI,"<="&$BS$17)) ->  | CK18: =IF(BW18="","",COUNTIFS('NSR WO Details'!$N:$N,BW18,'NSR WO Details'!$W:$W,"Missed",'NSR WO Details'!$F:$F,"FLORIDA",'NSR WO Details'!AI:AI,">="&$BR$17,'NSR WO Details'!AI:AI,"<="&$BS$17)) ->  | CM18: =IF(BW18="","",COUNTIFS('NSR WO Details'!$N:$N,BW18,'NSR WO Details'!$F:$F,"FLORIDA",'NSR WO Details'!AI:AI,">="&$BR$17,'NSR WO Details'!AI:AI,"<="&$BS$17)) ->  | CN18: =IF(BW18="","",SUMIFS('NSR WO Details'!$AE:$AE,'NSR WO Details'!$N:$N,BW18,'NSR WO Details'!$F:$F,"FLORIDA",'NSR WO Details'!AI:AI,">="&$BR$17,'NSR WO Details'!AI:AI,"<="&$BS$17)) ->  | CP18: =IF(BW18="","",SUMIFS('RTM Results'!$DG:$DG,'RTM Results'!$BD:$BD,BW18,'RTM Results'!$O:$O,"Florida",'RTM Results'!H:H,">="&$BR$17,'RTM Results'!H:H,"<="&$BS$17)) ->  | CQ18: =IF(BW18="","",SUMIFS('RTM Results'!$DC:$DC,'RTM Results'!$BD:$BD,BW18,'RTM Results'!$O:$O,"Florida",'RTM Results'!H:H,">="&$BR$17,'RTM Results'!H:H,"<="&$BS$17)) ->  | CS18: =IF(BW18="","",SUMIFS('Tool Usage Details'!$T:$T,'Tool Usage Details'!$I:$I,BW18,'Tool Usage Details'!$G:$G,"FLORIDA REGION",'Tool Usage Details'!E:E,">="&$BR$17,'Tool Usage Details'!E:E,"<="&$BS$17)) ->  | CT18: =IF(BW18="","",COUNTIFS('Tool Usage Details'!$I:$I,BW18,'Tool Usage Details'!$U:$U,"PASS",'Tool Usage Details'!$G:$G,"FLORIDA REGION",'Tool Usage Details'!E:E,">="&$BR$17,'Tool Usage Details'!E:E,"<="&$BS$17)) ->  | CV18: =IF(BW18="","",SUMIFS('One Drop'!$BV:$BV,'One Drop'!$P:$P,BW18,'One Drop'!$L:$L,"FLORIDA REGION",'One Drop'!AQ:AQ,">="&$BR$17,'One Drop'!AQ:AQ,"<="&$BS$17)) ->  | CW18: =IF(BW18="","",SUMIFS('One Drop'!$BQ:$BQ,'One Drop'!$P:$P,BW18,'One Drop'!$L:$L,"FLORIDA REGION",'One Drop'!AQ:AQ,">="&$BR$17,'One Drop'!AQ:AQ,"<="&$BS$17)) ->  | CY18: =IF(BW18="","",SUMIFS('NSR WO Details'!$AK:$AK,'NSR WO Details'!$N:$N,BW18,'NSR WO Details'!$F:$F,"FLORIDA",'NSR WO Details'!AI:AI,">="&$BR$17,'NSR WO Details'!AI:AI,"<="&$BS$17)) ->  | CZ18: =IF(BW18="","",SUMIFS('NSR WO Details'!$AL:$AL,'NSR WO Details'!$N:$N,BW18,'NSR WO Details'!$F:$F,"FLORIDA",'NSR WO Details'!AI:AI,">="&$BR$17,'NSR WO Details'!AI:AI,"<="&$BS$17)) ->  | DB18: =IF(BW18="","",SUMIFS(Completion!$CJ:$CJ,Completion!$G:$G,BW18,Completion!$N:$N,"Install",Completion!$E:$E,"Florida",Completion!AA:AA,">="&$BR$17,Completion!AA:AA,"<="&$BS$17)) ->  | DC18: =IF(BW18="","",SUMIFS(Completion!$CB:$CB,Completion!$G:$G,BW18,Completion!$N:$N,"Install",Completion!$E:$E,"Florida",Completion!AA:AA,">="&$BR$17,Completion!AA:AA,"<="&$BS$17)) ->  | DE18: =IF(BW18="","",SUMIFS(Completion!$CJ:$CJ,Completion!$G:$G,BW18,Completion!$N:$N,"TC",Completion!$E:$E,"Florida",Completion!AA:AA,">="&BR$17,Completion!AA:AA,"<="&$BS$17)) ->  | DF18: =IF(BW18="","",SUMIFS(Completion!$CB:$CB,Completion!$G:$G,BW18,Completion!$N:$N,"TC",Completion!$E:$E,"Florida",Completion!AA:AA,">="&$BR$17,Completion!AA:AA,"<="&$BS$17)) -> 
B19: Lake Orlando | I19: =IF(G19="","",SUMIFS('NSR WO Details'!$AG:$AG,'NSR WO Details'!$N:$N,G19,'NSR WO Details'!$F:$F,"FLORIDA")) ->  | J19: =IF(G19="","",COUNTIFS('FTR Detail'!$P:$P,G19,'FTR Detail'!$H:$H,"=FLORIDA")) ->  | L19: =IF(G19="","",SUMIF('Florida Rework'!$E:$E,$G19,'Florida Rework'!$H:$H)) ->  | M19: =IF(G19="","",SUMIF('Florida Rework'!$E:$E,$G19,'Florida Rework'!$I:$I)) ->  | N19: =IF(G19="","",SUMIF('Florida Rework'!$E:$E,$G19,'Florida Rework'!$M:$M)) ->  | P19: =IF(G19="","",SUMIF('Florida Rework'!$E:$E,$G19,'Florida Rework'!$J:$J)) ->  | Q19: =IF(G19="","",SUMIF('Florida Rework'!$E:$E,$G19,'Florida Rework'!$O:$O)) ->  | U19: =IF(G19="","",SUMIFS('Tool Usage Details'!$Q:$Q,'Tool Usage Details'!$I:$I,G19,'Tool Usage Details'!$G:$G,"FLORIDA REGION")) ->  | V19: =IF(G19="","",COUNTIFS('Tool Usage Details'!$I:$I,G19,'Tool Usage Details'!$S:$S,"PASS",'Tool Usage Details'!$G:$G,"FLORIDA REGION")) ->  | X19: =IF(G19="","",COUNTIFS('Tool Usage Details'!$I:$I,G19,'Tool Usage Details'!$R:$R,"PWW",'Tool Usage Details'!G:G,"FLORIDA REGION")+COUNTIFS('Tool Usage Details'!$I:$I,G19,'Tool Usage Details'!$R:$R,"PWO",'Tool Usage Details'!$G:$G,"FLORIDA REGION")) ->  | Z19: =IF(G19="","",SUMIFS('NSR WO Details'!$Z:$Z,'NSR WO Details'!$N:$N,G19,'NSR WO Details'!$F:$F,"FLORIDA")) ->  | AA19: =IF(G19="","",SUMIFS('NSR WO Details'!$AA:$AA,'NSR WO Details'!$N:$N,G19,'NSR WO Details'!$F:$F,"FLORIDA")) ->  | AC19: =IF(G19="","",COUNTIFS('NSR WO Details'!$N:$N,G19,'NSR WO Details'!$W:$W,"Met",'NSR WO Details'!$F:$F,"FLORIDA")) ->  | AD19: =IF(G19="","",COUNTIFS('NSR WO Details'!$N:$N,G19,'NSR WO Details'!$W:$W,"Missed",'NSR WO Details'!$F:$F,"FLORIDA")) ->  | AF19: =IF(G19="","",COUNTIFS('NSR WO Details'!$N:$N,G19,'NSR WO Details'!$F:$F,"FLORIDA")) ->  | AG19: =IF(G19="","",SUMIFS('NSR WO Details'!$AE:$AE,'NSR WO Details'!$N:$N,G19,'NSR WO Details'!$F:$F,"FLORIDA")) ->  | AI19: =IF(G19="","",SUMIFS('RTM Results'!$DI:$DI,'RTM Results'!$BF:$BF,G19,'RTM Results'!$P:$P,"Florida")) ->  | AJ19: =IF(G19="","",SUMIFS('RTM Results'!$DE:$DE,'RTM Results'!$BF:$BF,G19,'RTM Results'!$P:$P,"Florida")) ->  | AL19: =SUMIFS('ML Bonding Compliance'!$AR:$AR,'ML Bonding Compliance'!$R:$R,$G19,'ML Bonding Compliance'!$F:$F,"FLORIDA") -> 0 | AM19: =SUMIFS('ML Bonding Compliance'!$AU:$AU,'ML Bonding Compliance'!$R:$R,$G19,'ML Bonding Compliance'!$F:$F,"FLORIDA") -> 0 | AO19: =IF(G19="","",SUMIFS('Tool Usage Details'!$T:$T,'Tool Usage Details'!$I:$I,G19,'Tool Usage Details'!$G:$G,"FLORIDA REGION")) ->  | AP19: =IF(G19="","",COUNTIFS('Tool Usage Details'!$I:$I,G19,'Tool Usage Details'!$U:$U,"PASS",'Tool Usage Details'!$G:$G,"FLORIDA REGION")) ->  | AR19: =IF(G19="","",SUMIFS('One Drop'!$BV:$BV,'One Drop'!$P:$P,G19,'One Drop'!$L:$L,"FLORIDA REGION")) ->  | AS19: =IF(G19="","",SUMIFS('One Drop'!$BQ:$BQ,'One Drop'!$P:$P,G19,'One Drop'!$L:$L,"FLORIDA REGION")) ->  | AU19: =IF(G19="","",SUMIFS('NSR WO Details'!$AK:$AK,'NSR WO Details'!$N:$N,G19,'NSR WO Details'!$F:$F,"FLORIDA")) ->  | AV19: =IF(G19="","",SUMIFS('NSR WO Details'!$AL:$AL,'NSR WO Details'!$N:$N,G19,'NSR WO Details'!$F:$F,"FLORIDA")) ->  | AX19: =IF(OR(I19=0,I19=""),"",SUMIFS('Time in Home'!$L:$L,'Time in Home'!$I:$I,$G19,'Time in Home'!E:E,"FLORIDA REGION")) ->  | AY19: =IF(OR(I19=0,I19=""),"",SUMIFS('Time in Home'!$P:$P,'Time in Home'!$I:$I,$G19,'Time in Home'!E:E,"FLORIDA REGION")) ->  | AZ19: =SUMIFS('TQI BP Tech Compliance'!$Q:$Q,'TQI BP Tech Compliance'!$N:$N,$G19,'TQI BP Tech Compliance'!$F:$F,"FLORIDA REGION") -> 0 | BA19: =SUMIFS('TQI BP Tech Compliance'!$AI:$AI,'TQI BP Tech Compliance'!$N:$N,$G19,'TQI BP Tech Compliance'!$F:$F,"FLORIDA REGION") -> 0 | BB19: =SUMIFS('TQI BP Tech Compliance'!$Z:$Z,'TQI BP Tech Compliance'!$N:$N,$G19,'TQI BP Tech Compliance'!$F:$F,"FLORIDA REGION") -> 0 | BC19: =IFERROR(SUMIFS('TQI BP Tech Compliance'!$AC:$AC,'TQI BP Tech Compliance'!$N:$N,$G19,'TQI BP Tech Compliance'!$F:$F,"FLORIDA REGION")/BB19,"") ->  | BD19: =IFERROR(SUMIFS('TQI BP Tech Compliance'!$AD:$AD,'TQI BP Tech Compliance'!$N:$N,$G19,'TQI BP Tech Compliance'!$F:$F,"FLORIDA REGION"),"") -> 0 | BE19: Enrique Gabino | BF19: =IF(G19="","",SUMIFS(Completion!$CJ:$CJ,Completion!$G:$G,G19,Completion!$N:$N,"Install",Completion!$E:$E,"Florida")) ->  | BG19: =IF(G19="","",SUMIFS(Completion!$CB:$CB,Completion!$G:$G,G19,Completion!$N:$N,"Install",Completion!$E:$E,"Florida")) ->  | BI19: =IF(G19="","",SUMIFS(Completion!$CJ:$CJ,Completion!$G:$G,G19,Completion!$N:$N,"TC",Completion!$E:$E,"Florida")) ->  | BJ19: =IF(G19="","",SUMIFS(Completion!$CB:$CB,Completion!$G:$G,G19,Completion!$N:$N,"TC",Completion!$E:$E,"Florida")) ->  | BM19: =COUNTIFS(Completion!$G:$G,$G19,Completion!$E:$E,"FLORIDA",Completion!$N:$N,"TC") -> 0 | BN19: =COUNTIFS(Completion!$G:$G,$G19,Completion!$E:$E,"FLORIDA",Completion!$N:$N,"TC",Completion!$X:$X,"Customer") -> 0 | BY19: =IF(BW19="","",SUMIFS('NSR WO Details'!$AG:$AG,'NSR WO Details'!$N:$N,BW19,'NSR WO Details'!$F:$F,"FLORIDA",'NSR WO Details'!AI:AI,">="&$BR$17,'NSR WO Details'!AI:AI,"<="&$BS$17)) ->  | BZ19: =IF(BW19="","",COUNTIFS('FTR Detail'!$P:$P,BW19,'FTR Detail'!$H:$H,"=FLORIDA",'NSR WO Details'!AI:AI,">="&$BR$17,'NSR WO Details'!AI:AI,"<="&$BS$17)) ->  | CB19: =IF(BW19="","",SUMIFS('Tool Usage Details'!$Q:$Q,'Tool Usage Details'!$I:$I,BW19,'Tool Usage Details'!$G:$G,"FLORIDA REGION",'NSR WO Details'!AI:AI,">="&$BR$17,'NSR WO Details'!AJ:AJ,"<="&$BS$17)) ->  | CC19: =IF(BW19="","",COUNTIFS('Tool Usage Details'!$I:$I,BW19,'Tool Usage Details'!$S:$S,"PASS",'Tool Usage Details'!$G:$G,"FLORIDA REGION",'NSR WO Details'!AI:AI,">="&$BR$17,'NSR WO Details'!AI:AI,"<="&$BS$17)) ->  | CE19: =IF(BW19="","",COUNTIFS('Tool Usage Details'!$I:$I,BW19,'Tool Usage Details'!$R:$R,"PWW",'Tool Usage Details'!$G:$G,"FLORIDA REGION")+COUNTIFS('Tool Usage Details'!$I:$I,BW19,'Tool Usage Details'!$R:$R,"PWO",'Tool Usage Details'!$G:$G,"FLORIDA REGION",'Tool Usage Details'!E:E,">="&$BR$17,'Tool Usage Details'!E:E,"<="&$BS$17)) ->  | CG19: =IF(BW19="","",SUMIFS('NSR WO Details'!$Z:$Z,'NSR WO Details'!$N:$N,BW19,'NSR WO Details'!$F:$F,"FLORIDA",'NSR WO Details'!AI:AI,">="&$BR$17,'NSR WO Details'!AI:AI,"<="&$BS$17)) ->  | CH19: =IF(BW19="","",SUMIFS('NSR WO Details'!$AA:$AA,'NSR WO Details'!$N:$N,BW19,'NSR WO Details'!$F:$F,"FLORIDA",'NSR WO Details'!AI:AI,">="&$BR$17,'NSR WO Details'!AI:AI,"<="&$BS$17)) ->  | CJ19: =IF(BW19="","",COUNTIFS('NSR WO Details'!$N:$N,BW19,'NSR WO Details'!$W:$W,"Met",'NSR WO Details'!$F:$F,"FLORIDA",'NSR WO Details'!AI:AI,">="&$BR$17,'NSR WO Details'!AI:AI,"<="&$BS$17)) ->  | CK19: =IF(BW19="","",COUNTIFS('NSR WO Details'!$N:$N,BW19,'NSR WO Details'!$W:$W,"Missed",'NSR WO Details'!$F:$F,"FLORIDA",'NSR WO Details'!AI:AI,">="&$BR$17,'NSR WO Details'!AI:AI,"<="&$BS$17)) ->  | CM19: =IF(BW19="","",COUNTIFS('NSR WO Details'!$N:$N,BW19,'NSR WO Details'!$F:$F,"FLORIDA",'NSR WO Details'!AI:AI,">="&$BR$17,'NSR WO Details'!AI:AI,"<="&$BS$17)) ->  | CN19: =IF(BW19="","",SUMIFS('NSR WO Details'!$AE:$AE,'NSR WO Details'!$N:$N,BW19,'NSR WO Details'!$F:$F,"FLORIDA",'NSR WO Details'!AI:AI,">="&$BR$17,'NSR WO Details'!AI:AI,"<="&$BS$17)) ->  | CP19: =IF(BW19="","",SUMIFS('RTM Results'!$DG:$DG,'RTM Results'!$BD:$BD,BW19,'RTM Results'!$O:$O,"Florida",'RTM Results'!H:H,">="&$BR$17,'RTM Results'!H:H,"<="&$BS$17)) ->  | CQ19: =IF(BW19="","",SUMIFS('RTM Results'!$DC:$DC,'RTM Results'!$BD:$BD,BW19,'RTM Results'!$O:$O,"Florida",'RTM Results'!H:H,">="&$BR$17,'RTM Results'!H:H,"<="&$BS$17)) ->  | CS19: =IF(BW19="","",SUMIFS('Tool Usage Details'!$T:$T,'Tool Usage Details'!$I:$I,BW19,'Tool Usage Details'!$G:$G,"FLORIDA REGION",'Tool Usage Details'!E:E,">="&$BR$17,'Tool Usage Details'!E:E,"<="&$BS$17)) ->  | CT19: =IF(BW19="","",COUNTIFS('Tool Usage Details'!$I:$I,BW19,'Tool Usage Details'!$U:$U,"PASS",'Tool Usage Details'!$G:$G,"FLORIDA REGION",'Tool Usage Details'!E:E,">="&$BR$17,'Tool Usage Details'!E:E,"<="&$BS$17)) ->  | CV19: =IF(BW19="","",SUMIFS('One Drop'!$BV:$BV,'One Drop'!$P:$P,BW19,'One Drop'!$L:$L,"FLORIDA REGION",'One Drop'!AQ:AQ,">="&$BR$17,'One Drop'!AQ:AQ,"<="&$BS$17)) ->  | CW19: =IF(BW19="","",SUMIFS('One Drop'!$BQ:$BQ,'One Drop'!$P:$P,BW19,'One Drop'!$L:$L,"FLORIDA REGION",'One Drop'!AQ:AQ,">="&$BR$17,'One Drop'!AQ:AQ,"<="&$BS$17)) ->  | CY19: =IF(BW19="","",SUMIFS('NSR WO Details'!$AK:$AK,'NSR WO Details'!$N:$N,BW19,'NSR WO Details'!$F:$F,"FLORIDA",'NSR WO Details'!AI:AI,">="&$BR$17,'NSR WO Details'!AI:AI,"<="&$BS$17)) ->  | CZ19: =IF(BW19="","",SUMIFS('NSR WO Details'!$AL:$AL,'NSR WO Details'!$N:$N,BW19,'NSR WO Details'!$F:$F,"FLORIDA",'NSR WO Details'!AI:AI,">="&$BR$17,'NSR WO Details'!AI:AI,"<="&$BS$17)) ->  | DB19: =IF(BW19="","",SUMIFS(Completion!$CJ:$CJ,Completion!$G:$G,BW19,Completion!$N:$N,"Install",Completion!$E:$E,"Florida",Completion!AA:AA,">="&$BR$17,Completion!AA:AA,"<="&$BS$17)) ->  | DC19: =IF(BW19="","",SUMIFS(Completion!$CB:$CB,Completion!$G:$G,BW19,Completion!$N:$N,"Install",Completion!$E:$E,"Florida",Completion!AA:AA,">="&$BR$17,Completion!AA:AA,"<="&$BS$17)) ->  | DE19: =IF(BW19="","",SUMIFS(Completion!$CJ:$CJ,Completion!$G:$G,BW19,Completion!$N:$N,"TC",Completion!$E:$E,"Florida",Completion!AA:AA,">="&BR$17,Completion!AA:AA,"<="&$BS$17)) ->  | DF19: =IF(BW19="","",SUMIFS(Completion!$CB:$CB,Completion!$G:$G,BW19,Completion!$N:$N,"TC",Completion!$E:$E,"Florida",Completion!AA:AA,">="&$BR$17,Completion!AA:AA,"<="&$BS$17)) -> 
B20: Drop Bury | I20: =IF(G20="","",SUMIFS('NSR WO Details'!$AG:$AG,'NSR WO Details'!$N:$N,G20,'NSR WO Details'!$F:$F,"FLORIDA")) ->  | J20: =IF(G20="","",COUNTIFS('FTR Detail'!$P:$P,G20,'FTR Detail'!$H:$H,"=FLORIDA")) ->  | L20: =IF(G20="","",SUMIF('Florida Rework'!$E:$E,$G20,'Florida Rework'!$H:$H)) ->  | M20: =IF(G20="","",SUMIF('Florida Rework'!$E:$E,$G20,'Florida Rework'!$I:$I)) ->  | N20: =IF(G20="","",SUMIF('Florida Rework'!$E:$E,$G20,'Florida Rework'!$M:$M)) ->  | P20: =IF(G20="","",SUMIF('Florida Rework'!$E:$E,$G20,'Florida Rework'!$J:$J)) ->  | Q20: =IF(G20="","",SUMIF('Florida Rework'!$E:$E,$G20,'Florida Rework'!$O:$O)) ->  | U20: =IF(G20="","",SUMIFS('Tool Usage Details'!$Q:$Q,'Tool Usage Details'!$I:$I,G20,'Tool Usage Details'!$G:$G,"FLORIDA REGION")) ->  | V20: =IF(G20="","",COUNTIFS('Tool Usage Details'!$I:$I,G20,'Tool Usage Details'!$S:$S,"PASS",'Tool Usage Details'!$G:$G,"FLORIDA REGION")) ->  | X20: =IF(G20="","",COUNTIFS('Tool Usage Details'!$I:$I,G20,'Tool Usage Details'!$R:$R,"PWW",'Tool Usage Details'!G:G,"FLORIDA REGION")+COUNTIFS('Tool Usage Details'!$I:$I,G20,'Tool Usage Details'!$R:$R,"PWO",'Tool Usage Details'!$G:$G,"FLORIDA REGION")) ->  | Z20: =IF(G20="","",SUMIFS('NSR WO Details'!$Z:$Z,'NSR WO Details'!$N:$N,G20,'NSR WO Details'!$F:$F,"FLORIDA")) ->  | AA20: =IF(G20="","",SUMIFS('NSR WO Details'!$AA:$AA,'NSR WO Details'!$N:$N,G20,'NSR WO Details'!$F:$F,"FLORIDA")) ->  | AC20: =IF(G20="","",COUNTIFS('NSR WO Details'!$N:$N,G20,'NSR WO Details'!$W:$W,"Met",'NSR WO Details'!$F:$F,"FLORIDA")) ->  | AD20: =IF(G20="","",COUNTIFS('NSR WO Details'!$N:$N,G20,'NSR WO Details'!$W:$W,"Missed",'NSR WO Details'!$F:$F,"FLORIDA")) ->  | AF20: =IF(G20="","",COUNTIFS('NSR WO Details'!$N:$N,G20,'NSR WO Details'!$F:$F,"FLORIDA")) ->  | AG20: =IF(G20="","",SUMIFS('NSR WO Details'!$AE:$AE,'NSR WO Details'!$N:$N,G20,'NSR WO Details'!$F:$F,"FLORIDA")) ->  | AI20: =IF(G20="","",SUMIFS('RTM Results'!$DI:$DI,'RTM Results'!$BF:$BF,G20,'RTM Results'!$P:$P,"Florida")) ->  | AJ20: =IF(G20="","",SUMIFS('RTM Results'!$DE:$DE,'RTM Results'!$BF:$BF,G20,'RTM Results'!$P:$P,"Florida")) ->  | AL20: =SUMIFS('ML Bonding Compliance'!$AR:$AR,'ML Bonding Compliance'!$R:$R,$G20,'ML Bonding Compliance'!$F:$F,"FLORIDA") -> 0 | AM20: =SUMIFS('ML Bonding Compliance'!$AU:$AU,'ML Bonding Compliance'!$R:$R,$G20,'ML Bonding Compliance'!$F:$F,"FLORIDA") -> 0 | AO20: =IF(G20="","",SUMIFS('Tool Usage Details'!$T:$T,'Tool Usage Details'!$I:$I,G20,'Tool Usage Details'!$G:$G,"FLORIDA REGION")) ->  | AP20: =IF(G20="","",COUNTIFS('Tool Usage Details'!$I:$I,G20,'Tool Usage Details'!$U:$U,"PASS",'Tool Usage Details'!$G:$G,"FLORIDA REGION")) ->  | AR20: =IF(G20="","",SUMIFS('One Drop'!$BV:$BV,'One Drop'!$P:$P,G20,'One Drop'!$L:$L,"FLORIDA REGION")) ->  | AS20: =IF(G20="","",SUMIFS('One Drop'!$BQ:$BQ,'One Drop'!$P:$P,G20,'One Drop'!$L:$L,"FLORIDA REGION")) ->  | AU20: =IF(G20="","",SUMIFS('NSR WO Details'!$AK:$AK,'NSR WO Details'!$N:$N,G20,'NSR WO Details'!$F:$F,"FLORIDA")) ->  | AV20: =IF(G20="","",SUMIFS('NSR WO Details'!$AL:$AL,'NSR WO Details'!$N:$N,G20,'NSR WO Details'!$F:$F,"FLORIDA")) ->  | AX20: =IF(OR(I20=0,I20=""),"",SUMIFS('Time in Home'!$L:$L,'Time in Home'!$I:$I,$G20,'Time in Home'!E:E,"FLORIDA REGION")) ->  | AY20: =IF(OR(I20=0,I20=""),"",SUMIFS('Time in Home'!$P:$P,'Time in Home'!$I:$I,$G20,'Time in Home'!E:E,"FLORIDA REGION")) ->  | AZ20: =SUMIFS('TQI BP Tech Compliance'!$Q:$Q,'TQI BP Tech Compliance'!$N:$N,$G20,'TQI BP Tech Compliance'!$F:$F,"FLORIDA REGION") -> 0 | BA20: =SUMIFS('TQI BP Tech Compliance'!$AI:$AI,'TQI BP Tech Compliance'!$N:$N,$G20,'TQI BP Tech Compliance'!$F:$F,"FLORIDA REGION") -> 0 | BB20: =SUMIFS('TQI BP Tech Compliance'!$Z:$Z,'TQI BP Tech Compliance'!$N:$N,$G20,'TQI BP Tech Compliance'!$F:$F,"FLORIDA REGION") -> 0 | BC20: =IFERROR(SUMIFS('TQI BP Tech Compliance'!$AC:$AC,'TQI BP Tech Compliance'!$N:$N,$G20,'TQI BP Tech Compliance'!$F:$F,"FLORIDA REGION")/BB20,"") ->  | BD20: =IFERROR(SUMIFS('TQI BP Tech Compliance'!$AD:$AD,'TQI BP Tech Compliance'!$N:$N,$G20,'TQI BP Tech Compliance'!$F:$F,"FLORIDA REGION"),"") -> 0 | BE20: Enrique Gabino | BF20: =IF(G20="","",SUMIFS(Completion!$CJ:$CJ,Completion!$G:$G,G20,Completion!$N:$N,"Install",Completion!$E:$E,"Florida")) ->  | BG20: =IF(G20="","",SUMIFS(Completion!$CB:$CB,Completion!$G:$G,G20,Completion!$N:$N,"Install",Completion!$E:$E,"Florida")) ->  | BI20: =IF(G20="","",SUMIFS(Completion!$CJ:$CJ,Completion!$G:$G,G20,Completion!$N:$N,"TC",Completion!$E:$E,"Florida")) ->  | BJ20: =IF(G20="","",SUMIFS(Completion!$CB:$CB,Completion!$G:$G,G20,Completion!$N:$N,"TC",Completion!$E:$E,"Florida")) ->  | BM20: =COUNTIFS(Completion!$G:$G,$G20,Completion!$E:$E,"FLORIDA",Completion!$N:$N,"TC") -> 0 | BN20: =COUNTIFS(Completion!$G:$G,$G20,Completion!$E:$E,"FLORIDA",Completion!$N:$N,"TC",Completion!$X:$X,"Customer") -> 0 | BY20: =IF(BW20="","",SUMIFS('NSR WO Details'!$AG:$AG,'NSR WO Details'!$N:$N,BW20,'NSR WO Details'!$F:$F,"FLORIDA",'NSR WO Details'!AI:AI,">="&$BR$17,'NSR WO Details'!AI:AI,"<="&$BS$17)) ->  | BZ20: =IF(BW20="","",COUNTIFS('FTR Detail'!$P:$P,BW20,'FTR Detail'!$H:$H,"=FLORIDA",'NSR WO Details'!AI:AI,">="&$BR$17,'NSR WO Details'!AI:AI,"<="&$BS$17)) ->  | CB20: =IF(BW20="","",SUMIFS('Tool Usage Details'!$Q:$Q,'Tool Usage Details'!$I:$I,BW20,'Tool Usage Details'!$G:$G,"FLORIDA REGION",'NSR WO Details'!AI:AI,">="&$BR$17,'NSR WO Details'!AJ:AJ,"<="&$BS$17)) ->  | CC20: =IF(BW20="","",COUNTIFS('Tool Usage Details'!$I:$I,BW20,'Tool Usage Details'!$S:$S,"PASS",'Tool Usage Details'!$G:$G,"FLORIDA REGION",'NSR WO Details'!AI:AI,">="&$BR$17,'NSR WO Details'!AI:AI,"<="&$BS$17)) ->  | CE20: =IF(BW20="","",COUNTIFS('Tool Usage Details'!$I:$I,BW20,'Tool Usage Details'!$R:$R,"PWW",'Tool Usage Details'!$G:$G,"FLORIDA REGION")+COUNTIFS('Tool Usage Details'!$I:$I,BW20,'Tool Usage Details'!$R:$R,"PWO",'Tool Usage Details'!$G:$G,"FLORIDA REGION",'Tool Usage Details'!E:E,">="&$BR$17,'Tool Usage Details'!E:E,"<="&$BS$17)) ->  | CG20: =IF(BW20="","",SUMIFS('NSR WO Details'!$Z:$Z,'NSR WO Details'!$N:$N,BW20,'NSR WO Details'!$F:$F,"FLORIDA",'NSR WO Details'!AI:AI,">="&$BR$17,'NSR WO Details'!AI:AI,"<="&$BS$17)) ->  | CH20: =IF(BW20="","",SUMIFS('NSR WO Details'!$AA:$AA,'NSR WO Details'!$N:$N,BW20,'NSR WO Details'!$F:$F,"FLORIDA",'NSR WO Details'!AI:AI,">="&$BR$17,'NSR WO Details'!AI:AI,"<="&$BS$17)) ->  | CJ20: =IF(BW20="","",COUNTIFS('NSR WO Details'!$N:$N,BW20,'NSR WO Details'!$W:$W,"Met",'NSR WO Details'!$F:$F,"FLORIDA",'NSR WO Details'!AI:AI,">="&$BR$17,'NSR WO Details'!AI:AI,"<="&$BS$17)) ->  | CK20: =IF(BW20="","",COUNTIFS('NSR WO Details'!$N:$N,BW20,'NSR WO Details'!$W:$W,"Missed",'NSR WO Details'!$F:$F,"FLORIDA",'NSR WO Details'!AI:AI,">="&$BR$17,'NSR WO Details'!AI:AI,"<="&$BS$17)) ->  | CM20: =IF(BW20="","",COUNTIFS('NSR WO Details'!$N:$N,BW20,'NSR WO Details'!$F:$F,"FLORIDA",'NSR WO Details'!AI:AI,">="&$BR$17,'NSR WO Details'!AI:AI,"<="&$BS$17)) ->  | CN20: =IF(BW20="","",SUMIFS('NSR WO Details'!$AE:$AE,'NSR WO Details'!$N:$N,BW20,'NSR WO Details'!$F:$F,"FLORIDA",'NSR WO Details'!AI:AI,">="&$BR$17,'NSR WO Details'!AI:AI,"<="&$BS$17)) ->  | CP20: =IF(BW20="","",SUMIFS('RTM Results'!$DG:$DG,'RTM Results'!$BD:$BD,BW20,'RTM Results'!$O:$O,"Florida",'RTM Results'!H:H,">="&$BR$17,'RTM Results'!H:H,"<="&$BS$17)) ->  | CQ20: =IF(BW20="","",SUMIFS('RTM Results'!$DC:$DC,'RTM Results'!$BD:$BD,BW20,'RTM Results'!$O:$O,"Florida",'RTM Results'!H:H,">="&$BR$17,'RTM Results'!H:H,"<="&$BS$17)) ->  | CS20: =IF(BW20="","",SUMIFS('Tool Usage Details'!$T:$T,'Tool Usage Details'!$I:$I,BW20,'Tool Usage Details'!$G:$G,"FLORIDA REGION",'Tool Usage Details'!E:E,">="&$BR$17,'Tool Usage Details'!E:E,"<="&$BS$17)) ->  | CT20: =IF(BW20="","",COUNTIFS('Tool Usage Details'!$I:$I,BW20,'Tool Usage Details'!$U:$U,"PASS",'Tool Usage Details'!$G:$G,"FLORIDA REGION",'Tool Usage Details'!E:E,">="&$BR$17,'Tool Usage Details'!E:E,"<="&$BS$17)) ->  | CV20: =IF(BW20="","",SUMIFS('One Drop'!$BV:$BV,'One Drop'!$P:$P,BW20,'One Drop'!$L:$L,"FLORIDA REGION",'One Drop'!AQ:AQ,">="&$BR$17,'One Drop'!AQ:AQ,"<="&$BS$17)) ->  | CW20: =IF(BW20="","",SUMIFS('One Drop'!$BQ:$BQ,'One Drop'!$P:$P,BW20,'One Drop'!$L:$L,"FLORIDA REGION",'One Drop'!AQ:AQ,">="&$BR$17,'One Drop'!AQ:AQ,"<="&$BS$17)) ->  | CY20: =IF(BW20="","",SUMIFS('NSR WO Details'!$AK:$AK,'NSR WO Details'!$N:$N,BW20,'NSR WO Details'!$F:$F,"FLORIDA",'NSR WO Details'!AI:AI,">="&$BR$17,'NSR WO Details'!AI:AI,"<="&$BS$17)) ->  | CZ20: =IF(BW20="","",SUMIFS('NSR WO Details'!$AL:$AL,'NSR WO Details'!$N:$N,BW20,'NSR WO Details'!$F:$F,"FLORIDA",'NSR WO Details'!AI:AI,">="&$BR$17,'NSR WO Details'!AI:AI,"<="&$BS$17)) ->  | DB20: =IF(BW20="","",SUMIFS(Completion!$CJ:$CJ,Completion!$G:$G,BW20,Completion!$N:$N,"Install",Completion!$E:$E,"Florida",Completion!AA:AA,">="&$BR$17,Completion!AA:AA,"<="&$BS$17)) ->  | DC20: =IF(BW20="","",SUMIFS(Completion!$CB:$CB,Completion!$G:$G,BW20,Completion!$N:$N,"Install",Completion!$E:$E,"Florida",Completion!AA:AA,">="&$BR$17,Completion!AA:AA,"<="&$BS$17)) ->  | DE20: =IF(BW20="","",SUMIFS(Completion!$CJ:$CJ,Completion!$G:$G,BW20,Completion!$N:$N,"TC",Completion!$E:$E,"Florida",Completion!AA:AA,">="&BR$17,Completion!AA:AA,"<="&$BS$17)) ->  | DF20: =IF(BW20="","",SUMIFS(Completion!$CB:$CB,Completion!$G:$G,BW20,Completion!$N:$N,"TC",Completion!$E:$E,"Florida",Completion!AA:AA,">="&$BR$17,Completion!AA:AA,"<="&$BS$17)) -> 
B21: Low Performers | I21: =IF(G21="","",SUMIFS('NSR WO Details'!$AG:$AG,'NSR WO Details'!$N:$N,G21,'NSR WO Details'!$F:$F,"FLORIDA")) ->  | J21: =IF(G21="","",COUNTIFS('FTR Detail'!$P:$P,G21,'FTR Detail'!$H:$H,"=FLORIDA")) ->  | L21: =IF(G21="","",SUMIF('Florida Rework'!$E:$E,$G21,'Florida Rework'!$H:$H)) ->  | M21: =IF(G21="","",SUMIF('Florida Rework'!$E:$E,$G21,'Florida Rework'!$I:$I)) ->  | N21: =IF(G21="","",SUMIF('Florida Rework'!$E:$E,$G21,'Florida Rework'!$M:$M)) ->  | P21: =IF(G21="","",SUMIF('Florida Rework'!$E:$E,$G21,'Florida Rework'!$J:$J)) ->  | Q21: =IF(G21="","",SUMIF('Florida Rework'!$E:$E,$G21,'Florida Rework'!$O:$O)) ->  | U21: =IF(G21="","",SUMIFS('Tool Usage Details'!$Q:$Q,'Tool Usage Details'!$I:$I,G21,'Tool Usage Details'!$G:$G,"FLORIDA REGION")) ->  | V21: =IF(G21="","",COUNTIFS('Tool Usage Details'!$I:$I,G21,'Tool Usage Details'!$S:$S,"PASS",'Tool Usage Details'!$G:$G,"FLORIDA REGION")) ->  | X21: =IF(G21="","",COUNTIFS('Tool Usage Details'!$I:$I,G21,'Tool Usage Details'!$R:$R,"PWW",'Tool Usage Details'!G:G,"FLORIDA REGION")+COUNTIFS('Tool Usage Details'!$I:$I,G21,'Tool Usage Details'!$R:$R,"PWO",'Tool Usage Details'!$G:$G,"FLORIDA REGION")) ->  | Z21: =IF(G21="","",SUMIFS('NSR WO Details'!$Z:$Z,'NSR WO Details'!$N:$N,G21,'NSR WO Details'!$F:$F,"FLORIDA")) ->  | AA21: =IF(G21="","",SUMIFS('NSR WO Details'!$AA:$AA,'NSR WO Details'!$N:$N,G21,'NSR WO Details'!$F:$F,"FLORIDA")) ->  | AC21: =IF(G21="","",COUNTIFS('NSR WO Details'!$N:$N,G21,'NSR WO Details'!$W:$W,"Met",'NSR WO Details'!$F:$F,"FLORIDA")) ->  | AD21: =IF(G21="","",COUNTIFS('NSR WO Details'!$N:$N,G21,'NSR WO Details'!$W:$W,"Missed",'NSR WO Details'!$F:$F,"FLORIDA")) ->  | AF21: =IF(G21="","",COUNTIFS('NSR WO Details'!$N:$N,G21,'NSR WO Details'!$F:$F,"FLORIDA")) ->  | AG21: =IF(G21="","",SUMIFS('NSR WO Details'!$AE:$AE,'NSR WO Details'!$N:$N,G21,'NSR WO Details'!$F:$F,"FLORIDA")) ->  | AI21: =IF(G21="","",SUMIFS('RTM Results'!$DI:$DI,'RTM Results'!$BF:$BF,G21,'RTM Results'!$P:$P,"Florida")) ->  | AJ21: =IF(G21="","",SUMIFS('RTM Results'!$DE:$DE,'RTM Results'!$BF:$BF,G21,'RTM Results'!$P:$P,"Florida")) ->  | AL21: =SUMIFS('ML Bonding Compliance'!$AR:$AR,'ML Bonding Compliance'!$R:$R,$G21,'ML Bonding Compliance'!$F:$F,"FLORIDA") -> 0 | AM21: =SUMIFS('ML Bonding Compliance'!$AU:$AU,'ML Bonding Compliance'!$R:$R,$G21,'ML Bonding Compliance'!$F:$F,"FLORIDA") -> 0 | AO21: =IF(G21="","",SUMIFS('Tool Usage Details'!$T:$T,'Tool Usage Details'!$I:$I,G21,'Tool Usage Details'!$G:$G,"FLORIDA REGION")) ->  | AP21: =IF(G21="","",COUNTIFS('Tool Usage Details'!$I:$I,G21,'Tool Usage Details'!$U:$U,"PASS",'Tool Usage Details'!$G:$G,"FLORIDA REGION")) ->  | AR21: =IF(G21="","",SUMIFS('One Drop'!$BV:$BV,'One Drop'!$P:$P,G21,'One Drop'!$L:$L,"FLORIDA REGION")) ->  | AS21: =IF(G21="","",SUMIFS('One Drop'!$BQ:$BQ,'One Drop'!$P:$P,G21,'One Drop'!$L:$L,"FLORIDA REGION")) ->  | AU21: =IF(G21="","",SUMIFS('NSR WO Details'!$AK:$AK,'NSR WO Details'!$N:$N,G21,'NSR WO Details'!$F:$F,"FLORIDA")) ->  | AV21: =IF(G21="","",SUMIFS('NSR WO Details'!$AL:$AL,'NSR WO Details'!$N:$N,G21,'NSR WO Details'!$F:$F,"FLORIDA")) ->  | AX21: =IF(OR(I21=0,I21=""),"",SUMIFS('Time in Home'!$L:$L,'Time in Home'!$I:$I,$G21,'Time in Home'!E:E,"FLORIDA REGION")) ->  | AY21: =IF(OR(I21=0,I21=""),"",SUMIFS('Time in Home'!$P:$P,'Time in Home'!$I:$I,$G21,'Time in Home'!E:E,"FLORIDA REGION")) ->  | AZ21: =SUMIFS('TQI BP Tech Compliance'!$Q:$Q,'TQI BP Tech Compliance'!$N:$N,$G21,'TQI BP Tech Compliance'!$F:$F,"FLORIDA REGION") -> 0 | BA21: =SUMIFS('TQI BP Tech Compliance'!$AI:$AI,'TQI BP Tech Compliance'!$N:$N,$G21,'TQI BP Tech Compliance'!$F:$F,"FLORIDA REGION") -> 0 | BB21: =SUMIFS('TQI BP Tech Compliance'!$Z:$Z,'TQI BP Tech Compliance'!$N:$N,$G21,'TQI BP Tech Compliance'!$F:$F,"FLORIDA REGION") -> 0 | BC21: =IFERROR(SUMIFS('TQI BP Tech Compliance'!$AC:$AC,'TQI BP Tech Compliance'!$N:$N,$G21,'TQI BP Tech Compliance'!$F:$F,"FLORIDA REGION")/BB21,"") ->  | BD21: =IFERROR(SUMIFS('TQI BP Tech Compliance'!$AD:$AD,'TQI BP Tech Compliance'!$N:$N,$G21,'TQI BP Tech Compliance'!$F:$F,"FLORIDA REGION"),"") -> 0 | BE21: Enrique Gabino | BF21: =IF(G21="","",SUMIFS(Completion!$CJ:$CJ,Completion!$G:$G,G21,Completion!$N:$N,"Install",Completion!$E:$E,"Florida")) ->  | BG21: =IF(G21="","",SUMIFS(Completion!$CB:$CB,Completion!$G:$G,G21,Completion!$N:$N,"Install",Completion!$E:$E,"Florida")) ->  | BI21: =IF(G21="","",SUMIFS(Completion!$CJ:$CJ,Completion!$G:$G,G21,Completion!$N:$N,"TC",Completion!$E:$E,"Florida")) ->  | BJ21: =IF(G21="","",SUMIFS(Completion!$CB:$CB,Completion!$G:$G,G21,Completion!$N:$N,"TC",Completion!$E:$E,"Florida")) ->  | BM21: =COUNTIFS(Completion!$G:$G,$G21,Completion!$E:$E,"FLORIDA",Completion!$N:$N,"TC") -> 0 | BN21: =COUNTIFS(Completion!$G:$G,$G21,Completion!$E:$E,"FLORIDA",Completion!$N:$N,"TC",Completion!$X:$X,"Customer") -> 0 | BY21: =IF(BW21="","",SUMIFS('NSR WO Details'!$AG:$AG,'NSR WO Details'!$N:$N,BW21,'NSR WO Details'!$F:$F,"FLORIDA",'NSR WO Details'!AI:AI,">="&$BR$17,'NSR WO Details'!AI:AI,"<="&$BS$17)) ->  | BZ21: =IF(BW21="","",COUNTIFS('FTR Detail'!$P:$P,BW21,'FTR Detail'!$H:$H,"=FLORIDA",'NSR WO Details'!AI:AI,">="&$BR$17,'NSR WO Details'!AI:AI,"<="&$BS$17)) ->  | CB21: =IF(BW21="","",SUMIFS('Tool Usage Details'!$Q:$Q,'Tool Usage Details'!$I:$I,BW21,'Tool Usage Details'!$G:$G,"FLORIDA REGION",'NSR WO Details'!AI:AI,">="&$BR$17,'NSR WO Details'!AJ:AJ,"<="&$BS$17)) ->  | CC21: =IF(BW21="","",COUNTIFS('Tool Usage Details'!$I:$I,BW21,'Tool Usage Details'!$S:$S,"PASS",'Tool Usage Details'!$G:$G,"FLORIDA REGION",'NSR WO Details'!AI:AI,">="&$BR$17,'NSR WO Details'!AI:AI,"<="&$BS$17)) ->  | CE21: =IF(BW21="","",COUNTIFS('Tool Usage Details'!$I:$I,BW21,'Tool Usage Details'!$R:$R,"PWW",'Tool Usage Details'!$G:$G,"FLORIDA REGION")+COUNTIFS('Tool Usage Details'!$I:$I,BW21,'Tool Usage Details'!$R:$R,"PWO",'Tool Usage Details'!$G:$G,"FLORIDA REGION",'Tool Usage Details'!E:E,">="&$BR$17,'Tool Usage Details'!E:E,"<="&$BS$17)) ->  | CG21: =IF(BW21="","",SUMIFS('NSR WO Details'!$Z:$Z,'NSR WO Details'!$N:$N,BW21,'NSR WO Details'!$F:$F,"FLORIDA",'NSR WO Details'!AI:AI,">="&$BR$17,'NSR WO Details'!AI:AI,"<="&$BS$17)) ->  | CH21: =IF(BW21="","",SUMIFS('NSR WO Details'!$AA:$AA,'NSR WO Details'!$N:$N,BW21,'NSR WO Details'!$F:$F,"FLORIDA",'NSR WO Details'!AI:AI,">="&$BR$17,'NSR WO Details'!AI:AI,"<="&$BS$17)) ->  | CJ21: =IF(BW21="","",COUNTIFS('NSR WO Details'!$N:$N,BW21,'NSR WO Details'!$W:$W,"Met",'NSR WO Details'!$F:$F,"FLORIDA",'NSR WO Details'!AI:AI,">="&$BR$17,'NSR WO Details'!AI:AI,"<="&$BS$17)) ->  | CK21: =IF(BW21="","",COUNTIFS('NSR WO Details'!$N:$N,BW21,'NSR WO Details'!$W:$W,"Missed",'NSR WO Details'!$F:$F,"FLORIDA",'NSR WO Details'!AI:AI,">="&$BR$17,'NSR WO Details'!AI:AI,"<="&$BS$17)) ->  | CM21: =IF(BW21="","",COUNTIFS('NSR WO Details'!$N:$N,BW21,'NSR WO Details'!$F:$F,"FLORIDA",'NSR WO Details'!AI:AI,">="&$BR$17,'NSR WO Details'!AI:AI,"<="&$BS$17)) ->  | CN21: =IF(BW21="","",SUMIFS('NSR WO Details'!$AE:$AE,'NSR WO Details'!$N:$N,BW21,'NSR WO Details'!$F:$F,"FLORIDA",'NSR WO Details'!AI:AI,">="&$BR$17,'NSR WO Details'!AI:AI,"<="&$BS$17)) ->  | CP21: =IF(BW21="","",SUMIFS('RTM Results'!$DG:$DG,'RTM Results'!$BD:$BD,BW21,'RTM Results'!$O:$O,"Florida",'RTM Results'!H:H,">="&$BR$17,'RTM Results'!H:H,"<="&$BS$17)) ->  | CQ21: =IF(BW21="","",SUMIFS('RTM Results'!$DC:$DC,'RTM Results'!$BD:$BD,BW21,'RTM Results'!$O:$O,"Florida",'RTM Results'!H:H,">="&$BR$17,'RTM Results'!H:H,"<="&$BS$17)) ->  | CS21: =IF(BW21="","",SUMIFS('Tool Usage Details'!$T:$T,'Tool Usage Details'!$I:$I,BW21,'Tool Usage Details'!$G:$G,"FLORIDA REGION",'Tool Usage Details'!E:E,">="&$BR$17,'Tool Usage Details'!E:E,"<="&$BS$17)) ->  | CT21: =IF(BW21="","",COUNTIFS('Tool Usage Details'!$I:$I,BW21,'Tool Usage Details'!$U:$U,"PASS",'Tool Usage Details'!$G:$G,"FLORIDA REGION",'Tool Usage Details'!E:E,">="&$BR$17,'Tool Usage Details'!E:E,"<="&$BS$17)) ->  | CV21: =IF(BW21="","",SUMIFS('One Drop'!$BV:$BV,'One Drop'!$P:$P,BW21,'One Drop'!$L:$L,"FLORIDA REGION",'One Drop'!AQ:AQ,">="&$BR$17,'One Drop'!AQ:AQ,"<="&$BS$17)) ->  | CW21: =IF(BW21="","",SUMIFS('One Drop'!$BQ:$BQ,'One Drop'!$P:$P,BW21,'One Drop'!$L:$L,"FLORIDA REGION",'One Drop'!AQ:AQ,">="&$BR$17,'One Drop'!AQ:AQ,"<="&$BS$17)) ->  | CY21: =IF(BW21="","",SUMIFS('NSR WO Details'!$AK:$AK,'NSR WO Details'!$N:$N,BW21,'NSR WO Details'!$F:$F,"FLORIDA",'NSR WO Details'!AI:AI,">="&$BR$17,'NSR WO Details'!AI:AI,"<="&$BS$17)) ->  | CZ21: =IF(BW21="","",SUMIFS('NSR WO Details'!$AL:$AL,'NSR WO Details'!$N:$N,BW21,'NSR WO Details'!$F:$F,"FLORIDA",'NSR WO Details'!AI:AI,">="&$BR$17,'NSR WO Details'!AI:AI,"<="&$BS$17)) ->  | DB21: =IF(BW21="","",SUMIFS(Completion!$CJ:$CJ,Completion!$G:$G,BW21,Completion!$N:$N,"Install",Completion!$E:$E,"Florida",Completion!AA:AA,">="&$BR$17,Completion!AA:AA,"<="&$BS$17)) ->  | DC21: =IF(BW21="","",SUMIFS(Completion!$CB:$CB,Completion!$G:$G,BW21,Completion!$N:$N,"Install",Completion!$E:$E,"Florida",Completion!AA:AA,">="&$BR$17,Completion!AA:AA,"<="&$BS$17)) ->  | DE21: =IF(BW21="","",SUMIFS(Completion!$CJ:$CJ,Completion!$G:$G,BW21,Completion!$N:$N,"TC",Completion!$E:$E,"Florida",Completion!AA:AA,">="&BR$17,Completion!AA:AA,"<="&$BS$17)) ->  | DF21: =IF(BW21="","",SUMIFS(Completion!$CB:$CB,Completion!$G:$G,BW21,Completion!$N:$N,"TC",Completion!$E:$E,"Florida",Completion!AA:AA,">="&$BR$17,Completion!AA:AA,"<="&$BS$17)) -> 
B22: Tech Rankings | I22: =IF(G22="","",SUMIFS('NSR WO Details'!$AG:$AG,'NSR WO Details'!$N:$N,G22,'NSR WO Details'!$F:$F,"FLORIDA")) ->  | J22: =IF(G22="","",COUNTIFS('FTR Detail'!$P:$P,G22,'FTR Detail'!$H:$H,"=FLORIDA")) ->  | L22: =IF(G22="","",SUMIF('Florida Rework'!$E:$E,$G22,'Florida Rework'!$H:$H)) ->  | M22: =IF(G22="","",SUMIF('Florida Rework'!$E:$E,$G22,'Florida Rework'!$I:$I)) ->  | N22: =IF(G22="","",SUMIF('Florida Rework'!$E:$E,$G22,'Florida Rework'!$M:$M)) ->  | P22: =IF(G22="","",SUMIF('Florida Rework'!$E:$E,$G22,'Florida Rework'!$J:$J)) ->  | Q22: =IF(G22="","",SUMIF('Florida Rework'!$E:$E,$G22,'Florida Rework'!$O:$O)) ->  | U22: =IF(G22="","",SUMIFS('Tool Usage Details'!$Q:$Q,'Tool Usage Details'!$I:$I,G22,'Tool Usage Details'!$G:$G,"FLORIDA REGION")) ->  | V22: =IF(G22="","",COUNTIFS('Tool Usage Details'!$I:$I,G22,'Tool Usage Details'!$S:$S,"PASS",'Tool Usage Details'!$G:$G,"FLORIDA REGION")) ->  | X22: =IF(G22="","",COUNTIFS('Tool Usage Details'!$I:$I,G22,'Tool Usage Details'!$R:$R,"PWW",'Tool Usage Details'!G:G,"FLORIDA REGION")+COUNTIFS('Tool Usage Details'!$I:$I,G22,'Tool Usage Details'!$R:$R,"PWO",'Tool Usage Details'!$G:$G,"FLORIDA REGION")) ->  | Z22: =IF(G22="","",SUMIFS('NSR WO Details'!$Z:$Z,'NSR WO Details'!$N:$N,G22,'NSR WO Details'!$F:$F,"FLORIDA")) ->  | AA22: =IF(G22="","",SUMIFS('NSR WO Details'!$AA:$AA,'NSR WO Details'!$N:$N,G22,'NSR WO Details'!$F:$F,"FLORIDA")) ->  | AC22: =IF(G22="","",COUNTIFS('NSR WO Details'!$N:$N,G22,'NSR WO Details'!$W:$W,"Met",'NSR WO Details'!$F:$F,"FLORIDA")) ->  | AD22: =IF(G22="","",COUNTIFS('NSR WO Details'!$N:$N,G22,'NSR WO Details'!$W:$W,"Missed",'NSR WO Details'!$F:$F,"FLORIDA")) ->  | AF22: =IF(G22="","",COUNTIFS('NSR WO Details'!$N:$N,G22,'NSR WO Details'!$F:$F,"FLORIDA")) ->  | AG22: =IF(G22="","",SUMIFS('NSR WO Details'!$AE:$AE,'NSR WO Details'!$N:$N,G22,'NSR WO Details'!$F:$F,"FLORIDA")) ->  | AI22: =IF(G22="","",SUMIFS('RTM Results'!$DI:$DI,'RTM Results'!$BF:$BF,G22,'RTM Results'!$P:$P,"Florida")) ->  | AJ22: =IF(G22="","",SUMIFS('RTM Results'!$DE:$DE,'RTM Results'!$BF:$BF,G22,'RTM Results'!$P:$P,"Florida")) ->  | AL22: =SUMIFS('ML Bonding Compliance'!$AR:$AR,'ML Bonding Compliance'!$R:$R,$G22,'ML Bonding Compliance'!$F:$F,"FLORIDA") -> 0 | AM22: =SUMIFS('ML Bonding Compliance'!$AU:$AU,'ML Bonding Compliance'!$R:$R,$G22,'ML Bonding Compliance'!$F:$F,"FLORIDA") -> 0 | AO22: =IF(G22="","",SUMIFS('Tool Usage Details'!$T:$T,'Tool Usage Details'!$I:$I,G22,'Tool Usage Details'!$G:$G,"FLORIDA REGION")) ->  | AP22: =IF(G22="","",COUNTIFS('Tool Usage Details'!$I:$I,G22,'Tool Usage Details'!$U:$U,"PASS",'Tool Usage Details'!$G:$G,"FLORIDA REGION")) ->  | AR22: =IF(G22="","",SUMIFS('One Drop'!$BV:$BV,'One Drop'!$P:$P,G22,'One Drop'!$L:$L,"FLORIDA REGION")) ->  | AS22: =IF(G22="","",SUMIFS('One Drop'!$BQ:$BQ,'One Drop'!$P:$P,G22,'One Drop'!$L:$L,"FLORIDA REGION")) ->  | AU22: =IF(G22="","",SUMIFS('NSR WO Details'!$AK:$AK,'NSR WO Details'!$N:$N,G22,'NSR WO Details'!$F:$F,"FLORIDA")) ->  | AV22: =IF(G22="","",SUMIFS('NSR WO Details'!$AL:$AL,'NSR WO Details'!$N:$N,G22,'NSR WO Details'!$F:$F,"FLORIDA")) ->  | AX22: =IF(OR(I22=0,I22=""),"",SUMIFS('Time in Home'!$L:$L,'Time in Home'!$I:$I,$G22,'Time in Home'!E:E,"FLORIDA REGION")) ->  | AY22: =IF(OR(I22=0,I22=""),"",SUMIFS('Time in Home'!$P:$P,'Time in Home'!$I:$I,$G22,'Time in Home'!E:E,"FLORIDA REGION")) ->  | AZ22: =SUMIFS('TQI BP Tech Compliance'!$Q:$Q,'TQI BP Tech Compliance'!$N:$N,$G22,'TQI BP Tech Compliance'!$F:$F,"FLORIDA REGION") -> 0 | BA22: =SUMIFS('TQI BP Tech Compliance'!$AI:$AI,'TQI BP Tech Compliance'!$N:$N,$G22,'TQI BP Tech Compliance'!$F:$F,"FLORIDA REGION") -> 0 | BB22: =SUMIFS('TQI BP Tech Compliance'!$Z:$Z,'TQI BP Tech Compliance'!$N:$N,$G22,'TQI BP Tech Compliance'!$F:$F,"FLORIDA REGION") -> 0 | BC22: =IFERROR(SUMIFS('TQI BP Tech Compliance'!$AC:$AC,'TQI BP Tech Compliance'!$N:$N,$G22,'TQI BP Tech Compliance'!$F:$F,"FLORIDA REGION")/BB22,"") ->  | BD22: =IFERROR(SUMIFS('TQI BP Tech Compliance'!$AD:$AD,'TQI BP Tech Compliance'!$N:$N,$G22,'TQI BP Tech Compliance'!$F:$F,"FLORIDA REGION"),"") -> 0 | BE22: Enrique Gabino | BF22: =IF(G22="","",SUMIFS(Completion!$CJ:$CJ,Completion!$G:$G,G22,Completion!$N:$N,"Install",Completion!$E:$E,"Florida")) ->  | BG22: =IF(G22="","",SUMIFS(Completion!$CB:$CB,Completion!$G:$G,G22,Completion!$N:$N,"Install",Completion!$E:$E,"Florida")) ->  | BI22: =IF(G22="","",SUMIFS(Completion!$CJ:$CJ,Completion!$G:$G,G22,Completion!$N:$N,"TC",Completion!$E:$E,"Florida")) ->  | BJ22: =IF(G22="","",SUMIFS(Completion!$CB:$CB,Completion!$G:$G,G22,Completion!$N:$N,"TC",Completion!$E:$E,"Florida")) ->  | BM22: =COUNTIFS(Completion!$G:$G,$G22,Completion!$E:$E,"FLORIDA",Completion!$N:$N,"TC") -> 0 | BN22: =COUNTIFS(Completion!$G:$G,$G22,Completion!$E:$E,"FLORIDA",Completion!$N:$N,"TC",Completion!$X:$X,"Customer") -> 0 | BY22: =IF(BW22="","",SUMIFS('NSR WO Details'!$AG:$AG,'NSR WO Details'!$N:$N,BW22,'NSR WO Details'!$F:$F,"FLORIDA",'NSR WO Details'!AI:AI,">="&$BR$17,'NSR WO Details'!AI:AI,"<="&$BS$17)) ->  | BZ22: =IF(BW22="","",COUNTIFS('FTR Detail'!$P:$P,BW22,'FTR Detail'!$H:$H,"=FLORIDA",'NSR WO Details'!AI:AI,">="&$BR$17,'NSR WO Details'!AI:AI,"<="&$BS$17)) ->  | CB22: =IF(BW22="","",SUMIFS('Tool Usage Details'!$Q:$Q,'Tool Usage Details'!$I:$I,BW22,'Tool Usage Details'!$G:$G,"FLORIDA REGION",'NSR WO Details'!AI:AI,">="&$BR$17,'NSR WO Details'!AJ:AJ,"<="&$BS$17)) ->  | CC22: =IF(BW22="","",COUNTIFS('Tool Usage Details'!$I:$I,BW22,'Tool Usage Details'!$S:$S,"PASS",'Tool Usage Details'!$G:$G,"FLORIDA REGION",'NSR WO Details'!AI:AI,">="&$BR$17,'NSR WO Details'!AI:AI,"<="&$BS$17)) ->  | CE22: =IF(BW22="","",COUNTIFS('Tool Usage Details'!$I:$I,BW22,'Tool Usage Details'!$R:$R,"PWW",'Tool Usage Details'!$G:$G,"FLORIDA REGION")+COUNTIFS('Tool Usage Details'!$I:$I,BW22,'Tool Usage Details'!$R:$R,"PWO",'Tool Usage Details'!$G:$G,"FLORIDA REGION",'Tool Usage Details'!E:E,">="&$BR$17,'Tool Usage Details'!E:E,"<="&$BS$17)) ->  | CG22: =IF(BW22="","",SUMIFS('NSR WO Details'!$Z:$Z,'NSR WO Details'!$N:$N,BW22,'NSR WO Details'!$F:$F,"FLORIDA",'NSR WO Details'!AI:AI,">="&$BR$17,'NSR WO Details'!AI:AI,"<="&$BS$17)) ->  | CH22: =IF(BW22="","",SUMIFS('NSR WO Details'!$AA:$AA,'NSR WO Details'!$N:$N,BW22,'NSR WO Details'!$F:$F,"FLORIDA",'NSR WO Details'!AI:AI,">="&$BR$17,'NSR WO Details'!AI:AI,"<="&$BS$17)) ->  | CJ22: =IF(BW22="","",COUNTIFS('NSR WO Details'!$N:$N,BW22,'NSR WO Details'!$W:$W,"Met",'NSR WO Details'!$F:$F,"FLORIDA",'NSR WO Details'!AI:AI,">="&$BR$17,'NSR WO Details'!AI:AI,"<="&$BS$17)) ->  | CK22: =IF(BW22="","",COUNTIFS('NSR WO Details'!$N:$N,BW22,'NSR WO Details'!$W:$W,"Missed",'NSR WO Details'!$F:$F,"FLORIDA",'NSR WO Details'!AI:AI,">="&$BR$17,'NSR WO Details'!AI:AI,"<="&$BS$17)) ->  | CM22: =IF(BW22="","",COUNTIFS('NSR WO Details'!$N:$N,BW22,'NSR WO Details'!$F:$F,"FLORIDA",'NSR WO Details'!AI:AI,">="&$BR$17,'NSR WO Details'!AI:AI,"<="&$BS$17)) ->  | CN22: =IF(BW22="","",SUMIFS('NSR WO Details'!$AE:$AE,'NSR WO Details'!$N:$N,BW22,'NSR WO Details'!$F:$F,"FLORIDA",'NSR WO Details'!AI:AI,">="&$BR$17,'NSR WO Details'!AI:AI,"<="&$BS$17)) ->  | CP22: =IF(BW22="","",SUMIFS('RTM Results'!$DG:$DG,'RTM Results'!$BD:$BD,BW22,'RTM Results'!$O:$O,"Florida",'RTM Results'!H:H,">="&$BR$17,'RTM Results'!H:H,"<="&$BS$17)) ->  | CQ22: =IF(BW22="","",SUMIFS('RTM Results'!$DC:$DC,'RTM Results'!$BD:$BD,BW22,'RTM Results'!$O:$O,"Florida",'RTM Results'!H:H,">="&$BR$17,'RTM Results'!H:H,"<="&$BS$17)) ->  | CS22: =IF(BW22="","",SUMIFS('Tool Usage Details'!$T:$T,'Tool Usage Details'!$I:$I,BW22,'Tool Usage Details'!$G:$G,"FLORIDA REGION",'Tool Usage Details'!E:E,">="&$BR$17,'Tool Usage Details'!E:E,"<="&$BS$17)) ->  | CT22: =IF(BW22="","",COUNTIFS('Tool Usage Details'!$I:$I,BW22,'Tool Usage Details'!$U:$U,"PASS",'Tool Usage Details'!$G:$G,"FLORIDA REGION",'Tool Usage Details'!E:E,">="&$BR$17,'Tool Usage Details'!E:E,"<="&$BS$17)) ->  | CV22: =IF(BW22="","",SUMIFS('One Drop'!$BV:$BV,'One Drop'!$P:$P,BW22,'One Drop'!$L:$L,"FLORIDA REGION",'One Drop'!AQ:AQ,">="&$BR$17,'One Drop'!AQ:AQ,"<="&$BS$17)) ->  | CW22: =IF(BW22="","",SUMIFS('One Drop'!$BQ:$BQ,'One Drop'!$P:$P,BW22,'One Drop'!$L:$L,"FLORIDA REGION",'One Drop'!AQ:AQ,">="&$BR$17,'One Drop'!AQ:AQ,"<="&$BS$17)) ->  | CY22: =IF(BW22="","",SUMIFS('NSR WO Details'!$AK:$AK,'NSR WO Details'!$N:$N,BW22,'NSR WO Details'!$F:$F,"FLORIDA",'NSR WO Details'!AI:AI,">="&$BR$17,'NSR WO Details'!AI:AI,"<="&$BS$17)) ->  | CZ22: =IF(BW22="","",SUMIFS('NSR WO Details'!$AL:$AL,'NSR WO Details'!$N:$N,BW22,'NSR WO Details'!$F:$F,"FLORIDA",'NSR WO Details'!AI:AI,">="&$BR$17,'NSR WO Details'!AI:AI,"<="&$BS$17)) ->  | DB22: =IF(BW22="","",SUMIFS(Completion!$CJ:$CJ,Completion!$G:$G,BW22,Completion!$N:$N,"Install",Completion!$E:$E,"Florida",Completion!AA:AA,">="&$BR$17,Completion!AA:AA,"<="&$BS$17)) ->  | DC22: =IF(BW22="","",SUMIFS(Completion!$CB:$CB,Completion!$G:$G,BW22,Completion!$N:$N,"Install",Completion!$E:$E,"Florida",Completion!AA:AA,">="&$BR$17,Completion!AA:AA,"<="&$BS$17)) ->  | DE22: =IF(BW22="","",SUMIFS(Completion!$CJ:$CJ,Completion!$G:$G,BW22,Completion!$N:$N,"TC",Completion!$E:$E,"Florida",Completion!AA:AA,">="&BR$17,Completion!AA:AA,"<="&$BS$17)) ->  | DF22: =IF(BW22="","",SUMIFS(Completion!$CB:$CB,Completion!$G:$G,BW22,Completion!$N:$N,"TC",Completion!$E:$E,"Florida",Completion!AA:AA,">="&$BR$17,Completion!AA:AA,"<="&$BS$17)) -> 
B23: Tech Coaching Form | I23: =IF(G23="","",SUMIFS('NSR WO Details'!$AG:$AG,'NSR WO Details'!$N:$N,G23,'NSR WO Details'!$F:$F,"FLORIDA")) ->  | J23: =IF(G23="","",COUNTIFS('FTR Detail'!$P:$P,G23,'FTR Detail'!$H:$H,"=FLORIDA")) ->  | L23: =IF(G23="","",SUMIF('Florida Rework'!$E:$E,$G23,'Florida Rework'!$H:$H)) ->  | M23: =IF(G23="","",SUMIF('Florida Rework'!$E:$E,$G23,'Florida Rework'!$I:$I)) ->  | N23: =IF(G23="","",SUMIF('Florida Rework'!$E:$E,$G23,'Florida Rework'!$M:$M)) ->  | P23: =IF(G23="","",SUMIF('Florida Rework'!$E:$E,$G23,'Florida Rework'!$J:$J)) ->  | Q23: =IF(G23="","",SUMIF('Florida Rework'!$E:$E,$G23,'Florida Rework'!$O:$O)) ->  | U23: =IF(G23="","",SUMIFS('Tool Usage Details'!$Q:$Q,'Tool Usage Details'!$I:$I,G23,'Tool Usage Details'!$G:$G,"FLORIDA REGION")) ->  | V23: =IF(G23="","",COUNTIFS('Tool Usage Details'!$I:$I,G23,'Tool Usage Details'!$S:$S,"PASS",'Tool Usage Details'!$G:$G,"FLORIDA REGION")) ->  | X23: =IF(G23="","",COUNTIFS('Tool Usage Details'!$I:$I,G23,'Tool Usage Details'!$R:$R,"PWW",'Tool Usage Details'!G:G,"FLORIDA REGION")+COUNTIFS('Tool Usage Details'!$I:$I,G23,'Tool Usage Details'!$R:$R,"PWO",'Tool Usage Details'!$G:$G,"FLORIDA REGION")) ->  | Z23: =IF(G23="","",SUMIFS('NSR WO Details'!$Z:$Z,'NSR WO Details'!$N:$N,G23,'NSR WO Details'!$F:$F,"FLORIDA")) ->  | AA23: =IF(G23="","",SUMIFS('NSR WO Details'!$AA:$AA,'NSR WO Details'!$N:$N,G23,'NSR WO Details'!$F:$F,"FLORIDA")) ->  | AC23: =IF(G23="","",COUNTIFS('NSR WO Details'!$N:$N,G23,'NSR WO Details'!$W:$W,"Met",'NSR WO Details'!$F:$F,"FLORIDA")) ->  | AD23: =IF(G23="","",COUNTIFS('NSR WO Details'!$N:$N,G23,'NSR WO Details'!$W:$W,"Missed",'NSR WO Details'!$F:$F,"FLORIDA")) ->  | AF23: =IF(G23="","",COUNTIFS('NSR WO Details'!$N:$N,G23,'NSR WO Details'!$F:$F,"FLORIDA")) ->  | AG23: =IF(G23="","",SUMIFS('NSR WO Details'!$AE:$AE,'NSR WO Details'!$N:$N,G23,'NSR WO Details'!$F:$F,"FLORIDA")) ->  | AI23: =IF(G23="","",SUMIFS('RTM Results'!$DI:$DI,'RTM Results'!$BF:$BF,G23,'RTM Results'!$P:$P,"Florida")) ->  | AJ23: =IF(G23="","",SUMIFS('RTM Results'!$DE:$DE,'RTM Results'!$BF:$BF,G23,'RTM Results'!$P:$P,"Florida")) ->  | AL23: =SUMIFS('ML Bonding Compliance'!$AR:$AR,'ML Bonding Compliance'!$R:$R,$G23,'ML Bonding Compliance'!$F:$F,"FLORIDA") -> 0 | AM23: =SUMIFS('ML Bonding Compliance'!$AU:$AU,'ML Bonding Compliance'!$R:$R,$G23,'ML Bonding Compliance'!$F:$F,"FLORIDA") -> 0 | AO23: =IF(G23="","",SUMIFS('Tool Usage Details'!$T:$T,'Tool Usage Details'!$I:$I,G23,'Tool Usage Details'!$G:$G,"FLORIDA REGION")) ->  | AP23: =IF(G23="","",COUNTIFS('Tool Usage Details'!$I:$I,G23,'Tool Usage Details'!$U:$U,"PASS",'Tool Usage Details'!$G:$G,"FLORIDA REGION")) ->  | AR23: =IF(G23="","",SUMIFS('One Drop'!$BV:$BV,'One Drop'!$P:$P,G23,'One Drop'!$L:$L,"FLORIDA REGION")) ->  | AS23: =IF(G23="","",SUMIFS('One Drop'!$BQ:$BQ,'One Drop'!$P:$P,G23,'One Drop'!$L:$L,"FLORIDA REGION")) ->  | AU23: =IF(G23="","",SUMIFS('NSR WO Details'!$AK:$AK,'NSR WO Details'!$N:$N,G23,'NSR WO Details'!$F:$F,"FLORIDA")) ->  | AV23: =IF(G23="","",SUMIFS('NSR WO Details'!$AL:$AL,'NSR WO Details'!$N:$N,G23,'NSR WO Details'!$F:$F,"FLORIDA")) ->  | AX23: =IF(OR(I23=0,I23=""),"",SUMIFS('Time in Home'!$L:$L,'Time in Home'!$I:$I,$G23,'Time in Home'!E:E,"FLORIDA REGION")) ->  | AY23: =IF(OR(I23=0,I23=""),"",SUMIFS('Time in Home'!$P:$P,'Time in Home'!$I:$I,$G23,'Time in Home'!E:E,"FLORIDA REGION")) ->  | AZ23: =SUMIFS('TQI BP Tech Compliance'!$Q:$Q,'TQI BP Tech Compliance'!$N:$N,$G23,'TQI BP Tech Compliance'!$F:$F,"FLORIDA REGION") -> 0 | BA23: =SUMIFS('TQI BP Tech Compliance'!$AI:$AI,'TQI BP Tech Compliance'!$N:$N,$G23,'TQI BP Tech Compliance'!$F:$F,"FLORIDA REGION") -> 0 | BB23: =SUMIFS('TQI BP Tech Compliance'!$Z:$Z,'TQI BP Tech Compliance'!$N:$N,$G23,'TQI BP Tech Compliance'!$F:$F,"FLORIDA REGION") -> 0 | BC23: =IFERROR(SUMIFS('TQI BP Tech Compliance'!$AC:$AC,'TQI BP Tech Compliance'!$N:$N,$G23,'TQI BP Tech Compliance'!$F:$F,"FLORIDA REGION")/BB23,"") ->  | BD23: =IFERROR(SUMIFS('TQI BP Tech Compliance'!$AD:$AD,'TQI BP Tech Compliance'!$N:$N,$G23,'TQI BP Tech Compliance'!$F:$F,"FLORIDA REGION"),"") -> 0 | BE23: Enrique Gabino | BF23: =IF(G23="","",SUMIFS(Completion!$CJ:$CJ,Completion!$G:$G,G23,Completion!$N:$N,"Install",Completion!$E:$E,"Florida")) ->  | BG23: =IF(G23="","",SUMIFS(Completion!$CB:$CB,Completion!$G:$G,G23,Completion!$N:$N,"Install",Completion!$E:$E,"Florida")) ->  | BI23: =IF(G23="","",SUMIFS(Completion!$CJ:$CJ,Completion!$G:$G,G23,Completion!$N:$N,"TC",Completion!$E:$E,"Florida")) ->  | BJ23: =IF(G23="","",SUMIFS(Completion!$CB:$CB,Completion!$G:$G,G23,Completion!$N:$N,"TC",Completion!$E:$E,"Florida")) ->  | BM23: =COUNTIFS(Completion!$G:$G,$G23,Completion!$E:$E,"FLORIDA",Completion!$N:$N,"TC") -> 0 | BN23: =COUNTIFS(Completion!$G:$G,$G23,Completion!$E:$E,"FLORIDA",Completion!$N:$N,"TC",Completion!$X:$X,"Customer") -> 0 | BY23: =IF(BW23="","",SUMIFS('NSR WO Details'!$AG:$AG,'NSR WO Details'!$N:$N,BW23,'NSR WO Details'!$F:$F,"FLORIDA",'NSR WO Details'!AI:AI,">="&$BR$17,'NSR WO Details'!AI:AI,"<="&$BS$17)) ->  | BZ23: =IF(BW23="","",COUNTIFS('FTR Detail'!$P:$P,BW23,'FTR Detail'!$H:$H,"=FLORIDA",'NSR WO Details'!AI:AI,">="&$BR$17,'NSR WO Details'!AI:AI,"<="&$BS$17)) ->  | CB23: =IF(BW23="","",SUMIFS('Tool Usage Details'!$Q:$Q,'Tool Usage Details'!$I:$I,BW23,'Tool Usage Details'!$G:$G,"FLORIDA REGION",'NSR WO Details'!AI:AI,">="&$BR$17,'NSR WO Details'!AJ:AJ,"<="&$BS$17)) ->  | CC23: =IF(BW23="","",COUNTIFS('Tool Usage Details'!$I:$I,BW23,'Tool Usage Details'!$S:$S,"PASS",'Tool Usage Details'!$G:$G,"FLORIDA REGION",'NSR WO Details'!AI:AI,">="&$BR$17,'NSR WO Details'!AI:AI,"<="&$BS$17)) ->  | CE23: =IF(BW23="","",COUNTIFS('Tool Usage Details'!$I:$I,BW23,'Tool Usage Details'!$R:$R,"PWW",'Tool Usage Details'!$G:$G,"FLORIDA REGION")+COUNTIFS('Tool Usage Details'!$I:$I,BW23,'Tool Usage Details'!$R:$R,"PWO",'Tool Usage Details'!$G:$G,"FLORIDA REGION",'Tool Usage Details'!E:E,">="&$BR$17,'Tool Usage Details'!E:E,"<="&$BS$17)) ->  | CG23: =IF(BW23="","",SUMIFS('NSR WO Details'!$Z:$Z,'NSR WO Details'!$N:$N,BW23,'NSR WO Details'!$F:$F,"FLORIDA",'NSR WO Details'!AI:AI,">="&$BR$17,'NSR WO Details'!AI:AI,"<="&$BS$17)) ->  | CH23: =IF(BW23="","",SUMIFS('NSR WO Details'!$AA:$AA,'NSR WO Details'!$N:$N,BW23,'NSR WO Details'!$F:$F,"FLORIDA",'NSR WO Details'!AI:AI,">="&$BR$17,'NSR WO Details'!AI:AI,"<="&$BS$17)) ->  | CJ23: =IF(BW23="","",COUNTIFS('NSR WO Details'!$N:$N,BW23,'NSR WO Details'!$W:$W,"Met",'NSR WO Details'!$F:$F,"FLORIDA",'NSR WO Details'!AI:AI,">="&$BR$17,'NSR WO Details'!AI:AI,"<="&$BS$17)) ->  | CK23: =IF(BW23="","",COUNTIFS('NSR WO Details'!$N:$N,BW23,'NSR WO Details'!$W:$W,"Missed",'NSR WO Details'!$F:$F,"FLORIDA",'NSR WO Details'!AI:AI,">="&$BR$17,'NSR WO Details'!AI:AI,"<="&$BS$17)) ->  | CM23: =IF(BW23="","",COUNTIFS('NSR WO Details'!$N:$N,BW23,'NSR WO Details'!$F:$F,"FLORIDA",'NSR WO Details'!AI:AI,">="&$BR$17,'NSR WO Details'!AI:AI,"<="&$BS$17)) ->  | CN23: =IF(BW23="","",SUMIFS('NSR WO Details'!$AE:$AE,'NSR WO Details'!$N:$N,BW23,'NSR WO Details'!$F:$F,"FLORIDA",'NSR WO Details'!AI:AI,">="&$BR$17,'NSR WO Details'!AI:AI,"<="&$BS$17)) ->  | CP23: =IF(BW23="","",SUMIFS('RTM Results'!$DG:$DG,'RTM Results'!$BD:$BD,BW23,'RTM Results'!$O:$O,"Florida",'RTM Results'!H:H,">="&$BR$17,'RTM Results'!H:H,"<="&$BS$17)) ->  | CQ23: =IF(BW23="","",SUMIFS('RTM Results'!$DC:$DC,'RTM Results'!$BD:$BD,BW23,'RTM Results'!$O:$O,"Florida",'RTM Results'!H:H,">="&$BR$17,'RTM Results'!H:H,"<="&$BS$17)) ->  | CS23: =IF(BW23="","",SUMIFS('Tool Usage Details'!$T:$T,'Tool Usage Details'!$I:$I,BW23,'Tool Usage Details'!$G:$G,"FLORIDA REGION",'Tool Usage Details'!E:E,">="&$BR$17,'Tool Usage Details'!E:E,"<="&$BS$17)) ->  | CT23: =IF(BW23="","",COUNTIFS('Tool Usage Details'!$I:$I,BW23,'Tool Usage Details'!$U:$U,"PASS",'Tool Usage Details'!$G:$G,"FLORIDA REGION",'Tool Usage Details'!E:E,">="&$BR$17,'Tool Usage Details'!E:E,"<="&$BS$17)) ->  | CV23: =IF(BW23="","",SUMIFS('One Drop'!$BV:$BV,'One Drop'!$P:$P,BW23,'One Drop'!$L:$L,"FLORIDA REGION",'One Drop'!AQ:AQ,">="&$BR$17,'One Drop'!AQ:AQ,"<="&$BS$17)) ->  | CW23: =IF(BW23="","",SUMIFS('One Drop'!$BQ:$BQ,'One Drop'!$P:$P,BW23,'One Drop'!$L:$L,"FLORIDA REGION",'One Drop'!AQ:AQ,">="&$BR$17,'One Drop'!AQ:AQ,"<="&$BS$17)) ->  | CY23: =IF(BW23="","",SUMIFS('NSR WO Details'!$AK:$AK,'NSR WO Details'!$N:$N,BW23,'NSR WO Details'!$F:$F,"FLORIDA",'NSR WO Details'!AI:AI,">="&$BR$17,'NSR WO Details'!AI:AI,"<="&$BS$17)) ->  | CZ23: =IF(BW23="","",SUMIFS('NSR WO Details'!$AL:$AL,'NSR WO Details'!$N:$N,BW23,'NSR WO Details'!$F:$F,"FLORIDA",'NSR WO Details'!AI:AI,">="&$BR$17,'NSR WO Details'!AI:AI,"<="&$BS$17)) ->  | DB23: =IF(BW23="","",SUMIFS(Completion!$CJ:$CJ,Completion!$G:$G,BW23,Completion!$N:$N,"Install",Completion!$E:$E,"Florida",Completion!AA:AA,">="&$BR$17,Completion!AA:AA,"<="&$BS$17)) ->  | DC23: =IF(BW23="","",SUMIFS(Completion!$CB:$CB,Completion!$G:$G,BW23,Completion!$N:$N,"Install",Completion!$E:$E,"Florida",Completion!AA:AA,">="&$BR$17,Completion!AA:AA,"<="&$BS$17)) ->  | DE23: =IF(BW23="","",SUMIFS(Completion!$CJ:$CJ,Completion!$G:$G,BW23,Completion!$N:$N,"TC",Completion!$E:$E,"Florida",Completion!AA:AA,">="&BR$17,Completion!AA:AA,"<="&$BS$17)) ->  | DF23: =IF(BW23="","",SUMIFS(Completion!$CB:$CB,Completion!$G:$G,BW23,Completion!$N:$N,"TC",Completion!$E:$E,"Florida",Completion!AA:AA,">="&$BR$17,Completion!AA:AA,"<="&$BS$17)) -> 
B24: Rework Summary | I24: =IF(G24="","",SUMIFS('NSR WO Details'!$AG:$AG,'NSR WO Details'!$N:$N,G24,'NSR WO Details'!$F:$F,"FLORIDA")) ->  | J24: =IF(G24="","",COUNTIFS('FTR Detail'!$P:$P,G24,'FTR Detail'!$H:$H,"=FLORIDA")) ->  | L24: =IF(G24="","",SUMIF('Florida Rework'!$E:$E,$G24,'Florida Rework'!$H:$H)) ->  | M24: =IF(G24="","",SUMIF('Florida Rework'!$E:$E,$G24,'Florida Rework'!$I:$I)) ->  | N24: =IF(G24="","",SUMIF('Florida Rework'!$E:$E,$G24,'Florida Rework'!$M:$M)) ->  | P24: =IF(G24="","",SUMIF('Florida Rework'!$E:$E,$G24,'Florida Rework'!$J:$J)) ->  | Q24: =IF(G24="","",SUMIF('Florida Rework'!$E:$E,$G24,'Florida Rework'!$O:$O)) ->  | U24: =IF(G24="","",SUMIFS('Tool Usage Details'!$Q:$Q,'Tool Usage Details'!$I:$I,G24,'Tool Usage Details'!$G:$G,"FLORIDA REGION")) ->  | V24: =IF(G24="","",COUNTIFS('Tool Usage Details'!$I:$I,G24,'Tool Usage Details'!$S:$S,"PASS",'Tool Usage Details'!$G:$G,"FLORIDA REGION")) ->  | X24: =IF(G24="","",COUNTIFS('Tool Usage Details'!$I:$I,G24,'Tool Usage Details'!$R:$R,"PWW",'Tool Usage Details'!G:G,"FLORIDA REGION")+COUNTIFS('Tool Usage Details'!$I:$I,G24,'Tool Usage Details'!$R:$R,"PWO",'Tool Usage Details'!$G:$G,"FLORIDA REGION")) ->  | Z24: =IF(G24="","",SUMIFS('NSR WO Details'!$Z:$Z,'NSR WO Details'!$N:$N,G24,'NSR WO Details'!$F:$F,"FLORIDA")) ->  | AA24: =IF(G24="","",SUMIFS('NSR WO Details'!$AA:$AA,'NSR WO Details'!$N:$N,G24,'NSR WO Details'!$F:$F,"FLORIDA")) ->  | AC24: =IF(G24="","",COUNTIFS('NSR WO Details'!$N:$N,G24,'NSR WO Details'!$W:$W,"Met",'NSR WO Details'!$F:$F,"FLORIDA")) ->  | AD24: =IF(G24="","",COUNTIFS('NSR WO Details'!$N:$N,G24,'NSR WO Details'!$W:$W,"Missed",'NSR WO Details'!$F:$F,"FLORIDA")) ->  | AF24: =IF(G24="","",COUNTIFS('NSR WO Details'!$N:$N,G24,'NSR WO Details'!$F:$F,"FLORIDA")) ->  | AG24: =IF(G24="","",SUMIFS('NSR WO Details'!$AE:$AE,'NSR WO Details'!$N:$N,G24,'NSR WO Details'!$F:$F,"FLORIDA")) ->  | AI24: =IF(G24="","",SUMIFS('RTM Results'!$DI:$DI,'RTM Results'!$BF:$BF,G24,'RTM Results'!$P:$P,"Florida")) ->  | AJ24: =IF(G24="","",SUMIFS('RTM Results'!$DE:$DE,'RTM Results'!$BF:$BF,G24,'RTM Results'!$P:$P,"Florida")) ->  | AL24: =SUMIFS('ML Bonding Compliance'!$AR:$AR,'ML Bonding Compliance'!$R:$R,$G24,'ML Bonding Compliance'!$F:$F,"FLORIDA") -> 0 | AM24: =SUMIFS('ML Bonding Compliance'!$AU:$AU,'ML Bonding Compliance'!$R:$R,$G24,'ML Bonding Compliance'!$F:$F,"FLORIDA") -> 0 | AO24: =IF(G24="","",SUMIFS('Tool Usage Details'!$T:$T,'Tool Usage Details'!$I:$I,G24,'Tool Usage Details'!$G:$G,"FLORIDA REGION")) ->  | AP24: =IF(G24="","",COUNTIFS('Tool Usage Details'!$I:$I,G24,'Tool Usage Details'!$U:$U,"PASS",'Tool Usage Details'!$G:$G,"FLORIDA REGION")) ->  | AR24: =IF(G24="","",SUMIFS('One Drop'!$BV:$BV,'One Drop'!$P:$P,G24,'One Drop'!$L:$L,"FLORIDA REGION")) ->  | AS24: =IF(G24="","",SUMIFS('One Drop'!$BQ:$BQ,'One Drop'!$P:$P,G24,'One Drop'!$L:$L,"FLORIDA REGION")) ->  | AU24: =IF(G24="","",SUMIFS('NSR WO Details'!$AK:$AK,'NSR WO Details'!$N:$N,G24,'NSR WO Details'!$F:$F,"FLORIDA")) ->  | AV24: =IF(G24="","",SUMIFS('NSR WO Details'!$AL:$AL,'NSR WO Details'!$N:$N,G24,'NSR WO Details'!$F:$F,"FLORIDA")) ->  | AX24: =IF(OR(I24=0,I24=""),"",SUMIFS('Time in Home'!$L:$L,'Time in Home'!$I:$I,$G24,'Time in Home'!E:E,"FLORIDA REGION")) ->  | AY24: =IF(OR(I24=0,I24=""),"",SUMIFS('Time in Home'!$P:$P,'Time in Home'!$I:$I,$G24,'Time in Home'!E:E,"FLORIDA REGION")) ->  | AZ24: =SUMIFS('TQI BP Tech Compliance'!$Q:$Q,'TQI BP Tech Compliance'!$N:$N,$G24,'TQI BP Tech Compliance'!$F:$F,"FLORIDA REGION") -> 0 | BA24: =SUMIFS('TQI BP Tech Compliance'!$AI:$AI,'TQI BP Tech Compliance'!$N:$N,$G24,'TQI BP Tech Compliance'!$F:$F,"FLORIDA REGION") -> 0 | BB24: =SUMIFS('TQI BP Tech Compliance'!$Z:$Z,'TQI BP Tech Compliance'!$N:$N,$G24,'TQI BP Tech Compliance'!$F:$F,"FLORIDA REGION") -> 0 | BC24: =IFERROR(SUMIFS('TQI BP Tech Compliance'!$AC:$AC,'TQI BP Tech Compliance'!$N:$N,$G24,'TQI BP Tech Compliance'!$F:$F,"FLORIDA REGION")/BB24,"") ->  | BD24: =IFERROR(SUMIFS('TQI BP Tech Compliance'!$AD:$AD,'TQI BP Tech Compliance'!$N:$N,$G24,'TQI BP Tech Compliance'!$F:$F,"FLORIDA REGION"),"") -> 0 | BE24: Enrique Gabino | BF24: =IF(G24="","",SUMIFS(Completion!$CJ:$CJ,Completion!$G:$G,G24,Completion!$N:$N,"Install",Completion!$E:$E,"Florida")) ->  | BG24: =IF(G24="","",SUMIFS(Completion!$CB:$CB,Completion!$G:$G,G24,Completion!$N:$N,"Install",Completion!$E:$E,"Florida")) ->  | BI24: =IF(G24="","",SUMIFS(Completion!$CJ:$CJ,Completion!$G:$G,G24,Completion!$N:$N,"TC",Completion!$E:$E,"Florida")) ->  | BJ24: =IF(G24="","",SUMIFS(Completion!$CB:$CB,Completion!$G:$G,G24,Completion!$N:$N,"TC",Completion!$E:$E,"Florida")) ->  | BM24: =COUNTIFS(Completion!$G:$G,$G24,Completion!$E:$E,"FLORIDA",Completion!$N:$N,"TC") -> 0 | BN24: =COUNTIFS(Completion!$G:$G,$G24,Completion!$E:$E,"FLORIDA",Completion!$N:$N,"TC",Completion!$X:$X,"Customer") -> 0 | BY24: =IF(BW24="","",SUMIFS('NSR WO Details'!$AG:$AG,'NSR WO Details'!$N:$N,BW24,'NSR WO Details'!$F:$F,"FLORIDA",'NSR WO Details'!AI:AI,">="&$BR$17,'NSR WO Details'!AI:AI,"<="&$BS$17)) ->  | BZ24: =IF(BW24="","",COUNTIFS('FTR Detail'!$P:$P,BW24,'FTR Detail'!$H:$H,"=FLORIDA",'NSR WO Details'!AI:AI,">="&$BR$17,'NSR WO Details'!AI:AI,"<="&$BS$17)) ->  | CB24: =IF(BW24="","",SUMIFS('Tool Usage Details'!$Q:$Q,'Tool Usage Details'!$I:$I,BW24,'Tool Usage Details'!$G:$G,"FLORIDA REGION",'NSR WO Details'!AI:AI,">="&$BR$17,'NSR WO Details'!AJ:AJ,"<="&$BS$17)) ->  | CC24: =IF(BW24="","",COUNTIFS('Tool Usage Details'!$I:$I,BW24,'Tool Usage Details'!$S:$S,"PASS",'Tool Usage Details'!$G:$G,"FLORIDA REGION",'NSR WO Details'!AI:AI,">="&$BR$17,'NSR WO Details'!AI:AI,"<="&$BS$17)) ->  | CE24: =IF(BW24="","",COUNTIFS('Tool Usage Details'!$I:$I,BW24,'Tool Usage Details'!$R:$R,"PWW",'Tool Usage Details'!$G:$G,"FLORIDA REGION")+COUNTIFS('Tool Usage Details'!$I:$I,BW24,'Tool Usage Details'!$R:$R,"PWO",'Tool Usage Details'!$G:$G,"FLORIDA REGION",'Tool Usage Details'!E:E,">="&$BR$17,'Tool Usage Details'!E:E,"<="&$BS$17)) ->  | CG24: =IF(BW24="","",SUMIFS('NSR WO Details'!$Z:$Z,'NSR WO Details'!$N:$N,BW24,'NSR WO Details'!$F:$F,"FLORIDA",'NSR WO Details'!AI:AI,">="&$BR$17,'NSR WO Details'!AI:AI,"<="&$BS$17)) ->  | CH24: =IF(BW24="","",SUMIFS('NSR WO Details'!$AA:$AA,'NSR WO Details'!$N:$N,BW24,'NSR WO Details'!$F:$F,"FLORIDA",'NSR WO Details'!AI:AI,">="&$BR$17,'NSR WO Details'!AI:AI,"<="&$BS$17)) ->  | CJ24: =IF(BW24="","",COUNTIFS('NSR WO Details'!$N:$N,BW24,'NSR WO Details'!$W:$W,"Met",'NSR WO Details'!$F:$F,"FLORIDA",'NSR WO Details'!AI:AI,">="&$BR$17,'NSR WO Details'!AI:AI,"<="&$BS$17)) ->  | CK24: =IF(BW24="","",COUNTIFS('NSR WO Details'!$N:$N,BW24,'NSR WO Details'!$W:$W,"Missed",'NSR WO Details'!$F:$F,"FLORIDA",'NSR WO Details'!AI:AI,">="&$BR$17,'NSR WO Details'!AI:AI,"<="&$BS$17)) ->  | CM24: =IF(BW24="","",COUNTIFS('NSR WO Details'!$N:$N,BW24,'NSR WO Details'!$F:$F,"FLORIDA",'NSR WO Details'!AI:AI,">="&$BR$17,'NSR WO Details'!AI:AI,"<="&$BS$17)) ->  | CN24: =IF(BW24="","",SUMIFS('NSR WO Details'!$AE:$AE,'NSR WO Details'!$N:$N,BW24,'NSR WO Details'!$F:$F,"FLORIDA",'NSR WO Details'!AI:AI,">="&$BR$17,'NSR WO Details'!AI:AI,"<="&$BS$17)) ->  | CP24: =IF(BW24="","",SUMIFS('RTM Results'!$DG:$DG,'RTM Results'!$BD:$BD,BW24,'RTM Results'!$O:$O,"Florida",'RTM Results'!H:H,">="&$BR$17,'RTM Results'!H:H,"<="&$BS$17)) ->  | CQ24: =IF(BW24="","",SUMIFS('RTM Results'!$DC:$DC,'RTM Results'!$BD:$BD,BW24,'RTM Results'!$O:$O,"Florida",'RTM Results'!H:H,">="&$BR$17,'RTM Results'!H:H,"<="&$BS$17)) ->  | CS24: =IF(BW24="","",SUMIFS('Tool Usage Details'!$T:$T,'Tool Usage Details'!$I:$I,BW24,'Tool Usage Details'!$G:$G,"FLORIDA REGION",'Tool Usage Details'!E:E,">="&$BR$17,'Tool Usage Details'!E:E,"<="&$BS$17)) ->  | CT24: =IF(BW24="","",COUNTIFS('Tool Usage Details'!$I:$I,BW24,'Tool Usage Details'!$U:$U,"PASS",'Tool Usage Details'!$G:$G,"FLORIDA REGION",'Tool Usage Details'!E:E,">="&$BR$17,'Tool Usage Details'!E:E,"<="&$BS$17)) ->  | CV24: =IF(BW24="","",SUMIFS('One Drop'!$BV:$BV,'One Drop'!$P:$P,BW24,'One Drop'!$L:$L,"FLORIDA REGION",'One Drop'!AQ:AQ,">="&$BR$17,'One Drop'!AQ:AQ,"<="&$BS$17)) ->  | CW24: =IF(BW24="","",SUMIFS('One Drop'!$BQ:$BQ,'One Drop'!$P:$P,BW24,'One Drop'!$L:$L,"FLORIDA REGION",'One Drop'!AQ:AQ,">="&$BR$17,'One Drop'!AQ:AQ,"<="&$BS$17)) ->  | CY24: =IF(BW24="","",SUMIFS('NSR WO Details'!$AK:$AK,'NSR WO Details'!$N:$N,BW24,'NSR WO Details'!$F:$F,"FLORIDA",'NSR WO Details'!AI:AI,">="&$BR$17,'NSR WO Details'!AI:AI,"<="&$BS$17)) ->  | CZ24: =IF(BW24="","",SUMIFS('NSR WO Details'!$AL:$AL,'NSR WO Details'!$N:$N,BW24,'NSR WO Details'!$F:$F,"FLORIDA",'NSR WO Details'!AI:AI,">="&$BR$17,'NSR WO Details'!AI:AI,"<="&$BS$17)) ->  | DB24: =IF(BW24="","",SUMIFS(Completion!$CJ:$CJ,Completion!$G:$G,BW24,Completion!$N:$N,"Install",Completion!$E:$E,"Florida",Completion!AA:AA,">="&$BR$17,Completion!AA:AA,"<="&$BS$17)) ->  | DC24: =IF(BW24="","",SUMIFS(Completion!$CB:$CB,Completion!$G:$G,BW24,Completion!$N:$N,"Install",Completion!$E:$E,"Florida",Completion!AA:AA,">="&$BR$17,Completion!AA:AA,"<="&$BS$17)) ->  | DE24: =IF(BW24="","",SUMIFS(Completion!$CJ:$CJ,Completion!$G:$G,BW24,Completion!$N:$N,"TC",Completion!$E:$E,"Florida",Completion!AA:AA,">="&BR$17,Completion!AA:AA,"<="&$BS$17)) ->  | DF24: =IF(BW24="","",SUMIFS(Completion!$CB:$CB,Completion!$G:$G,BW24,Completion!$N:$N,"TC",Completion!$E:$E,"Florida",Completion!AA:AA,">="&$BR$17,Completion!AA:AA,"<="&$BS$17)) -> 
